Workbook

Sheet Water Data Fields
B2: Harbor Water Database Fields Supplied
B5: Field | C5: Units | D5: Descriptor
A6: 1 | B6: Section ID
A7: 2 | B7: Record_No
A8: 3 | B8: Location Name
A9: 4 | B9: City
A10: 5 | B10: Facility Information
A11: 6 | B11: Date Sampled
A12: 7 | B12: Latitude
A13: 8 | B13: Longitude
A14: 9 | B14: Temp | C14: ºF

Sheet Station ID
A1: S/N | B1: Station ID | C1: Facility | D1: City | E1: Location | F1: Coordinates NAD 83
D2: City | E2: City | F2: North | G2: Easting
A3: 1 | B3: DE1i | C3: Duluth Entry | D3: Duluth | E3: Wall | F3: 432176.08 | G3: 2878076.33
A4: 2 | B4: DE1o | C4: Duluth Entry | D4: Duluth | E4: Wall | F4: 432176.08 | G4: 2878076.33
A5: 3 | B5: DE2i | C5: Duluth Entry | D5: Duluth | E5: Wall | F5: 432176.98 | G5: 2878145.92
A6: 4 | B6: DE2o | C6: Duluth Entry | D6: Duluth | E6: Wall | F6: 432176.98 | G6: 2878145.92
A7: 5 | B7: DE3i | C7: Duluth Entry | D7: Duluth | E7: Wall | F7: 431968.91 | G7: 2877730.99
A8: 6 | B8: DE3o | C8: Duluth Entry | D8: Duluth | E8: Wall | F8: 431968.91 | G8: 2877730.99
A9: 7 | B9: DE4i | C9: Duluth Entry | D9: Duluth | E9: Wall | F9: 431759.93 | G9: 2877246.47
A10: 8 | B10: DE4o | C10: Duluth Entry | D10: Duluth | E10: Wall | F10: 431759.93 | G10: 2877246.47
A11: 9 | B11: DE5i | C11: Duluth Entry | D11: Duluth | E11: Wall | F11: 431650.46 | G11: 2876621.42
A12: 10 | B12: DE5o | C12: Duluth Entry | D12: Duluth | E12: Wall | F12: 431650.46 | G12: 2876621.42
A13: 11 | B13: DE6i | C13: Duluth Entry | D13: Duluth | E13: Wall | F13: 431147.54 | G13: 2876906.4
A14: 12 | B14: DE6o | C14: Duluth Entry | D14: Duluth | E14: Wall | F14: 431147.54 | G14: 2876906.4
A15: 13 | B15: DE7i | C15: Duluth Entry | D15: Duluth | E15: Wall | F15: 431458.73 | G15: 2877459.23
A16: 14 | B16: DE7o | C16: Duluth Entry | D16: Duluth | E16: Wall | F16: 431458.73 | G16: 2877459.23
A17: 15 | B17: DE8i | C17: Duluth Entry | D17: Duluth | E17: Wall | F17: 431666.8 | G17: 2877874.16
A18: 16 | B18: DE8o | C18: Duluth Entry | D18: Duluth | E18: Wall | F18: 431666.8 | G18: 2877874.16
A19: 17 | B19: DE9i | C19: Duluth Entry | D19: Duluth | E19: Wall | F19: 431771.75 | G19: 2878151.22
A20: 18 | B20: DE9o | C20: Duluth Entry | D20: Duluth | E20: Wall | F20: 431771.75 | G20: 2878151.22
A21: 19 | B21: DE10i | C21: Duluth Entry | D21: Duluth | E21: Wall | F21: 431874.88 | G21: 2878289.09
A22: 20 | B22: DE10o | C22: Duluth Entry | D22: Duluth | E22: Wall | F22: 431874.88 | G22: 2878289.09
A23: 21 | B23: VY1i | C23: ACOE Vessel Yard | D23: Duluth | E23: Dock | F23: 430138.07 | G23: 2877198.01
A24: 22 | B24: VY1o | C24: ACOE Vessel Yard | D24: Duluth | E24: Dock | F24: 430138.07 | G24: 2877198.01
A25: 23 | B25: VY2i | C25: ACOE Vessel Yard | D25: Duluth | E25: Dock | F25: 430138.07 | G25: 2877138.98
A26: 24 | B26: VY2o | C26: ACOE Vessel Yard | D26: Duluth | E26: Dock | F26: 430138.07 | G26: 2877138.98
A27: 25 | B27: EP1o | C27: Erie Pier | D27: Duluth | E27: Dock | F27: 416396.27 | G27: 2864280.55
A28: 26 | B28: EP2o | C28: Erie Pier | D28: Duluth | E28: Dock | F28: 416596.3 | G28: 2864069.1
A29: 27 | B29: CGA1o | C29: Coast Guard Range Cell | D29: in harbor | E29: Cell | F29: 415280.99 | G29: 2864224.67
A30: 28 | B30: CGB1o- ALT. | C30: Coast Guard Range Cell | D30: in harbor | E30: Cell | F30: 409813.64 | G30: 2864570.99
A31: 29 | B31: CGC1o | C31: Coast Guard Range Cell | D31: in harbor | E31: Cell | F31: 405407.36 | G31: 2891809.71
A32: 30 | B32: SE1o | C32: Superior Entry | D32: Superior | E32: Wall | F32: 406623.93 | G32: 2899111.48
A33: 31 | B33: SE2o | C33: Superior Entry | D33: Superior | E33: Wall | F33: 407124.57 | G33: 2898686.2
A34: 32 | B34: SE7i | C34: Superior Entry | D34: Superior | E34: Wall | F34: 405588.23 | G34: 2897522.94
A35: 33 | B35: SE7o | C35: Superior Entry | D35: Superior | E35: Wall | F35: 405588.23 | G35: 2897522.94
A36: 34 | B36: SE8i | C36: Superior Entry | D36: Superior | E36: Wall | F36: 405586.27 | G36: 2897383.56
A37: 35 | B37: SE8o | C37: Superior Entry | D37: Superior | E37: Wall | F37: 405586.27 | G37: 2897383.56
A38: 36 | B38: SE9o | C38: Superior Entry | D38: Superior | E38: Wall | F38: 405377.78 | G38: 2896968.26
A39: 37 | B39: SE10i | C39: Superior Entry | D39: Superior | E39: Wall | F39: 404560.46 | G39: 2896491.78
A40: 38 | B40: SE10o | C40: Superior Entry | D40: Superior | E40: Wall | F40: 404560.46 | G40: 2896491.78
A41: 39 | B41: SE3w | C41: Superior Entry * | D41: Superior | E41: Wall | F41: 46.7085 | G41: 92.01445
A42: 40 | B42: SE4w | C42: Superior Entry * | D42: Superior | E42: Wall | F42: 46.70795 | G42: 92.015
A43: 41 | B43: SE5w | C43: Superior Entry * | D43: Superior | E43: Wall | F43: 46.7071 | G43: 92.0169
A44: 42 | B44: SE6w | C44: Superior Entry * | D44: Superior | E44: Wall | F44: 46.7068 | G44: 92.01985
A45: 43 | B45: Berth 1 | C45: DSPA | D45: Duluth | E45: Dock | F45: 423823.46 | G45: 2874703.78
A46: 44 | B46: Berth 4 | C46: DSPA | D46: Duluth | E46: Dock | F46: 423742.88 | G46: 2876306.47
A47: 45 | B47: Berth 6 | C47: DSPA | D47: Duluth | E47: Dock | F47: 421922.92 | G47: 2876608.68
A48: 46 | B48: MN SLIP | C48: William A Irvin Slip | D48: Duluth | E48: Wall | F48: 433159.25 | G48: 2875766.56
A49: 47 | B49: DECC | C49: DECC | D49: Duluth | E49: Dock | F49: 431637.81 | G49: 2875647.06
A50: 48 | B50: Cargill | C50: Cargill | D50: Duluth | E50: Dock | F50: 427969.09 | G50: 2874023.69
A51: 49 | B51: Hallett Dock 5 | C51: Hallett Dock 5 | D51: Duluth | E51: Dock | F51: 419169.78 | G51: 2867310.97
A52: 50 | B52: Bong Bridge Cell | C52: Bong Bridge Cell | D52: in harbor | E52: Cell | F52: 413964.8 | G52: 2864310.61
A53: 51 | B53: Hallett Dock 7 | C53: Hallett Dock 7 | D53: Duluth | E53: Dock | F53: 409554.66 | G53: 2859974.87
A54: 52 | B54: Spirit Lake Marina | C54: Spirit Lake Marina | D54: Duluth | E54: Dock | F54: 404975.32 | G54: 2849784.17
A55: 53 | B55: Oliver Bridge | C55: Oliver Bridge | D55: Oliver | E55: Wall | F55: 386435.1 | G55: 2849999.38
A56: 54 | B56: Midwest Energy | C56: Midwest Energy | D56: Superior | E56: Dock | F56: 418212.1 | G56: 2871711.3
A57: 55 | B57: CHS1 | C57: Cenex Harvest States | D57: Superior | E57: Dock | F57: 417248.21 | G57: 2875554.9
A58: 56 | B58: CHS2 | C58: Cenex Harvest States | D58: Superior | E58: Dock | F58: 417035.69 | G58: 2874791.38
A59: 57 | B59: CHS3 | C59: Cenex Harvest States | D59: Superior | E59: Dock | F59: 417238.31 | G59: 2874788.77
A60: 58 | B60: Cutler Magner | C60: Cutler Magner | D60: Superior | E60: Dock | F60: 414778.27 | G60: 2880394.06
A61: 59 | B61: LBB1 | C61: Lakehead Boat Basin | D61: Duluth | E61: Dock | F61: 429731.93 | G61: 2877133.69
A62: 60 | B62: LBB2 | C62: Lakehead Boat Basin | D62: Duluth | E62: Dock | F62: 429732.93 | G62: 2877133.68
A63: 61 | B63: Community Sailing Dock | C63: Community Sailing Dock | D63: Duluth | E63: Dock | F63: 414553.36 | G63: 2886319.03
A64: 62 | B64: Two Harbors | C64: CN/DMIR Two Harbors | D64: Two Harbors | E64: Dock | F64: 519325.09 | G64: 2981162.01
A65: 63 | B65: Station 014 * | C65: St Louis River | D65: St Louis | E65: Hwy 39 bridge between Oliver and Duluth | F65: 464036 | G65: 921209
A66: 64 | B66: Site 030 * | C66: St Louis Bay | D66: St Louis | E66: Lake Superior | F66: 464505 | G66: 920600
A67: 65 | B67: LSSL-19-CB15E53 * | C67: St Louis River | D67: St Louis | E67: MN Hwy 23 at Fond du Lac | F67: 463931 | G67: 921704
A68: 66 | B68: SD003 | C68: Ispat Inland Steel Mining | D68: St Louis | E68: Laurentian
A69: 67 | B69: SL 27 | C69: St Louis River | D69: St Louis | E69: Burlington N^R.R. BR
A70: 68 | B70: SL 191 | C70: St Louis River | D70: St Louis | E70: SH-23 Bridge
A71: 69 | B71: S000-277 | C71: St Louis Bay | D71: St Louis | E71: Below I-535 Bridge @ Superior, WI
A72: 70 | B72: SL 00 | C72: WLSSD St Louis | D72: St Louis
A73: 71 | B73: SL 135 | C73: WLSSD St Louis | D73: St Louis
A74: 72 | B74: SL 191 | C74: WLSSD St Louis | D74: St Louis
A75: 73 | B75: SL 207 | C75: WLSSD St Louis | D75: St Louis
A76: 74 | B76: SL 23 | C76: WLSSD St Louis | D76: St Louis
A77: 75 | B77: SL 241N | C77: WLSSD St Louis | D77: St Louis
A78: 76 | B78: SL 241S | C78: WLSSD St Louis | D78: St Louis
A79: 77 | B79: SL 259 | C79: WLSSD St Louis | D79: St Louis
A80: 78 | B80: SL 261 | C80: WLSSD St Louis | D80: St Louis
A81: 79 | B81: SL 27 | C81: WLSSD St Louis | D81: St Louis
A82: 80 | B82: SL 297 | C82: WLSSD St Louis | D82: St Louis
A83: 81 | B83: SL 303 | C83: WLSSD St Louis | D83: St Louis
A84: 82 | B84: SL 334 | C84: WLSSD St Louis | D84: St Louis
A85: 83 | B85: SL 336N | C85: WLSSD St Louis | D85: St Louis
A86: 84 | B86: SL 500 | C86: WLSSD St Louis | D86: St Louis
A87: 85 | B87: SL 63 | C87: WLSSD St Louis | D87: St Louis
A88: 86 | B88: 0049786 | C88: WLSSD | D88: St Louis | E88: Effluent
A89: 87 | B89: AM 07 | C89: Amity | D89: St Louis | E89: Amity Creek
A90: 88 | B90: CH 22 | C90: Chester | D90: St Louis | E90: Chester Creek
A91: 89 | B91: CQ 41 | C91: Cloq. R. | D91: St Louis | E91: Hwy 7
A92: 90 | B92: KB 06 | C92: Kingsbury | D92: St Louis | E92: Kingsbury Creek
A93: 91 | B93: LK 00 | C93: L. Superior | D93: St Louis | E93: Dul intake
A94: 92 | B94: MW 42 | C94: Midway R. | D94: St Louis | E94: Hwy 61
A95: 93 | B95: SL 1150 | C95: St. Louis River | D95: St Louis | E95: Hwy 53
A96: 94 | B96: SL 135 | C96: St. Louis River | D96: St Louis | E96: Oliver Bridge
A97: 95 | B97: SL 191 | C97: St. Louis River | D97: St Louis | E97: Hwy 23
A98: 96 | B98: SL 23 | C98: St. Louis River | D98: St Louis | E98: Bascule Bridge
A99: 97 | B99: SL 248S | C99: St. Louis River | D99: St Louis | E99: Swinging Bridge
A100: 98 | B100: SL 259 | C100: St. Louis River | D100: St Louis | E100: Thoms. Rd Canal
A101: 99 | B101: SL 303 | C101: St. Louis River | D101: St Louis | E101: Hwy 61
A102: 100 | B102: SL 336N | C102: St. Louis River | D102: St Louis | E102: Hwy 33 N
A103: 101 | B103: SL 336S | C103: St. Louis River | D103: St Louis | E103: Hwy 33 S
A104: 102 | B104: SL 480 | C104: St. Louis River | D104: St Louis | E104: Hwy 2
A105: 103 | B105: SL 500 | C105: St. Louis River | D105: St Louis | E105: Brookstn
A106: 104 | B106: TS 12 | C106: Tischer | D106: St Louis | E106: Tischer Creek
A107: 105 | B107: WF 282 | C107: Whiteface | D107: St Louis | E107: Hwy 53
C108: * - latitude and longitude

Sheet Duluth Water Quality Data
A1: Station ID | B1: Item No. | C1: Record_No | D1: Date Sampled | E1: Latitude | F1: Longitude | G1: Depth (ft) | H1: Elevation (ft) | I1: pH (Stand. Units) | J1: Diss. Oxygen (mg/L) | K1: Conductivity (mmhs) | L1: Temp (ºF) | M1: Chloride (mg/L) | N1: Total Suspended Solids (TSS) (mg/L) | O1: Hardness (mg/L) | P1: Total Iron (mg/L) | Q1: Sulfate Ions (mg/L) | R1: Alkalinity (mg/L)
A2: CGA1o | B2: 1 | C2: 27 | D2: 2006-09-20 | E2: 46.73503 | F2: 92.14468 | G2: +2.0 | H2: =SUM(H3+2) -> 603
A3: CGA1o | B3: 2 | C3: 27 | D3: 2006-09-20 | E3: 46.73503 | F3: 92.14468 | G3: 0.0 | H3: 601 | I3: 7.72 | J3: 7.77 | K3: 0.261 | L3: 61.6
A4: CGA1o | B4: 3 | C4: 27 | D4: 2006-09-20 | E4: 46.73503 | F4: 92.14468 | G4: -2.0 | H4: =SUM(H3-2) -> 599 | I4: 7.99 | J4: 7.36 | K4: 0.261 | L4: 61.6
A5: CGA1o | B5: 4 | C5: 27 | D5: 2006-09-20 | E5: 46.73503 | F5: 92.14468 | G5: -4.0 | H5: =SUM(H3-4) -> 597 | I5: 8.04 | J5: 7.3 | K5: 0.261 | L5: 61.6 | M5: 19 | N5: <10 | O5: 90 | P5: 0.37 | Q5: 28 | R5: 86
A6: CGA1o | B6: 5 | C6: 27 | D6: 2006-09-20 | E6: 46.73503 | F6: 92.14468 | G6: -6.0 | H6: =SUM(H3-6) -> 595 | I6: 8.09 | J6: 7.27 | K6: 0.26 | L6: 61.6
A7: CGA1o | B7: 6 | C7: 27 | D7: 2006-09-20 | E7: 46.73503 | F7: 92.14468 | G7: -8.0 | H7: =SUM(H3-8) -> 593 | I7: 8.09 | J7: 7.5 | K7: 0.26 | L7: 61.5
A8: CGA1o | B8: 7 | C8: 27 | D8: 2006-09-20 | E8: 46.73503 | F8: 92.14468 | G8: -10.0 | H8: =SUM(H3-10) -> 591 | I8: 8.08 | J8: 7.41 | K8: 0.257 | L8: 61.4
A9: CGA1o | B9: 8 | C9: 27 | D9: 2006-09-20 | E9: 46.73503 | F9: 92.14468 | G9: -15.0 | H9: =SUM(H3-15) -> 586
A10: CGA1o | B10: 9 | C10: 27 | D10: 2006-09-20 | E10: 46.73503 | F10: 92.14468 | G10: -20.0 | H10: =SUM(H3-20) -> 581
A11: CGB1o | B11: 1 | C11: 28 | D11: 2006-09-20 | E11: 46.70118657 | F11: 92.03368148 | G11: +2.0 | H11: =SUM(H12+2) -> 603
A12: CGB1o | B12: 2 | C12: 28 | D12: 2006-09-20 | E12: 46.70118657 | F12: 92.03368148 | G12: 0.0 | H12: 601 | I12: 8.11 | J12: 8.44 | K12: 0.192 | L12: 61
A13: CGB1o | B13: 3 | C13: 28 | D13: 2006-09-20 | E13: 46.70118657 | F13: 92.03368148 | G13: -2.0 | H13: =SUM(H12-2) -> 599 | I13: 8.2 | J13: 8.4 | K13: 0.192 | L13: 61
A14: CGB1o | B14: 4 | C14: 28 | D14: 2006-09-20 | E14: 46.70118657 | F14: 92.03368148 | G14: -4.0 | H14: =SUM(H12-4) -> 597 | I14: 8.15 | J14: 8.41 | K14: 0.192 | L14: 60.9 | M14: 13 | N14: <10 | O14: 66 | P14: 0.25 | Q14: 20 | R14: 66
A15: CGB1o | B15: 5 | C15: 28 | D15: 2006-09-20 | E15: 46.70118657 | F15: 92.03368148 | G15: -6.0 | H15: =SUM(H12-6) -> 595 | I15: 8.15 | J15: 8.45 | K15: 0.193 | L15: 60.9
A16: CGB1o | B16: 6 | C16: 28 | D16: 2006-09-20 | E16: 46.70118657 | F16: 92.03368148 | G16: -8.0 | H16: =SUM(H12-8) -> 593
A17: CGB1o | B17: 7 | C17: 28 | D17: 2006-09-20 | E17: 46.70118657 | F17: 92.03368148 | G17: -10.0 | H17: =SUM(H12-10) -> 591
A18: CGB1o | B18: 8 | C18: 28 | D18: 2006-09-20 | E18: 46.70118657 | F18: 92.03368148 | G18: -15.0 | H18: =SUM(H12-15) -> 586
A19: CGB1o | B19: 9 | C19: 28 | D19: 2006-09-20 | E19: 46.70118657 | F19: 92.03368148 | G19: -20.0 | H19: =SUM(H12-20) -> 581
A20: CGC1o | B20: 1 | C20: 29 | D20: 2006-09-20 | E20: 46.72 | F20: 92.14361667 | G20: +2.0 | H20: =SUM(H21+2) -> 603
A21: CGC1o | B21: 2 | C21: 29 | D21: 2006-09-20 | E21: 46.72 | F21: 92.14361667 | G21: 0.0 | H21: 601 | I21: 8.16 | J21: 8.25 | K21: 0.218 | L21: 60
A22: CGC1o | B22: 3 | C22: 29 | D22: 2006-09-20 | E22: 46.72 | F22: 92.14361667 | G22: -2.0 | H22: =SUM(H21-2) -> 599 | I22: 8.19 | J22: 8.22 | K22: 0.218 | L22: 60.1
A23: CGC1o | B23: 4 | C23: 29 | D23: 2006-09-20 | E23: 46.72 | F23: 92.14361667 | G23: -4.0 | H23: =SUM(H21-4) -> 597 | I23: 8.2 | J23: 8.22 | K23: 0.218 | L23: 60.1 | M23: 13 | N23: <10 | O23: 98 | P23: 0.8 | Q23: 15 | R23: 89
A24: CGC1o | B24: 5 | C24: 29 | D24: 2006-09-20 | E24: 46.72 | F24: 92.14361667 | G24: -6.0 | H24: =SUM(H21-6) -> 595 | I24: 8.18 | J24: 8.14 | K24: 0.217 | L24: 60
A25: CGC1o | B25: 6 | C25: 29 | D25: 2006-09-20 | E25: 46.72 | F25: 92.14361667 | G25: -8.0 | H25: =SUM(H21-8) -> 593 | I25: 8.18 | J25: 8.15 | K25: 0.217 | L25: 60
A26: CGC1o | B26: 7 | C26: 29 | D26: 2006-09-20 | E26: 46.72 | F26: 92.14361667 | G26: -10.0 | H26: =SUM(H21-10) -> 591
A27: CGC1o | B27: 8 | C27: 29 | D27: 2006-09-20 | E27: 46.72 | F27: 92.14361667 | G27: -15.0 | H27: =SUM(H21-15) -> 586
A28: CGC1o | B28: 9 | C28: 29 | D28: 2006-09-20 | E28: 46.72 | F28: 92.14361667 | G28: -20.0 | H28: =SUM(H21-20) -> 581
A29: DE1i | B29: 1 | C29: 1 | E29: 46.7809 | F29: 92.08855 | G29: +2.0 | H29: =SUM(H30+2) -> 603
A30: DE1i | B30: 2 | C30: 1 | E30: 46.7809 | F30: 92.08855 | G30: 0.0 | H30: 601
A31: DE1i | B31: 3 | C31: 1 | E31: 46.7809 | F31: 92.08855 | G31: -2.0 | H31: =SUM(H30-2) -> 599
A32: DE1i | B32: 4 | C32: 1 | E32: 46.7809 | F32: 92.08855 | G32: -4.0 | H32: =SUM(H30-4) -> 597
A33: DE1i | B33: 5 | C33: 1 | E33: 46.7809 | F33: 92.08855 | G33: -6.0 | H33: =SUM(H30-6) -> 595
A34: DE1i | B34: 6 | C34: 1 | E34: 46.7809 | F34: 92.08855 | G34: -8.0 | H34: =SUM(H30-8) -> 593
A35: DE1i | B35: 7 | C35: 1 | E35: 46.7809 | F35: 92.08855 | G35: -10.0 | H35: =SUM(H30-10) -> 591
A36: DE1i | B36: 8 | C36: 1 | E36: 46.7809 | F36: 92.08855 | G36: -15.0 | H36: =SUM(H30-15) -> 586
A37: DE1i | B37: 9 | C37: 1 | E37: 46.7809 | F37: 92.08855 | G37: -20.0 | H37: =SUM(H30-20) -> 581
A38: DE1o | B38: 1 | C38: 2 | D38: 2006-09-21 | E38: 46.7809 | F38: 92.08855 | G38: +2.0 | H38: =SUM(H39+2) -> 603
A39: DE1o | B39: 2 | C39: 2 | D39: 2006-09-21 | E39: 46.7809 | F39: 92.08855 | G39: 0.0 | H39: 601 | I39: 7.86 | J39: 8.82 | K39: 0.096 | L39: 61.5
A40: DE1o | B40: 3 | C40: 2 | D40: 2006-09-21 | E40: 46.7809 | F40: 92.08855 | G40: -2.0 | H40: =SUM(H39-2) -> 599 | I40: 8.19 | J40: 8.94 | K40: 0.096 | L40: 61.4
A41: DE1o | B41: 4 | C41: 2 | D41: 2006-09-21 | E41: 46.7809 | F41: 92.08855 | G41: -4.0 | H41: =SUM(H39-4) -> 597 | I41: 8.21 | J41: 8.94 | K41: 0.096 | L41: 61.4 | M41: <10 | N41: <10 | O41: 48 | P41: <0.20 | Q41: 4.1 | R41: 46
A42: DE1o | B42: 5 | C42: 2 | D42: 2006-09-21 | E42: 46.7809 | F42: 92.08855 | G42: -6.0 | H42: =SUM(H39-6) -> 595 | I42: 8.21 | J42: 9.01 | K42: 0.096 | L42: 61.4
A43: DE1o | B43: 6 | C43: 2 | D43: 2006-09-21 | E43: 46.7809 | F43: 92.08855 | G43: -8.0 | H43: =SUM(H39-8) -> 593 | I43: 8.21 | J43: 9.06 | K43: 0.096 | L43: 61.4
A44: DE1o | B44: 7 | C44: 2 | D44: 2006-09-21 | E44: 46.7809 | F44: 92.08855 | G44: -10.0 | H44: =SUM(H39-10) -> 591 | I44: 8.19 | J44: 9.1 | K44: 0.096 | L44: 61.4
A45: DE1o | B45: 8 | C45: 2 | D45: 2006-09-21 | E45: 46.7809 | F45: 92.08855 | G45: -15.0 | H45: =SUM(H39-15) -> 586 | I45: 8.2 | J45: 9.17 | K45: 0.096 | L45: 60.9
A46: DE1o | B46: 9 | C46: 2 | D46: 2006-09-21 | E46: 46.7809 | F46: 92.08855 | G46: -20.0 | H46: =SUM(H39-20) -> 581
A47: DE2i | B47: 1 | C47: 3 | E47: 46.78086667 | F47: 92.08843333 | G47: +2.0 | H47: =SUM(H48+2) -> 603
A48: DE2i | B48: 2 | C48: 3 | E48: 46.78086667 | F48: 92.08843333 | G48: 0.0 | H48: 601
A49: DE2i | B49: 3 | C49: 3 | E49: 46.78086667 | F49: 92.08843333 | G49: -2.0 | H49: =SUM(H48-2) -> 599
A50: DE2i | B50: 4 | C50: 3 | E50: 46.78086667 | F50: 92.08843333 | G50: -4.0 | H50: =SUM(H48-4) -> 597
A51: DE2i | B51: 5 | C51: 3 | E51: 46.78086667 | F51: 92.08843333 | G51: -6.0 | H51: =SUM(H48-6) -> 595
A52: DE2i | B52: 6 | C52: 3 | E52: 46.78086667 | F52: 92.08843333 | G52: -8.0 | H52: =SUM(H48-8) -> 593
A53: DE2i | B53: 7 | C53: 3 | E53: 46.78086667 | F53: 92.08843333 | G53: -10.0 | H53: =SUM(H48-10) -> 591
A54: DE2i | B54: 8 | C54: 3 | E54: 46.78086667 | F54: 92.08843333 | G54: -15.0 | H54: =SUM(H48-15) -> 586
A55: DE2i | B55: 9 | C55: 3 | E55: 46.78086667 | F55: 92.08843333 | G55: -20.0 | H55: =SUM(H48-20) -> 581
A56: DE2o | B56: 1 | C56: 4 | D56: 2006-09-21 | E56: 46.78086667 | F56: 92.08843333 | G56: +2.0 | H56: =SUM(H57+2) -> 603
A57: DE2o | B57: 2 | C57: 4 | D57: 2006-09-21 | E57: 46.78086667 | F57: 92.08843333 | G57: 0.0 | H57: 601 | I57: 8.11 | J57: 8.72 | K57: 0.096 | L57: 61.6
A58: DE2o | B58: 3 | C58: 4 | D58: 2006-09-21 | E58: 46.78086667 | F58: 92.08843333 | G58: -2.0 | H58: =SUM(H57-2) -> 599 | I58: 8.24 | J58: 8.74 | K58: 0.096 | L58: 61.6
A59: DE2o | B59: 4 | C59: 4 | D59: 2006-09-21 | E59: 46.78086667 | F59: 92.08843333 | G59: -4.0 | H59: =SUM(H57-4) -> 597 | I59: 8.21 | J59: 8.87 | K59: 0.096 | L59: 61.6 | M59: <10 | N59: <10 | O59: 45 | P59: <0.20 | Q59: 4.1 | R59: 46
A60: DE2o | B60: 5 | C60: 4 | D60: 2006-09-21 | E60: 46.78086667 | F60: 92.08843333 | G60: -6.0 | H60: =SUM(H57-6) -> 595 | I60: 8.19 | J60: 8.99 | K60: 0.096 | L60: 61.6
A61: DE2o | B61: 6 | C61: 4 | D61: 2006-09-21 | E61: 46.78086667 | F61: 92.08843333 | G61: -8.0 | H61: =SUM(H57-8) -> 593 | I61: 8.19 | J61: 9.09 | K61: 0.096 | L61: 61.7
A62: DE2o | B62: 7 | C62: 4 | D62: 2006-09-21 | E62: 46.78086667 | F62: 92.08843333 | G62: -10.0 | H62: =SUM(H57-10) -> 591 | I62: 8.19 | J62: 9.16 | K62: 0.096 | L62: 61.5
A63: DE2o | B63: 8 | C63: 4 | D63: 2006-09-21 | E63: 46.78086667 | F63: 92.08843333 | G63: -15.0 | H63: =SUM(H57-15) -> 586 | I63: 8.19 | J63: 9.2 | K63: 0.096 | L63: 61.6
A64: DE2o | B64: 9 | C64: 4 | D64: 2006-09-21 | E64: 46.78086667 | F64: 92.08843333 | G64: -20.0 | H64: =SUM(H57-20) -> 581 | I64: 8.19 | J64: 9.22 | K64: 0.096 | L64: 61.7
A65: DE2o | B65: 10 | C65: 4 | D65: 2006-09-21 | E65: 46.78086667 | F65: 92.08843333 | G65: -31 | H65: =601-31 -> 570
A66: DE3i | B66: 1 | C66: 5 | E66: 46.78016667 | F66: 92.0901 | G66: +2.0 | H66: =SUM(H67+2) -> 603
A67: DE3i | B67: 2 | C67: 5 | E67: 46.78016667 | F67: 92.0901 | G67: 0.0 | H67: 601
A68: DE3i | B68: 3 | C68: 5 | E68: 46.78016667 | F68: 92.0901 | G68: -2.0 | H68: =SUM(H67-2) -> 599
A69: DE3i | B69: 4 | C69: 5 | E69: 46.78016667 | F69: 92.0901 | G69: -4.0 | H69: =SUM(H67-4) -> 597
A70: DE3i | B70: 5 | C70: 5 | E70: 46.78016667 | F70: 92.0901 | G70: -6.0 | H70: =SUM(H67-6) -> 595
A71: DE3i | B71: 6 | C71: 5 | E71: 46.78016667 | F71: 92.0901 | G71: -8.0 | H71: =SUM(H67-8) -> 593
A72: DE3i | B72: 7 | C72: 5 | E72: 46.78016667 | F72: 92.0901 | G72: -10.0 | H72: =SUM(H67-10) -> 591
A73: DE3i | B73: 8 | C73: 5 | E73: 46.78016667 | F73: 92.0901 | G73: -15.0 | H73: =SUM(H67-15) -> 586
A74: DE3i | B74: 9 | C74: 5 | E74: 46.78016667 | F74: 92.0901 | G74: -20.0 | H74: =SUM(H67-20) -> 581
A75: DE3o | B75: 1 | C75: 6 | D75: 2006-09-21 | E75: 46.78016667 | F75: 92.0901 | G75: +2.0 | H75: =SUM(H76+2) -> 603
A76: DE3o | B76: 2 | C76: 6 | D76: 2006-09-21 | E76: 46.78016667 | F76: 92.0901 | G76: 0.0 | H76: 601 | I76: 8.1 | J76: 8.72 | K76: 0.096 | L76: 61.5
A77: DE3o | B77: 3 | C77: 6 | D77: 2006-09-21 | E77: 46.78016667 | F77: 92.0901 | G77: -2.0 | H77: =SUM(H76-2) -> 599 | I77: 8.18 | J77: 8.77 | K77: 0.097 | L77: 61.5
A78: DE3o | B78: 4 | C78: 6 | D78: 2006-09-21 | E78: 46.78016667 | F78: 92.0901 | G78: -4.0 | H78: =SUM(H76-4) -> 597 | I78: 8.22 | J78: 8.88 | K78: 0.096 | L78: 61.5 | M78: <10 | N78: <10 | O78: 46 | P78: <0.20 | Q78: 4.2 | R78: 46
A79: DE3o | B79: 5 | C79: 6 | D79: 2006-09-21 | E79: 46.78016667 | F79: 92.0901 | G79: -6.0 | H79: =SUM(H76-6) -> 595 | I79: 8.2 | J79: 9 | K79: 0.096 | L79: 61.5
A80: DE3o | B80: 6 | C80: 6 | D80: 2006-09-21 | E80: 46.78016667 | F80: 92.0901 | G80: -8.0 | H80: =SUM(H76-8) -> 593 | I80: 8.2 | J80: 9 | K80: 0.096 | L80: 61.5
A81: DE3o | B81: 7 | C81: 6 | D81: 2006-09-21 | E81: 46.78016667 | F81: 92.0901 | G81: -10.0 | H81: =SUM(H76-10) -> 591 | I81: 8.19 | J81: 9.03 | K81: 0.096 | L81: 61.5
A82: DE3o | B82: 8 | C82: 6 | D82: 2006-09-21 | E82: 46.78016667 | F82: 92.0901 | G82: -15.0 | H82: =SUM(H76-15) -> 586 | I82: 8.2 | J82: 8.97 | K82: 0.096 | L82: 61.5
A83: DE3o | B83: 9 | C83: 6 | D83: 2006-09-21 | E83: 46.78016667 | F83: 92.0901 | G83: -20.0 | H83: =SUM(H76-20) -> 581 | I83: 8.19 | J83: 8.9 | K83: 0.096 | L83: 61.5
A84: DE3o | B84: 10 | C84: 6 | D84: 2006-09-21 | E84: 46.78016667 | F84: 92.0901 | G84: -30 | H84: =601-30 -> 571
A85: DE4i | B85: 1 | C85: 7 | E85: 46.77961667 | F85: 92.09183333 | G85: +2.0 | H85: =SUM(H86+2) -> 603
A86: DE4i | B86: 2 | C86: 7 | E86: 46.77961667 | F86: 92.09183333 | G86: 0.0 | H86: 601
A87: DE4i | B87: 3 | C87: 7 | E87: 46.77961667 | F87: 92.09183333 | G87: -2.0 | H87: =SUM(H86-2) -> 599
A88: DE4i | B88: 4 | C88: 7 | E88: 46.77961667 | F88: 92.09183333 | G88: -4.0 | H88: =SUM(H86-4) -> 597
A89: DE4i | B89: 5 | C89: 7 | E89: 46.77961667 | F89: 92.09183333 | G89: -6.0 | H89: =SUM(H86-6) -> 595
A90: DE4i | B90: 6 | C90: 7 | E90: 46.77961667 | F90: 92.09183333 | G90: -8.0 | H90: =SUM(H86-8) -> 593
A91: DE4i | B91: 7 | C91: 7 | E91: 46.77961667 | F91: 92.09183333 | G91: -10.0 | H91: =SUM(H86-10) -> 591
A92: DE4i | B92: 8 | C92: 7 | E92: 46.77961667 | F92: 92.09183333 | G92: -15.0 | H92: =SUM(H86-15) -> 586
A93: DE4i | B93: 9 | C93: 7 | E93: 46.77961667 | F93: 92.09183333 | G93: -20.0 | H93: =SUM(H86-20) -> 581
A94: DE4o | B94: 1 | C94: 8 | D94: 2006-09-21 | E94: 46.77961667 | F94: 92.09183333 | G94: +2.0 | H94: =SUM(H95+2) -> 603
A95: DE4o | B95: 2 | C95: 8 | D95: 2006-09-21 | E95: 46.77961667 | F95: 92.09183333 | G95: 0.0 | H95: 601 | I95: 7.68 | J95: 8.8 | K95: 0.103 | L95: 61.2
A96: DE4o | B96: 3 | C96: 8 | D96: 2006-09-21 | E96: 46.77961667 | F96: 92.09183333 | G96: -2.0 | H96: =SUM(H95-2) -> 599 | I96: 8.03 | J96: 8.63 | K96: 0.103 | L96: 61.2
A97: DE4o | B97: 4 | C97: 8 | D97: 2006-09-21 | E97: 46.77961667 | F97: 92.09183333 | G97: -4.0 | H97: =SUM(H95-4) -> 597 | I97: 8.11 | J97: 8.66 | K97: 0.103 | L97: 61.2 | M97: <10 | N97: <10 | O97: 46 | P97: <0.20 | Q97: 5.2 | R97: 48
A98: DE4o | B98: 5 | C98: 8 | D98: 2006-09-21 | E98: 46.77961667 | F98: 92.09183333 | G98: -6.0 | H98: =SUM(H95-6) -> 595 | I98: 8.13 | J98: 8.65 | K98: 0.103 | L98: 61.2
A99: DE4o | B99: 6 | C99: 8 | D99: 2006-09-21 | E99: 46.77961667 | F99: 92.09183333 | G99: -8.0 | H99: =SUM(H95-8) -> 593 | I99: 8.13 | J99: 8.66 | K99: 0.103 | L99: 61.2
A100: DE4o | B100: 7 | C100: 8 | D100: 2006-09-21 | E100: 46.77961667 | F100: 92.09183333 | G100: -10.0 | H100: =SUM(H95-10) -> 591 | I100: 8.14 | J100: 8.67 | K100: 0.103 | L100: 61.2
A101: DE4o | B101: 8 | C101: 8 | D101: 2006-09-21 | E101: 46.77961667 | F101: 92.09183333 | G101: -15.0 | H101: =SUM(H95-15) -> 586 | I101: 8.14 | J101: 8.67 | K101: 0.103 | L101: 61.2
A102: DE4o | B102: 9 | C102: 8 | D102: 2006-09-21 | E102: 46.77961667 | F102: 92.09183333 | G102: -20.0 | H102: =SUM(H95-20) -> 581 | I102: 8.14 | J102: 8.64 | K102: 0.102 | L102: 61.2
A103: DE4o | B103: 10 | C103: 8 | D103: 2006-09-21 | E103: 46.77961667 | F103: 92.09183333 | G103: -29.5 | H103: =601-29.5 -> 571.5
A104: DE5i | B104: 1 | C104: 9 | E104: 46.77943333 | F104: 92.0945 | G104: +2.0 | H104: =SUM(H105+2) -> 603
A105: DE5i | B105: 2 | C105: 9 | E105: 46.77943333 | F105: 92.0945 | G105: 0.0 | H105: 601
A106: DE5i | B106: 3 | C106: 9 | E106: 46.77943333 | F106: 92.0945 | G106: -2.0 | H106: =SUM(H105-2) -> 599
A107: DE5i | B107: 4 | C107: 9 | E107: 46.77943333 | F107: 92.0945 | G107: -4.0 | H107: =SUM(H105-4) -> 597
A108: DE5i | B108: 5 | C108: 9 | E108: 46.77943333 | F108: 92.0945 | G108: -6.0 | H108: =SUM(H105-6) -> 595
A109: DE5i | B109: 6 | C109: 9 | E109: 46.77943333 | F109: 92.0945 | G109: -8.0 | H109: =SUM(H105-8) -> 593
A110: DE5i | B110: 7 | C110: 9 | E110: 46.77943333 | F110: 92.0945 | G110: -10.0 | H110: =SUM(H105-10) -> 591
A111: DE5i | B111: 8 | C111: 9 | E111: 46.77943333 | F111: 92.0945 | G111: -15.0 | H111: =SUM(H105-15) -> 586
A112: DE5i | B112: 9 | C112: 9 | E112: 46.77943333 | F112: 92.0945 | G112: -20.0 | H112: =SUM(H105-20) -> 581
A113: DE5o | B113: 1 | C113: 10 | D113: 2006-09-21 | E113: 46.77943333 | F113: 92.0945 | G113: +2.0 | H113: =SUM(H114+2) -> 603
A114: DE5o | B114: 2 | C114: 10 | D114: 2006-09-21 | E114: 46.77943333 | F114: 92.0945 | G114: 0.0 | H114: 601 | I114: 7.9 | J114: 8.63 | K114: 0.105 | L114: 61.3
A115: DE5o | B115: 3 | C115: 10 | D115: 2006-09-21 | E115: 46.77943333 | F115: 92.0945 | G115: -2.0 | H115: =SUM(H114-2) -> 599 | I115: 8.07 | J115: 8.82 | K115: 0.105 | L115: 61.3
A116: DE5o | B116: 4 | C116: 10 | D116: 2006-09-21 | E116: 46.77943333 | F116: 92.0945 | G116: -4.0 | H116: =SUM(H114-4) -> 597 | I116: 8.19 | J116: 9.05 | K116: 0.105 | L116: 61.3 | M116: <10 | N116: <10 | O116: 47 | P116: <0.20 | Q116: 5.5 | R116: 48
A117: DE5o | B117: 5 | C117: 10 | D117: 2006-09-21 | E117: 46.77943333 | F117: 92.0945 | G117: -6.0 | H117: =SUM(H114-6) -> 595 | I117: 8.15 | J117: 9.1 | K117: 0.104 | L117: 61.3
A118: DE5o | B118: 6 | C118: 10 | D118: 2006-09-21 | E118: 46.77943333 | F118: 92.0945 | G118: -8.0 | H118: =SUM(H114-8) -> 593 | I118: 8.17 | J118: 9.2 | K118: 0.105 | L118: 61.4
A119: DE5o | B119: 7 | C119: 10 | D119: 2006-09-21 | E119: 46.77943333 | F119: 92.0945 | G119: -10.0 | H119: =SUM(H114-10) -> 591 | I119: 8.17 | J119: 9.26 | K119: 0.105 | L119: 61.4
A120: DE5o | B120: 8 | C120: 10 | D120: 2006-09-21 | E120: 46.77943333 | F120: 92.0945 | G120: -15.0 | H120: =SUM(H114-15) -> 586 | I120: 8.17 | J120: 9.3 | K120: 0.106 | L120: 61.3
A121: DE5o | B121: 9 | C121: 10 | D121: 2006-09-21 | E121: 46.77943333 | F121: 92.0945 | G121: -20.0 | H121: =SUM(H114-20) -> 581 | I121: 8.15 | J121: 8.93 | K121: 0.105 | L121: 61.3
A122: DE6i | B122: 1 | C122: 11 | E122: 46.77803333 | F122: 92.09328333 | G122: +2.0 | H122: =SUM(H123+2) -> 603
A123: DE6i | B123: 2 | C123: 11 | E123: 46.77803333 | F123: 92.09328333 | G123: 0.0 | H123: 601
A124: DE6i | B124: 3 | C124: 11 | E124: 46.77803333 | F124: 92.09328333 | G124: -2.0 | H124: =SUM(H123-2) -> 599
A125: DE6i | B125: 4 | C125: 11 | E125: 46.77803333 | F125: 92.09328333 | G125: -4.0 | H125: =SUM(H123-4) -> 597
A126: DE6i | B126: 5 | C126: 11 | E126: 46.77803333 | F126: 92.09328333 | G126: -6.0 | H126: =SUM(H123-6) -> 595
A127: DE6i | B127: 6 | C127: 11 | E127: 46.77803333 | F127: 92.09328333 | G127: -8.0 | H127: =SUM(H123-8) -> 593
A128: DE6i | B128: 7 | C128: 11 | E128: 46.77803333 | F128: 92.09328333 | G128: -10.0 | H128: =SUM(H123-10) -> 591
A129: DE6i | B129: 8 | C129: 11 | E129: 46.77803333 | F129: 92.09328333 | G129: -15.0 | H129: =SUM(H123-15) -> 586
A130: DE6i | B130: 9 | C130: 11 | E130: 46.77803333 | F130: 92.09328333 | G130: -20.0 | H130: =SUM(H123-20) -> 581
A131: DE6o | B131: 1 | C131: 12 | D131: 2006-09-21 | E131: 46.77803333 | F131: 92.09328333 | G131: +2.0 | H131: =SUM(H132+2) -> 603
A132: DE6o | B132: 2 | C132: 12 | D132: 2006-09-21 | E132: 46.77803333 | F132: 92.09328333 | G132: 0.0 | H132: 601 | I132: 8.11 | J132: 8.74 | K132: 0.104 | L132: 61.1
A133: DE6o | B133: 3 | C133: 12 | D133: 2006-09-21 | E133: 46.77803333 | F133: 92.09328333 | G133: -2.0 | H133: =SUM(H132-2) -> 599 | I133: 8.2 | J133: 8.94 | K133: 0.103 | L133: 61.1
A134: DE6o | B134: 4 | C134: 12 | D134: 2006-09-21 | E134: 46.77803333 | F134: 92.09328333 | G134: -4.0 | H134: =SUM(H132-4) -> 597 | I134: 8.15 | J134: 8.99 | K134: 0.103 | L134: 61.1 | M134: <10 | N134: <10 | O134: 48 | P134: <0.20 | Q134: 5 | R134: 47
A135: DE6o | B135: 5 | C135: 12 | D135: 2006-09-21 | E135: 46.77803333 | F135: 92.09328333 | G135: -6.0 | H135: =SUM(H132-6) -> 595 | I135: 8.12 | J135: 9.04 | K135: 0.103 | L135: 61.1
A136: DE6o | B136: 6 | C136: 12 | D136: 2006-09-21 | E136: 46.77803333 | F136: 92.09328333 | G136: -8.0 | H136: =SUM(H132-8) -> 593 | I136: 8.12 | J136: 9.16 | K136: 0.103 | L136: 61.1
A137: DE6o | B137: 7 | C137: 12 | D137: 2006-09-21 | E137: 46.77803333 | F137: 92.09328333 | G137: -10.0 | H137: =SUM(H132-10) -> 591 | I137: 8.13 | J137: 9.22 | K137: 0.102 | L137: 61.1
A138: DE6o | B138: 8 | C138: 12 | D138: 2006-09-21 | E138: 46.77803333 | F138: 92.09328333 | G138: -15.0 | H138: =SUM(H132-15) -> 586 | I138: 8.15 | J138: 9.32 | K138: 0.101 | L138: 61.1
A139: DE6o | B139: 9 | C139: 12 | D139: 2006-09-21 | E139: 46.77803333 | F139: 92.09328333 | G139: -20.0 | H139: =SUM(H132-20) -> 581 | I139: 8.14 | J139: 9.32 | K139: 0.102 | L139: 61.1
A140: DE6o | B140: 10 | C140: 12 | D140: 2006-09-21 | E140: 46.77803333 | F140: 92.09328333 | G140: -25 | H140: =601-25 -> 576
A141: DE7i | B141: 1 | C141: 13 | E141: 46.77895 | F141: 92.09125 | G141: +2.0 | H141: =SUM(H142+2) -> 603
A142: DE7i | B142: 2 | C142: 13 | E142: 46.77895 | F142: 92.09125 | G142: 0.0 | H142: 601
A143: DE7i | B143: 3 | C143: 13 | E143: 46.77895 | F143: 92.09125 | G143: -2.0 | H143: =SUM(H142-2) -> 599
A144: DE7i | B144: 4 | C144: 13 | E144: 46.77895 | F144: 92.09125 | G144: -4.0 | H144: =SUM(H142-4) -> 597
A145: DE7i | B145: 5 | C145: 13 | E145: 46.77895 | F145: 92.09125 | G145: -6.0 | H145: =SUM(H142-6) -> 595
A146: DE7i | B146: 6 | C146: 13 | E146: 46.77895 | F146: 92.09125 | G146: -8.0 | H146: =SUM(H142-8) -> 593
A147: DE7i | B147: 7 | C147: 13 | E147: 46.77895 | F147: 92.09125 | G147: -10.0 | H147: =SUM(H142-10) -> 591
A148: DE7i | B148: 8 | C148: 13 | E148: 46.77895 | F148: 92.09125 | G148: -15.0 | H148: =SUM(H142-15) -> 586
A149: DE7i | B149: 9 | C149: 13 | E149: 46.77895 | F149: 92.09125 | G149: -20.0 | H149: =SUM(H142-20) -> 581
A150: DE7o | B150: 1 | C150: 14 | D150: 2006-09-21 | E150: 46.77895 | F150: 92.09125 | G150: +2.0 | H150: =SUM(H151+2) -> 603
A151: DE7o | B151: 2 | C151: 14 | D151: 2006-09-21 | E151: 46.77895 | F151: 92.09125 | G151: 0.0 | H151: 601 | I151: 8.01 | J151: 8.61 | K151: 0.104 | L151: 61.2
A152: DE7o | B152: 3 | C152: 14 | D152: 2006-09-21 | E152: 46.77895 | F152: 92.09125 | G152: -2.0 | H152: =SUM(H151-2) -> 599 | I152: 8.17 | J152: 8.8 | K152: 0.103 | L152: 61.2
A153: DE7o | B153: 4 | C153: 14 | D153: 2006-09-21 | E153: 46.77895 | F153: 92.09125 | G153: -4.0 | H153: =SUM(H151-4) -> 597 | I153: 8.18 | J153: 8.92 | K153: 0.103 | L153: 61.2 | M153: <10 | N153: <10 | O153: 46 | P153: <20 | Q153: 4.7 | R153: 47
A154: DE7o | B154: 5 | C154: 14 | D154: 2006-09-21 | E154: 46.77895 | F154: 92.09125 | G154: -6.0 | H154: =SUM(H151-6) -> 595 | I154: 8.17 | J154: 9.01 | K154: 0.103 | L154: 61.2
A155: DE7o | B155: 6 | C155: 14 | D155: 2006-09-21 | E155: 46.77895 | F155: 92.09125 | G155: -8.0 | H155: =SUM(H151-8) -> 593 | I155: 8.17 | J155: 9.05 | K155: 0.103 | L155: 61.2
A156: DE7o | B156: 7 | C156: 14 | D156: 2006-09-21 | E156: 46.77895 | F156: 92.09125 | G156: -10.0 | H156: =SUM(H151-10) -> 591 | I156: 8.17 | J156: 8.93 | K156: 0.103 | L156: 61.2
A157: DE7o | B157: 8 | C157: 14 | D157: 2006-09-21 | E157: 46.77895 | F157: 92.09125 | G157: -15.0 | H157: =SUM(H151-15) -> 586 | I157: 8.17 | J157: 8.96 | K157: 0.104 | L157: 61.1
A158: DE7o | B158: 9 | C158: 14 | D158: 2006-09-21 | E158: 46.77895 | F158: 92.09125 | G158: -20.0 | H158: =SUM(H151-20) -> 581 | I158: 8.16 | J158: 8.95 | K158: 0.103 | L158: 61.1
A159: DE7o | B159: 10 | C159: 14 | D159: 2006-09-21 | E159: 46.77895 | F159: 92.09125 | G159: -30.5 | H159: =601-30.5 -> 570.5
A160: DE8i | B160: 1 | C160: 15 | E160: 46.77965 | F160: 92.08946667 | G160: +2.0 | H160: =SUM(H161+2) -> 603
A161: DE8i | B161: 2 | C161: 15 | E161: 46.77965 | F161: 92.08946667 | G161: 0.0 | H161: 601
A162: DE8i | B162: 3 | C162: 15 | E162: 46.77965 | F162: 92.08946667 | G162: -2.0 | H162: =SUM(H161-2) -> 599
A163: DE8i | B163: 4 | C163: 15 | E163: 46.77965 | F163: 92.08946667 | G163: -4.0 | H163: =SUM(H161-4) -> 597
A164: DE8i | B164: 5 | C164: 15 | E164: 46.77965 | F164: 92.08946667 | G164: -6.0 | H164: =SUM(H161-6) -> 595
A165: DE8i | B165: 6 | C165: 15 | E165: 46.77965 | F165: 92.08946667 | G165: -8.0 | H165: =SUM(H161-8) -> 593
A166: DE8i | B166: 7 | C166: 15 | E166: 46.77965 | F166: 92.08946667 | G166: -10.0 | H166: =SUM(H161-10) -> 591
A167: DE8i | B167: 8 | C167: 15 | E167: 46.77965 | F167: 92.08946667 | G167: -15.0 | H167: =SUM(H161-15) -> 586
A168: DE8i | B168: 9 | C168: 15 | E168: 46.77965 | F168: 92.08946667 | G168: -20.0 | H168: =SUM(H161-20) -> 581
A169: DE8o | B169: 1 | C169: 16 | D169: 2006-09-21 | E169: 46.77965 | F169: 92.08946667 | G169: +2.0 | H169: =SUM(H170+2) -> 603
A170: DE8o | B170: 2 | C170: 16 | D170: 2006-09-21 | E170: 46.77965 | F170: 92.08946667 | G170: 0.0 | H170: 601 | I170: 8.05 | J170: 8.54 | K170: 0.103 | L170: 61.1
A171: DE8o | B171: 3 | C171: 16 | D171: 2006-09-21 | E171: 46.77965 | F171: 92.08946667 | G171: -2.0 | H171: =SUM(H170-2) -> 599 | I171: 8.22 | J171: 8.78 | K171: 0.104 | L171: 61.1
A172: DE8o | B172: 4 | C172: 16 | D172: 2006-09-21 | E172: 46.77965 | F172: 92.08946667 | G172: -4.0 | H172: =SUM(H170-4) -> 597 | I172: 8.19 | J172: 8.88 | K172: 0.103 | L172: 61.1 | M172: <10 | N172: <10 | O172: 45 | P172: <0.20 | Q172: 4.4 | R172: 47
A173: DE8o | B173: 5 | C173: 16 | D173: 2006-09-21 | E173: 46.77965 | F173: 92.08946667 | G173: -6.0 | H173: =SUM(H170-6) -> 595 | I173: 8.18 | J173: 8.92 | K173: 0.103 | L173: 61.1
A174: DE8o | B174: 6 | C174: 16 | D174: 2006-09-21 | E174: 46.77965 | F174: 92.08946667 | G174: -8.0 | H174: =SUM(H170-8) -> 593 | I174: 8.17 | J174: 8.99 | K174: 0.103 | L174: 61.1
A175: DE8o | B175: 7 | C175: 16 | D175: 2006-09-21 | E175: 46.77965 | F175: 92.08946667 | G175: -10.0 | H175: =SUM(H170-10) -> 591 | I175: 8.17 | J175: 9.02 | K175: 0.103 | L175: 61.1
A176: DE8o | B176: 8 | C176: 16 | D176: 2006-09-21 | E176: 46.77965 | F176: 92.08946667 | G176: -15.0 | H176: =SUM(H170-15) -> 586 | I176: 8.18 | J176: 9.12 | K176: 0.103 | L176: 61.1
A177: DE8o | B177: 9 | C177: 16 | D177: 2006-09-21 | E177: 46.77965 | F177: 92.08946667 | G177: -20.0 | H177: =SUM(H170-20) -> 581 | I177: 8.18 | J177: 9.56 | K177: 0.1 | L177: 61.1
A178: DE8o | B178: 10 | C178: 16 | D178: 2006-09-21 | E178: 46.77965 | F178: 92.08946667 | G178: -29.5 | H178: =601-29.5 -> 571.5
A179: DE9i | B179: 1 | C179: 17 | E179: 46.77985 | F179: 92.08841667 | G179: +2.0 | H179: =SUM(H180+2) -> 603
A180: DE9i | B180: 2 | C180: 17 | E180: 46.77985 | F180: 92.08841667 | G180: 0.0 | H180: 601
A181: DE9i | B181: 3 | C181: 17 | E181: 46.77985 | F181: 92.08841667 | G181: -2.0 | H181: =SUM(H180-2) -> 599
A182: DE9i | B182: 4 | C182: 17 | E182: 46.77985 | F182: 92.08841667 | G182: -4.0 | H182: =SUM(H180-4) -> 597
A183: DE9i | B183: 5 | C183: 17 | E183: 46.77985 | F183: 92.08841667 | G183: -6.0 | H183: =SUM(H180-6) -> 595
A184: DE9i | B184: 6 | C184: 17 | E184: 46.77985 | F184: 92.08841667 | G184: -8.0 | H184: =SUM(H180-8) -> 593
A185: DE9i | B185: 7 | C185: 17 | E185: 46.77985 | F185: 92.08841667 | G185: -10.0 | H185: =SUM(H180-10) -> 591
A186: DE9i | B186: 8 | C186: 17 | E186: 46.77985 | F186: 92.08841667 | G186: -15.0 | H186: =SUM(H180-15) -> 586
A187: DE9i | B187: 9 | C187: 17 | E187: 46.77985 | F187: 92.08841667 | G187: -20.0 | H187: =SUM(H180-20) -> 581
A188: DE9o | B188: 1 | C188: 18 | D188: 2006-09-21 | E188: 46.77985 | F188: 92.08841667 | G188: +2.0 | H188: =SUM(H189+2) -> 603
A189: DE9o | B189: 2 | C189: 18 | D189: 2006-09-21 | E189: 46.77985 | F189: 92.08841667 | G189: 0.0 | H189: 601 | I189: 8.02 | J189: 8.97 | K189: 0.095 | L189: 60.8
A190: DE9o | B190: 3 | C190: 18 | D190: 2006-09-21 | E190: 46.77985 | F190: 92.08841667 | G190: -2.0 | H190: =SUM(H189-2) -> 599 | I190: 8.2 | J190: 9 | K190: 0.096 | L190: 60.8
A191: DE9o | B191: 4 | C191: 18 | D191: 2006-09-21 | E191: 46.77985 | F191: 92.08841667 | G191: -4.0 | H191: =SUM(H189-4) -> 597 | I191: 8.22 | J191: 8.99 | K191: 0.096 | L191: 60.8 | M191: <10 | N191: <10 | O191: 46 | P191: <0.20 | Q191: 4.1 | R191: 46
A192: DE9o | B192: 5 | C192: 18 | D192: 2006-09-21 | E192: 46.77985 | F192: 92.08841667 | G192: -6.0 | H192: =SUM(H189-6) -> 595 | I192: 8.23 | J192: 8.99 | K192: 0.096 | L192: 60.8
A193: DE9o | B193: 6 | C193: 18 | D193: 2006-09-21 | E193: 46.77985 | F193: 92.08841667 | G193: -8.0 | H193: =SUM(H189-8) -> 593 | I193: 8.23 | J193: 8.98 | K193: 0.096 | L193: 60.7
A194: DE9o | B194: 7 | C194: 18 | D194: 2006-09-21 | E194: 46.77985 | F194: 92.08841667 | G194: -10.0 | H194: =SUM(H189-10) -> 591 | I194: 8.25 | J194: 8.95 | K194: 0.096 | L194: 60.8
A195: DE9o | B195: 8 | C195: 18 | D195: 2006-09-21 | E195: 46.77985 | F195: 92.08841667 | G195: -15.0 | H195: =SUM(H189-15) -> 586 | I195: 8.25 | J195: 8.95 | K195: 0.095 | L195: 60.8
A196: DE9o | B196: 9 | C196: 18 | D196: 2006-09-21 | E196: 46.77985 | F196: 92.08841667 | G196: -20.0 | H196: =SUM(H189-20) -> 581
A197: DE10i | B197: 1 | C197: 19 | E197: 46.78006667 | F197: 92.08801667 | G197: +2.0 | H197: =SUM(H198+2) -> 603
A198: DE10i | B198: 2 | C198: 19 | E198: 46.78006667 | F198: 92.08801667 | G198: 0.0 | H198: 601
A199: DE10i | B199: 3 | C199: 19 | E199: 46.78006667 | F199: 92.08801667 | G199: -2.0 | H199: =SUM(H198-2) -> 599
A200: DE10i | B200: 4 | C200: 19 | E200: 46.78006667 | F200: 92.08801667 | G200: -4.0 | H200: =SUM(H198-4) -> 597
... 367 more rows

Sheet Duluth Archive Data
A1: Station | B1: Record_No | C1: Date Sampled | D1: Latitude | E1: Longitude | F1: Temp (ºF) | G1: Flow (CFS) | H1: Turbidity (NTU) | I1: Color | J1: EC (uS/cm) | K1: DO (mg/L) | L1: DO % Sat | M1: BOD 5 DAY (mg/L) | N1: pH (LAB) | O1: Alkalinity (mg/L as Ca CO3) | P1: TSS (mg/L) | Q1: ORG N (mg/L) | R1: NH3+NH4-N (mg/L) | S1: NH3-N (mg/L) | T1: TKN (mg/L) | U1: NO2&NO3-N (mg/L) | V1: Total P (mg/L)
A2: Station 014 | B2: 63 | C2: 1973-07-23 | D2: 464036 | E2: 921209 | F2: 69.98 | H2: 3.6 | J2: 170 | L2: 2.9 | M2: 3.8 | O2: 64 | P2: 8 | V2: 0.1
A3: Station 014 | B3: 63 | C3: 1973-08-28 | D3: 464036 | E3: 921209 | F3: 73.04 | H3: 3.8 | J3: 150 | L3: 2.8 | M3: 3.1 | O3: 55 | P3: 7 | Q3: 1.3 | R3: 0.21 | V3: 0.12
A4: Station 014 | B4: 63 | C4: 1973-09-11 | D4: 464036 | E4: 921209 | F4: 68 | H4: 4.5 | J4: 140 | L4: 6.3 | M4: 3.7 | O4: 64 | P4: 7 | Q4: 1.3 | R4: 0.2 | V4: 0.21
A5: Station 014 | B5: 63 | C5: 1973-09-24 | D5: 464036 | E5: 921209 | F5: 53.96 | H5: 3 | J5: 210 | L5: 6.2 | M5: 3.7 | O5: 66 | P5: 9 | Q5: 1.3 | R5: 0.2 | V5: 0.11
A6: Station 014 | B6: 63 | C6: 1973-10-15 | D6: 464036 | E6: 921209 | F6: 50 | H6: 21 | J6: 88 | L6: 11.1 | M6: 2.2 | O6: 40 | P6: 42 | Q6: 1.4 | R6: 0.2 | V6: 0.15
A7: Station 014 | B7: 63 | C7: 1973-11-12 | D7: 464036 | E7: 921209 | F7: 37.04 | H7: 4.7 | J7: 160 | L7: 12.5 | M7: 7.2 | O7: 98 | P7: 1 | Q7: 1.2 | R7: 0.24 | V7: 2.4
A8: Station 014 | B8: 63 | C8: 1973-12-03 | D8: 464036 | E8: 921209 | F8: 33.98 | H8: 5.1 | J8: 170 | L8: 12.3 | M8: 8.2 | O8: 65 | P8: 6 | Q8: 0.85 | R8: 0.2 | V8: 0.41
A9: Station 014 | B9: 63 | C9: 1975-04-18 | D9: 464036 | E9: 921209 | F9: 33.08 | H9: 21 | J9: 170 | L9: 12.8 | M9: 6.3 | O9: 72 | P9: 56 | Q9: 1.1 | R9: 0.22 | V9: 0.21
A10: Station 014 | B10: 63 | C10: 1975-04-29 | D10: 464036 | E10: 921209 | F10: 37.04 | H10: 17 | J10: 69 | L10: 13.4 | M10: 2.2 | O10: 28 | P10: 46 | Q10: 1 | R10: 0.2 | V10: 0.13
A11: Station 014 | B11: 63 | C11: 1975-05-05 | D11: 464036 | E11: 921209 | F11: 50 | H11: 12 | J11: 80 | L11: 10.8 | M11: 2.3 | O11: 26 | P11: 22 | Q11: 0.77 | R11: 0.2 | V11: 0.08
A12: Station 014 | B12: 63 | C12: 1975-05-13 | D12: 464036 | E12: 921209 | F12: 57.92 | H12: 7 | J12: 93 | L12: 8.3 | M12: 3.2 | O12: 37 | P12: 16 | Q12: 0.37 | R12: 0.2 | V12: 1
A13: Station 014 | B13: 63 | C13: 1975-05-20 | D13: 464036 | E13: 921209 | F13: 60.08 | H13: 7.8 | J13: 110 | L13: 7.3 | M13: 2.6 | O13: 44 | P13: 16 | Q13: 0.96 | R13: 0.2 | V13: 0.07
A14: Station 014 | B14: 63 | C14: 1975-06-16 | D14: 464036 | E14: 921209 | F14: 60.98 | H14: 8.2 | J14: 110 | L14: 9 | M14: 3.1 | O14: 53 | P14: 16 | Q14: 1.1 | R14: 0.2 | V14: 0.09
A15: Site 030 | B15: 64 | C15: 1973-12-07 | D15: 464505 | E15: 920600 | F15: 32 | H15: 12 | J15: 160 | K15: 11.7 | M15: 3.4 | O15: 69 | P15: 6 | Q15: 0.99 | R15: 0.2 | V15: 0.14
A16: Site 030 | B16: 64 | C16: 1974-01-28 | D16: 464505 | E16: 920600 | F16: 33.08 | H16: 3.5 | J16: 180 | K16: 3.7 | M16: 6.1 | O16: 62 | P16: 6 | Q16: 1.3 | R16: 0.56 | V16: 0.19
A17: Site 030 | B17: 64 | C17: 1974-02-25 | D17: 464505 | E17: 920600 | F17: 32 | H17: 3.8 | J17: 170 | K17: 4.6 | M17: 4.3 | O17: 48 | P17: 12 | Q17: 1.2 | R17: 0.27 | V17: 0.14
A18: Site 030 | B18: 64 | C18: 1974-03-11 | D18: 464505 | E18: 920600 | F18: 33.08 | H18: 4.7 | J18: 200 | K18: 2.4 | M18: 3.8 | O18: 55 | P18: 6 | Q18: 0.97 | R18: 0.3 | V18: 0.19
A19: Site 030 | B19: 64 | C19: 1974-04-04 | D19: 464505 | E19: 920600 | F19: 32 | H19: 5.2 | J19: 180 | K19: 2.6 | M19: 4.8 | O19: 69 | P19: 3 | Q19: 1 | R19: 0.35 | V19: 0.14
A20: Site 030 | B20: 64 | C20: 1974-04-11 | D20: 464505 | E20: 920600 | F20: 32 | H20: 7 | J20: 190 | K20: 2.2 | M20: 6.2 | O20: 61 | P20: 8 | Q20: 0.95 | R20: 0.33 | V20: 0.11
A21: Site 030 | B21: 64 | C21: 1974-04-22 | D21: 464505 | E21: 920600 | F21: 35.96 | H21: 30 | J21: 88 | K21: 11.9 | M21: 4.1 | O21: 24 | P21: 24 | Q21: 1.2 | R21: 0.2 | V21: 0.11
A22: Site 030 | B22: 64 | C22: 1974-05-09 | D22: 464505 | E22: 920600 | F22: 46.04 | H22: 8 | J22: 110 | K22: 9.3 | M22: 2.2 | O22: 28 | P22: 13 | Q22: 1.2 | R22: 0.37 | V22: 0.01
A23: Site 030 | B23: 64 | C23: 1974-05-13 | D23: 464505 | E23: 920600 | F23: 46.04 | H23: 11 | J23: 110 | K23: 10.2 | M23: 4.7 | O23: 31 | P23: 17 | Q23: 1 | R23: 0.2 | V23: 0.09
A24: Site 030 | B24: 64 | C24: 1974-06-17 | D24: 464505 | E24: 920600 | F24: 59 | H24: 9 | J24: 100 | K24: 7.5 | M24: 1.7 | O24: 36 | P24: 24 | Q24: 0.3 | R24: 0.2 | V24: 0.08
A25: Site 030 | B25: 64 | C25: 1974-07-08 | D25: 464505 | E25: 920600 | F25: 68 | H25: 6.7 | J25: 88 | K25: 6.9 | M25: 2.9 | O25: 40 | P25: 6 | Q25: 1 | R25: 0.38 | V25: 0.1
A26: Site 030 | B26: 64 | C26: 1974-08-12 | D26: 464505 | E26: 920600 | F26: 62.06 | H26: 8.9 | J26: 150 | K26: 5.8 | M26: 1.3 | O26: 55 | P26: 5 | Q26: 0.3 | R26: 0.28 | V26: 0.12
A27: Site 030 | B27: 64 | C27: 1974-09-09 | D27: 464505 | E27: 920600 | F27: 55.04 | H27: 5 | J27: 150 | K27: 7.5 | M27: 1.4 | O27: 80 | P27: 5 | Q27: 0.9 | R27: 0.26 | V27: 0.11
A28: Site 030 | B28: 64 | C28: 1974-10-07 | D28: 464505 | E28: 920600 | F28: 46.94 | H28: 5.8 | J28: 160 | K28: 8.7 | M28: 1.9 | O28: 62 | P28: 9 | Q28: 0.72 | R28: 0.2 | V28: 0.11
A29: Site 030 | B29: 64 | C29: 1974-11-04 | D29: 464505 | E29: 920600 | F29: 42.98 | H29: 4.5 | J29: 200 | K29: 9.1 | M29: 2.5 | O29: 71 | P29: 8 | Q29: 0.3 | R29: 0.2 | V29: 0.13
A30: Site 030 | B30: 64 | C30: 1974-12-09 | D30: 464505 | E30: 920600 | F30: 32 | H30: 10 | J30: 190 | K30: 5.9 | M30: 3.6 | O30: 56 | P30: 10 | Q30: 1.2 | R30: 0.34 | V30: 0.13
A31: Site 030 | B31: 64 | C31: 1975-01-14 | D31: 464505 | E31: 920600 | F31: 32 | H31: 4.3 | J31: 200 | K31: 4.7 | M31: 5.9 | O31: 61 | P31: 8 | Q31: 0.41 | R31: 0.53 | V31: 0.14
A32: Site 030 | B32: 64 | C32: 1975-02-24 | D32: 464505 | E32: 920600 | F32: 33.08 | H32: 3.5 | J32: 190 | K32: 4.1 | M32: 3 | O32: 77 | P32: 4 | Q32: 0.71 | R32: 0.57 | V32: 0.11
A33: Site 030 | B33: 64 | C33: 1975-03-26 | D33: 464505 | E33: 920600 | F33: 32 | H33: 5.1 | J33: 180 | K33: 6.8 | M33: 2.2 | O33: 70 | P33: 3 | Q33: 0.85 | R33: 0.42 | V33: 0.1
A34: Site 030 | B34: 64 | C34: 1975-04-15 | D34: 464505 | E34: 920600 | F34: 35.06 | H34: 8.8 | J34: 200 | K34: 6 | M34: 2.1 | O34: 83 | P34: 5 | Q34: 0.63 | R34: 0.26 | V34: 0.11
A35: Site 030 | B35: 64 | C35: 1975-05-02 | D35: 464505 | E35: 920600 | F35: 42.08 | H35: 15 | J35: 74 | K35: 12.4 | M35: 1.7 | O35: 30 | P35: 25 | Q35: 0.77 | R35: 0.2 | V35: 0.09
A36: Site 030 | B36: 64 | C36: 1975-05-05 | D36: 464505 | E36: 920600 | F36: 50 | H36: 14 | J36: 85 | K36: 11.5 | M36: 2.3 | O36: 27 | P36: 43 | Q36: 0.85 | R36: 0.2 | V36: 0.12
A37: Site 030 | B37: 64 | C37: 1975-05-13 | D37: 464505 | E37: 920600 | F37: 55.94 | H37: 5.4 | J37: 91 | K37: 8.2 | M37: 1.9 | O37: 33 | P37: 8 | Q37: 1.1 | R37: 0.2 | V37: 0.08
A38: Site 030 | B38: 64 | C38: 1975-05-20 | D38: 464505 | E38: 920600 | F38: 57.92 | H38: 3.5 | J38: 100 | K38: 6.5 | M38: 2.1 | O38: 34 | P38: 4 | Q38: 0.83 | R38: 0.2 | V38: 0.06
A39: Site 030 | B39: 64 | C39: 1975-06-16 | D39: 464505 | E39: 920600 | F39: 62.96 | H39: 3.1 | J39: 150 | K39: 5.5 | M39: 3.1 | O39: 62 | P39: 10 | Q39: 1.3 | R39: 0.2 | V39: 0.06
A40: Site 030 | B40: 64 | C40: 1975-07-21 | D40: 464505 | E40: 920600 | H40: 7 | J40: 120 | K40: 6 | M40: 3.9 | O40: 52 | P40: 11 | Q40: 1.3 | R40: 0.2 | V40: 0.13
A41: Site 030 | B41: 64 | C41: 1975-08-19 | D41: 464505 | E41: 920600 | H41: 6.8 | J41: 130 | K41: 7.2 | M41: 4.1 | O41: 52 | P41: 9 | Q41: 0.64 | R41: 0.2 | V41: 0.18
A42: Site 030 | B42: 64 | C42: 1975-09-15 | D42: 464505 | E42: 920600 | H42: 7.5 | J42: 190 | K42: 7.4 | M42: 2.1 | O42: 65 | P42: 2 | Q42: 0.69 | R42: 0.2 | V42: 0.12
A43: Site 030 | B43: 64 | C43: 1975-10-27 | D43: 464505 | E43: 920600 | H43: 8 | J43: 210 | K43: 8.2 | M43: 3 | O43: 70 | P43: 9 | Q43: 0.65 | R43: 0.29 | V43: 0.13
A44: Site 030 | B44: 64 | C44: 1975-11-25 | D44: 464505 | E44: 920600 | H44: 8.7 | J44: 240 | K44: 12.3 | M44: 3.7 | O44: 80 | P44: 10 | Q44: 0.79 | R44: 0.2 | V44: 0.118
A45: Site 030 | B45: 64 | C45: 1975-12-24 | D45: 464505 | E45: 920600 | H45: 9 | J45: 270 | K45: 1.1 | M45: 6.6 | O45: 74 | P45: 7 | Q45: 1.4 | R45: 0.22 | V45: 0.03
A46: Site 030 | B46: 64 | C46: 1976-01-26 | D46: 464505 | E46: 920600 | F46: 32 | H46: 9.5 | J46: 220 | K46: 1.2 | M46: 8.1 | O46: 53 | P46: 6 | Q46: 0.99 | R46: 0.24 | V46: 0.129
A47: Site 030 | B47: 64 | C47: 1976-02-24 | D47: 464505 | E47: 920600 | F47: 33.8 | H47: 10 | J47: 210 | K47: 0.2 | M47: 8.3 | O47: 54 | P47: 6 | Q47: 1.1 | R47: 0.2 | V47: 0.11
A48: Site 030 | B48: 64 | C48: 1976-03-22 | D48: 464505 | E48: 920600 | F48: 32 | H48: 15 | J48: 220 | K48: 1.8 | M48: 8.4 | O48: 66 | P48: 5 | Q48: 0.92 | R48: 0.2 | V48: 0.136
A49: Site 030 | B49: 64 | C49: 1976-04-19 | D49: 464505 | E49: 920600 | F49: 48.2 | H49: 10 | J49: 120 | K49: 8.1 | M49: 2.6 | O49: 34 | P49: 13 | Q49: 0.79 | R49: 0.24 | V49: 0.075
A50: Site 030 | B50: 64 | C50: 1976-05-17 | D50: 464505 | E50: 920600 | F50: 56.3 | H50: 8 | J50: 160 | K50: 5.3 | M50: 5.4 | O50: 47 | P50: 2 | Q50: 0.8 | R50: 0.29 | V50: 0.153
A51: Site 030 | B51: 64 | C51: 1976-06-14 | D51: 464505 | E51: 920600 | F51: 64.4 | H51: 9.8 | J51: 150 | K51: 6.6 | M51: 4 | O51: 49 | P51: 10 | Q51: 0.79 | R51: 0.26 | V51: 0.124
A52: Site 030 | B52: 64 | C52: 1976-07-26 | D52: 464505 | E52: 920600 | F52: 68.9 | H52: 11 | J52: 160 | K52: 6 | M52: 4.7 | O52: 62 | P52: 11 | Q52: 1.2 | R52: 0.2 | V52: 0.134
A53: Site 030 | B53: 64 | C53: 1976-08-23 | D53: 464505 | E53: 920600 | F53: 68.9 | H53: 14 | J53: 140 | K53: 7.5 | M53: 4.9 | P53: 20 | Q53: 0.87 | R53: 0.22 | U53: 0.04 | V53: 0.133
A54: Site 030 | B54: 64 | C54: 1976-09-20 | D54: 464505 | E54: 920600 | F54: 60.8 | H54: 7.1 | J54: 190 | K54: 7.2 | M54: 2.3 | P54: 12 | Q54: 0.64 | R54: 0.2 | U54: 0.09 | V54: 0.111
A55: Site 030 | B55: 64 | C55: 1976-10-18 | D55: 464505 | E55: 920600 | F55: 45.5 | H55: 12 | J55: 210 | K55: 9.4 | M55: 2.3 | O55: 60 | P55: 10 | Q55: 0.6 | R55: 0.2 | U55: 0.25 | V55: 0.106
A56: Site 030 | B56: 64 | C56: 1976-11-15 | D56: 464505 | E56: 920600 | F56: 32.9 | H56: 10 | J56: 250 | K56: 10.6 | M56: 2.5 | P56: 5 | Q56: 0.81 | R56: 0.32 | U56: 0.33 | V56: 0.114
A57: Site 030 | B57: 64 | C57: 1976-12-27 | D57: 464505 | E57: 920600 | F57: 32 | H57: 4.5 | J57: 230 | K57: 3.7 | M57: 2.4 | P57: 2 | Q57: 0.84 | R57: 0.44 | U57: 0.13 | V57: 0.159
A58: Site 030 | B58: 64 | C58: 1977-01-24 | D58: 464505 | E58: 920600 | F58: 32 | H58: 2.4 | J58: 190 | K58: 7.9 | M58: 1.4 | O58: 58 | P58: 4 | Q58: 0.71 | R58: 0.26 | U58: 0.16 | V58: 0.087
A59: Site 030 | B59: 64 | C59: 1977-02-22 | D59: 464505 | E59: 920600 | F59: 32.9 | H59: 7.3 | J59: 240 | K59: 2.6 | M59: 4.9 | P59: 12 | Q59: 0.77 | R59: 0.46 | U59: 0.45 | V59: 0.138
A60: Site 030 | B60: 64 | C60: 1977-03-21 | D60: 464505 | E60: 920600 | F60: 33.8 | H60: 22 | J60: 220 | K60: 4.7 | M60: 5 | P60: 11 | Q60: 1 | R60: 0.24 | U60: 0.29 | V60: 0.127
A61: Site 030 | B61: 64 | C61: 1977-04-26 | D61: 464505 | E61: 920600 | F61: 50 | H61: 7.6 | J61: 230 | K61: 6.6 | M61: 4.1 | O61: 60 | P61: 2 | Q61: 0.96 | R61: 0.68 | U61: 0.39 | V61: 0.117
A62: Site 030 | B62: 64 | C62: 1977-05-24 | D62: 464505 | E62: 920600 | F62: 59 | H62: 10 | J62: 240 | K62: 7.1 | M62: 1.8 | P62: 11 | Q62: 0.72 | R62: 0.2 | U62: 0.2 | V62: 0.107
A63: Site 030 | B63: 64 | C63: 1977-06-27 | D63: 464505 | E63: 920600 | F63: 68 | H63: 7 | J63: 200 | K63: 10.1 | M63: 3.3 | P63: 4 | Q63: 1 | R63: 0.2 | U63: 0.2 | V63: 0.104
A64: Site 030 | B64: 64 | C64: 1977-07-25 | D64: 464505 | E64: 920600 | F64: 69.8 | H64: 12 | J64: 200 | K64: 5.7 | M64: 2 | N64: 7.2 | O64: 60 | P64: 14 | Q64: 0.89 | R64: 0.24 | U64: 0.22 | V64: 0.139
A65: Site 030 | B65: 64 | C65: 1977-08-22 | D65: 464505 | E65: 920600 | F65: 60.8 | H65: 14 | J65: 180 | K65: 7.7 | M65: 4 | N65: 7.5 | P65: 16 | Q65: 0.71 | R65: 0.2 | U65: 0.22 | V65: 0.127
A66: Site 030 | B66: 64 | C66: 1977-09-26 | D66: 464505 | E66: 920600 | F66: 53.6 | H66: 17 | J66: 165 | K66: 7.1 | M66: 3.6 | N66: 7.1 | P66: 16 | Q66: 1.4 | R66: 0.33 | U66: 0.14 | V66: 0.162
A67: Site 030 | B67: 64 | C67: 1977-10-25 | D67: 464505 | E67: 920600 | F67: 44.6 | G67: 4075 | J67: 140 | K67: 8.1 | M67: 1.5 | N67: 7.1 | P67: 5 | Q67: 1.2 | R67: 0.2 | U67: 0.19 | V67: 0.067
A68: Site 030 | B68: 64 | C68: 1977-11-14 | D68: 464505 | E68: 920600 | F68: 37.4 | G68: 5155 | J68: 170 | K68: 9 | M68: 1.9 | N68: 7.4 | P68: 6 | Q68: 1 | R68: 0.2 | U68: 0.16 | V68: 0.074
A69: Site 030 | B69: 64 | C69: 1977-12-20 | D69: 464505 | E69: 920600 | F69: 32 | G69: 4075 | J69: 205 | K69: 9.3 | M69: 3 | N69: 7.5 | P69: 7 | Q69: 1.5 | R69: 0.3 | U69: 0.7 | V69: 0.063
A70: Site 030 | B70: 64 | C70: 1978-01-24 | D70: 464505 | E70: 920600 | F70: 32 | G70: 2110 | J70: 160 | K70: 7.6 | M70: 0.5 | N70: 7.2 | P70: 3 | Q70: 1 | R70: 0.2 | U70: 0.27 | V70: 0.058
A71: Site 030 | B71: 64 | C71: 1978-02-22 | D71: 464505 | E71: 920600 | F71: 32 | G71: 1825 | J71: 160 | K71: 6.7 | M71: 3.4 | N71: 7.1 | P71: 2 | Q71: 0.9 | R71: 0.2 | U71: 0.25 | V71: 0.062
A72: Site 030 | B72: 64 | C72: 1978-03-16 | D72: 464505 | E72: 920600 | F72: 32 | G72: 1741 | J72: 190 | K72: 6.1 | M72: 3.3 | N72: 7.3 | P72: 8 | Q72: 0.95 | R72: 0.27 | U72: 0.26 | V72: 0.059
A73: Site 030 | B73: 64 | C73: 1978-04-24 | D73: 464505 | E73: 920600 | F73: 41 | G73: 5525 | J73: 124 | K73: 11.1 | M73: 6.8 | N73: 7.3 | P73: 25 | Q73: 0.88 | R73: 0.2 | U73: 0.25 | V73: 0.097
A74: Site 030 | B74: 64 | C74: 1978-05-15 | D74: 464505 | E74: 920600 | F74: 55.4 | G74: 3755 | J74: 160 | K74: 9.2 | M74: 3.2 | N74: 7.5 | P74: 25 | Q74: 0.96 | R74: 0.2 | U74: 0.09 | V74: 0.15
A75: Site 030 | B75: 64 | C75: 1978-06-26 | D75: 464505 | E75: 920600 | F75: 71.6 | G75: 2110 | J75: 500 | K75: 6.2 | M75: 2.2 | N75: 6.8 | P75: 11 | Q75: 1.1 | R75: 0.31 | U75: 0.18 | V75: 0.1
A76: Site 030 | B76: 64 | C76: 1978-07-18 | D76: 464505 | E76: 920600 | F76: 75.2 | G76: 5950 | J76: 120 | K76: 6.2 | M76: 2.7 | N76: 7.1 | P76: 20 | Q76: 0.98 | R76: 0.36 | U76: 0.17 | V76: 0.133
A77: Site 030 | B77: 64 | C77: 1978-08-14 | D77: 464505 | E77: 920600 | F77: 69.8 | G77: 1370 | J77: 140 | K77: 5.3 | M77: 2.9 | N77: 6.8 | P77: 4 | Q77: 1.1 | R77: 0.31 | U77: 0.19 | V77: 0.095
A78: Site 030 | B78: 64 | C78: 1978-09-18 | D78: 464505 | E78: 920600 | F78: 57.2 | G78: 4330 | J78: 160 | K78: 9.1 | M78: 2.5 | N78: 7.7 | P78: 19 | Q78: 1.3 | R78: 0.38 | U78: 0.16 | V78: 0.221
A79: Site 030 | B79: 64 | C79: 1978-10-23 | D79: 464505 | E79: 920600 | F79: 50 | G79: 2202 | J79: 180 | K79: 8.9 | M79: 1.5 | N79: 7.5 | P79: 9 | Q79: 0.9 | R79: 0.46 | U79: 0.2 | V79: 0.127
A80: Site 030 | B80: 64 | C80: 1978-11-27 | D80: 464505 | E80: 920600 | F80: 32 | G80: 1571 | J80: 200 | K80: 10.6 | M80: 1.5 | N80: 7.5 | P80: 12 | Q80: 0.79 | R80: 0.45 | U80: 0.08 | V80: 0.114
A81: Site 030 | B81: 64 | C81: 1978-12-19 | D81: 464505 | E81: 920600 | F81: 32 | G81: 1748 | J81: 200 | K81: 6.7 | M81: 3.6 | N81: 7.5 | P81: 7 | Q81: 1.1 | R81: 0.48 | U81: 0.08 | V81: 0.123
A82: Site 030 | B82: 64 | C82: 1979-01-15 | D82: 464505 | E82: 920600 | F82: 32 | G82: 1318 | J82: 200 | K82: 7.1 | M82: 0.5 | N82: 6.4 | P82: 2 | Q82: 0.6 | R82: 0.39 | U82: 0.12 | V82: 0.09
A83: Site 030 | B83: 64 | C83: 1979-02-20 | D83: 464505 | E83: 920600 | F83: 32 | G83: 1318 | J83: 220 | K83: 9.5 | M83: 1.5 | N83: 7.3 | P83: 6 | Q83: 0.9 | R83: 0.2 | T83: 1.1 | U83: 0.17 | V83: 0.1
A84: Site 030 | B84: 64 | C84: 1979-03-19 | D84: 464505 | E84: 920600 | F84: 32 | G84: 1904 | J84: 180 | K84: 10.6 | M84: 0.7 | N84: 7.5 | P84: 3 | Q84: 0.54 | R84: 0.2 | T84: 0.74 | U84: 0.21 | V84: 0.058
A85: Site 030 | B85: 64 | C85: 1979-04-17 | D85: 464505 | E85: 920600 | F85: 33.8 | G85: 5122 | J85: 190 | K85: 11.5 | M85: 1.7 | N85: 7.6 | P85: 2 | Q85: 0.36 | R85: 0.39 | T85: 0.75 | U85: 0.38 | V85: 0.052
A86: Site 030 | B86: 64 | C86: 1979-05-22 | D86: 464505 | E86: 920600 | F86: 51.8 | G86: 8507 | J86: 100 | K86: 9.8 | M86: 1.6 | N86: 7.2 | P86: 14 | Q86: 0.6 | R86: 0.16 | T86: 0.76 | U86: 0.1 | V86: 0.092
A87: Site 030 | B87: 64 | C87: 1979-06-18 | D87: 464505 | E87: 920600 | F87: 64.4 | G87: 4746 | J87: 140 | K87: 8 | M87: 1.9 | N87: 7.3 | P87: 4 | Q87: 0.57 | R87: 0.1 | T87: 0.67 | U87: 0.07 | V87: 0.077
A88: Site 030 | B88: 64 | C88: 1979-07-23 | D88: 464505 | E88: 920600 | F88: 64.4 | G88: 1362 | J88: 130 | K88: 8.2 | M88: 1.6 | N88: 7.6 | P88: 11 | Q88: 0.85 | R88: 0.14 | T88: 0.99 | U88: 0.14 | V88: 0.079
A89: Site 030 | B89: 64 | C89: 1979-08-20 | D89: 464505 | E89: 920600 | F89: 62.6 | G89: 985 | J89: 150 | K89: 7.8 | M89: 1.4 | N89: 7.5 | P89: 8 | Q89: 0.96 | R89: 0.08 | T89: 1.04 | U89: 0.1 | V89: 0.084
A90: Site 030 | B90: 64 | C90: 1979-09-17 | D90: 464505 | E90: 920600 | F90: 62.6 | G90: 1738 | J90: 200 | K90: 8.9 | M90: 1.5 | N90: 7.6 | P90: 5 | Q90: 0.54 | R90: 0.08 | T90: 0.62 | U90: 0.08 | V90: 0.069
A91: Site 030 | B91: 64 | C91: 1979-10-15 | D91: 464505 | E91: 920600 | F91: 50 | G91: 1318 | J91: 230 | K91: 10.1 | M91: 1.3 | N91: 7.6 | P91: 12 | Q91: 0.71 | R91: 0.16 | T91: 0.87 | U91: 0.15 | V91: 0.118
A92: Site 030 | B92: 64 | C92: 1979-12-17 | D92: 464505 | E92: 920600 | F92: 32 | G92: 765 | J92: 220 | K92: 12.3 | M92: 1.1 | N92: 7.4 | P92: 9 | Q92: 0.81 | R92: 0.19 | T92: 1 | U92: 0.2 | V92: 0.056
A93: Site 030 | B93: 64 | C93: 1980-01-21 | D93: 464505 | E93: 920600 | F93: 32 | G93: 1649 | J93: 190 | K93: 11.7 | M93: 1.2 | N93: 7.1 | P93: 5 | Q93: 0.48 | R93: 0.12 | T93: 0.6 | U93: 0.22 | V93: 0.06
A94: Site 030 | B94: 64 | C94: 1980-02-26 | D94: 464505 | E94: 920600 | F94: 32 | G94: 1649 | J94: 170 | K94: 11.1 | M94: 1.1 | N94: 7.4 | P94: 3 | Q94: 0.55 | R94: 0.09 | T94: 0.64 | U94: 0.22 | V94: 0.033
A95: Site 030 | B95: 64 | C95: 1980-03-18 | D95: 464505 | E95: 920600 | F95: 34.7 | G95: 1483 | J95: 210 | K95: 11.2 | M95: 0.7 | N95: 7.2 | P95: 3 | Q95: 0.52 | R95: 0.1 | T95: 0.62 | U95: 0.23 | V95: 0.044
A96: Site 030 | B96: 64 | C96: 1980-04-21 | D96: 464505 | E96: 920600 | F96: 42.8 | G96: 4459 | J96: 150 | K96: 11.1 | M96: 1.6 | N96: 7.2 | P96: 10 | Q96: 0.93 | R96: 0.19 | T96: 1.12 | U96: 0.3 | V96: 0.087
A97: Site 030 | B97: 64 | C97: 1980-05-19 | D97: 464505 | E97: 920600 | F97: 53.6 | G97: 1141 | J97: 190 | K97: 10.4 | M97: 2.5 | N97: 7.3 | P97: 10 | Q97: 0.86 | R97: 0.1 | T97: 0.96 | U97: 0.12 | V97: 0.096
A98: Site 030 | B98: 64 | C98: 1980-06-16 | D98: 464505 | E98: 920600 | F98: 62.6 | G98: 846 | J98: 220 | K98: 8.9 | M98: 1.8 | N98: 7.6 | P98: 8 | Q98: 0.48 | R98: 0.16 | T98: 0.64 | U98: 0.03 | V98: 0.1
A99: Site 030 | B99: 64 | C99: 1980-07-21 | D99: 464505 | E99: 920600 | F99: 68 | G99: 702 | J99: 210 | K99: 7.6 | M99: 2.1 | N99: 7.3 | P99: 9 | Q99: 0.9 | R99: 0.1 | T99: 1 | U99: 0.12 | V99: 0.094
A100: Site 030 | B100: 64 | C100: 1980-08-18 | D100: 464505 | E100: 920600 | F100: 62.6 | G100: 625 | J100: 202 | K100: 8.7 | M100: 1.7 | N100: 7.2 | P100: 8 | Q100: 0.73 | R100: 0.15 | T100: 0.88 | U100: 0.11 | V100: 0.08
A101: Site 030 | B101: 64 | C101: 1980-09-22 | D101: 464505 | E101: 920600 | F101: 59 | G101: 2534 | J101: 200 | K101: 8.8 | M101: 1.8 | N101: 7.8 | P101: 10 | Q101: 0.93 | R101: 0.16 | T101: 1.09 | U101: 0.09 | V101: 0.094
A102: Site 030 | B102: 64 | C102: 1980-10-13 | D102: 464505 | E102: 920600 | F102: 50.18 | G102: 956 | J102: 220 | K102: 9.8 | M102: 1.2 | N102: 7.6 | O102: 61 | P102: 8 | Q102: 0.58 | R102: 0.11 | T102: 0.69 | U102: 0.14 | V102: 0.078
A103: Site 030 | B103: 64 | C103: 1981-01-12 | D103: 464505 | E103: 920600 | F103: 32 | G103: 1085 | J103: 250 | K103: 11.7 | M103: 1.3 | N103: 7 | O103: 80 | P103: 4 | Q103: 0.71 | R103: 0.13 | T103: 0.84 | U103: 0.19 | V103: 0.086
A104: Site 030 | B104: 64 | C104: 1981-03-09 | D104: 464505 | E104: 920600 | F104: 34.7 | G104: 1329 | J104: 200 | K104: 11.6 | M104: 1 | N104: 7 | O104: 68 | P104: 2 | Q104: 0.58 | R104: 0.06 | T104: 0.64 | U104: 0.25 | V104: 0.045
A105: Site 030 | B105: 64 | C105: 1981-04-13 | D105: 464505 | E105: 920600 | F105: 43.7 | G105: 3640 | J105: 170 | K105: 11.3 | M105: 2.2 | N105: 7.2 | O105: 50 | P105: 11 | Q105: 0.79 | R105: 0.12 | T105: 0.91 | U105: 0.18 | V105: 0.105
A106: Site 030 | B106: 64 | C106: 1981-05-11 | D106: 464505 | E106: 920600 | F106: 53.6 | G106: 5089 | J106: 130 | K106: 9 | M106: 1.6 | N106: 6.8 | O106: 40 | P106: 14 | Q106: 1.05 | R106: 0.12 | T106: 1.17 | U106: 0.08 | V106: 0.037
A107: Site 030 | B107: 64 | C107: 1981-06-15 | D107: 464505 | E107: 920600 | F107: 65.3 | G107: 4115 | J107: 170 | K107: 7.8 | M107: 0.9 | N107: 6.7 | O107: 56 | P107: 16 | Q107: 0.82 | R107: 0.11 | T107: 0.93 | U107: 0.03 | V107: 0.087
A108: Site 030 | B108: 64 | C108: 1981-07-13 | D108: 464505 | E108: 920600 | F108: 75.2 | G108: 2257 | J108: 120 | K108: 6.4 | M108: 1.1 | N108: 7.3 | O108: 48 | P108: 6 | Q108: 0.69 | R108: 0.14 | T108: 0.83 | U108: 0.08 | V108: 0.041
A109: Site 030 | B109: 64 | C109: 1981-08-11 | D109: 464505 | E109: 920600 | F109: 73.4 | G109: 2855 | J109: 150 | K109: 7.1 | M109: 1.1 | N109: 7.6 | O109: 60 | P109: 11 | Q109: 0.78 | R109: 0.1 | T109: 0.88 | U109: 0.06 | V109: 0.088
A110: Site 030 | B110: 64 | C110: 1981-09-14 | D110: 464505 | E110: 920600 | F110: 68 | G110: 765 | J110: 210 | K110: 7.2 | M110: 1.4 | N110: 7.6 | O110: 72 | P110: 12 | Q110: 0.51 | R110: 0.2 | T110: 0.71 | U110: 0.11 | V110: 0.099
A111: Site 030 | B111: 64 | C111: 1981-10-13 | D111: 464505 | E111: 920600 | F111: 51.8 | J111: 220 | K111: 9.7 | M111: 1 | N111: 7.7 | P111: 11 | Q111: 0.73 | R111: 0.08 | T111: 0.81 | U111: 0.04 | V111: 0.08
A112: Site 030 | B112: 64 | C112: 1982-01-11 | D112: 464505 | E112: 920600 | F112: 32 | J112: 200 | K112: 11.2 | M112: 1.1 | N112: 7.6 | P112: 3 | Q112: 0.61 | R112: 0.13 | T112: 0.74 | U112: 0.17 | V112: 0.052
A113: Site 030 | B113: 64 | C113: 1982-03-15 | D113: 464505 | E113: 920600 | F113: 33.8 | J113: 200 | K113: 11.8 | M113: 1.3 | N113: 7.4 | P113: 4 | Q113: 0.66 | R113: 0.12 | T113: 0.88 | U113: 0.26 | V113: 0.068
A114: Site 030 | B114: 64 | C114: 1982-04-12 | D114: 464505 | E114: 920600 | F114: 39.2 | J114: 210 | K114: 12.7 | M114: 1.1 | N114: 6.9 | P114: 9 | Q114: 0.58 | R114: 0.15 | T114: 0.73 | U114: 0.34 | V114: 0.062
A115: Site 030 | B115: 64 | C115: 1982-05-10 | D115: 464505 | E115: 920600 | F115: 51.8 | J115: 120 | K115: 9.1 | M115: 1.5 | N115: 7.7 | P115: 20 | Q115: 0.83 | R115: 0.09 | T115: 0.92 | U115: 0.06 | V115: 0.049
A116: Site 030 | B116: 64 | C116: 1982-06-07 | D116: 464505 | E116: 920600 | F116: 62.6 | J116: 160 | K116: 7.9 | M116: 1.9 | N116: 7.8 | P116: 18 | Q116: 1.07 | R116: 0.14 | T116: 1.21 | U116: 0.04 | V116: 0.09
A117: Site 030 | B117: 64 | C117: 1982-07-12 | D117: 464505 | E117: 920600 | F117: 69.8 | J117: 140 | K117: 7.5 | M117: 1.7 | N117: 7.7 | P117: 12 | Q117: 0.76 | R117: 0.1 | T117: 0.86 | U117: 0.06 | V117: 0.061
A118: Site 030 | B118: 64 | C118: 1982-08-09 | D118: 464505 | E118: 920600 | F118: 66.2 | J118: 150 | K118: 7 | M118: 1.8 | N118: 7.6 | P118: 8 | Q118: 0.87 | R118: 0.11 | T118: 0.98 | U118: 0.1 | V118: 0.094
A119: Site 030 | B119: 64 | C119: 1982-09-07 | D119: 464505 | E119: 920600 | F119: 64.4 | J119: 170 | K119: 7.8 | M119: 0.8 | N119: 7.7 | P119: 10 | Q119: 0.61 | R119: 0.09 | T119: 0.7 | U119: 0.07 | V119: 0.068
A120: Site 030 | B120: 64 | C120: 1982-10-11 | D120: 464505 | E120: 920600 | F120: 51.8 | J120: 110 | K120: 10 | M120: 1.2 | N120: 7.5 | P120: 18 | Q120: 1.11 | R120: 0.09 | T120: 1.2 | U120: 0.05 | V120: 0.091
A121: Site 030 | B121: 64 | C121: 1983-01-11 | D121: 464505 | E121: 920600 | F121: 32 | J121: 150 | K121: 12.3 | M121: 0.5 | N121: 7.4 | P121: 4 | Q121: 0.77 | R121: 0.15 | T121: 0.92 | U121: 0.18 | V121: 0.042
A122: Site 030 | B122: 64 | C122: 1983-03-08 | D122: 464505 | E122: 920600 | F122: 32 | J122: 150 | K122: 12.4 | M122: 1 | N122: 7.6 | P122: 5 | Q122: 0.64 | R122: 0.14 | T122: 0.78 | U122: 0.27 | V122: 0.052
A123: Site 030 | B123: 64 | C123: 1983-04-11 | D123: 464505 | E123: 920600 | F123: 37.4 | J123: 140 | K123: 12.2 | M123: 1.9 | N123: 7.6 | P123: 16 | Q123: 0.59 | R123: 0.14 | T123: 0.73 | U123: 0.18 | V123: 0.072
A124: Site 030 | B124: 64 | C124: 1983-05-09 | D124: 464505 | E124: 920600 | F124: 50 | J124: 140 | K124: 10.2 | M124: 2 | N124: 7.7 | P124: 11 | Q124: 0.97 | R124: 0.12 | T124: 1.09 | U124: 0.08 | V124: 0.088
A125: Site 030 | B125: 64 | C125: 1983-06-13 | D125: 464505 | E125: 920600 | F125: 60.8 | J125: 170 | K125: 8.3 | M125: 2 | N125: 7.7 | P125: 12 | Q125: 0.95 | R125: 0.12 | T125: 1.07 | U125: 0.02 | V125: 0.099
A126: Site 030 | B126: 64 | C126: 1983-07-11 | D126: 464505 | E126: 920600 | F126: 69.8 | J126: 110 | K126: 7 | M126: 1.5 | N126: 7.6 | P126: 26 | Q126: 1.13 | R126: 0.15 | T126: 1.28 | U126: 0.04 | V126: 0.092
A127: Site 030 | B127: 64 | C127: 1983-08-10 | D127: 464505 | E127: 920600 | F127: 69.8 | J127: 150 | K127: 7.8 | M127: 1.2 | N127: 7.7 | P127: 10 | Q127: 0.77 | R127: 0.08 | T127: 0.85 | U127: 0.1 | V127: 0.105
A128: Site 030 | B128: 64 | C128: 1983-09-14 | D128: 464505 | E128: 920600 | F128: 61.7 | J128: 180 | K128: 7.9 | M128: 0.9 | N128: 7.8 | P128: 11 | Q128: 0.77 | R128: 0.12 | T128: 0.89 | U128: 0.13 | V128: 0.102
A129: Site 030 | B129: 64 | C129: 1983-10-27 | D129: 464505 | E129: 920600 | F129: 46.4 | J129: 140 | K129: 10.6 | M129: 1.2 | N129: 7.4 | P129: 11 | Q129: 0.89 | R129: 0.13 | T129: 1.02 | U129: 0.06 | V129: 0.078
A130: Site 030 | B130: 64 | C130: 1984-01-09 | D130: 464505 | E130: 920600 | F130: 32 | J130: 160 | K130: 13 | M130: 0.9 | N130: 7.5 | P130: 4 | Q130: 0.69 | R130: 0.13 | T130: 0.82 | U130: 0.12 | V130: 0.054
A131: Site 030 | B131: 64 | C131: 1984-03-12 | D131: 464505 | E131: 920600 | F131: 32 | J131: 200 | K131: 12.8 | M131: 1 | N131: 7.7 | P131: 2 | Q131: 1.18 | R131: 0.12 | T131: 1.3 | U131: 0.19 | V131: 0.057
A132: Site 030 | B132: 64 | C132: 1984-04-16 | D132: 464505 | E132: 920600 | F132: 43.7 | J132: 100 | K132: 10.7 | M132: 1.2 | N132: 7.2 | P132: 14 | Q132: 0.9 | R132: 0.08 | T132: 0.98 | U132: 0.16 | V132: 0.06
A133: Site 030 | B133: 64 | C133: 1984-05-14 | D133: 464505 | E133: 920600 | F133: 55.4 | J133: 130 | K133: 8.7 | M133: 1.3 | N133: 7.4 | P133: 13 | Q133: 0.69 | R133: 0.08 | T133: 0.77 | U133: 0.05 | V133: 0.102
A134: Site 030 | B134: 64 | C134: 1984-06-11 | D134: 464505 | E134: 920600 | F134: 66.2 | J134: 150 | K134: 8.6 | M134: 1.7 | N134: 7.7 | P134: 21 | Q134: 0.98 | R134: 0.11 | T134: 1.09 | U134: 0.02 | V134: 0.092
A135: Site 030 | B135: 64 | C135: 1984-07-16 | D135: 464505 | E135: 920600 | F135: 68.9 | J135: 130 | K135: 7 | M135: 1.5 | N135: 7.7 | P135: 11 | Q135: 0.81 | R135: 0.09 | T135: 0.9 | U135: 0.1 | V135: 0.088
A136: Site 030 | B136: 64 | C136: 1984-08-13 | D136: 464505 | E136: 920600 | F136: 69.8 | J136: 170 | K136: 7 | M136: 1.7 | N136: 7.9 | P136: 20 | Q136: 0.88 | R136: 0.12 | T136: 1 | U136: 0.09 | V136: 0.13
A137: Site 030 | B137: 64 | C137: 1984-09-17 | D137: 464505 | E137: 920600 | F137: 59 | J137: 170 | K137: 9 | M137: 1 | N137: 8 | P137: 11 | Q137: 0.43 | R137: 0.06 | T137: 0.49 | U137: 0.1 | V137: 0.068
A138: Site 030 | B138: 64 | C138: 1984-10-09 | D138: 464505 | E138: 920600 | F138: 52.7 | J138: 210 | K138: 9.6 | M138: 1.1 | N138: 7.9 | P138: 11 | Q138: 0.78 | R138: 0.14 | T138: 0.92 | U138: 0.42 | V138: 0.154
A139: Site 030 | B139: 64 | C139: 1985-01-14 | D139: 464505 | E139: 920600 | F139: 32 | J139: 190 | K139: 12.7 | M139: 0.7 | N139: 7.5 | P139: 2 | Q139: 0.78 | R139: 0.12 | T139: 0.9 | U139: 0.21 | V139: 0.049
A140: Site 030 | B140: 64 | C140: 1985-03-13 | D140: 464505 | E140: 920600 | F140: 32 | J140: 200 | K140: 12.6 | M140: 0.9 | N140: 7.6 | P140: 3 | Q140: 0.55 | R140: 0.15 | T140: 0.7 | U140: 0.25 | V140: 0.068
A141: Site 030 | B141: 64 | C141: 1985-04-15 | D141: 464505 | E141: 920600 | F141: 41 | J141: 170 | K141: 8.4 | M141: 1.9 | N141: 7.6 | P141: 14 | Q141: 0.44 | R141: 0.1 | T141: 0.54 | U141: 0.2 | V141: 0.069
A142: Site 030 | B142: 64 | C142: 1985-05-13 | D142: 464505 | E142: 920600 | F142: 64.4 | J142: 150 | K142: 8.4 | M142: 2.3 | N142: 7.3 | P142: 9 | Q142: 0.92 | R142: 0.1 | T142: 1.02 | U142: 0.09 | V142: 0.07
A143: Site 030 | B143: 64 | C143: 1985-06-10 | D143: 464505 | E143: 920600 | F143: 66.2 | J143: 120 | K143: 8.5 | M143: 2 | N143: 7.8 | P143: 12 | Q143: 0.76 | R143: 0.08 | T143: 0.84 | U143: 0.09 | V143: 0.065
A144: Site 030 | B144: 64 | C144: 1985-07-16 | D144: 464505 | E144: 920600 | F144: 73.4 | J144: 120 | K144: 7.2 | M144: 2.4 | N144: 7.3 | P144: 5 | Q144: 0.74 | R144: 0.1 | T144: 0.84 | U144: 0.07 | V144: 0.065
A145: Site 030 | B145: 64 | C145: 1985-08-12 | D145: 464505 | E145: 920600 | F145: 64.4 | J145: 150 | K145: 7.5 | M145: 1 | N145: 7.8 | P145: 10 | Q145: 0.58 | R145: 0.12 | T145: 0.7 | U145: 0.14 | V145: 0.068
A146: Site 030 | B146: 64 | C146: 1985-09-10 | D146: 464505 | E146: 920600 | F146: 62.6 | J146: 160 | K146: 7.4 | M146: 1 | N146: 7.9 | P146: 18 | Q146: 0.69 | R146: 0.12 | T146: 0.81 | U146: 0.06 | V146: 0.111
A147: Site 030 | B147: 64 | C147: 1985-10-14 | D147: 464505 | E147: 920600 | F147: 48.2 | J147: 150 | K147: 9.6 | M147: 1.3 | N147: 7.6 | P147: 6 | Q147: 0.76 | R147: 0.08 | T147: 0.84 | U147: 0.07 | V147: 0.058
A148: Site 030 | B148: 64 | C148: 1986-02-18 | D148: 464505 | E148: 920600 | F148: 32 | J148: 180 | K148: 11 | M148: 0.9 | N148: 7.5 | P148: 2 | Q148: 0.57 | R148: 0.14 | T148: 0.71 | U148: 0.19 | V148: 0.063
A149: Site 030 | B149: 64 | C149: 1986-03-19 | D149: 464505 | E149: 920600 | F149: 32 | J149: 180 | K149: 11.7 | M149: 0.6 | N149: 7.6 | P149: 3 | Q149: 0.58 | R149: 0.12 | T149: 0.7 | U149: 0.2 | V149: 0.055
A150: Site 030 | B150: 64 | C150: 1986-04-16 | D150: 464505 | E150: 920600 | F150: 42.8 | J150: 100 | K150: 10.4 | N150: 7.3 | P150: 23 | Q150: 0.68 | R150: 0.07 | T150: 0.75 | U150: 0.09 | V150: 0.069
A151: Site 030 | B151: 64 | C151: 1986-05-12 | D151: 464505 | E151: 920600 | F151: 51.8 | J151: 120 | K151: 10.5 | N151: 7.4 | P151: 25 | Q151: 0.82 | R151: 0.07 | T151: 0.89 | U151: 0.03 | V151: 0.059
A152: Site 030 | B152: 64 | C152: 1986-06-09 | D152: 464505 | E152: 920600 | F152: 66.2 | J152: 130 | K152: 10.2 | N152: 7.7 | P152: 8 | Q152: 0.68 | R152: 0.04 | T152: 0.72 | U152: 0.06 | V152: 0.049
A153: Site 030 | B153: 64 | C153: 1986-07-14 | D153: 464505 | E153: 920600 | F153: 67.1 | J153: 140 | K153: 8.6 | M153: 1.7 | N153: 7.6 | P153: 14 | Q153: 0.75 | R153: 0.08 | T153: 0.83 | U153: 0.05 | V153: 0.073
A154: Site 030 | B154: 64 | C154: 1986-08-20 | D154: 464505 | E154: 920600 | F154: 69.8 | J154: 160 | K154: 7.1 | N154: 7.5 | P154: 16 | Q154: 0.73 | R154: 0.07 | T154: 0.8 | U154: 0.03 | V154: 0.079
A155: Site 030 | B155: 64 | C155: 1986-09-23 | D155: 464505 | E155: 920600 | F155: 50 | J155: 140 | K155: 9.2 | N155: 7.6 | P155: 18 | Q155: 0.92 | R155: 0.08 | T155: 0.9 | U155: 0.03 | V155: 0.062
A156: Site 030 | B156: 64 | C156: 1986-10-20 | D156: 464505 | E156: 920600 | F156: 42.8 | J156: 470 | K156: 10.1 | N156: 7.5 | P156: 11 | Q156: 0.69 | R156: 0.1 | T156: 0.79 | U156: 0.05 | V156: 0.064
A157: Site 030 | B157: 64 | C157: 1987-01-12 | D157: 464505 | E157: 920600 | F157: 32 | J157: 160 | K157: 11.9 | N157: 7.4 | P157: 2 | Q157: 0.53 | R157: 0.09 | T157: 0.62 | U157: 0.14 | V157: 0.057
A158: Site 030 | B158: 64 | C158: 1987-03-09 | D158: 464505 | E158: 920600 | F158: 32 | J158: 180 | K158: 13.2 | N158: 7.6 | P158: 3 | Q158: 0.63 | R158: 0.07 | T158: 0.7 | U158: 0.2 | V158: 0.051
A159: Site 030 | B159: 64 | C159: 1987-04-06 | D159: 464505 | E159: 920600 | F159: 33.8 | J159: 150 | K159: 13 | N159: 7.6 | P159: 7 | Q159: 0.63 | R159: 0.08 | T159: 0.71 | U159: 0.3 | V159: 0.058
A160: Site 030 | B160: 64 | C160: 1987-05-11 | D160: 464505 | E160: 920600 | F160: 57.2 | J160: 180 | K160: 9.8 | N160: 8 | P160: 8 | Q160: 0.64 | R160: 0.07 | T160: 0.71 | U160: 0.04 | V160: 0.061
A161: Site 030 | B161: 64 | C161: 1987-06-08 | D161: 464505 | E161: 920600 | F161: 62.6 | J161: 130 | K161: 8.2 | N161: 7.9 | P161: 14 | Q161: 0.88 | R161: 0.05 | T161: 0.93 | U161: 0.04 | V161: 0.071
A162: Site 030 | B162: 64 | C162: 1987-07-14 | D162: 464505 | E162: 920600 | F162: 68 | J162: 160 | K162: 8.5 | N162: 7.9 | P162: 14 | Q162: 0.59 | R162: 0.04 | T162: 0.63 | U162: 0.08 | V162: 0.081
A163: Site 030 | B163: 64 | C163: 1987-08-10 | D163: 464505 | E163: 920600 | F163: 73.4 | J163: 140 | K163: 7.4 | M163: 2.2 | N163: 7.4 | P163: 21 | Q163: 0.86 | R163: 0.07 | T163: 0.93 | U163: 0.07 | V163: 0.095
A164: Site 030 | B164: 64 | C164: 1987-09-14 | D164: 464505 | E164: 920600 | F164: 66.2 | J164: 200 | K164: 8.5 | M164: 2.6 | N164: 7.5 | P164: 8 | Q164: 0.72 | R164: 0.06 | T164: 0.78 | U164: 0.03 | V164: 0.056
A165: Site 030 | B165: 64 | C165: 1987-10-13 | D165: 464505 | E165: 920600 | F165: 53.6 | J165: 210 | K165: 9.9 | M165: 0.9 | N165: 7.5 | P165: 14 | Q165: 0.63 | R165: 0.07 | T165: 0.7 | U165: 0.06 | V165: 0.07
A166: Site 030 | B166: 64 | C166: 1988-01-11 | D166: 464505 | E166: 920600 | F166: 32 | J166: 220 | K166: 12.4 | M166: 0.7 | N166: 7.4 | P166: 4 | Q166: 0.56 | R166: 0.12 | T166: 0.68 | U166: 0.13 | V166: 0.049
A167: Site 030 | B167: 64 | C167: 1988-03-14 | D167: 464505 | E167: 920600 | F167: 32 | J167: 200 | K167: 10.5 | M167: 0.8 | N167: 7.6 | P167: 2 | Q167: 0.42 | R167: 0.08 | T167: 0.5 | U167: 0.21 | V167: 0.036
A168: Site 030 | B168: 64 | C168: 1988-04-11 | D168: 464505 | E168: 920600 | F168: 38.3 | J168: 110 | K168: 12.4 | M168: 2.6 | N168: 7.6 | P168: 13 | Q168: 0.86 | R168: 0.15 | T168: 1.01 | U168: 0.25 | V168: 0.089
A169: Site 030 | B169: 64 | C169: 1988-05-09 | D169: 464505 | E169: 920600 | F169: 55.4 | J169: 180 | K169: 9.2 | M169: 2.2 | N169: 7.9 | P169: 12 | Q169: 0.82 | R169: 0.11 | T169: 0.93 | U169: 0.06 | V169: 0.062
A170: Site 030 | B170: 64 | C170: 1988-06-13 | D170: 464505 | E170: 920600 | F170: 66.2 | J170: 160 | K170: 9.8 | M170: 2.8 | N170: 8.4 | P170: 8 | Q170: 0.81 | R170: 0.04 | T170: 0.85 | U170: 0.01 | V170: 0.055
A171: Site 030 | B171: 64 | C171: 1988-07-11 | D171: 464505 | E171: 920600 | F171: 68 | J171: 160 | K171: 8.5 | M171: 1.6 | N171: 8.1 | P171: 9 | Q171: 0.47 | R171: 0.03 | T171: 0.5 | U171: 0.1 | V171: 0.068
A172: Site 030 | B172: 64 | C172: 1988-08-16 | D172: 464505 | E172: 920600 | F172: 73.4 | J172: 220 | K172: 7.8 | M172: 2.5 | N172: 8.2 | P172: 12 | Q172: 0.65 | R172: 0.05 | T172: 0.7 | U172: 0.03 | V172: 0.067
A173: Site 030 | B173: 64 | C173: 1988-09-12 | D173: 464505 | E173: 920600 | F173: 62.6 | J173: 160 | K173: 8.1 | M173: 1.1 | N173: 7.8 | P173: 8 | Q173: 1 | R173: 0.1 | T173: 1.1 | U173: 0.13 | V173: 0.082
A174: Site 030 | B174: 64 | C174: 1988-10-10 | D174: 464505 | E174: 920600 | F174: 51.8 | J174: 210 | K174: 8.9 | M174: 1.6 | N174: 7.7 | P174: 11 | Q174: 0.96 | R174: 0.11 | T174: 1.07 | U174: 0.12 | V174: 0.089
A175: Site 030 | B175: 64 | C175: 1989-03-13 | D175: 464505 | E175: 920600 | F175: 32 | J175: 220 | K175: 11 | M175: 1 | N175: 7.5 | P175: 3 | Q175: 0.55 | R175: 0.2 | T175: 0.75 | U175: 0.2 | V175: 0.024
A176: Site 030 | B176: 64 | C176: 1989-04-10 | D176: 464505 | E176: 920600 | F176: 35.6 | J176: 130 | K176: 13.4 | M176: 2.1 | N176: 7.4 | P176: 15 | Q176: 0.89 | R176: 0.16 | T176: 1.05 | U176: 0.35 | V176: 0.089
A177: Site 030 | B177: 64 | C177: 1989-05-08 | D177: 464505 | E177: 920600 | F177: 48.2 | J177: 110 | K177: 10.5 | M177: 1.3 | N177: 7.5 | P177: 8 | Q177: 0.74 | R177: 0.04 | T177: 0.78 | U177: 0.04 | V177: 0.044
A178: Site 030 | B178: 64 | C178: 1989-06-12 | D178: 464505 | E178: 920600 | F178: 57.2 | J178: 150 | K178: 9 | M178: 2 | N178: 7.8 | P178: 10 | Q178: 0.77 | R178: 0.05 | T178: 0.82 | U178: 0.04 | V178: 0.064
A179: Site 030 | B179: 64 | C179: 1989-07-17 | D179: 464505 | E179: 920600 | F179: 78.8 | J179: 150 | K179: 8.2 | M179: 2.2 | N179: 8 | P179: 2 | Q179: 0.68 | R179: 0.06 | T179: 0.74 | U179: 0.07 | V179: 0.233
A180: Site 030 | B180: 64 | C180: 1989-08-17 | D180: 464505 | E180: 920600 | F180: 68 | J180: 150 | K180: 8.9 | M180: 1.4 | N180: 8.3 | P180: 4 | Q180: 0.46 | R180: 0.03 | T180: 0.49 | U180: 0.07 | V180: 0.045
A181: Site 030 | B181: 64 | C181: 1989-09-11 | D181: 464505 | E181: 920600 | F181: 62.6 | J181: 210 | K181: 8.9 | M181: 1.2 | N181: 8.1 | P181: 6 | Q181: 0.57 | R181: 0.03 | T181: 0.6 | U181: 0.05 | V181: 0.066
A182: Site 030 | B182: 64 | C182: 1989-10-09 | D182: 464505 | E182: 920600 | F182: 50 | J182: 220 | K182: 9.9 | M182: 1.6 | N182: 8 | P182: 6 | Q182: 0.51 | R182: 0.05 | T182: 0.56 | U182: 0.08 | V182: 0.062
A183: Site 030 | B183: 64 | C183: 1990-01-02 | D183: 464505 | E183: 920600 | F183: 32 | J183: 240 | K183: 12.7 | M183: 1 | N183: 7.7 | P183: 4 | Q183: 0.7 | R183: 0.1 | T183: 0.8 | U183: 0.12 | V183: 0.048
A184: Site 030 | B184: 64 | C184: 1990-03-26 | D184: 464505 | E184: 920600 | F184: 32 | J184: 150 | K184: 11.2 | M184: 2.6 | N184: 7.6 | P184: 4 | Q184: 0.88 | R184: 0.14 | T184: 1.02 | U184: 0.34 | V184: 0.11
A185: Site 030 | B185: 64 | C185: 1990-04-17 | D185: 464505 | E185: 920600 | F185: 33.8 | J185: 160 | K185: 13.2 | M185: 1 | N185: 7.7 | P185: 10 | Q185: 0.7 | R185: 0.1 | T185: 0.8 | U185: 0.14 | V185: 0.061
A186: Site 030 | B186: 64 | C186: 1990-05-01 | D186: 464505 | E186: 920600 | F186: 41 | J186: 130 | K186: 10.8 | M186: 2.2 | N186: 7.7 | P186: 34 | Q186: 1.39 | R186: 0.12 | T186: 1.51 | U186: 0.14 | V186: 0.094
A187: Site 030 | B187: 64 | C187: 1990-06-04 | D187: 464505 | E187: 920600 | F187: 62.6 | J187: 180 | K187: 8.5 | M187: 2 | N187: 7.9 | P187: 8 | Q187: 0.46 | R187: 0.08 | T187: 0.54 | U187: 0.09 | V187: 0.053
A188: Site 030 | B188: 64 | C188: 1990-07-16 | D188: 464505 | E188: 920600 | F188: 77 | J188: 160 | K188: 8.6 | M188: 2.5 | N188: 8.2 | P188: 10 | Q188: 0.94 | R188: 0.06 | T188: 1 | U188: 0.04 | V188: 0.065
A189: Site 030 | B189: 64 | C189: 1990-08-16 | D189: 464505 | E189: 920600 | F189: 69.8 | J189: 160 | K189: 8.2 | M189: 1.7 | N189: 8.1 | P189: 8 | Q189: 0.61 | R189: 0.04 | T189: 0.65 | U189: 0.01 | V189: 0.037
A190: Site 030 | B190: 64 | C190: 1990-09-25 | D190: 464505 | E190: 920600 | F190: 59 | J190: 170 | K190: 7.6 | M190: 1.8 | N190: 7.7 | P190: 12 | Q190: 1.2 | R190: 0.07 | T190: 1.27 | U190: 0.13 | V190: 0.07
A191: Site 030 | B191: 64 | C191: 1990-10-08 | D191: 464505 | E191: 920600 | F191: 53.6 | J191: 160 | K191: 8.4 | M191: 1.6 | N191: 7.7 | P191: 6 | Q191: 1.3 | R191: 0.06 | T191: 1.36 | U191: 0.06 | V191: 0.063
A192: Site 030 | B192: 64 | C192: 1991-01-29 | D192: 464505 | E192: 920600 | F192: 32 | J192: 200 | K192: 11 | M192: 0.8 | N192: 7.6 | P192: 1 | Q192: 0.1 | R192: 0.05 | T192: 0.12 | U192: 0.16 | V192: 0.097
A193: Site 030 | B193: 64 | C193: 1991-03-11 | D193: 464505 | E193: 920600 | F193: 32 | J193: 180 | K193: 12.7 | M193: 0.9 | N193: 7.5 | P193: 2 | Q193: 0.55 | R193: 0.02 | T193: 0.55 | U193: 0.31 | V193: 0.065
A194: Site 030 | B194: 64 | C194: 1991-04-22 | D194: 464505 | E194: 920600 | F194: 41.9 | J194: 120 | K194: 11.1 | M194: 2 | N194: 7.6 | P194: 10 | Q194: 0.76 | R194: 0.04 | T194: 0.8 | U194: 0.18 | V194: 0.044
A195: Site 030 | B195: 64 | C195: 1991-05-28 | D195: 464505 | E195: 920600 | F195: 58.1 | J195: 140 | K195: 8.7 | M195: 1.3 | N195: 7.6 | P195: 5 | Q195: 0.76 | R195: 0.03 | T195: 0.79 | U195: 0.13 | V195: 0.046
A196: Site 030 | B196: 64 | C196: 1991-06-24 | D196: 464505 | E196: 920600 | F196: 66.2 | J196: 160 | K196: 8.3 | M196: 1.6 | N196: 7.8 | P196: 10 | Q196: 1.17 | R196: 0.05 | T196: 1.22 | U196: 0.14 | V196: 0.071
A197: Site 030 | B197: 64 | C197: 1991-07-29 | D197: 464505 | E197: 920600 | F197: 68.9 | J197: 160 | K197: 8 | M197: 1.6 | N197: 7.9 | P197: 7 | Q197: 1.01 | R197: 0.09 | T197: 1.1 | U197: 0.11 | V197: 0.098
A198: Site 030 | B198: 64 | C198: 1991-08-26 | D198: 464505 | E198: 920600 | F198: 74.3 | J198: 190 | K198: 6.5 | M198: 1.1 | N198: 7.8 | P198: 6 | Q198: 0.43 | R198: 0.07 | T198: 0.5 | U198: 0.13 | V198: 0.015
A199: Site 030 | B199: 64 | C199: 1991-09-17 | D199: 464505 | E199: 920600 | F199: 66.2 | J199: 160 | K199: 6.9 | M199: 1.8 | N199: 7.7 | P199: 11 | Q199: 0.56 | R199: 0.03 | T199: 0.59 | U199: 0.1 | V199: 0.109
A200: Site 030 | B200: 64 | C200: 1991-10-22 | D200: 464505 | E200: 920600 | F200: 42.8 | J200: 160 | K200: 11.1 | M200: 1.1 | N200: 8 | P200: 10 | Q200: 0.58 | R200: 0.02 | T200: 0.6 | V200: 0.082
... 279 more rows

Sheet St. Louis Burlington Brid H2O Q
A1: STATION ID | B1: Record_No | C1: DATE | D1: LATITUDE | E1: LONGITUDE | F1: Temperature, water | H1: Alkalinity | I1: Ammonia, unionized | K1: BOD | L1: Cadmium | M1: Chloride | N1: Chloride | O1: COD | P1: Coliform, Fecal | R1: Coliform, Fecal | S1: Color | T1: Conductivity | U1: Copper | V1: Dissolved Oxygen | W1: Dissolved Oxygen saturation | X1: Hardness, Ca,Mg | Y1: Nickel | Z1: Nitrogen, ammonia | AA1: pH | AB1: Phosphorus as P | AC1: Residue | AF1: Streptococci, Fecal | AG1: Sulfate | AH1: Turbidity | AI1: Zinc | AJ1: Nitrogen, Kjeldahl | AK1: Nitrogen, Nitrate
F2: CENT | G2: FAHN | H2: MG/L | I2: MG/L | J2: MG/L | K2: MG/L | L2: UG/L | M2: MG/L | N2: MG/L | O2: MG/L | P2: /100ML | R2: FEC STRP | S2: UNITS | T2: MICROMHO | U2: UG/L | V2: MG/L | W2: PERCENT | X2: MG/L | Y2: UG/L | Z2: MG/L | AA2: SU | AB2: MG/L P | AC2: C MG/L | AD2: MG/L | AE2: MG/L | AF2: /100ML | AG2: MG/L | AH2: HACH FTU | AI2: UG/L | AJ2: MG/L | AK2: MG/L
A3: ST. LOUIS R-BURLINGTON N^R.R. BR | B3: 67 | C3: 1973-04-04 | F3: 2.77778 | G3: 37 | H3: 43 | K3: 3.7 | M3: 7 | O3: 60 | P3: 10 | Q3: 140 | R3: 1 | S3: 100 | T3: 145 | V3: 9.2 | W3: 68.1534 | X3: 48.5 | AA3: 7.35 | AB3: 0.11 | AC3: 79.5 | AD3: 91 | AF3: 10 | AG3: 18 | AH3: 8
A4: ST. LOUIS R-BURLINGTON N^R.R. BR | B4: 67 | C4: 1973-04-11 | F4: 2.77778 | G4: 37 | H4: 44 | K4: 7.7 | M4: 9.75 | O4: 61 | P4: 30 | Q4: 50 | R4: 8.33333 | S4: 120 | T4: 140 | V4: 10.1 | W4: 74.8229 | X4: 40 | AA4: 7.5 | AB4: 0.1 | AC4: 106.5 | AD4: 116 | AF4: 6 | AG4: 15 | AH4: 7
A5: ST. LOUIS R-BURLINGTON N^R.R. BR | B5: 67 | C5: 1973-04-18 | F5: 6.11111 | G5: 43 | H5: 45 | K5: 4 | M5: 11.5 | O5: 73 | P5: 10 | Q5: 160 | R5: 0.5 | S5: 120 | T5: 150 | V5: 8.5 | W5: 68.0088 | X5: 41 | AA5: 7.3 | AB5: 0.09 | AC5: 117 | AD5: 129 | AF5: 20 | AG5: 18 | AH5: 7.8
A6: ST. LOUIS R-BURLINGTON N^R.R. BR | B6: 67 | C6: 1973-04-25 | F6: 5.55556 | G6: 42 | H6: 57 | K6: 6.3 | M6: 6 | O6: 60 | P6: 480 | Q6: 6 | R6: 0.75 | S6: 120 | T6: 145 | V6: 6.9 | W6: 55.2037 | X6: 50 | AA6: 7.3 | AB6: 0.08 | AC6: 143 | AD6: 156 | AF6: 8 | AG6: 12.5 | AH6: 10
A7: ST. LOUIS R-BURLINGTON N^R.R. BR | B7: 67 | C7: 1973-05-02 | F7: 6.66667 | G7: 44 | H7: 41 | M7: 7 | O7: 68 | Q7: 390 | S7: 200 | T7: 120 | V7: 7 | W7: 57.3813 | X7: 24 | AA7: 7.7 | AB7: 0.25 | AC7: 133 | AD7: 145 | AG7: 6.5 | AH7: 7.2
A8: ST. LOUIS R-BURLINGTON N^R.R. BR | B8: 67 | C8: 1973-05-09 | F8: 10 | G8: 50 | H8: 41 | K8: 3.8 | M8: 7 | O8: 78 | P8: 15 | Q8: 24 | R8: 2.5 | S8: 150 | T8: 140 | V8: 7.2 | W8: 63.7215 | X8: 33 | AA8: 7.5 | AB8: 0.05 | AC8: 130 | AD8: 143 | AF8: 6 | AG8: 19 | AH8: 3.8
A9: ST. LOUIS R-BURLINGTON N^R.R. BR | B9: 67 | C9: 1973-05-16 | F9: 11.1111 | G9: 52 | H9: 36 | K9: 3.6 | M9: 6 | O9: 72 | P9: 2000 | Q9: 440 | R9: 0.521739 | S9: 180 | V9: 6.8 | W9: 61.2649 | X9: 32 | AA9: 7.4 | AB9: 0.05 | AC9: 102 | AD9: 116 | AF9: 46 | AG9: 11.5 | AH9: 8.4
A10: ST. LOUIS R-BURLINGTON N^R.R. BR | B10: 67 | C10: 1973-05-23 | F10: 13.3333 | G10: 56 | H10: 38 | K10: 3 | M10: 6 | O10: 80 | P10: 3100 | Q10: 26400 | R10: 3.82609 | S10: 200 | V10: 6.3 | W10: 59.4376 | X10: 25 | AA10: 7.25 | AB10: 0.11 | AC10: 70 | AD10: 93 | AF10: 115 | AG10: 9.5 | AH10: 13 | AK10: 0.1
A11: ST. LOUIS R-BURLINGTON N^R.R. BR | B11: 67 | C11: 1973-05-30 | F11: 15 | G11: 59 | H11: 43.5 | K11: 2 | M11: 6.5 | O11: 60 | P11: 100 | Q11: 16000 | R11: 1.66667 | S11: 160 | V11: 5.3 | W11: 51.9641 | X11: 32 | AA11: 7.75 | AB11: 0.075 | AC11: 124 | AD11: 138 | AF11: 60 | AG11: 11 | AH11: 9.6
A12: ST. LOUIS R-BURLINGTON N^R.R. BR | B12: 67 | C12: 1973-06-06 | F12: 16.9444 | G12: 62.5 | H12: 41 | K12: 1.4 | M12: 6 | O12: 68 | P12: 100 | Q12: 80 | R12: 0.1 | S12: 180 | V12: 5.1 | W12: 52.5806 | X12: 54 | AA12: 7.6 | AB12: 0.1 | AC12: 119 | AD12: 149 | AF12: 1000 | AG12: 11.5 | AH12: 6.4 | AJ12: 1
A13: ST. LOUIS R-BURLINGTON N^R.R. BR | B13: 67 | C13: 1973-06-13 | F13: 20 | G13: 68 | H13: 45 | K13: 1.8 | M13: 8 | O13: 52 | P13: 700 | Q13: 3500 | R13: 8 | S13: 170 | T13: 135 | V13: 4.9 | W13: 53.265 | X13: 53 | AA13: 7.4 | AB13: 0.065 | AC13: 101 | AD13: 114 | AF13: 10 | AG13: 10.5 | AH13: 4.3 | AJ13: 1.2
A14: ST. LOUIS R-BURLINGTON N^R.R. BR | B14: 67 | C14: 1973-06-20 | F14: 15.5556 | G14: 60 | H14: 47 | K14: 0.1 | M14: 10.75 | O14: 48 | P14: 0 | Q14: 1700 | R14: 0 | S14: 140 | V14: 6.2 | W14: 62.0066 | X14: 49 | AA14: 7.6 | AB14: 0.085 | AC14: 127 | AD14: 138 | AF14: 10 | AG14: 11 | AH14: 7.2 | AJ14: 1.3
A15: ST. LOUIS R-BURLINGTON N^R.R. BR | B15: 67 | C15: 1973-06-26 | F15: 16.9444 | G15: 62.5 | H15: 48 | K15: 0.8 | M15: 10 | O15: 28 | P15: 10 | Q15: 200 | R15: 1 | S15: 120 | T15: 135 | V15: 6 | W15: 61.862 | X15: 50 | AA15: 7.9 | AB15: 0.11 | AC15: 115.5 | AD15: 122 | AF15: 10 | AG15: 12.5 | AH15: 7.2 | AJ15: 1.1
A16: ST. LOUIS R-BURLINGTON N^R.R. BR | B16: 67 | C16: 1973-07-02 | F16: 20 | G16: 68 | H16: 54 | K16: 1.2 | M16: 9.75 | O16: 64 | P16: 20 | Q16: 6200 | S16: 140 | T16: 150 | V16: 4.7 | W16: 51.0918 | X16: 53 | AA16: 7.6 | AB16: 0.1 | AC16: 137 | AD16: 143 | AF16: 0 | AG16: 13 | AH16: 3.8 | AJ16: 0.75
A17: ST. LOUIS R-BURLINGTON N^R.R. BR | B17: 67 | C17: 1973-07-12 | F17: 20.5555 | G17: 69 | H17: 49 | K17: 1 | M17: 8.5 | O17: 44 | P17: 110 | Q17: 1300 | R17: 11 | S17: 100 | T17: 140 | V17: 5.5 | W17: 61.1163 | X17: 51 | AA17: 8.1 | AB17: 0.09 | AC17: 112 | AD17: 122 | AF17: 10 | AG17: 12 | AH17: 4.7 | AJ17: 0.45
A18: ST. LOUIS R-BURLINGTON N^R.R. BR | B18: 67 | C18: 1973-07-17 | F18: 21.3889 | G18: 70.5 | H18: 49 | K18: 3.2 | M18: 9 | O18: 12 | P18: 10 | Q18: 2000 | R18: 1 | S18: 130 | T18: 145 | V18: 5.8 | W18: 64.4502 | X18: 53 | AA18: 8.15 | AB18: 0.035 | AC18: 124 | AD18: 139 | AF18: 10 | AG18: 13 | AH18: 5 | AJ18: 0.75
A19: ST. LOUIS R-BURLINGTON N^R.R. BR | B19: 67 | C19: 1973-07-23 | F19: 19.4444 | G19: 67 | H19: 49 | K19: 2 | M19: 11.5 | O19: 36 | P19: 10 | Q19: 90 | R19: 0.0625 | S19: 120 | T19: 150 | V19: 6.5 | W19: 69.1566 | X19: 54 | AA19: 7.75 | AB19: 0.105 | AC19: 116 | AD19: 122 | AF19: 160 | AG19: 12 | AH19: 4.7 | AJ19: 0.9
A20: ST. LOUIS R-BURLINGTON N^R.R. BR | B20: 67 | C20: 1973-07-30 | F20: 20 | G20: 68 | H20: 52 | K20: 2.8 | M20: 11.5 | O20: 44 | P20: 4500 | Q20: 76400 | R20: 2.25 | S20: 120 | T20: 160 | V20: 4.6 | W20: 50.0056 | X20: 68 | AA20: 7.6 | AB20: 0.145 | AC20: 137 | AD20: 146 | AF20: 40 | AG20: 13 | AH20: 5.3 | AJ20: 1.2
A21: ST. LOUIS R-BURLINGTON N^R.R. BR | B21: 67 | C21: 1973-08-06 | F21: 22.5 | G21: 72.5 | H21: 61 | K21: 1.4 | M21: 17 | P21: 630 | Q21: 8000 | R21: 1.26 | S21: 120 | T21: 180 | V21: 3.6 | W21: 41.3857 | X21: 75 | AA21: 7.35 | AB21: 0.25 | AC21: 160 | AD21: 166 | AF21: 500 | AG21: 15 | AH21: 5.5 | AJ21: 2.1
A22: ST. LOUIS R-BURLINGTON N^R.R. BR | B22: 67 | C22: 1973-08-13 | H22: 62 | K22: 2.2 | M22: 13 | O22: 32 | P22: 200 | Q22: 50 | R22: 0.714286 | S22: 140 | T22: 160 | V22: 4.6 | X22: 72 | AA22: 7.5 | AB22: 0.1 | AC22: 132.5 | AD22: 142 | AF22: 280 | AG22: 14 | AH22: 5.4 | AJ22: 0.95
A23: ST. LOUIS R-BURLINGTON N^R.R. BR | B23: 67 | C23: 1973-08-20 | F23: 23.0556 | G23: 73.5 | H23: 55 | K23: 0 | M23: 10 | O23: 56 | P23: 3000 | Q23: 70 | R23: 0.714286 | S23: 150 | T23: 160 | V23: 4.6 | W23: 52.8784 | X23: 74 | AA23: 7.4 | AB23: 0.12 | AC23: 141 | AD23: 152 | AF23: 70 | AG23: 16 | AH23: 6.5 | AJ23: 1.2
A24: ST. LOUIS R-BURLINGTON N^R.R. BR | B24: 67 | C24: 1973-08-27 | F24: 19.7222 | G24: 67.5 | H24: 50 | I24: 0.0032829 | J24: 0.00399165 | K24: 0.6 | M24: 8.25 | O24: 48 | P24: 3200 | Q24: 1100 | R24: 0.411765 | S24: 180 | T24: 150 | V24: 4.6 | W24: 50.004 | X24: 69 | Z24: 0.34 | AA24: 7.4 | AB24: 0.095 | AC24: 152 | AD24: 159 | AF24: 170 | AG24: 12 | AH24: 6.3
A25: ST. LOUIS R-BURLINGTON N^R.R. BR | B25: 67 | C25: 1973-09-04 | F25: 21.1111 | G25: 70 | P25: 110 | Q25: 3900 | R25: 0.2 | S25: 210 | V25: 4.4 | W25: 48.8889 | AA25: 7.45 | AB25: 0.11 | AC25: 160.5 | AD25: 181 | AF25: 550 | AH25: 10 | AJ25: 1.45
A26: ST. LOUIS R-BURLINGTON N^R.R. BR | B26: 67 | C26: 1973-09-10 | F26: 19.4444 | G26: 67 | P26: 10 | Q26: 900 | R26: 0.25 | S26: 135 | V26: 6.1 | W26: 64.8936 | AA26: 7.55 | AB26: 0.09 | AC26: 140.8 | AD26: 148 | AF26: 40 | AH26: 6.3 | AJ26: 1.2
A27: ST. LOUIS R-BURLINGTON N^R.R. BR | B27: 67 | C27: 1973-09-17 | F27: 16.6667 | G27: 62 | H27: 55 | K27: 3.4 | M27: 9 | O27: 68 | P27: 30 | Q27: 600 | R27: 3 | S27: 200 | V27: 4.1 | W27: 42.2719 | X27: 75 | AA27: 7.55 | AB27: 0.115 | AC27: 150.8 | AD27: 160 | AF27: 10 | AG27: 14 | AH27: 6.5 | AJ27: 1.3
A28: ST. LOUIS R-BURLINGTON N^R.R. BR | B28: 67 | C28: 1973-10-01 | F28: 15 | G28: 59 | I28: 0.00947027 | J28: 0.0115148 | K28: 0.1 | P28: 10 | Q28: 1100 | R28: 0.5 | V28: 5 | W28: 49.0196 | Z28: 1.24 | AA28: 7.45 | AB28: 0.102 | AC28: 180.4 | AD28: 184 | AF28: 20 | AH28: 3.7 | AJ28: 1.43
A29: ST. LOUIS R-BURLINGTON N^R.R. BR | B29: 67 | C29: 1973-10-08 | F29: 13.8889 | G29: 57 | H29: 59 | K29: 0.4 | M29: 12.25 | O29: 60 | P29: 10 | Q29: 5700 | R29: 0.5 | S29: 150 | V29: 5.5 | W29: 52.8908 | X29: 80 | AA29: 7.4 | AB29: 0.055 | AC29: 199 | AD29: 205 | AF29: 20 | AG29: 17 | AH29: 4.2 | AJ29: 1.2
A30: ST. LOUIS R-BURLINGTON N^R.R. BR | B30: 67 | C30: 1973-10-15 | F30: 11.9444 | G30: 53.5 | K30: 4.8 | P30: 20 | Q30: 6900 | R30: 0.0952381 | S30: 200 | V30: 8.3 | W30: 76.8518 | AA30: 7.1 | AB30: 0.045 | AC30: 154 | AD30: 173 | AF30: 210 | AH30: 14.8 | AJ30: 1
A31: ST. LOUIS R-BURLINGTON N^R.R. BR | B31: 67 | C31: 1973-10-22 | F31: 11.3889 | G31: 52.5 | K31: 3.8 | P31: 20 | Q31: 70 | V31: 8.9 | W31: 80.1802 | AA31: 7.3 | AB31: 0.035 | AC31: 130.5 | AD31: 143 | AH31: 6.2 | AJ31: 0.9
A32: ST. LOUIS R-BURLINGTON N^R.R. BR | B32: 67 | C32: 1973-10-29 | F32: 8.33333 | G32: 47 | H32: 46 | K32: 4.6 | M32: 7 | O32: 76 | P32: 1800 | Q32: 2400 | R32: 1.16667 | S32: 210 | V32: 7.7 | W32: 64.7108 | AA32: 7.6 | AB32: 0.045 | AC32: 164 | AD32: 170 | AF32: 60 | AG32: 12 | AH32: 4.5 | AJ32: 1.3
A33: ST. LOUIS R-BURLINGTON N^R.R. BR | B33: 67 | C33: 1973-11-05 | F33: 3.88889 | G33: 39 | K33: 4.6 | P33: 100 | Q33: 610 | R33: 2.5 | S33: 180 | V33: 7.9 | W33: 60.3053 | AA33: 7.2 | AB33: 0.004 | AC33: 217.2 | AD33: 224 | AF33: 40 | AH33: 6.5 | AJ33: 1.1
A34: ST. LOUIS R-BURLINGTON N^R.R. BR | B34: 67 | C34: 1974-01-29 | H34: 57 | K34: 10 | M34: 17 | P34: 1400 | Q34: 900 | S34: 120 | V34: 1.7 | X34: 56 | AH34: 11 | AJ34: 1.87 | AK34: 0.01
A35: ST. LOUIS R-BURLINGTON N^R.R. BR | B35: 67 | C35: 1974-01-30 | H35: 57 | K35: 7 | M35: 14 | P35: 80 | Q35: 1700 | R35: 1 | S35: 140 | V35: 1.8 | X35: 49 | Z35: 0.17 | AA35: 6.8 | AB35: 0.166 | AC35: 163 | AD35: 169 | AE35: 6
A36: ST. LOUIS R-BURLINGTON N^R.R. BR | B36: 67 | C36: 1974-02-05 | K36: 9 | M36: 13 | P36: 160 | Q36: 1200 | R36: 0.615385 | S36: 110 | V36: 1.6 | X36: 51 | Z36: 0.47 | AA36: 6.9 | AB36: 0.13 | AC36: 155 | AD36: 158 | AE36: 3 | AF36: 80 | AH36: 5.2 | AJ36: 1.32 | AK36: 0.01
A37: ST. LOUIS R-BURLINGTON N^R.R. BR | B37: 67 | C37: 1974-02-06 | H37: 55 | K37: 6 | M37: 14 | P37: 120 | Q37: 900 | R37: 0.75 | S37: 110 | V37: 1.6 | X37: 56 | AA37: 6.7 | AB37: 0.067 | AC37: 159 | AD37: 161 | AE37: 2 | AF37: 260 | AG37: 18 | AH37: 6.8 | AJ37: 0.66 | AK37: 0.09
A38: ST. LOUIS R-BURLINGTON N^R.R. BR | B38: 67 | C38: 1974-03-25 | H38: 60 | K38: 7 | M38: 15 | P38: 40 | Q38: 1380 | R38: 0.5 | S38: 110 | V38: 2.2 | X38: 56 | Z38: 0.08 | AA38: 6.8 | AB38: 0.073 | AC38: 156 | AD38: 160 | AE38: 4 | AF38: 160 | AG38: 17 | AH38: 6 | AJ38: 1.1 | AK38: 0.24
A39: ST. LOUIS R-BURLINGTON N^R.R. BR | B39: 67 | C39: 1974-03-27 | H39: 65 | K39: 8 | M39: 18 | O39: 52 | P39: 100 | Q39: 960 | R39: 0.243902 | S39: 120 | V39: 1.5 | X39: 96 | Z39: 0.36 | AA39: 6.8 | AB39: 0.087 | AC39: 161 | AD39: 167 | AE39: 6 | AF39: 80 | AG39: 16 | AH39: 5.8 | AJ39: 0.99 | AK39: 0.03
A40: ST. LOUIS R-BURLINGTON N^R.R. BR | B40: 67 | C40: 1974-04-02 | H40: 65 | K40: 7 | M40: 20 | O40: 32 | P40: 80 | Q40: 340 | R40: 0.615385 | S40: 110 | V40: 1.2 | X40: 67 | Z40: 0.53 | AA40: 6.8 | AB40: 0.15 | AC40: 165 | AD40: 1 | AE40: 166 | AF40: 410 | AG40: 18 | AH40: 5.8 | AJ40: 1.21 | AK40: 0.03
A41: ST. LOUIS R-BURLINGTON N^R.R. BR | B41: 67 | C41: 1974-04-03 | H41: 68 | K41: 8 | M41: 22 | O41: 56 | P41: 20 | Q41: 500 | R41: 0.222222 | S41: 110 | V41: 1.3 | X41: 58 | Z41: 0.51 | AA41: 7 | AB41: 0.11 | AC41: 153 | AD41: 159 | AE41: 6 | AF41: 130 | AG41: 15 | AH41: 4.7 | AJ41: 1.43 | AK41: 0.03
A42: ST. LOUIS R-BURLINGTON N^R.R. BR | B42: 67 | C42: 1974-06-04 | H42: 50 | K42: 2 | M42: 8 | O42: 72 | P42: 10 | Q42: 240 | S42: 190 | V42: 7.1 | X42: 71 | Z42: 0.45 | AA42: 6.8 | AB42: 0.14 | AC42: 144 | AD42: 148 | AE42: 4 | AF42: 90 | AG42: 14 | AH42: 5.4 | AJ42: 1.21 | AK42: 0.02
A43: ST. LOUIS R-BURLINGTON N^R.R. BR | B43: 67 | C43: 1974-06-11 | H43: 42 | K43: 2 | M43: 8 | O43: 72 | P43: 11900 | Q43: 4100 | S43: 210 | V43: 6.8 | X43: 45 | Z43: 0.29 | AA43: 7.8 | AB43: 0.087 | AC43: 109 | AD43: 10 | AE43: 119 | AG43: 13 | AH43: 5.2 | AJ43: 1.4 | AK43: 0.01
A44: ST. LOUIS R-BURLINGTON N^R.R. BR | B44: 67 | C44: 1974-06-12 | H44: 44 | K44: 3 | M44: 7 | O44: 60 | P44: 120 | Q44: 7900 | S44: 180 | V44: 7.1 | X44: 41 | Z44: 0.21 | AA44: 7.5 | AB44: 0.08 | AC44: 116 | AD44: 150 | AE44: 34 | AG44: 14 | AJ44: 0.9 | AK44: 0.04
A45: ST. LOUIS R-BURLINGTON N^R.R. BR | B45: 67 | C45: 1974-09-09 | H45: 43 | K45: 1 | M45: 6 | O45: 36 | P45: 280 | Q45: 300 | S45: 90 | X45: 45 | Z45: 0.19 | AA45: 7.5 | AB45: 0.09 | AC45: 139 | AD45: 12 | AE45: 151 | AG45: 15 | AH45: 27 | AJ45: 1.2 | AK45: 0.02
A46: ST. LOUIS R-BURLINGTON N^R.R. BR | B46: 67 | C46: 1975-02-04 | H46: 71 | K46: 4.4 | M46: 14.5 | O46: 56 | P46: 10 | Q46: 100 | S46: 110 | V46: 1.3 | X46: 49 | Z46: 0.17 | AA46: 7.7 | AB46: 0.06 | AC46: 84 | AD46: 9 | AE46: 93 | AG46: 9 | AH46: 7.5 | AJ46: 0.65 | AK46: 0.141
A47: ST. LOUIS R-BURLINGTON N^R.R. BR | B47: 67 | C47: 1975-02-05 | O47: 56 | P47: 10 | Q47: 20 | X47: 97 | Z47: 0.33 | AA47: 7.1 | AB47: 0.043 | AC47: 169 | AD47: 171 | AE47: 2 | AG47: 14 | AH47: 3.8 | AJ47: 1.21
A48: ST. LOUIS R-BURLINGTON N^R.R. BR | B48: 67 | C48: 1975-03-04 | H48: 68 | K48: 4.8 | M48: 11 | O48: 52 | P48: 100 | Q48: 200 | R48: 0.181818 | S48: 90 | V48: 5.3 | Z48: 0.29 | AJ48: 0.99 | AK48: 0.04
A49: ST. LOUIS R-BURLINGTON N^R.R. BR | B49: 67 | C49: 1975-03-05 | P49: 10 | Q49: 1400 | R49: 0.125 | X49: 81 | Z49: 0.47 | AA49: 7.2 | AB49: 0.127 | AC49: 165 | AD49: 169 | AE49: 4 | AF49: 110 | AG49: 9 | AH49: 3.4 | AJ49: 1.87 | AK49: 0.11
A50: ST. LOUIS R-BURLINGTON N^R.R. BR | B50: 67 | C50: 1975-05-05 | H50: 27 | I50: 0.000259642 | J50: 0.000315697 | K50: 3 | M50: 6.5 | O50: 60 | P50: 10 | Q50: 700 | R50: 0.166667 | S50: 140 | V50: 9.5 | W50: 79.8376 | X50: 40 | Z50: 0.6 | AF50: 80 | AJ50: 1.32 | AK50: 0.15
A51: ST. LOUIS R-BURLINGTON N^R.R. BR | B51: 67 | C51: 1975-05-05 | F51: 8.5 | Z51: 0.05 | AA51: 7.5 | AB51: 0.16 | AC51: 129 | AD51: 145 | AE51: 16 | AF51: 60 | AG51: 13 | AH51: 10 | AJ51: 1.21 | AK51: 0.15
A52: ST. LOUIS R-BURLINGTON N^R.R. BR | B52: 67 | C52: 1975-05-06 | F52: 10 | P52: 10 | Q52: 100 | R52: 0.0166667 | V52: 8.7 | W52: 76.9911 | Z52: 0.06 | AF52: 600 | AJ52: 0.77 | AK52: 0.09
A53: ST. LOUIS R-BURLINGTON N^R.R. BR | B53: 67 | C53: 1975-06-04 | F53: 14.5 | H53: 41 | I53: 0.00260914 | J53: 0.00317243 | K53: 5 | M53: 8 | O53: 68 | P53: 10 | Q53: 7400 | R53: 0.2 | S53: 140 | V53: 5.8 | W53: 55.7735 | X53: 55 | Z53: 0.5 | AA53: 7.3 | AB53: 0.0969999 | AC53: 127 | AD53: 11 | AE53: 138 | AF53: 50 | AG53: 11 | AH53: 6.9 | AJ53: 1.54 | AK53: 0.07
A54: ST. LOUIS R-BURLINGTON N^R.R. BR | B54: 67 | C54: 1975-07-01 | F54: 22 | H54: 41 | I54: 0.00113746 | J54: 0.00138303 | K54: 3.4 | M54: 7 | O54: 72 | P54: 10 | Q54: 30 | R54: 0.25 | S54: 220 | V54: 4.9 | W54: 55.6853 | X54: 52 | Z54: 0.1 | AA54: 7.4 | AB54: 0.06 | AC54: 97 | AD54: 105 | AE54: 8 | AF54: 40 | AG54: 14 | AH54: 6.9 | AJ54: 1.1 | AK54: 0.15
A55: ST. LOUIS R-BURLINGTON N^R.R. BR | B55: 67 | C55: 1975-07-02 | F55: 18.5 | P55: 10 | Q55: 30 | R55: 0.0243902 | V55: 2.9 | W55: 30.5263 | Z55: 0.09 | AF55: 410 | AG55: 17 | AJ55: 1.32 | AK55: 0.12
A56: ST. LOUIS R-BURLINGTON N^R.R. BR | B56: 67 | C56: 1975-08-04 | F56: 23 | H56: 53 | I56: 0.000928839 | J56: 0.00112937 | K56: 5.8 | M56: 16 | O56: 56 | P56: 800 | Q56: 2100 | R56: 1.5 | S56: 160 | V56: 4.3 | W56: 49.4325 | X56: 68 | Z56: 0.12 | AA56: 7.2 | AB56: 0.13 | AC56: 131 | AD56: 137 | AE56: 6.4 | AF56: 20 | AG56: 20 | AH56: 4.2 | AJ56: 1.11 | AK56: 0.13
A57: ST. LOUIS R-BURLINGTON N^R.R. BR | B57: 67 | C57: 1975-08-05 | F57: 21 | P57: 600 | Q57: 1100 | R57: 3 | V57: 6 | W57: 66.6667 | X57: 75 | Z57: 0.15 | AF57: 10 | AG57: 29 | AJ57: 1.1 | AK57: 0.2
A58: ST. LOUIS R-BURLINGTON N^R.R. BR | B58: 67 | C58: 1975-09-03 | F58: 20 | H58: 58 | I58: 0.00180354 | J58: 0.00219291 | K58: 1.8 | M58: 12.5 | O58: 88 | P58: 30 | Q58: 19600 | R58: 0.75 | S58: 120 | V58: 5.8 | W58: 63.0512 | Z58: 0.23 | AA58: 7.3 | AB58: 0.127 | AC58: 146 | AD58: 13.2 | AE58: 159 | AF58: 40 | AH58: 8.1 | AJ58: 0.21 | AK58: 0.13
A59: ST. LOUIS R-BURLINGTON N^R.R. BR | B59: 67 | C59: 1975-09-04 | F59: 20 | P59: 450 | Q59: 110 | R59: 1.8 | V59: 5.1 | W59: 55.4348 | Z59: 0.02 | AF59: 250 | AJ59: 1.21 | AK59: 0.23
A60: ST. LOUIS R-BURLINGTON N^R.R. BR | B60: 67 | C60: 1975-09-29 | H60: 68 | K60: 3.6 | M60: 16.5 | S60: 100 | V60: 1.3 | X60: 90 | AA60: 7.1 | AB60: 0.13 | AC60: 174 | AD60: 180 | AE60: 6 | AH60: 6.6 | AJ60: 1.21
A61: ST. LOUIS R-BURLINGTON N^R.R. BR | B61: 67 | C61: 1975-09-30 | P61: 70 | Q61: 10 | R61: 1.16667 | V61: 3 | Z61: 0.01 | AF61: 60 | AJ61: 1.1 | AK61: 0.07
A62: ST. LOUIS R-BURLINGTON N^R.R. BR | B62: 67 | C62: 1976-04-06 | H62: 32 | K62: 6 | M62: 8 | O62: 52 | P62: 2400 | Q62: 10 | R62: 11 | S62: 100 | X62: 58 | Z62: 0.04 | AA62: 7.4 | AB62: 0.026 | AD62: 115 | AE62: 20 | AF62: 10 | AG62: 15 | AH62: 14 | AJ62: 1.21 | AK62: 0.51
A63: ST. LOUIS R-BURLINGTON N^R.R. BR | B63: 67 | C63: 1976-05-04 | F63: 12 | H63: 38 | I63: 0.00625453 | J63: 0.00760482 | K63: 2.2 | M63: 8 | O63: 72 | P63: 1100 | Q63: 330 | R63: 0.0666667 | S63: 160 | V63: 6.1 | W63: 56.4861 | X63: 60 | Z63: 0.73 | AA63: 7.6 | AB63: 0.071 | AC63: 162 | AD63: 16 | AE63: 178 | AF63: 150 | AG63: 20 | AH63: 11 | AJ63: 2.64 | AK63: 0.04
A64: ST. LOUIS R-BURLINGTON N^R.R. BR | B64: 67 | C64: 1976-06-02 | F64: 16 | H64: 49 | K64: 3.4 | M64: 13.5 | O64: 53 | P64: 200 | Q64: 10 | R64: 0.5 | S64: 120 | V64: 6.5 | W64: 65.0088 | X64: 71 | AA64: 7.5 | AB64: 0.062 | AC64: 124 | AD64: 141 | AE64: 17.2 | AF64: 20 | AG64: 18 | AH64: 8.2 | AJ64: 1.1 | AK64: 0.02
A65: ST. LOUIS R-BURLINGTON N^R.R. BR | B65: 67 | C65: 1976-07-07 | F65: 24.4 | H65: 69 | I65: 0.00219803 | J65: 0.00267256 | K65: 1.6 | M65: 13.5 | O65: 40 | P65: 4900 | Q65: 500 | R65: 1.73684 | S65: 100 | V65: 5.2 | W65: 61.1842 | X65: 75 | Z65: 0.13 | AA65: 7.5 | AB65: 0.105 | AC65: 153 | AD65: 160 | AE65: 6.8 | AF65: 190 | AG65: 23 | AK65: 0.06
A66: ST. LOUIS R-BURLINGTON N^R.R. BR | B66: 67 | C66: 1976-08-11 | F66: 23 | H66: 57 | I66: 0.00168583 | J66: 0.00204979 | K66: 1.6 | M66: 10 | O66: 44 | P66: 100 | Q66: 470 | R66: 0.333333 | S66: 80 | V66: 2.7 | W66: 31.0373 | X66: 72 | Z66: 0.11 | AA66: 7.5 | AB66: 0.153 | AC66: 116 | AD66: 126 | AE66: 9.6 | AF66: 30 | AG66: 17 | AH66: 8 | AJ66: 1.1 | AK66: 0.11
A67: ST. LOUIS R-BURLINGTON N^R.R. BR | B67: 67 | C67: 1976-09-01 | H67: 56 | K67: 4 | M67: 9 | O67: 12 | P67: 800 | Q67: 110 | R67: 12.5 | S67: 60 | V67: 6.6 | X67: 63 | Z67: 0.1 | AA67: 8.1 | AB67: 0.157 | AC67: 88 | AD67: 120 | AE67: 32.4 | AF67: 40 | AG67: 13 | AH67: 18 | AJ67: 0.99 | AK67: 0.13
A68: ST. LOUIS R-BURLINGTON N^R.R. BR | B68: 67 | C68: 1976-10-05 | F68: 13 | H68: 77 | I68: 0.00183989 | J68: 0.00223711 | K68: 6.6 | M68: 18 | O68: 36 | P68: 6800 | Q68: 50 | R68: 1.67857 | S68: 70 | V68: 4.2 | W68: 39.63 | X68: 87 | Z68: 0.25 | AA68: 7.5 | AB68: 0.287 | AC68: 159 | AD68: 14 | AE68: 173 | AF68: 280 | AG68: 19 | AH68: 7.5 | AJ68: 1.65 | AK68: 0.15
A69: ST. LOUIS R-BURLINGTON N^R.R. BR | B69: 67 | C69: 1976-11-10 | F69: 2 | H69: 73 | I69: 0.000196035 | J69: 0.000238357 | K69: 4 | M69: 28 | O69: 52 | P69: 500 | Q69: 400 | S69: 70 | V69: 9.3 | W69: 67.4118 | X69: 87 | Z69: 0.16 | AA69: 7.1 | AB69: 0.17 | AC69: 173 | AD69: 181 | AE69: 8 | AG69: 24 | AH69: 8 | AJ69: 1.43 | AK69: 0.28
A70: ST. LOUIS R-BURLINGTON N^R.R. BR | B70: 67 | C70: 1976-12-01 | F70: 1 | H70: 68 | I70: 0.000163952 | J70: 0.000199347 | K70: 3.2 | M70: 22.5 | O70: 44 | P70: 500 | Q70: 100 | R70: 5 | S70: 80 | V70: 7.1 | W70: 50.0126 | X70: 86 | Z70: 0.29 | AA70: 6.8 | AB70: 0.207 | AC70: 157 | AD70: 165 | AE70: 7.6 | AF70: 10 | AG70: 20 | AH70: 8.6 | AJ70: 1.54 | AK70: 0.28
A71: ST. LOUIS R-BURLINGTON N^R.R. BR | B71: 67 | C71: 1977-01-04 | H71: 70 | K71: 6.2 | M71: 24 | O71: 40 | P71: 4500 | Q71: 180 | R71: 20 | S71: 65 | V71: 3.7 | X71: 87 | Z71: 0.38 | AA71: 7 | AB71: 0.215 | AC71: 153 | AD71: 159 | AE71: 6 | AF71: 20 | AG71: 9 | AH71: 17 | AJ71: 1.76 | AK71: 0.08
A72: ST. LOUIS R-BURLINGTON N^R.R. BR | B72: 67 | C72: 1977-02-02 | F72: 1.1 | H72: 68 | I72: 0.000429236 | J72: 0.000521904 | K72: 5.4 | M72: 14 | O72: 33 | P72: 20 | Q72: 30 | R72: 2 | S72: 40 | V72: 4.5 | W72: 31.6951 | X72: 72 | Z72: 0.3 | AA72: 7.2 | AB72: 0.108 | AC72: 112 | AD72: 116 | AE72: 4 | AF72: 10 | AG72: 14 | AH72: 4.6 | AJ72: 3.19 | AK72: 0.07
A73: ST. LOUIS R-BURLINGTON N^R.R. BR | B73: 67 | C73: 1977-03-09 | H73: 72 | K73: 6.6 | M73: 27 | O73: 56 | P73: 700 | Q73: 20 | R73: 0.580645 | S73: 70 | V73: 0.6 | X73: 86 | Z73: 0.52 | AA73: 6.9 | AB73: 0.152 | AC73: 162 | AD73: 164 | AE73: 2 | AF73: 310 | AG73: 20 | AH73: 8.9 | AJ73: 1.43 | AK73: 0.01
A74: ST. LOUIS R-BURLINGTON N^R.R. BR | B74: 67 | C74: 1977-04-05 | F74: 1 | H74: 52 | I74: 0.000214974 | J74: 0.000261385 | K74: 7.2 | M74: 26 | O74: 40 | P74: 300 | Q74: 30 | R74: 3 | S74: 100 | V74: 7.7 | W74: 54.2412 | X74: 70 | Z74: 0.24 | AA74: 7 | AB74: 0.132 | AC74: 113 | AD74: 122 | AE74: 8.8 | AF74: 10 | AG74: 20 | AH74: 10 | AJ74: 1.98 | AK74: 0.57
A75: ST. LOUIS R-BURLINGTON N^R.R. BR | B75: 67 | C75: 1977-05-11 | H75: 60 | K75: 3.2 | M75: 195 | O75: 64 | P75: 700 | Q75: 30 | R75: 2 | S75: 80 | V75: 3 | X75: 86 | Z75: 0.13 | AA75: 7.4 | AB75: 0.178 | AC75: 166 | AD75: 175 | AE75: 8.8 | AF75: 10 | AG75: 19 | AH75: 7 | AJ75: 1.54 | AK75: 0.2
A76: ST. LOUIS R-BURLINGTON N^R.R. BR | B76: 67 | C76: 1977-05-31 | F76: 15 | H76: 70 | I76: 0.000376849 | J76: 0.000458207 | K76: 5.2 | M76: 22 | O76: 32 | P76: 320 | Q76: 1300 | R76: 0.6 | S76: 90 | V76: 7.3 | W76: 71.584 | Z76: 0.11 | AA76: 7.1 | AB76: 0.098 | AC76: 150 | AD76: 158 | AE76: 7.6 | AF76: 50 | AG76: 20 | AH76: 4 | AJ76: 1.54 | AK76: 0.17
A77: ST. LOUIS R-BURLINGTON N^R.R. BR | B77: 67 | C77: 1977-07-06 | H77: 62 | K77: 2 | M77: 12.5 | O77: 52 | P77: 300 | Q77: 10000 | R77: 0.428571 | S77: 120 | V77: 4.7 | X77: 80 | Z77: 0.3 | AA77: 7.4 | AB77: 0.124 | AC77: 159 | AD77: 163 | AE77: 4 | AF77: 70 | AG77: 15 | AH77: 8.9 | AJ77: 1.3 | AK77: 0.15
A78: ST. LOUIS R-BURLINGTON N^R.R. BR | B78: 67 | C78: 1977-08-02 | F78: 20 | H78: 65 | I78: 0.00093582 | J78: 0.00113785 | K78: 3 | M78: 11 | O78: 41 | P78: 30 | Q78: 110 | R78: 0.6 | S78: 50 | V78: 4 | W78: 43.4829 | X78: 86 | Z78: 0.15 | AA78: 7.2 | AB78: 0.137 | AC78: 132 | AD78: 139 | AE78: 7 | AF78: 50 | AG78: 19 | AH78: 4.9 | AJ78: 1.1 | AK78: 0.2
A79: ST. LOUIS R-BURLINGTON N^R.R. BR | B79: 67 | C79: 1977-09-06 | F79: 16 | H79: 81 | I79: 0.000296713 | J79: 0.000360771 | K79: 4.6 | M79: 22 | O79: 56 | P79: 1670 | Q79: 1500 | R79: 2.19737 | S79: 120 | V79: 5.9 | W79: 59.013 | X79: 108 | Z79: 0.16 | AA79: 6.8 | AB79: 0.113 | AC79: 191 | AD79: 200 | AE79: 9 | AF79: 760 | AG79: 22 | AH79: 8 | AJ79: 1.21 | AK79: 0.11
A80: ST. LOUIS R-BURLINGTON N^R.R. BR | B80: 67 | C80: 1977-10-04 | F80: 13 | H80: 40 | I80: 0.000185107 | J80: 0.000225069 | K80: 3 | M80: 6.5 | O80: 88 | R80: 0.785714 | S80: 240 | V80: 5.9 | W80: 55.6641 | X80: 65 | Z80: 0.05 | AA80: 7.2 | AB80: 0.09 | AC80: 139 | AD80: 148 | AE80: 9 | AF80: 140 | AG80: 16 | AH80: 6.5 | AJ80: 1.43 | AK80: 0.07
A81: ST. LOUIS R-BURLINGTON N^R.R. BR | B81: 67 | C81: 1977-11-01 | F81: 9 | H81: 40 | I81: 431453 | J81: 524599 | K81: 3 | M81: 7.5 | O81: 84 | P81: 100 | Q81: 400 | R81: 0.833333 | S81: 240 | V81: 6.4 | W81: 55.1767 | X81: 65 | Z81: 0.02 | AA81: 7.1 | AB81: 0.07 | AC81: 139 | AD81: 145 | AE81: 6 | AF81: 120 | AG81: 16 | AH81: 5.9 | AJ81: 1.32 | AK81: 0.1
A82: ST. LOUIS R-BURLINGTON N^R.R. BR | B82: 67 | C82: 1977-12-06 | F82: 0 | H82: 47 | I82: 518374 | J82: 630286 | K82: 6 | M82: 8 | O82: 88 | P82: 30 | Q82: 500 | R82: 1 | S82: 210 | V82: 10.3 | W82: 70.5545 | X82: 74 | Z82: 0.05 | AA82: 7.1 | AB82: 0.062 | AC82: 163 | AD82: 167 | AE82: 4 | AF82: 30 | AG82: 19 | AH82: 5.3 | AJ82: 1.43 | AK82: 0.22
A83: ST. LOUIS R-BURLINGTON N^R.R. BR | B83: 67 | C83: 1978-01-04 | F83: 0 | H83: 51 | I83: 0.000114042 | J83: 0.000138663 | K83: 5 | M83: 7 | O83: 64 | P83: 10 | Q83: 500 | R83: 1 | S83: 180 | V83: 10.5 | W83: 71.9237 | X83: 74 | Z83: 0.11 | AA83: 7.1 | AB83: 0.051 | AC83: 150 | AD83: 152 | AE83: 2 | AF83: 10 | AG83: 16 | AH83: 5 | AJ83: 1.1 | AK83: 0.29
A84: ST. LOUIS R-BURLINGTON N^R.R. BR | B84: 67 | C84: 1978-02-07 | F84: 0 | H84: 53 | I84: 0.000143532 | J84: 0.00017452 | K84: 8 | M84: 12 | O84: 80 | P84: 10 | Q84: 20 | R84: 0.333333 | S84: 180 | V84: 7.6 | W84: 52.062 | X84: 73 | Z84: 0.11 | AA84: 7.2 | AB84: 0.054 | AC84: 164 | AD84: 166 | AE84: 2 | AF84: 30 | AG84: 18 | AH84: 5 | AJ84: 1.1 | AK84: 0.16
A85: ST. LOUIS R-BURLINGTON N^R.R. BR | B85: 67 | C85: 1978-02-28 | F85: 1 | H85: 55 | I85: 0.000109662 | J85: 901910 | K85: 6 | M85: 10 | O85: 68 | P85: 1500 | Q85: 3600 | R85: 2 | S85: 180 | V85: 7.1 | W85: 50.0056 | X85: 67 | Z85: 0.08 | AA85: 7.1 | AB85: 0.045 | AC85: 162 | AD85: 164 | AE85: 2 | AF85: 10 | AG85: 17 | AH85: 6.6 | AJ85: 0.99 | AK85: 0.16
A86: ST. LOUIS R-BURLINGTON N^R.R. BR | B86: 67 | C86: 1978-04-04 | F86: 2 | H86: 49 | I86: 0.000368685 | J86: 0.00044828 | K86: 7 | M86: 10 | O86: 48 | P86: 10 | Q86: 400 | R86: 0.0666667 | S86: 90 | V86: 9.3 | W86: 67.3986 | X86: 60 | Z86: 0.19 | AA86: 7.3 | AB86: 0.057 | AC86: 143 | AD86: 150 | AE86: 6.8 | AF86: 150 | AG86: 11 | AH86: 9.3 | AJ86: 0.88 | AK86: 0.21
A87: ST. LOUIS R-BURLINGTON N^R.R. BR | B87: 67 | C87: 1978-05-03 | F87: 12 | H87: 39 | I87: 0.000301878 | J87: 0.000367051 | K87: 3 | M87: 8 | O87: 56 | P87: 10 | Q87: 2100 | R87: 1 | S87: 140 | V87: 7.2 | W87: 66.6721 | X87: 57 | Z87: 0.07 | AA87: 7.3 | AB87: 0.0919999 | AC87: 122 | AD87: 126 | AE87: 4 | AF87: 10 | AG87: 15 | AH87: 5.7 | AJ87: 1.21 | AK87: 0.22
A88: ST. LOUIS R-BURLINGTON N^R.R. BR | B88: 67 | C88: 1978-06-06 | F88: 18.5 | H88: 44 | I88: 0.000883241 | J88: 0.00107392 | K88: 4 | M88: 9.5 | O88: 76 | P88: 100 | Q88: 80 | R88: 3.33333 | S88: 240 | V88: 6 | W88: 63.1636 | X88: 81 | Z88: 0.1 | AA88: 7.4 | AB88: 0.114 | AC88: 143 | AD88: 13 | AE88: 156 | AF88: 30 | AG88: 12 | AH88: 7.5 | AJ88: 1.54 | AK88: 0.04
A89: ST. LOUIS R-BURLINGTON N^R.R. BR | B89: 67 | C89: 1978-07-05 | F89: 19 | H89: 52 | I89: 0.00133399 | J89: 0.00162199 | K89: 3 | M89: 11.5 | O89: 76 | P89: 400 | Q89: 40 | R89: 1.33333 | S89: 200 | V89: 4.6 | W89: 48.9415 | X89: 70 | Z89: 0.23 | AA89: 7.2 | AB89: 0.086 | AC89: 160 | AD89: 166 | AE89: 6 | AF89: 60 | AG89: 11 | AH89: 6.7 | AJ89: 1.43 | AK89: 0.15
A90: ST. LOUIS R-BURLINGTON N^R.R. BR | B90: 67 | C90: 1978-08-01 | F90: 22 | H90: 45 | I90: 0.00353154 | J90: 0.00429396 | K90: 3 | M90: 5.5 | O90: 76 | P90: 1200 | Q90: 5500 | R90: 1 | S90: 200 | V90: 4.5 | W90: 51.1389 | X90: 60 | Z90: 0.49 | AA90: 7.2 | AB90: 0.0919999 | AC90: 139 | AD90: 146 | AE90: 7 | AF90: 40 | AG90: 10 | AJ90: 1.32 | AK90: 0.08
A91: ST. LOUIS R-BURLINGTON N^R.R. BR | B91: 67 | C91: 1978-09-06 | F91: 24 | H91: 48 | I91: 0.000834988 | J91: 0.00101525 | K91: 2.8 | M91: 7 | O91: 96 | P91: 100000 | Q91: 400 | R91: 1.05769 | S91: 280 | V91: 2.8 | W91: 32.9433 | X91: 60 | Z91: 0.08 | AA91: 7.3 | AB91: 0.122 | AC91: 154 | AD91: 160 | AE91: 6 | AF91: 5200 | AG91: 10 | AH91: 4.3 | AJ91: 1.43 | AK91: 0.02
A92: ST. LOUIS R-BURLINGTON N^R.R. BR | B92: 67 | C92: 1978-10-04 | F92: 14 | H92: 57 | I92: 0.00107871 | J92: 0.00131159 | K92: 3 | M92: 9.5 | O92: 80 | P92: 25000 | Q92: 80 | R92: 0.363636 | S92: 280 | V92: 5 | W92: 48.0813 | X92: 76 | Z92: 0.27 | AA92: 7.2 | AB92: 0.132 | AC92: 163 | AD92: 10 | AE92: 173 | AF92: 1100 | AG92: 13 | AH92: 7.6 | AJ92: 1.21 | AK92: 0.12
A93: ST. LOUIS R-BURLINGTON N^R.R. BR | B93: 67 | C93: 1978-11-08 | F93: 8.5 | H93: 63 | I93: 0.000991018 | J93: 0.00120497 | K93: 3 | M93: 11.5 | O93: 56 | P93: 1000 | Q93: 70 | R93: 4 | S93: 180 | V93: 9.2 | W93: 77.3206 | X93: 79 | Z93: 0.24 | AA93: 7.4 | AB93: 0.098 | AC93: 146 | AD93: 12 | AE93: 158 | AF93: 20 | AG93: 14 | AH93: 11 | AJ93: 1.1 | AK93: 0.06
A94: ST. LOUIS R-BURLINGTON N^R.R. BR | B94: 67 | C94: 1979-02-14 | F94: 1 | H94: 70 | I94: 0.00065022 | J94: 0.000790596 | K94: 3 | M94: 11.5 | O94: 52 | P94: 10 | Q94: 6700 | R94: 0.0294118 | S94: 140 | V94: 7.7 | W94: 54.2324 | X94: 82 | Z94: 0.23 | AA94: 7.5 | AB94: 0.065 | AC94: 158 | AD94: 161 | AE94: 3 | AF94: 340 | AG94: 12 | AH94: 5 | AJ94: 1.43 | AK94: 0.12
A95: ST. LOUIS R-BURLINGTON N^R.R. BR | B95: 67 | C95: 1979-03-08 | F95: 1 | H95: 64 | I95: 0.000269629 | J95: 0.000327839 | K95: 4 | M95: 5 | O95: 54 | P95: 1220 | Q95: 800 | R95: 40.6667 | S95: 140 | V95: 9.9 | W95: 69.7222 | X95: 99 | Z95: 0.12 | AA95: 7.4 | AB95: 0.064 | AC95: 115 | AD95: 117 | AE95: 2 | AF95: 30 | AG95: 11 | AH95: 5 | AJ95: 0.99 | AK95: 0.35
A96: ST. LOUIS R-BURLINGTON N^R.R. BR | B96: 67 | C96: 1979-06-14 | F96: 19 | H96: 45 | I96: 0.00138071 | J96: 0.0016788 | K96: 1 | M96: 6.9 | O96: 32 | P96: 100 | Q96: 800 | R96: 0.2 | S96: 180 | T96: 118 | V96: 7.6 | W96: 80.8564 | X96: 64 | Z96: 0.12 | AA96: 7.5 | AB96: 0.06 | AC96: 120 | AD96: 12.4 | AE96: 132 | AF96: 500 | AG96: 8 | AH96: 11 | AJ96: 0.55 | AK96: 0.09
A97: ST. LOUIS R-BURLINGTON N^R.R. BR | B97: 67 | C97: 1979-07-24 | F97: 20 | H97: 57 | I97: 0.000865979 | J97: 0.00105294 | K97: 1 | M97: 15.5 | O97: 42 | P97: 140 | Q97: 60 | R97: 1.4 | S97: 150 | T97: 170 | V97: 6 | W97: 65.2273 | X97: 64 | Z97: 0.07 | AA97: 7.5 | AB97: 0.114 | AC97: 151 | AD97: 159 | AE97: 7.6 | AF97: 100 | AG97: 11 | AH97: 10 | AJ97: 1.1 | AK97: 0.17
A98: ST. LOUIS R-BURLINGTON N^R.R. BR | B98: 67 | C98: 1979-08-15 | F98: 20 | H98: 53 | I98: 0.00305036 | J98: 0.0037089 | K98: 1 | M98: 12 | O98: 48 | P98: 200 | Q98: 470 | R98: 0.75 | S98: 180 | T98: 160 | V98: 6.7 | W98: 72.8346 | X98: 70 | Z98: 0.1 | AA98: 7.9 | AB98: 0.125 | AC98: 153 | AD98: 159 | AE98: 6.4 | AF98: 80 | AG98: 8 | AH98: 8.8 | AJ98: 0.66 | AK98: 0.12
A99: ST. LOUIS R-BURLINGTON N^R.R. BR | B99: 67 | C99: 1979-09-05 | F99: 21 | H99: 66 | I99: 0.0036693 | J99: 0.00446146 | K99: 1 | M99: 21 | O99: 32 | P99: 2300 | Q99: 300 | R99: 2.47368 | S99: 140 | T99: 250 | V99: 6.6 | W99: 73.3487 | X99: 99 | Z99: 0.22 | AA99: 7.6 | AB99: 0.046 | AC99: 187 | AD99: 194 | AE99: 6.8 | AF99: 190 | AG99: 20 | AH99: 9.5 | AJ99: 0.99 | AK99: 0.02
A100: ST. LOUIS R-BURLINGTON N^R.R. BR | B100: 67 | C100: 1979-10-11 | F100: 10 | H100: 74 | I100: 0.00184504 | J100: 0.00224337 | K100: 2 | M100: 28 | O100: 48 | P100: 30 | Q100: 400 | R100: 0.375 | S100: 180 | T100: 205 | V100: 7.7 | W100: 68.1618 | X100: 102 | Z100: 0.2 | AA100: 7.7 | AB100: 0.129 | AC100: 210 | AD100: 219 | AE100: 8.8 | AF100: 80 | AG100: 20 | AH100: 13 | AJ100: 0.88 | AK100: 0.12
A101: ST. LOUIS R-BURLINGTON N^R.R. BR | B101: 67 | C101: 1979-11-15 | F101: 0 | H101: 49 | I101: 0.000206645 | J101: 0.000251258 | K101: 2 | M101: 14.5 | O101: 48 | P101: 20 | Q101: 6000 | R101: 2 | S101: 160 | T101: 150 | V101: 11.1 | W101: 76.0402 | X101: 85 | Z101: 0.1 | AA101: 7.4 | AB101: 0.08 | AC101: 172 | AD101: 176 | AE101: 4.4 | AF101: 10 | AG101: 18 | AH101: 9 | AJ101: 0.99 | AK101: 0.13
A102: ST. LOUIS R-BURLINGTON N^R.R. BR | B102: 67 | C102: 1980-01-23 | F102: 0 | H102: 68 | I102: 0.000131371 | J102: 0.000159733 | K102: 3 | M102: 7 | O102: 52 | P102: 170 | Q102: 12000 | R102: 4.25 | S102: 100 | V102: 11.1 | W102: 76.0336 | X102: 60 | Z102: 0.08 | AA102: 7.3 | AB102: 0.45 | AC102: 135 | AD102: 1 | AE102: 136 | AF102: 40 | AG102: 14 | AH102: 5 | AJ102: 0.66 | AK102: 0.3
A103: ST. LOUIS R-BURLINGTON N^R.R. BR | B103: 67 | C103: 1980-02-27 | F103: 1 | H103: 60 | I103: 789171 | J103: 959545 | K103: 2 | M103: 10.5 | O103: 40 | P103: 10 | Q103: 400 | R103: 0.333333 | S103: 100 | T103: 140 | V103: 10.8 | W103: 76.0653 | X103: 68 | Z103: 0.07 | AA103: 7.1 | AB103: 0.055 | AC103: 150 | AD103: 154 | AE103: 4 | AF103: 30 | AG103: 12 | AH103: 4.9 | AJ103: 0.66 | AK103: 0.15
A104: ST. LOUIS R-BURLINGTON N^R.R. BR | B104: 67 | C104: 1980-04-22 | F104: 11 | H104: 41 | I104: 0.000568091 | J104: 0.000690737 | K104: 3 | M104: 10.5 | O104: 44 | P104: 10 | Q104: 900 | R104: 0.0833333 | S104: 120 | T104: 120 | V104: 8.2 | W104: 73.8815 | X104: 48 | Z104: 0.09 | AA104: 7.5 | AB104: 0.0689999 | AC104: 123 | AD104: 129 | AE104: 6 | AF104: 120 | AG104: 12 | AH104: 10 | AJ104: 1.32 | AK104: 0.34
A105: ST. LOUIS R-BURLINGTON N^R.R. BR | B105: 67 | C105: 1980-05-20 | F105: 17 | H105: 59 | I105: 0.00198722 | J105: 0.00241624 | K105: 3 | M105: 18 | N105: 10 | O105: 48 | P105: 10 | Q105: 40 | R105: 1 | S105: 150 | T105: 150 | V105: 9.4 | W105: 96.9252 | X105: 63 | Z105: 0.2 | AA105: 7.5 | AB105: 0.089 | AC105: 133 | AD105: 141 | AE105: 7.6 | AF105: 10 | AG105: 16 | AH105: 5.5 | AJ105: 0.66 | AK105: 0.07
A106: ST. LOUIS R-BURLINGTON N^R.R. BR | B106: 67 | C106: 1980-06-11 | F106: 18 | H106: 61 | I106: 0.000748667 | J106: 0.000910297 | K106: 2 | M106: 16 | N106: 10 | O106: 44 | P106: 100 | Q106: 6200 | R106: 0.8 | S106: 90 | T106: 170 | V106: 9.1 | W106: 95.804 | X106: 77 | Z106: 0.07 | AA106: 7.5 | AB106: 0.0779999 | AC106: 144 | AD106: 152 | AE106: 7.6 | AF106: 50 | AG106: 12 | AH106: 11 | AJ106: 0.88 | AK106: 0.1
A107: ST. LOUIS R-BURLINGTON N^R.R. BR | B107: 67 | C107: 1980-07-15 | F107: 24 | H107: 72 | I107: 0.00150617 | J107: 0.00183134 | K107: 4 | M107: 18 | N107: 10 | O107: 56 | P107: 1700 | Q107: 10 | R107: 85 | S107: 70 | T107: 220 | V107: 8.3 | W107: 97.6636 | X107: 79 | Z107: 0.03 | AA107: 8 | AB107: 0.098 | AC107: 151 | AD107: 159 | AE107: 8.4 | AF107: 20 | AG107: 10 | AH107: 6 | AJ107: 0.88 | AK107: 0.15
A108: ST. LOUIS R-BURLINGTON N^R.R. BR | B108: 67 | C108: 1980-08-05 | F108: 21 | H108: 59 | I108: 0.00569249 | J108: 0.00692144 | K108: 3 | L108: 5 | M108: 13 | N108: 10 | O108: 36 | P108: 100 | Q108: 600 | R108: 0.125 | S108: 60 | T108: 165 | U108: 13 | V108: 8.7 | W108: 96.6792 | X108: 73 | Y108: 14 | Z108: 0.09 | AA108: 8.2 | AB108: 0.068 | AC108: 118 | AD108: 126 | AE108: 7.6 | AF108: 80 | AH108: 7 | AI108: 24 | AJ108: 0.99 | AK108: 0.08
A109: ST. LOUIS R-BURLINGTON N^R.R. BR | B109: 67 | C109: 1980-09-09 | F109: 19 | H109: 86 | I109: 0.00319505 | J109: 0.00388483 | K109: 1 | L109: 5 | M109: 15 | N109: 10 | O109: 52 | P109: 5200 | Q109: 8500 | R109: 1.15385 | S109: 120 | U109: 21 | V109: 7.3 | W109: 77.6707 | X109: 102 | Y109: 10 | Z109: 0.09 | AA109: 8 | AB109: 0.0739999 | AC109: 183 | AD109: 192 | AE109: 9.2 | AF109: 520 | AG109: 16 | AH109: 16 | AI109: 29 | AJ109: 0.88 | AK109: 0.07
A110: ST. LOUIS R-BURLINGTON N^R.R. BR | B110: 67 | C110: 1980-10-28 | F110: 4 | H110: 67 | I110: 0.00081399 | J110: 0.000989723 | K110: 2 | L110: 5 | M110: 22 | N110: 10 | O110: 60 | P110: 300 | Q110: 3100 | R110: 4.28571 | S110: 150 | T110: 230 | U110: 10 | V110: 8.9 | W110: 67.9549 | X110: 92 | Y110: 20 | Z110: 0.09 | AA110: 7.9 | AB110: 0.0919999 | AC110: 221 | AD110: 225 | AE110: 3.6 | AF110: 70 | AG110: 19 | AH110: 5 | AI110: 19 | AJ110: 1.1 | AK110: 0.19
A111: ST. LOUIS R-BURLINGTON N^R.R. BR | B111: 67 | C111: 1980-11-19 | F111: 2 | H111: 69 | I111: 0.000193211 | J111: 0.000234923 | K111: 2 | L111: 5 | M111: 16.5 | N111: 10 | O111: 64 | P111: 30 | Q111: 100 | R111: 3 | S111: 150 | T111: 210 | U111: 14 | V111: 11 | W111: 79.7244 | X111: 96 | Y111: 10 | Z111: 0.05 | AA111: 7.6 | AB111: 0.076 | AC111: 206 | AD111: 2.4 | AE111: 208 | AF111: 10 | AG111: 19 | AH111: 5 | AI111: 25 | AJ111: 0.99 | AK111: 0.17
A112: ST. LOUIS R-BURLINGTON N^R.R. BR | B112: 67 | C112: 1981-03-18 | F112: 1 | H112: 60 | I112: 0.00024895 | J112: 0.000302696 | K112: 3 | L112: 5 | M112: 17.5 | N112: 10 | O112: 40 | P112: 10 | Q112: 300 | R112: 1 | S112: 120 | T112: 225 | U112: 10 | V112: 9.6 | W112: 67.6189 | X112: 86 | Y112: 10 | Z112: 0.07 | AA112: 7.6 | AB112: 0.064 | AC112: 169 | AD112: 0.8 | AE112: 170 | AF112: 10 | AG112: 11 | AH112: 3 | AI112: 10 | AJ112: 0.77 | AK112: 0.22
A113: ST. LOUIS R-BURLINGTON N^R.R. BR | B113: 67 | C113: 1981-04-14 | F113: 8 | H113: 41 | I113: 0.00136893 | J113: 0.00166447 | K113: 3 | L113: 5 | M113: 11.5 | N113: 10 | O113: 48 | P113: 20 | Q113: 900 | R113: 1 | S113: 140 | T113: 155 | U113: 11 | V113: 10.7 | W113: 89.9272 | X113: 66 | Y113: 10 | Z113: 0.11 | AA113: 7.9 | AB113: 0.076 | AC113: 138 | AD113: 147 | AE113: 9.2 | AF113: 20 | AG113: 11 | AH113: 9 | AI113: 15 | AJ113: 0.88 | AK113: 0.2
A114: ST. LOUIS R-BURLINGTON N^R.R. BR | B114: 67 | C114: 1981-05-13 | F114: 15 | H114: 38 | I114: 0.000846853 | J114: 0.00102968 | K114: 3 | L114: 5 | M114: 8 | N114: 10 | O114: 52 | P114: 30 | Q114: 20 | R114: 0.75 | S114: 200 | T114: 116 | U114: 13 | V114: 9.3 | W114: 91.1836 | X114: 52 | Y114: 17 | Z114: 0.05 | AA114: 7.8 | AB114: 0.058 | AC114: 130 | AD114: 135 | AE114: 5.2 | AF114: 40 | AG114: 13 | AH114: 8 | AI114: 45 | AJ114: 0.99 | AK114: 0.09
A115: ST. LOUIS R-BURLINGTON N^R.R. BR | B115: 67 | C115: 1981-06-09 | F115: 19 | H115: 60 | I115: 0.000852204 | J115: 0.00103619 | K115: 2 | L115: 5 | M115: 8 | N115: 10 | O115: 48 | P115: 100 | Q115: 70 | R115: 2 | S115: 150 | T115: 148 | U115: 18 | V115: 7.8 | W115: 82.985 | X115: 78 | Y115: 10 | Z115: 0.03 | AA115: 7.9 | AB115: 0.052 | AC115: 147 | AD115: 155 | AE115: 7.6 | AF115: 10 | AG115: 13 | AH115: 7 | AI115: 27 | AJ115: 0.88 | AK115: 0.04
A116: ST. LOUIS R-BURLINGTON N^R.R. BR | B116: 67 | C116: 1981-07-01 | F116: 20 | H116: 56 | I116: 0.00031049 | J116: 0.000377522 | L116: 5 | M116: 7 | N116: 10 | O116: 64 | P116: 300 | Q116: 200 | R116: 0.875 | S116: 180 | T116: 125 | U116: 14 | V116: 7.3 | W116: 79.3532 | X116: 66 | Y116: 10 | Z116: 0.02 | AA116: 7.6 | AB116: 0.056 | AC116: 143 | AD116: 151 | AE116: 8.4 | AF116: 80 | AG116: 10 | AH116: 7 | AI116: 20 | AJ116: 1.2 | AK116: 0.09
A117: ST. LOUIS R-BURLINGTON N^R.R. BR | B117: 67 | C117: 1981-07-08 | F117: 27 | H117: 46 | I117: 648826 | J117: 788902 | K117: 1 | L117: 5 | M117: 5 | N117: 10 | O117: 60 | P117: 20 | Q117: 300 | R117: 2 | S117: 210 | T117: 116 | U117: 10 | V117: 5.9 | W117: 72.8431 | X117: 56 | Y117: 10 | Z117: 0.01 | AA117: 7 | AB117: 0.052 | AD117: 3.6 | AF117: 10 | AG117: 10 | AH117: 5 | AI117: 17 | AJ117: 1.1 | AK117: 0.07
A118: ST. LOUIS R-BURLINGTON N^R.R. BR | B118: 67 | C118: 1981-08-05 | F118: 22 | H118: 61 | I118: 0.00112205 | J118: 0.00136429 | K118: 1 | L118: 5 | M118: 15 | N118: 10 | O118: 36 | P118: 190 | Q118: 330 | R118: 1.1875 | S118: 120 | T118: 155 | U118: 15 | V118: 6.7 | W118: 76.1467 | X118: 69 | Y118: 10 | Z118: 0.05 | AA118: 7.7 | AB118: 0.07 | AC118: 165 | AD118: 170 | AE118: 4.8 | AF118: 160 | AG118: 13 | AH118: 8 | AI118: 15 | AJ118: 0.99 | AK118: 13
A119: ST. LOUIS R-BURLINGTON N^R.R. BR | B119: 67 | C119: 1981-09-09 | F119: 19 | H119: 70 | I119: 0.00213004 | J119: 0.00258989 | K119: 2 | L119: 5 | M119: 15.5 | N119: 10 | O119: 72 | P119: 1300 | Q119: 500 | R119: 0.485294 | S119: 210 | T119: 205 | U119: 10 | V119: 6.4 | W119: 68.0952 | X119: 89 | Y119: 16 | Z119: 0.06 | AA119: 8 | AB119: 0.106 | AC119: 203 | AD119: 212 | AE119: 8.8 | AF119: 680 | AG119: 11 | AH119: 12 | AI119: 17 | AJ119: 1.43 | AK119: 0.11
A120: ST. LOUIS R-BURLINGTON N^R.R. BR | B120: 67 | C120: 1981-10-20 | F120: 9 | H120: 61 | I120: 0.000339508 | J120: 0.000412804 | K120: 3 | L120: 5 | M120: 13.5 | N120: 10 | O120: 64 | P120: 100 | Q120: 800 | R120: 0.344828 | S120: 200 | T120: 180 | U120: 11 | V120: 9.4 | W120: 81.0458 | X120: 78 | Y120: 10 | Z120: 0.05 | AA120: 7.6 | AB120: 0.072 | AC120: 169 | AD120: 174 | AE120: 5.2 | AF120: 290 | AG120: 20 | AH120: 10 | AI120: 23 | AJ120: 1.21 | AK120: 0.1
A121: ST. LOUIS R-BURLINGTON N^R.R. BR | B121: 67 | C121: 1981-11-04 | F121: 7 | H121: 45 | I121: 0.000347862 | J121: 0.000422962 | K121: 2 | L121: 5 | M121: 8.5 | O121: 88 | P121: 50 | Q121: 230 | R121: 0.119048 | S121: 195 | T121: 118 | U121: 17 | V121: 10.5 | W121: 86.0734 | X121: 64 | Y121: 10 | Z121: 0.06 | AA121: 7.6 | AB121: 0.044 | AC121: 128 | AD121: 130 | AE121: 2.4 | AF121: 420 | AG121: 16 | AH121: 12 | AI121: 26 | AJ121: 1.32 | AK121: 0.11
A122: ST. LOUIS R-BURLINGTON N^R.R. BR | B122: 67 | C122: 1981-12-09 | F122: 1 | H122: 60 | I122: 0.000112739 | J122: 0.000137078 | K122: 3.2 | L122: 5 | M122: 16.5 | N122: 10 | O122: 64 | P122: 1100 | Q122: 5500 | R122: 1.35294 | S122: 160 | T122: 180 | U122: 10 | V122: 11.1 | W122: 78.1835 | X122: 81 | Y122: 10 | Z122: 0.1 | AA122: 7.1 | AB122: 0.058 | AC122: 170 | AD122: 172 | AE122: 2 | AF122: 170 | AG122: 15 | AH122: 5 | AI122: 12 | AJ122: 0.88 | AK122: 0.17
A123: ST. LOUIS R-BURLINGTON N^R.R. BR | B123: 67 | C123: 1982-01-21 | F123: 0 | H123: 62 | I123: 0.000164214 | J123: 0.000199666 | K123: 4 | L123: 5 | M123: 13 | O123: 48 | P123: 330 | Q123: 7000 | R123: 4.125 | S123: 110 | T123: 178 | U123: 10 | V123: 11.4 | W123: 78.094 | X123: 107 | Y123: 10 | Z123: 0.1 | AA123: 7.3 | AB123: 0.047 | AC123: 162 | AD123: 0.4 | AE123: 162 | AF123: 80 | AG123: 13 | AH123: 10 | AI123: 16 | AK123: 0.25
A124: ST. LOUIS R-BURLINGTON N^R.R. BR | B124: 67 | C124: 1982-02-11 | F124: 0 | H124: 62 | I124: 411848 | J124: 500762 | K124: 4 | M124: 8.5 | N124: 10 | O124: 40 | P124: 660 | Q124: 20 | R124: 0.366667 | S124: 120 | T124: 150 | V124: 10.7 | W124: 73.2949 | X124: 73 | Z124: 0.05 | AA124: 7 | AB124: 0.034 | AC124: 143 | AD124: 0.8 | AE124: 144 | AF124: 1800 | AG124: 12 | AH124: 5 | AJ124: 1.1 | AK124: 0.3
A125: ST. LOUIS R-BURLINGTON N^R.R. BR | B125: 67 | C125: 1982-03-03 | F125: 0 | H125: 58 | I125: 0.000104005 | J125: 0.000126458 | K125: 4 | L125: 5 | M125: 9 | N125: 10 | O125: 44 | P125: 100 | Q125: 500 | R125: 0.0212766 | S125: 120 | T125: 156 | U125: 10 | V125: 10.9 | W125: 74.6653 | X125: 73 | Y125: 10 | Z125: 0.04 | AA125: 7.5 | AB125: 0.042 | AC125: 152 | AD125: 0.8 | AE125: 153 | AF125: 940 | AG125: 9 | AH125: 5 | AI125: 26 | AJ125: 0.99 | AK125: 0.22
A126: ST. LOUIS R-BURLINGTON N^R.R. BR | B126: 67 | C126: 1982-04-27 | F126: 10 | H126: 31 | I126: 0.000233625 | J126: 0.000284062 | K126: 2 | M126: 7.5 | N126: 10 | O126: 52 | P126: 2200 | Q126: 40 | R126: 1.38889 | S126: 150 | T126: 94 | V126: 9.6 | W126: 84.9625 | X126: 42 | Z126: 0.04 | AA126: 7.5 | AB126: 0.053 | AC126: 116 | AD126: 125 | AE126: 8.8 | AF126: 360 | AG126: 11 | AH126: 10 | AJ126: 1.21 | AK126: 0.15
A127: ST. LOUIS R-BURLINGTON N^R.R. BR | B127: 67 | C127: 1982-05-11 | F127: 12 | H127: 37 | I127: 0.000272709 | J127: 0.000331584 | K127: 2 | L127: 5 | M127: 9 | N127: 10 | O127: 64 | P127: 100 | Q127: 20 | R127: 0.444444 | S127: 210 | T127: 108 | U127: 11 | V127: 9.3 | W127: 86.119 | X127: 58 | Y127: 10 | Z127: 0.04 | AA127: 7.5 | AB127: 0.06 | AC127: 145 | AD127: 151 | AE127: 6.4 | AF127: 90 | AG127: 12 | AH127: 9 | AI127: 20 | AJ127: 0.99 | AK127: 0.07
A128: ST. LOUIS R-BURLINGTON N^R.R. BR | B128: 67 | C128: 1982-07-22 | F128: 23 | H128: 46 | I128: 0.000388999 | J128: 0.00047298 | K128: 2 | L128: 5 | M128: 10.5 | N128: 10 | O128: 64 | P128: 1600 | Q128: 400 | R128: 0.0952381 | S128: 170 | T128: 130 | U128: 10 | V128: 6.9 | W128: 79.318 | X128: 62 | Y128: 11 | Z128: 0.04 | AA128: 7.3 | AB128: 0.068 | AC128: 151 | AD128: 157 | AE128: 6 | AF128: 210 | AG128: 9 | AH128: 8 | AI128: 300 | AJ128: 1.1 | AK128: 0.08
A129: ST. LOUIS R-BURLINGTON N^R.R. BR | B129: 67 | C129: 1982-08-17 | F129: 23 | H129: 64 | I129: 0.000919546 | J129: 0.00111807 | K129: 2 | L129: 5 | M129: 12.5 | O129: 56 | P129: 40 | Q129: 900 | R129: 0.363636 | S129: 180 | T129: 165 | U129: 12 | V129: 7.9 | W129: 90.815 | X129: 75 | Y129: 10 | Z129: 0.06 | AA129: 7.5 | AB129: 0.084 | AC129: 184 | AD129: 189 | AE129: 4.8 | AF129: 110 | AG129: 12 | AH129: 7 | AI129: 65 | AJ129: 0.99 | AK129: 0.07
A130: ST. LOUIS R-BURLINGTON N^R.R. BR | B130: 67 | C130: 1982-09-15 | F130: 15 | H130: 64 | I130: 0.00152434 | J130: 0.00185343 | K130: 3 | L130: 5 | M130: 11 | N130: 10 | O130: 48 | P130: 30 | Q130: 240 | R130: 0.0178571 | S130: 160 | T130: 155 | U130: 13 | V130: 8.1 | W130: 79.4203 | X130: 79 | Y130: 13 | Z130: 0.09 | AA130: 7.8 | AB130: 0.085 | AC130: 166 | AD130: 10 | AE130: 176 | AF130: 1680 | AG130: 12 | AH130: 12 | AI130: 35 | AJ130: 0.88 | AK130: 0.1
A131: ST. LOUIS R-BURLINGTON N^R.R. BR | B131: 67 | C131: 1982-10-13 | F131: 11 | H131: 45 | I131: 0.000479039 | J131: 0.000582458 | K131: 2 | L131: 5 | M131: 12.5 | N131: 10 | O131: 64 | P131: 2000 | Q131: 4700 | R131: 0.6 | S131: 240 | T131: 120 | U131: 10 | V131: 9.2 | W131: 82.8931 | X131: 57 | Y131: 10 | Z131: 0.12 | AA131: 7.3 | AB131: 0.068 | AC131: 163 | AD131: 10 | AE131: 173 | AF131: 400 | AG131: 12 | AH131: 10 | AI131: 26 | AJ131: 1.1 | AK131: 0.06
A132: ST. LOUIS R-BURLINGTON N^R.R. BR | B132: 67 | C132: 1982-11-16 | F132: 1 | H132: 52 | I132: 0.000112345 | J132: 0.0001366 | K132: 4 | M132: 12 | N132: 10 | O132: 56 | P132: 1460 | Q132: 210 | R132: 7.3 | S132: 180 | T132: 138 | U132: 13 | V132: 11.6 | W132: 81.7012 | X132: 70 | Y132: 10 | Z132: 0.05 | AA132: 7.4 | AB132: 0.06 | AC132: 159 | AD132: 167 | AE132: 8 | AF132: 200 | AG132: 14 | AH132: 9 | AI132: 32 | AJ132: 0.77 | AK132: 0.12
A133: ST. LOUIS R-BURLINGTON N^R.R. BR | B133: 67 | C133: 1982-12-14 | H133: 51 | K133: 3 | M133: 10 | O133: 56 | P133: 1600 | Q133: 600 | R133: 0.677419 | S133: 180 | T133: 135 | U133: 10 | V133: 11.9 | X133: 75 | Y133: 10 | Z133: 0.04 | AA133: 7.4 | AB133: 0.05 | AC133: 155 | AD133: 158 | AE133: 3 | AF133: 310 | AG133: 13 | AH133: 6 | AI133: 10 | AJ133: 0.99 | AK133: 0.19
A134: ST. LOUIS R-BURLINGTON N^R.R. BR | B134: 67 | C134: 1983-01-12 | H134: 52 | K134: 3 | M134: 7 | O134: 44 | P134: 60 | Q134: 140 | R134: 6 | S134: 140 | T134: 120 | U134: 11 | V134: 12 | X134: 66 | Y134: 10 | Z134: 0.07 | AA134: 7.7 | AB134: 0.039 | AC134: 140 | AD134: 1 | AE134: 141 | AF134: 10 | AG134: 14 | AH134: 5 | AI134: 30 | AJ134: 0.77 | AK134: 0.25
A135: ST. LOUIS R-BURLINGTON N^R.R. BR | B135: 67 | C135: 1983-02-09 | H135: 55 | K135: 2 | M135: 8 | O135: 48 | P135: 1200 | Q135: 80 | R135: 2.33333 | S135: 140 | T135: 130 | U135: 10 | V135: 11.9 | X135: 78 | Y135: 14 | Z135: 0.04 | AA135: 7.4 | AB135: 0.04 | AC135: 150 | AD135: 1 | AE135: 150 | AF135: 60 | AG135: 9 | AH135: 4 | AI135: 11 | AJ135: 0.99 | AK135: 0.3
A136: ST. LOUIS R-BURLINGTON N^R.R. BR | B136: 67 | C136: 1983-03-02 | F136: 1 | H136: 58 | I136: 0.000103512 | J136: 851330 | K136: 2 | M136: 10 | O136: 44 | P136: 200 | Q136: 110 | R136: 1.6 | S136: 140 | T136: 130 | U136: 10 | V136: 12.1 | W136: 85.2208 | X136: 69 | Y136: 10 | Z136: 0.06 | AA136: 7.2 | AB136: 0.028 | AC136: 160 | AD136: 1 | AE136: 160 | AF136: 50 | AG136: 9 | AH136: 4 | AI136: 15 | AJ136: 0.88 | AK136: 0.31
A137: ST. LOUIS R-BURLINGTON N^R.R. BR | B137: 67 | C137: 1983-04-19 | F137: 4 | H137: 44 | I137: 0.000137241 | J137: 0.00016687 | K137: 3 | M137: 9 | O137: 48 | P137: 10 | Q137: 20 | R137: 1 | S137: 120 | T137: 112 | V137: 11.9 | W137: 90.8484 | X137: 55 | Z137: 0.06 | AA137: 7.3 | AB137: 0.089 | AC137: 131 | AD137: 138 | AE137: 7 | AF137: 10 | AG137: 10 | AH137: 8 | AJ137: 0.99 | AK137: 0.12
A138: ST. LOUIS R-BURLINGTON N^R.R. BR | B138: 67 | C138: 1983-05-11 | F138: 11 | H138: 46 | I138: 0.000502042 | J138: 0.000610428 | K138: 2 | M138: 14 | O138: 56 | P138: 100 | Q138: 40 | R138: 0.5 | S138: 140 | T138: 133 | V138: 9.7 | W138: 87.3995 | X138: 59 | Z138: 0.1 | AA138: 7.4 | AB138: 0.06 | AC138: 145 | AD138: 149 | AE138: 4 | AF138: 40 | AG138: 11 | AH138: 6 | AJ138: 1.21 | AK138: 0.1
A139: ST. LOUIS R-BURLINGTON N^R.R. BR | B139: 67 | C139: 1983-06-01 | F139: 16 | H139: 64 | I139: 0.00174516 | J139: 0.00212192 | K139: 3 | M139: 28 | O139: 56 | P139: 10 | Q139: 90 | R139: 0.5 | S139: 180 | T139: 240 | U139: 10 | V139: 9 | W139: 90.0252 | X139: 82 | Y139: 10 | Z139: 0.12 | AA139: 7.7 | AB139: 0.115 | AC139: 206 | AD139: 212 | AE139: 6 | AF139: 20 | AG139: 18 | AH139: 5 | AI139: 20 | AJ139: 1.21 | AK139: 0.06
A140: ST. LOUIS R-BURLINGTON N^R.R. BR | B140: 67 | C140: 1983-07-19 | F140: 27 | H140: 54 | I140: 0.00633845 | J140: 0.00770687 | K140: 2 | M140: 19 | O140: 27 | P140: 400 | Q140: 300 | R140: 0.428571 | S140: 180 | T140: 170 | U140: 10 | V140: 5.5 | W140: 67.914 | X140: 64 | Y140: 10 | Z140: 0.2 | AA140: 7.7 | AB140: 0.121 | AC140: 184 | AD140: 190 | AE140: 6 | AF140: 210 | AG140: 10 | AH140: 6 | AI140: 19 | AJ140: 1.21 | AK140: 0.09
A141: ST. LOUIS R-BURLINGTON N^R.R. BR | B141: 67 | C141: 1983-08-09 | F141: 22 | H141: 61 | I141: 0.00196617 | J141: 0.00239064 | K141: 2 | M141: 17 | O141: 52 | P141: 100 | Q141: 50 | R141: 0.333333 | S141: 150 | T141: 175 | U141: 13 | V141: 6.9 | W141: 78.4212 | X141: 71 | Y141: 10 | Z141: 0.07 | AA141: 7.8 | AB141: 0.0969999 | AC141: 155 | AD141: 161 | AE141: 6 | AF141: 300 | AG141: 10 | AH141: 10 | AI141: 16 | AJ141: 0.99 | AK141: 0.1
A142: ST. LOUIS R-BURLINGTON N^R.R. BR | B142: 67 | C142: 1983-09-20 | F142: 15 | H142: 64 | I142: 0.00169371 | J142: 0.00205936 | K142: 2 | M142: 15 | N142: 10 | O142: 56 | P142: 400 | Q142: 50 | R142: 0.178571 | S142: 180 | T142: 170 | U142: 14 | V142: 6.8 | W142: 66.6764 | X142: 83 | Y142: 10 | Z142: 0.1 | AA142: 7.8 | AB142: 0.088 | AC142: 171 | AD142: 177 | AE142: 6 | AF142: 280 | AG142: 16 | AH142: 12 | AI142: 36 | AJ142: 1.1 | AK142: 0.12
A143: ST. LOUIS R-BURLINGTON N^R.R. BR | B143: 67 | C143: 1983-10-12 | F143: 11 | H143: 54 | I143: 0.000694334 | J143: 0.000844234 | K143: 2 | M143: 11 | N143: 10 | O143: 64 | P143: 400 | Q143: 40 | R143: 0.333333 | S143: 240 | T143: 136 | U143: 17 | V143: 8.6 | W143: 77.4859 | X143: 71 | Y143: 10 | Z143: 0.11 | AA143: 7.5 | AB143: 0.033 | AC143: 166 | AD143: 171 | AE143: 5 | AF143: 150 | AG143: 14 | AH143: 7 | AI143: 24 | AJ143: 1.1 | AK143: 0.11
A144: ST. LOUIS R-BURLINGTON N^R.R. BR | B144: 67 | C144: 1983-11-08 | F144: 7 | H144: 54 | I144: 0.000507186 | J144: 0.000616683 | K144: 2 | M144: 17 | N144: 10 | O144: 60 | P144: 300 | Q144: 200 | R144: 0.0173913 | S144: 180 | T144: 165 | U144: 10 | V144: 9.5 | W144: 77.883 | X144: 68 | Y144: 10 | Z144: 0.11 | AA144: 7.5 | AB144: 0.0919999 | AC144: 167 | AD144: 172 | AE144: 5 | AF144: 2300 | AG144: 17 | AH144: 8 | AI144: 11 | AJ144: 0.99 | AK144: 0.13
A145: ST. LOUIS R-BURLINGTON N^R.R. BR | B145: 67 | C145: 1983-12-06 | H145: 46 | K145: 3 | M145: 6 | O145: 56 | P145: 1000 | Q145: 600 | R145: 0.5 | S145: 160 | T145: 118 | U145: 13 | V145: 11 | X145: 68 | Y145: 10 | Z145: 0.05 | AA145: 7.4 | AB145: 0.032 | AC145: 140 | AD145: 143 | AE145: 3 | AF145: 400 | AG145: 14 | AH145: 7 | AI145: 22 | AJ145: 0.88 | AK145: 0.15
A146: ST. LOUIS R-BURLINGTON N^R.R. BR | B146: 67 | C146: 1984-01-11 | H146: 51 | K146: 3 | L146: 5 | M146: 7 | P146: 120 | Q146: 900 | R146: 1.71428 | S146: 140 | T146: 115 | U146: 10 | V146: 12.6 | X146: 66 | Y146: 10 | Z146: 0.06 | AA146: 7.3 | AB146: 0.032 | AC146: 146 | AD146: 148 | AE146: 2 | AF146: 70 | AG146: 12 | AH146: 4 | AI146: 46 | AJ146: 0.99 | AK146: 0.15
A147: ST. LOUIS R-BURLINGTON N^R.R. BR | B147: 67 | C147: 1984-02-09 | H147: 53 | K147: 3 | M147: 7 | O147: 48 | P147: 450 | Q147: 39000 | R147: 3.75 | S147: 130 | T147: 104 | U147: 10 | V147: 12.3 | X147: 65 | Y147: 10 | Z147: 0.03 | AA147: 7.3 | AB147: 0.019 | AC147: 140 | AD147: 1 | AE147: 140 | AF147: 120 | AG147: 10 | AH147: 3 | AI147: 26 | AJ147: 0.88 | AK147: 0.22
A148: ST. LOUIS R-BURLINGTON N^R.R. BR | B148: 67 | C148: 1984-03-28 | F148: 1 | H148: 64 | I148: 0.00010928 | J148: 898764 | K148: 2 | M148: 10 | O148: 40 | P148: 21000 | Q148: 100 | R148: 35 | S148: 140 | T148: 160 | U148: 10 | V148: 12.4 | W148: 87.3338 | X148: 75 | Y148: 10 | Z148: 0.04 | AA148: 7.4 | AB148: 0.043 | AC148: 147 | AD148: 149 | AE148: 2 | AF148: 600 | AG148: 11 | AH148: 3 | AI148: 29 | AJ148: 0.88 | AK148: 0.3
A149: ST. LOUIS R-BURLINGTON N^R.R. BR | B149: 67 | C149: 1984-04-26 | F149: 9 | H149: 39 | I149: 0.000486105 | J149: 0.000591051 | K149: 2 | M149: 7 | O149: 40 | P149: 10 | Q149: 110 | R149: 0.04 | S149: 140 | T149: 122 | U149: 10 | V149: 11.3 | W149: 97.4208 | X149: 48 | Y149: 10 | Z149: 0.09 | AA149: 7.5 | AB149: 0.043 | AC149: 134 | AD149: 140 | AE149: 6 | AF149: 250 | AG149: 12 | AH149: 6 | AI149: 10 | AJ149: 0.99 | AK149: 0.05
A150: ST. LOUIS R-BURLINGTON N^R.R. BR | B150: 67 | C150: 1984-05-08 | F150: 8 | H150: 54 | I150: 0.000439335 | J150: 0.000534183 | K150: 1.8 | M150: 16 | O150: 48 | P150: 10 | Q150: 900 | R150: 0.166667 | S150: 180 | T150: 197 | U150: 10 | V150: 10.5 | W150: 88.2507 | X150: 66 | Y150: 10 | Z150: 0.07 | AA150: 7.6 | AB150: 0.06 | AC150: 159 | AD150: 165 | AE150: 6 | AF150: 60 | AG150: 16 | AH150: 10 | AI150: 18 | AJ150: 0.99 | AK150: 0.09
A151: ST. LOUIS R-BURLINGTON N^R.R. BR | B151: 67 | C151: 1984-06-12 | F151: 17 | H151: 49 | I151: 0.000695526 | J151: 0.000845684 | K151: 2 | M151: 7 | O151: 64 | P151: 90 | Q151: 600 | R151: 0.236842 | S151: 210 | T151: 128 | U151: 12 | V151: 8.2 | W151: 84.5421 | X151: 60 | Y151: 10 | Z151: 0.07 | AA151: 7.5 | AB151: 0.064 | AC151: 148 | AD151: 16 | AE151: 164 | AF151: 380 | AG151: 10 | AH151: 18 | AI151: 23 | AJ151: 1.54 | AK151: 0.11
A152: ST. LOUIS R-BURLINGTON N^R.R. BR | B152: 67 | C152: 1984-07-03 | F152: 25 | H152: 54 | I152: 0.000883701 | J152: 0.00107448 | K152: 2 | M152: 19 | O152: 72 | P152: 170 | Q152: 60 | R152: 2.42857 | S152: 240 | T152: 205 | U152: 13 | V152: 6.5 | W152: 77.395 | X152: 67 | Y152: 10 | Z152: 0.04 | AA152: 7.6 | AB152: 0.112 | AC152: 170 | AD152: 175 | AE152: 5 | AF152: 70 | AG152: 17 | AH152: 6 | AI152: 26 | AJ152: 1.52 | AK152: 0.11
A153: ST. LOUIS R-BURLINGTON N^R.R. BR | B153: 67 | C153: 1984-08-02 | F153: 20 | H153: 57 | I153: 0.00201819 | J153: 0.00245389 | K153: 2 | M153: 11 | O153: 40 | P153: 200 | Q153: 300 | R153: 0.461538 | S153: 140 | T153: 170 | V153: 7.8 | W153: 84.7917 | X153: 72 | Z153: 0.13 | AA153: 7.6 | AB153: 0.066 | AC153: 139 | AD153: 143 | AE153: 4 | AF153: 130 | AG153: 15 | AH153: 8 | AJ153: 0.55 | AK153: 0.15
A154: ST. LOUIS R-BURLINGTON N^R.R. BR | B154: 67 | C154: 1984-09-12 | F154: 16 | H154: 58 | I154: 0.0010428 | J154: 0.00126792 | K154: 1 | M154: 13 | O154: 20 | P154: 140 | Q154: 380 | R154: 0.264151 | S154: 80 | T154: 185 | U154: 10 | V154: 9 | W154: 90.0117 | X154: 69 | Y154: 10 | Z154: 0.09 | AA154: 7.6 | AB154: 0.054 | AC154: 120 | AD154: 125 | AE154: 5 | AF154: 530 | AG154: 12 | AH154: 7 | AI154: 16 | AJ154: 0.55 | AK154: 0.04
A155: ST. LOUIS R-BURLINGTON N^R.R. BR | B155: 67 | C155: 1984-10-16 | F155: 13 | H155: 67 | I155: 0.00145773 | J155: 0.00177244 | K155: 1.4 | M155: 23 | N155: 10 | O155: 40 | P155: 250 | Q155: 600 | R155: 1.78571 | S155: 140 | T155: 220 | U155: 10 | V155: 10 | W155: 94.3621 | X155: 83 | Y155: 10 | Z155: 0.1 | AA155: 7.8 | AB155: 0.112 | AC155: 179 | AD155: 156 | AE155: 7 | AF155: 140 | AG155: 16 | AH155: 13 | AI155: 14 | AJ155: 1.43 | AK155: 0.17
A156: ST. LOUIS R-BURLINGTON N^R.R. BR | B156: 67 | C156: 1984-11-14 | F156: 3 | H156: 64 | I156: 0.000265162 | J156: 0.000322408 | K156: 1 | M156: 19 | N156: 10 | O156: 48 | P156: 15000 | Q156: 400 | R156: 0.545455 | S156: 180 | T156: 150 | U156: 11 | V156: 11.8 | W156: 87.4258 | X156: 88 | Y156: 10 | Z156: 0.1 | AA156: 7.4 | AB156: 0.072 | AC156: 187 | AD156: 190 | AE156: 3 | AF156: 1100 | AG156: 22 | AH156: 9 | AI156: 23 | AJ156: 1.32 | AK156: 0.17
A157: ST. LOUIS R-BURLINGTON N^R.R. BR | B157: 67 | C157: 1984-12-12 | H157: 62 | I157: 0.000107938 | J157: 0.00013124 | K157: 2 | M157: 16 | O157: 52 | P157: 1000 | Q157: 5000 | R157: 4 | S157: 120 | T157: 220 | V157: 13.3 | W157: 85.5165 | X157: 79 | Z157: 0.05 | AA157: 7 | AB157: 0.06 | AC157: 172 | AD157: 175 | AE157: 3 | AF157: 100 | AG157: 16 | AH157: 5 | AJ157: 0.77 | AK157: 0.15
A158: ST. LOUIS R-BURLINGTON N^R.R. BR | B158: 67 | C158: 1985-01-17 | H158: 61 | I158: 0.000444449 | J158: 0.000540402 | K158: 4 | M158: 13 | O158: 40 | P158: 1000 | Q158: 300 | R158: 1.66667 | S158: 100 | T158: 170 | U158: 10 | V158: 12 | W158: 95.325 | X158: 84 | Y158: 10 | Z158: 0.09 | AA158: 7.6 | AB158: 0.05 | AC158: 159 | AD158: 1 | AE158: 160 | AF158: 600 | AG158: 12 | AH158: 4 | AI158: 45 | AJ158: 0.99 | AK158: 0.18
A159: ST. LOUIS R-BURLINGTON N^R.R. BR | B159: 67 | C159: 1985-02-14 | H159: 67 | K159: 3 | M159: 10 | N159: 10 | O159: 48 | P159: 1000 | Q159: 20 | R159: 3 | S159: 100 | T159: 190 | U159: 10 | V159: 12.4 | X159: 82 | Y159: 10 | Z159: 0.02 | AA159: 7.3 | AB159: 0.038 | AC159: 153 | AD159: 155 | AE159: 2 | AF159: 100 | AG159: 12 | AH159: 4 | AI159: 29 | AJ159: 0.66 | AK159: 0.24
A160: ST. LOUIS R-BURLINGTON N^R.R. BR | B160: 67 | C160: 1985-03-20 | F160: 2 | H160: 62 | K160: 3.2 | M160: 10 | O160: 28 | P160: 100 | Q160: 90 | R160: 0.333333 | S160: 100 | T160: 180 | U160: 14 | V160: 11.8 | X160: 77 | Y160: 10 | Z160: 0.07 | AA160: 7.2 | AB160: 0.047 | AC160: 162 | AD160: 1 | AE160: 163 | AF160: 60 | AG160: 12 | AH160: 5 | AI160: 19 | AJ160: 0.66 | AK160: 0.3
A161: ST. LOUIS R-BURLINGTON N^R.R. BR | B161: 67 | C161: 1985-04-17 | F161: 5 | H161: 47 | K161: 2.2 | M161: 12 | O161: 36 | P161: 20 | Q161: 900 | R161: 0.25 | S161: 80 | T161: 160 | U161: 11 | V161: 12.2 | X161: 57 | Y161: 10 | Z161: 0.09 | AA161: 7.6 | AB161: 0.062 | AC161: 124 | AD161: 129 | AE161: 5 | AF161: 80 | AG161: 12 | AH161: 8 | AI161: 17 | AJ161: 0.88 | AK161: 0.19
A162: ST. LOUIS R-BURLINGTON N^R.R. BR | B162: 67 | C162: 1985-05-07 | F162: 14 | H162: 40 | I162: 0.00063519 | J162: 0.000772322 | K162: 2 | M162: 14 | O162: 68 | P162: 320 | Q162: 80 | R162: 1.52381 | S162: 150 | T162: 160 | U162: 11 | V162: 8.7 | W162: 83.6651 | X162: 58 | Y162: 10 | Z162: 0.08 | AA162: 7.5 | AB162: 0.0739999 | AC162: 158 | AD162: 165 | AE162: 7 | AF162: 210 | AG162: 14 | AH162: 8 | AJ162: 1.21 | AK162: 0.15
A163: ST. LOUIS R-BURLINGTON N^R.R. BR | B163: 67 | C163: 1985-06-03 | F163: 15 | H163: 45 | I163: 0.000272492 | J163: 0.000331321 | K163: 2 | M163: 7 | N163: 10 | O163: 56 | P163: 300 | Q163: 50 | R163: 1 | S163: 210 | T163: 132 | U163: 10 | V163: 8.6 | W163: 84.3195 | X163: 58 | Y163: 10 | Z163: 0.04 | AA163: 7.4 | AB163: 0.05 | AC163: 135 | AD163: 12 | AE163: 147 | AF163: 80 | AG163: 6 | AH163: 16 | AI163: 18 | AJ163: 1.21 | AK163: 0.1
A164: ST. LOUIS R-BURLINGTON N^R.R. BR | B164: 67 | C164: 1985-07-09 | F164: 21 | H164: 37 | I164: 0.000836271 | J164: 0.00101681 | K164: 1.8 | M164: 7 | N164: 10 | O164: 64 | P164: 10 | Q164: 280 | R164: 0.0454545 | S164: 180 | T164: 116 | U164: 10 | V164: 6.4 | W164: 71.1161 | X164: 51 | Y164: 10 | Z164: 0.04 | AA164: 7.7 | AB164: 0.052 | AC164: 124 | AD164: 143 | AE164: 9 | AF164: 220 | AG164: 6 | AH164: 10 | AI164: 15 | AJ164: 0.88 | AK164: 0.11
A165: ST. LOUIS R-BURLINGTON N^R.R. BR | B165: 67 | C165: 1985-08-14 | F165: 18 | H165: 55 | I165: 0.000851427 | J165: 0.00103524 | K165: 1.8 | M165: 11 | N165: 10 | O165: 48 | P165: 2000 | Q165: 260 | R165: 0.682927 | S165: 150 | T165: 170 | U165: 14 | V165: 7.6 | W165: 80.0083 | X165: 68 | Y165: 10 | Z165: 0.1 | AA165: 7.4 | AB165: 0.085 | AC165: 159 | AD165: 10 | AE165: 169 | AF165: 410 | AG165: 9 | AH165: 14 | AI165: 21 | AJ165: 1.21 | AK165: 0.19
A166: ST. LOUIS R-BURLINGTON N^R.R. BR | B166: 67 | C166: 1985-11-13 | F166: 1 | H166: 57 | I166: 0.000339245 | J166: 0.000412485 | K166: 2 | M166: 13 | N166: 10 | O166: 64 | P166: 20 | Q166: 1300 | R166: 0.4 | T166: 187 | U166: 10 | V166: 11.4 | W166: 80.2934 | X166: 77 | Y166: 10 | Z166: 0.12 | AA166: 7.5 | AB166: 0.068 | AC166: 167 | AD166: 172 | AE166: 5 | AF166: 50 | AG166: 11 | AH166: 7 | AI166: 16 | AJ166: 1.6 | AK166: 0.12
A167: ST. LOUIS R-BURLINGTON N^R.R. BR | B167: 67 | C167: 1986-02-20 | H167: 62 | I167: 0.000416138 | J167: 0.000505978 | K167: 3 | L167: 5 | M167: 12 | N167: 10 | O167: 48 | P167: 110 | Q167: 2500 | R167: 11 | T167: 138 | U167: 10 | V167: 11 | X167: 75 | Y167: 10 | Z167: 0.19 | AA167: 7.3 | AB167: 0.06 | AC167: 156 | AD167: 160 | AE167: 4 | AF167: 10 | AG167: 7 | AH167: 5 | AI167: 26 | AJ167: 1 | AK167: 0.25
A168: ST. LOUIS R-BURLINGTON N^R.R. BR | B168: 67 | C168: 1986-04-03 | H168: 41 | I168: 0.000672532 | J168: 0.000817725 | K168: 3 | L168: 5 | M168: 8 | N168: 10 | O168: 32 | P168: 1800 | Q168: 80 | R168: 8.57143 | T168: 112 | U168: 10 | V168: 13.1 | X168: 52 | Y168: 10 | AA168: 7.3 | AB168: 0.081 | AC168: 141 | AD168: 165 | AE168: 24 | AF168: 210 | AG168: 7 | AH168: 16 | AI168: 16 | AJ168: 1 | AK168: 0.28
A169: ST. LOUIS R-BURLINGTON N^R.R. BR | B169: 67 | C169: 1986-05-06 | F169: 13.2 | H169: 34 | I169: 0.0047688 | J169: 0.00579834 | K169: 1 | M169: 8 | N169: 10 | O169: 48 | P169: 100 | Q169: 60 | R169: 4 | T169: 110 | U169: 12 | V169: 8.6 | W169: 81.1388 | X169: 50 | Y169: 28 | Z169: 0.07 | AA169: 7.4 | AB169: 0.073 | AC169: 125 | AD169: 151 | AE169: 26 | AF169: 20 | AG169: 12 | AH169: 14 | AI169: 82 | AJ169: 1 | AK169: 0.09
A170: ST. LOUIS R-BURLINGTON N^R.R. BR | B170: 67 | C170: 1986-05-07 | F170: 10.8 | P170: 300 | Q170: 500 | R170: 6 | T170: 70 | V170: 10.4 | W170: 93.6937 | AA170: 7.6 | AF170: 10
A171: ST. LOUIS R-BURLINGTON N^R.R. BR | B171: 67 | C171: 1986-05-08 | F171: 10.8 | P171: 240 | Q171: 500 | R171: 2.4 | T171: 70 | V171: 10.4 | W171: 93.6937 | AA171: 7.6 | AF171: 100
A172: ST. LOUIS R-BURLINGTON N^R.R. BR | B172: 67 | C172: 1986-05-09 | F172: 10.4 | P172: 50 | Q172: 900 | R172: 5 | T172: 65 | V172: 10.8 | W172: 95.5752 | AA172: 7.5 | AF172: 10
A173: ST. LOUIS R-BURLINGTON N^R.R. BR | B173: 67 | C173: 1986-05-12 | F173: 13.3 | P173: 260 | Q173: 500 | R173: 1.44444 | T173: 60 | V173: 10.5 | W173: 99.0566 | AA173: 7.6 | AF173: 180
A174: ST. LOUIS R-BURLINGTON N^R.R. BR | B174: 67 | C174: 1986-05-13 | F174: 13.2 | H174: 38 | I174: 0.000717099 | J174: 0.000871914 | K174: 2 | M174: 8 | N174: 10 | O174: 56 | P174: 140 | Q174: 80 | R174: 0.325581 | T174: 120 | U174: 10 | V174: 10.5 | W174: 99.0648 | X174: 55 | Y174: 10 | Z174: 0.09 | AA174: 7.5 | AB174: 0.06 | AC174: 131 | AD174: 11 | AE174: 142 | AF174: 430 | AG174: 11 | AH174: 12 | AI174: 26 | AJ174: 0.9 | AK174: 0.05
A175: ST. LOUIS R-BURLINGTON N^R.R. BR | B175: 67 | C175: 1986-06-18 | F175: 18.2 | H175: 52 | I175: 0.00364902 | J175: 0.00443681 | K175: 2 | M175: 8 | N175: 10 | O175: 40 | P175: 300 | Q175: 80 | R175: 1 | T175: 140 | U175: 12 | V175: 9.5 | W175: 100.008 | X175: 63 | Y175: 10 | Z175: 0.35 | AA175: 7.6 | AB175: 0.046 | AC175: 146 | AD175: 164 | AE175: 18 | AF175: 80 | AG175: 12 | AH175: 18 | AI175: 20 | AJ175: 1 | AK175: 0.08
A176: ST. LOUIS R-BURLINGTON N^R.R. BR | B176: 67 | C176: 1986-06-30 | F176: 27 | H176: 56 | I176: 0.00403681 | J176: 0.00490833 | K176: 2 | M176: 12 | N176: 10 | O176: 36 | P176: 400 | Q176: 50 | R176: 1 | T176: 175 | U176: 10 | V176: 8.8 | W176: 108.655 | X176: 66 | Y176: 10 | Z176: 0.07 | AA176: 7.2 | AB176: 0.063 | AC176: 154 | AD176: 162 | AE176: 8 | AF176: 80 | AG176: 13 | AH176: 14 | AI176: 18 | AJ176: 1.1 | AK176: 0.1
A177: ST. LOUIS R-BURLINGTON N^R.R. BR | B177: 67 | C177: 1986-07-08 | F177: 19.1 | H177: 53 | I177: 0.000135227 | J177: 0.000164421 | K177: 1 | M177: 7 | N177: 10 | O177: 48 | P177: 200 | Q177: 700 | R177: 0.384615 | T177: 144 | U177: 10 | V177: 8.6 | W177: 91.4955 | X177: 63 | Y177: 10 | Z177: 0.2 | AA177: 7.7 | AB177: 0.06 | AC177: 136 | AD177: 143 | AE177: 7 | AF177: 130 | AG177: 13 | AH177: 14 | AI177: 10 | AJ177: 0.9 | AK177: 0.14
A178: ST. LOUIS R-BURLINGTON N^R.R. BR | B178: 67 | C178: 1986-08-05 | F178: 23.7 | H178: 60 | I178: 724071 | J178: 880391 | K178: 3 | M178: 22 | N178: 10 | O178: 52 | P178: 330 | Q178: 200 | R178: 1.73684 | T178: 210 | U178: 10 | V178: 9.4 | W178: 110.611 | X178: 75 | Y178: 10 | Z178: 0.2 | AA178: 7.6 | AB178: 0.127 | AC178: 183 | AD178: 13 | AE178: 196 | AF178: 190 | AG178: 17 | AH178: 12 | AI178: 46 | AJ178: 1.3 | AK178: 0.1
A179: ST. LOUIS R-BURLINGTON N^R.R. BR | B179: 67 | C179: 1986-10-01 | F179: 14.9 | H179: 46 | K179: 3 | M179: 8 | N179: 10 | O179: 60 | P179: 10 | Q179: 20 | R179: 0.25 | T179: 131 | U179: 10 | V179: 9.6 | W179: 94.125 | X179: 58 | Y179: 10 | Z179: 0.02 | AA179: 7.4 | AB179: 0.06 | AC179: 150 | AD179: 4 | AE179: 514 | AF179: 40 | AG179: 10 | AH179: 6 | AI179: 23 | AJ179: 1 | AK179: 0.06
A180: ST. LOUIS R-BURLINGTON N^R.R. BR | B180: 67 | C180: 1986-11-05 | F180: 4 | H180: 56 | K180: 4 | M180: 7 | N180: 10 | O180: 48 | P180: 100 | Q180: 300 | R180: 0.25 | T180: 154 | U180: 10 | V180: 13.1 | W180: 100.007 | X180: 71 | Y180: 10 | Z180: 0.02 | AA180: 7.5 | AB180: 0.044 | AC180: 157 | AD180: 161 | AE180: 4 | AF180: 80 | AG180: 11 | AH180: 6 | AI180: 22 | AJ180: 1 | AK180: 0.07
A181: ST. LOUIS R-BURLINGTON N^R.R. BR | B181: 67 | C181: 1987-04-22 | F181: 15.3 | H181: 62 | I181: 0.000276124 | J181: 0.000335736 | K181: 2 | M181: 15 | N181: 10 | O181: 36 | P181: 150 | Q181: 80 | R181: 15 | T181: 195 | U181: 13 | V181: 12.1 | W181: 118.645 | X181: 72 | Y181: 10 | Z181: 0.02 | AA181: 7.7 | AB181: 0.032 | AC181: 150 | AD181: 155 | AE181: 5 | AF181: 10 | AG181: 15 | AH181: 5 | AI181: 25 | AJ181: 0.9 | AK181: 0.1
A182: ST. LOUIS R-BURLINGTON N^R.R. BR | B182: 67 | C182: 1987-05-13 | F182: 20 | H182: 64 | I182: 0.000865979 | J182: 0.00105294 | K182: 4 | M182: 19 | O182: 44 | P182: 10 | Q182: 30 | R182: 1 | T182: 220 | U182: 11 | V182: 9.4 | W182: 102.193 | X182: 75 | Y182: 10 | Z182: 0.07 | AA182: 7.5 | AB182: 0.07 | AC182: 168 | AD182: 12 | AE182: 180 | AF182: 10 | AG182: 14 | AH182: 6 | AI182: 19 | AJ182: 1 | AK182: 0.05
A183: ST. LOUIS R-BURLINGTON N^R.R. BR | B183: 67 | C183: 1987-06-03 | F183: 18.5 | H183: 45 | I183: 0.0022081 | J183: 0.00268481 | K183: 2 | M183: 20 | O183: 64 | P183: 140 | Q183: 100 | R183: 1 | T183: 175 | U183: 11 | V183: 10.1 | W183: 106.336 | X183: 59 | Y183: 10 | Z183: 0.25 | AA183: 7.4 | AB183: 0.12 | AC183: 163 | AD183: 213 | AE183: 50 | AF183: 30 | AG183: 14 | AH183: 15 | AI183: 27 | AJ183: 1.3 | AK183: 0.08
A184: ST. LOUIS R-BURLINGTON N^R.R. BR | B184: 67 | C184: 1987-10-07 | F184: 11.5 | H184: 70 | I184: 0.000329887 | J184: 0.000401106 | K184: 2 | O184: 48 | P184: 10 | R184: 0.142857 | T184: 225 | U184: 10 | V184: 9.6 | W184: 86.5002 | X184: 85 | Y184: 10 | Z184: 0.1 | AA184: 7.2 | AB184: 0.0739999 | AC184: 197 | AD184: 204 | AE184: 7 | AF184: 70 | AG184: 18 | AH184: 10 | AI184: 18 | AJ184: 1.3 | AK184: 0.06

Sheet St Louis
A1: Station ID | B1: Record_No | C1: Date Sampled | D1: Time | E1: Latitude | F1: Longitude | G1: Temp (F) | H1: Turbitity | I1: Color | J1: Conductivity | K1: DO | L1: DO Saturated Percent | M1: BOD 5Day | N1: COD | O1: pH | P1: CaCO3 | Q1: Residue Total | R1: Residue Diss-105 | S1: Residue Tot NFLT | T1: N-Total | U1: NO3-N Total | V1: Un-ionized NH3-N | W1: Un-ionized NH3+Nh3 | X1: Total Kjeld | Y1: Total Phosphate | Z1: Total Hardness | AA1: Chloride | AB1: Sulfate | AC1: Cadmium | AD1: Chromium | AE1: Copper | AF1: Lead | AG1: Nickel | AH1: Zinc | AI1: Total Coli | AJ1: Fecal Coli | AK1: Fecal Strip | AL1: Fecal Ratio
A2: SL 00 | C2: 1973-04-04 | G2: 33.99998 | H2: 4 | I2: 40 | J2: 110 | K2: 11.7 | L2: 82.40269 | M2: 0.7 | N2: 20 | O2: 7.3 | P2: 42 | Q2: 63 | R2: 53 | Y2: 0.03 | Z2: 38.5 | AA2: 9 | AB2: 11 | AI2: 90 | AJ2: 30 | AK2: 10 | AL2: 3
A3: SL 00 | C3: 1973-04-11 | G3: 33.99998 | H3: 2 | I3: 15 | J3: 100 | K3: 13.3 | L3: 93.6723 | M3: 0.4 | N3: 19 | O3: 7.6 | P3: 44 | Q3: 51 | R3: 50.5 | Y3: 0.01 | Z3: 29 | AA3: 9.8 | AB3: 12 | AI3: 520 | AJ3: 10 | AK3: 6 | AL3: 1.6667
A4: SL 00 | C4: 1973-04-18 | G4: 33.99998 | H4: 4 | I4: 15 | J4: 90 | K4: 13.3 | L4: 93.66574 | M4: 1.9 | N4: 35 | O4: 7.4 | P4: 43 | Q4: 51 | R4: 42 | Y4: 0.02 | Z4: 29 | AA4: 3.6 | AB4: 6 | AI4: 80 | AJ4: 10 | AK4: 50 | AL4: 0.2
A5: SL 00 | C5: 1973-04-25 | G5: 42.99998 | H5: 8 | I5: 90 | J5: 150 | K5: 7.4 | L5: 59.20809 | M5: 5.5 | N5: 48 | O5: 7.1 | P5: 49 | Q5: 139 | R5: 129.5 | Y5: 0.04 | Z5: 41.5 | AA5: 12.25 | AB5: 10.5 | AI5: 110 | AJ5: 2 | AK5: 6 | AL5: 0.33333
A6: SL 00 | C6: 1973-05-02 | G6: 41 | H6: 6.5 | I6: 80 | J6: 115 | K6: 7.1 | L6: 55.47146 | N6: 44 | O6: 7.8 | P6: 41 | Q6: 112 | R6: 100 | Y6: 0.05 | Z6: 24 | AA6: 4.5 | AB6: 3 | AI6: 770 | AJ6: 110 | AK6: 46 | AL6: 2.3913
A7: SL 00 | C7: 1973-05-09 | G7: 37.99994 | H7: 1.2 | I7: 15 | J7: 95 | K7: 12.9 | L7: 95.55659 | M7: 0.3 | N7: 22 | O7: 7.6 | P7: 40 | Q7: 79 | R7: 71 | Y7: 0.02 | Z7: 20 | AA7: 1 | AB7: 8 | AI7: 900 | AJ7: 5 | AK7: 0
A8: SL 00 | C8: 1973-05-16 | G8: 42.000008 | H8: 2.1 | I8: 20 | K8: 12.4 | L8: 99.2033 | M8: 0.6 | N8: 12 | O8: 7.6 | P8: 40 | Q8: 53 | R8: 51 | Y8: 0.005 | Z8: 24 | AA8: 3 | AB8: 6 | AI8: 14 | AJ8: 2 | AK8: 0
A9: SL 00 | C9: 1973-05-23 | G9: 50 | H9: 4.7 | I9: 125 | K9: 8.3 | L9: 73.45637 | M9: 2.2 | N9: 40 | O9: 7.35 | P9: 38 | Q9: 50 | R9: 41 | T9: 0.1 | Y9: 0.04 | Z9: 24 | AA9: 6.5 | AB9: 9.5 | AI9: 55 | AJ9: 50 | AK9: 18 | AL9: 2.77778
A10: SL 00 | C10: 1973-05-30 | G10: 50 | H10: 5.9 | I10: 80 | K10: 10.1 | L10: 89.38392 | M10: 1.6 | N10: 28 | O10: 7.65 | P10: 41 | Q10: 91 | R10: 85 | Y10: 0.015 | Z10: 25 | AA10: 3.6 | AB10: 3 | AI10: 90 | AJ10: 5 | AK10: 5 | AL10: 1
A11: SL 00 | C11: 1973-06-06 | G11: 44.99996 | H11: 6.2 | I11: 20 | K11: 11.7 | L11: 95.90417 | M11: 0.1 | N11: 6 | O11: 7.7 | P11: 41 | Q11: 103 | R11: 85 | X11: 0.2 | Y11: 0.015 | Z11: 37 | AA11: 2.5 | AB11: 6 | AI11: 180 | AJ11: 10 | AK11: 10 | AL11: 1
A12: SL 00 | C12: 1973-06-13 | G12: 61.499984 | H12: 4.6 | I12: 100 | J12: 120 | K12: 6.9 | L12: 69.00445 | M12: 0.6 | N12: 36 | O12: 7.5 | P12: 42 | Q12: 88 | R12: 78 | X12: 0.8 | Y12: 0.05 | Z12: 46 | AA12: 6.5 | AB12: 8 | AI12: 330 | AJ12: 110 | AK12: 10 | AL12: 11
A13: SL 00 | C13: 1973-06-20 | G13: 50.500004 | H13: 5.5 | I13: 30 | K13: 11 | L13: 97.34979 | M13: 0.8 | N13: 7.7 | O13: 43.5 | P13: 67 | Q13: 63 | R13: 0.45 | Y13: 0.005 | Z13: 36 | AA13: 4.5 | AB13: 7 | AI13: 650 | AJ13: 0 | AK13: 0
A14: SL 00 | C14: 1973-06-26 | G14: 59 | H14: 5.2 | I14: 60 | J14: 105 | K14: 8.6 | L14: 84.31866 | M14: 1.2 | N14: 16 | O14: 7.8 | P14: 44 | Q14: 125 | R14: 120 | X14: 0.8 | Y14: 0.055 | Z14: 45 | AA14: 6 | AB14: 8 | AI14: 650 | AJ14: 0 | AK14: 0
A15: SL 00 | C15: 1973-07-02 | G15: 57.000002 | H15: 3 | I15: 20 | J15: 95 | K15: 10.2 | L15: 98.07995 | M15: 1.2 | N15: 4 | O15: 7.8 | P15: 42 | Q15: 71 | R15: 64 | X15: 0.1 | Y15: 0.02 | Z15: 40 | AA15: 3.25 | AB15: 5 | AI15: 310 | AJ15: 0 | AK15: 0
A16: SL 00 | C16: 1973-07-12 | G16: 61.99997 | H16: 3.6 | I16: 70 | J16: 105 | K16: 9.2 | L16: 94.84973 | M16: 1.6 | N16: 8 | O16: 8 | P16: 43 | Q16: 79 | R16: 66 | X16: 0.1 | Y16: 0.05 | Z16: 40 | AA16: 4.5 | AB16: 6.5 | AI16: 1270 | AJ16: 10 | AK16: 30 | AL16: 0.333333
A17: SL 00 | C17: 1973-07-17 | G17: 64.999976 | H17: 4.3 | I17: 70 | J17: 120 | K17: 8.4 | L17: 88.42752 | M17: 3.8 | N17: 84 | O17: 7.65 | P17: 44 | Q17: 115 | R17: 99 | X17: 0.55 | Y17: 0.015 | Z17: 45 | AA17: 7.75 | AB17: 10.5 | AI17: 720 | AJ17: 10 | AK17: 10 | AL17: 1
A18: SL 00 | C18: 1973-07-23 | G18: 61.99997 | H18: 3.2 | I18: 70 | J18: 105 | K18: 8.7 | L18: 89.69532 | M18: 1 | N18: 24 | O18: 7.85 | P18: 43 | Q18: 82 | R18: 78.5 | X18: 0.2 | Y18: 0.035 | Z18: 42 | AA18: 5 | AB18: 6 | AI18: 1040 | AJ18: 20 | AK18: 20 | AL18: 1
A19: SL 00 | C19: 1973-07-30 | G19: 61.99997 | H19: 3.5 | I19: 20 | J19: 95 | K19: 9.3 | L19: 95.87971 | M19: 1.8 | N19: 8 | O19: 8.05 | P19: 42 | Q19: 79 | R19: 72.5 | X19: 0.15 | Y19: 0.025 | Z19: 48 | AA19: 3.5 | AB19: 5 | AI19: 4800 | AJ19: 40 | AK19: 40 | AL19: 1
A20: SL 00 | C20: 1973-08-06 | G20: 68.999972 | H20: 4.9 | I20: 90 | J20: 145 | K20: 6.3 | L20: 70.00837 | M20: 0.4 | N20: 7.55 | O20: 52 | P20: 131 | Q20: 131 | R20: 125 | X20: 1.2 | Y20: 0.09 | Z20: 64 | AA20: 12 | AB20: 10.5 | AI20: 34100 | AJ20: 30 | AK20: 60 | AL20: 0.5
A21: SL 00 | C21: 1973-08-13 | G21: 66.999992 | H21: 4.2 | I21: 81 | J21: 140 | K21: 6.6 | L21: 70.21879 | M21: 1.8 | N21: 12 | O21: 7.5 | P21: 51 | Q21: 110 | R21: 106 | X21: 0.1 | Y21: 0.07 | Z21: 62 | AA21: 9 | AB21: 12 | AI21: 2300 | AJ21: 30 | AK21: 40 | AL21: 0.75
A22: SL 00 | C22: 1973-08-20 | G22: 66.49997 | H22: 4.4 | I22: 60 | J22: 120 | K22: 7.1 | L22: 75.53695 | M22: 0.2 | O22: 7.35 | P22: 49 | Q22: 93 | R22: 87 | X22: 0.55 | Y22: 0.04 | Z22: 61 | AA22: 7 | AB22: 10.5 | AI22: 3200 | AJ22: 10 | AK22: 10 | AL22: 1
A23: SL 00 | C23: 1973-08-27 | G23: 63.5 | H23: 3.5 | I23: 60 | J23: 120 | K23: 8.6 | L23: 90.531 | M23: 0.6 | N23: 20 | O23: 7.55 | P23: 44 | Q23: 136 | R23: 131 | T23: 0.12 | V23: 0.00139 | W23: 0.00169 | X23: 0.55 | Y23: 0.025 | Z23: 58 | AA23: 5.5 | AB23: 7 | AI23: 900 | AJ23: 30 | AK23: 20 | AL23: 1.5
A24: SL 00 | C24: 1973-09-04 | G24: 68.999972 | H24: 4.2 | I24: 100 | K24: 6 | L24: 66.6665 | O24: 7.25 | Q24: 120 | R24: 112.4 | X24: 1.05 | Y24: 0.07 | AI24: 5200 | AJ24: 10 | AK24: 200 | AL24: 0.05
A25: SL 00 | C25: 1973-09-17 | G25: 61.499984 | H25: 3.2 | I25: 80 | K25: 7 | L25: 70.00454 | M25: 2.8 | N25: 32 | O25: 7.5 | P25: 48 | Q25: 83 | R25: 79 | X25: 0.65 | Y25: 0.045 | Z25: 60 | AA25: 6.5 | AB25: 11 | AI25: 400 | AJ25: 10 | AK25: 10 | AL25: 1
A26: SL 00 | C26: 1973-10-01 | G26: 55.000004 | H26: 1.7 | I26: 0 | K26: 10.2 | L26: 96.22639 | M26: 0 | O26: 7.65 | P26: 75 | T26: 0.45 | U26: 0.00459 | W26: 0.00558 | X26: 0.4 | Y26: 0.02 | AI26: 900 | AJ26: 10 | AK26: 10 | AL26: 1
A27: SL 00 | C27: 1973-10-08 | G27: 53.499992 | H27: 3.1 | I27: 90 | K27: 9 | L27: 83.33927 | M27: 0.3 | N27: 20 | O27: 7.5 | P27: 47 | Q27: 134 | R27: 133.2 | X27: 0.55 | Y27: 0.025 | Z27: 59 | AA27: 7 | AB27: 9 | AI27: 1600 | AJ27: 10 | AK27: 10 | AL27: 1
A28: SL 00 | C28: 1973-10-15 | G28: 53.999996 | H28: 12 | I28: 200 | K28: 7.6 | L28: 70.37034 | O28: 7.2 | Q28: 172 | R28: 159 | Y28: 0.04 | AI28: 2300 | AJ28: 10 | AK28: 90 | AL28: 0.11111
A29: SL 00 | C29: 1973-10-29 | G29: 46.500008 | H29: 7.3 | I29: 90 | K29: 7.9 | L29: 66.3898 | M29: 1.6 | N29: 24 | O29: 7.2 | P29: 44 | Q29: 126 | R29: 116.5 | X29: 1.1 | Y29: 0.025 | Z29: 50 | AA29: 4.5 | AB29: 5 | AI29: 2200 | AJ29: 10 | AK29: 180 | AL29: 0.05556
A30: SL 00 | C30: 1973-11-05 | G30: 42.999998 | H30: 7.4 | I30: 75 | K30: 10.9 | L30: 87.19996 | M30: 4 | O30: 7.35 | Q30: 179 | R30: 173.4 | X30: 0.2 | Y30: 0.01 | AI30: 2500 | AJ30: 40 | AK30: 50 | AL30: 0.8
A31: SL 00 | C31: 1974-01-29 | H31: 4.8 | I31: 30 | K31: 9.4 | M31: 4 | O31: 7.2 | P31: 44 | Q31: 81 | R31: 78 | S31: 3 | T31: 0.12 | U31: 0.26 | X31: 0.66 | Y31: 0.027 | Z31: 31 | AA31: 4 | AI31: 1800 | AJ31: 150
A32: SL 00 | C32: 1974-01-30 | H32: 2.6 | I32: 35 | K32: 11.6 | M32: 2 | O32: 7.2 | P32: 45 | Q32: 66 | R32: 65 | S32: 1 | T32: 0.04 | U32: 0.26 | X32: 0.22 | Y32: 0.023 | Z32: 34 | AA32: 4 | AI32: 1300 | AJ32: 130 | AK32: 40 | AL32: 3.25
A33: SL 00 | C33: 1974-02-06 | H33: 2.5 | I33: 20 | K33: 11.8 | M33: 2 | O33: 7.3 | P33: 46 | Q33: 70 | R33: 69 | S33: 1 | T33: 0.02 | U33: 0.34 | X33: 0.22 | Y33: 0.027 | Z33: 37 | AA33: 5 | AB33: 7 | AI33: 600 | AJ33: 80 | AK33: 30 | AL33: 2.666667
A34: SL 00 | C34: 1974-03-25 | H34: 2.3 | I34: 20 | K34: 11.2 | M34: 3 | O34: 7.2 | P34: 43 | Q34: 87 | R34: 83 | S34: 4 | T34: 0.03 | U34: 0.19 | X34: 0.33 | Y34: 0.03 | Z34: 45 | AA34: 4 | AB34: 6 | AI34: 300 | AJ34: 10 | AK34: 20 | AL34: 0.5
A35: SL 00 | C35: 1974-03-27 | H35: 2.7 | I35: 35 | K35: 8.8 | M35: 6 | N35: 12 | O35: 6.9 | P35: 58 | Q35: 71 | R35: 70 | S35: 1 | T35: 0.08 | U35: 0.2 | X35: 0.55 | Y35: 0.047 | Z35: 40 | AA35: 7 | AB35: 5 | AI35: 560 | AJ35: 10 | AK35: 40 | AL35: 0.25
A36: SL 00 | C36: 1974-04-02 | H36: 1.1 | I36: 15 | K36: 12.1 | M36: 3 | N36: 12 | O36: 7.4 | P36: 44 | Q36: 46 | R36: 44 | S36: 2 | T36: 0.01 | U36: 0.21 | X36: 0.22 | Y36: 0.03 | Z36: 25 | AA36: 5 | AB36: 5 | AI36: 480 | AJ36: 20 | AK36: 40 | AL36: 0.5
A37: SL 00 | C37: 1974-04-03 | H37: 1.4 | I37: 20 | K37: 12.4 | M37: 2 | N37: 20 | O37: 7.2 | P37: 45 | Q37: 241 | R37: 240 | T37: 0.01 | U37: 0.26 | X37: 0.11 | Y37: 0.03 | Z37: 35 | AA37: 6 | AB37: 1 | AI37: 320 | AJ37: 10 | AK37: 50 | AL37: 0.2
A38: SL 00 | C38: 1974-06-04 | H38: 2.2 | I38: 60 | K38: 10.9 | M38: 1 | N38: 12 | O38: 7.8 | P38: 61 | Q38: 81 | R38: 78 | S38: 3 | T38: 0.09 | U38: 0.16 | W38: . | X38: 0.45 | Y38: 0.029 | Z38: 23 | AA38: 3 | AB38: 5 | AI38: 1000 | AJ38: 40
A39: SL 00 | C39: 1974-06-05 | H39: 4.4 | I39: 110 | K39: 7.5 | M39: 3 | N39: 44 | O39: 7.8 | P39: 39 | Q39: 142 | R39: 136 | S39: 6 | T39: 0.14 | U39: 0.1 | X39: 0.75 | Y39: 0.04 | Z39: 39 | AA39: 6 | AB39: 9 | AI39: 1700 | AJ39: 10
A40: SL 00 | C40: 1974-06-11 | I40: 165 | K40: 5.4 | M40: 3 | N40: 64 | O40: 7.5 | P40: 43 | Q40: 119 | R40: 107 | S40: 12 | T40: 0.1 | U40: 0.01 | X40: 0.9 | Y40: 0.05 | Z40: 48 | AA40: 8 | AB40: 12 | AI40: 3400 | AJ40: 40
A41: SL 00 | C41: 1974-06-12 | H41: 15 | I41: 150 | M41: 3 | N41: 60 | O41: 7.4 | P41: 44 | Q41: 137 | R41: 128 | S41: 9 | T41: 0.23 | U41: 0.01 | X41: 1 | Y41: 0.08 | Z41: 50 | AA41: 9 | AB41: 15 | AI41: 2100 | AJ41: 10
A42: SL 00 | C42: 1974-07-09 | H42: 2.5 | I42: 20 | K42: 10.7 | M42: 1 | N42: 20 | O42: 7.8 | P42: 0.38 | Q42: 54 | R42: 52 | S42: 2 | T42: 0.01 | U42: 0.18 | X42: 0.2 | Y42: 0.027 | Z42: 44 | AA42: 3 | AB42: 3 | AI42: 600 | AJ42: 10
A43: SL 00 | C43: 1974-07-10 | K43: 10.1 | T43: 0.02 | U43: 0.13 | X43: 0.35 | AI43: 4600
A44: SL 00 | C44: 1975-01-07 | K44: 12.3 | M44: 1 | N44: 12 | O44: 7.8 | P44: 42 | Q44: 69 | R44: 67 | S44: 2 | T44: 0.05 | U44: 0.48 | X44: 0.1 | Y44: 0.007 | Z44: 50 | AA44: 3 | AB44: 3 | AI44: 300 | AJ44: 70 | AK44: 50 | AL44: 1.4
A45: SL 00 | C45: 1975-01-08 | K45: 10.3 | T45: 0.13 | U45: 0.22 | X45: 0.44 | AI45: 800 | AJ45: 90
A46: SL 00 | C46: 1975-02-04 | H46: 3.1 | I46: 30 | K46: 10.2 | M46: 1.6 | N46: 28 | O46: 7.4 | P46: 49 | Q46: 4 | R46: 2 | S46: 2 | T46: 0.15 | U46: 0.18 | X46: 0.77 | Y46: 0.037 | Z46: 74 | AA46: 5.5 | AB46: 5 | AI46: 400 | AJ46: 20
A47: SL 00 | C47: 1975-02-05 | K47: 28 | T47: 0.1 | U47: 0.24 | X47: 0.66 | AI47: 600 | AJ47: 230
A48: SL 00 | C48: 1975-03-04 | H48: 2.8 | I48: 50 | K48: 6.2 | M48: 3.2 | N48: 32 | O48: 7.2 | P48: 59 | Q48: 128 | R48: 125.6 | S48: 2.4 | T48: 0.23 | U48: 0.16 | X48: 1.1 | Y48: 0.083 | Z48: 74 | AA48: 9.5 | AB48: 6 | AI48: 500 | AJ48: 130 | AK48: 60 | AL48: 2.16667
A49: SL 00 | C49: 1975-03-05 | T49: 0.3 | U49: 0.2 | X49: 0.66 | AI49: 2300 | AJ49: 320 | AK49: 120 | AL49: 2.66667
A50: SL 00 | C50: 1975-04-02 | K50: 9.8 | T50: 0.16 | U50: 0.25 | X50: 0.55 | AI50: 100 | AJ50: 50
A51: SL 00 | C51: 1975-05-05 | G51: 42.8 | H51: 12 | I51: 140 | K51: 9.5 | L51: 76.00509 | M51: 3 | N51: 80 | O51: 7.4 | P51: 26 | Q51: 140 | R51: 124 | S51: 16 | T51: 0.07 | U51: 0.16 | V51: 0.00024 | W51: 0.00029 | X51: 0.99 | Y51: 0.23 | Z51: 36 | AA51: 6 | AB51: 13 | AI51: 1200 | AJ51: 10 | AK51: 50 | AL51: 0.2
A52: SL 00 | C52: 1975-05-06 | G52: 45.5 | K52: 9.7 | L52: 79.50816 | T52: 0.05 | U52: 0.17 | X52: 0.88 | AI52: 1100 | AJ52: 10 | AK52: 400 | AL52: 0.025
A53: SL 00 | C53: 1975-06-04 | G53: 51.8 | H53: 4.6 | I53: 40 | K53: 9.6 | L53: 86.49072 | M53: 7 | N53: 84 | O53: 7.2 | P53: 41 | Q53: 91 | R53: 84 | S53: 7 | T53: 0.06 | U53: 0.2 | V53: 0.00019 | W53: 0.00023 | X53: 0.88 | Y53: 0.04 | Z53: 46 | AA53: 5 | AB53: 7 | AI53: 100 | AJ53: 10 | AK53: 100 | AL53: 0.1
A54: SL 00 | C54: 1975-07-01 | G54: 69.8 | H54: 6.5 | I54: 200 | K54: 4.8 | L54: 53.3365 | M54: 3.2 | N54: 68 | O54: 7.4 | P54: 40 | Q54: 122 | R54: 114 | S54: 8 | T54: 0.12 | U54: 0.18 | V54: 0.00127 | W54: 0.00154 | X54: 1.21 | Y54: 0.093 | Z54: 51 | AA54: 6 | AB54: 15 | AI54: 4100 | AJ54: 40 | AK54: 90 | AL54: 0.44444
A55: SL 00 | C55: 1975-08-04 | G55: 53.6 | H55: 3.1 | I55: 20 | K55: 11 | L55: 101.8633 | M55: 1.4 | N55: 16 | O55: 7.5 | P55: 42 | Q55: 13 | R55: 11 | S55: 2.4 | T55: 0.02 | U55: 0.32 | V55: 0.00014 | W55: 0.00017 | X55: 0.66 | Y55: 0.013 | Z55: 47 | AA55: 11 | AB55: 9 | AI55: 200 | AJ55: 40 | AK55: 10 | AL55: 4
A56: SL 00 | C56: 1975-08-05 | G56: 57.2 | K56: 9.5 | L56: 91.34614 | T56: 0.05 | U56: 0.25 | X56: 0.44 | AI56: 1300 | AJ56: 10 | AK56: 130 | AL56: 0.07692
A57: SL 00 | C57: 1975-09-03 | G57: 66.2 | H57: 5 | I57: 40 | K57: 9 | L57: 95.75018 | M57: 1.6 | N57: 8 | O57: 7.6 | P57: 46 | Q57: 85 | R57: 77 | S57: 7.6 | T57: 0.05 | U57: 0.25 | V57: 0.00072 | W57: 0.00088 | X57: 0.55 | Y57: 0.077 | Z57: 54 | AA57: 6 | AB57: 9 | AI57: 100 | AJ57: 10 | AK57: 100 | AL57: 0.1
A58: SL 00 | C58: 1975-09-04 | G58: 60.8 | K58: 9 | L58: 90 | T58: 0.06 | U58: 0.21 | X58: 0.33 | AI58: 200 | AJ58: 10 | AK58: 10 | AL58: 1
A59: SL 135 | C59: 1973-04-04 | G59: 39.000002 | H59: 7 | I59: 120 | J59: 130 | K59: 10.4 | L59: 79.39692 | M59: 5.4 | N59: 60 | O59: 7.2 | P59: 40 | Q59: 89 | R59: 78 | Y59: 0.03 | Z59: 36 | AA59: 9 | AB59: 20.5 | AI59: 2000 | AJ59: 140 | AK59: 50 | AL59: 2.8
A60: SL 135 | C60: 1973-04-11 | G60: 37.99994 | H60: 7 | I60: 120 | J60: 145 | K60: 9 | L60: 66.6737 | M60: 7.1 | N60: 90 | O60: 7.3 | P60: 44 | Q60: 128 | R60: 119 | Y60: 0.03 | Z60: 58 | AA60: 9.5 | AB60: 18.5 | AI60: 1800 | AJ60: 65 | AK60: 61 | AL60: 1.06557
A61: SL 135 | C61: 1973-04-18 | G61: 42.999998 | H61: 9 | I61: 120 | J61: 155 | K61: 8.6 | L61: 68.8123 | M61: 7.4 | N61: 87 | O61: 7.3 | P61: 49.5 | Q61: 138 | R61: 121 | Y61: 0.03 | Z61: 45 | AA61: 16 | AB61: 20.5 | AI61: 3900 | AJ61: 120 | AK61: 64 | AL61: 1.875
A62: SL 135 | C62: 1973-04-25 | G62: 42.999998 | H62: 16 | I62: 120 | J62: 115 | K62: 9.2 | L62: 73.60615 | M62: 5.9 | N62: 102 | O62: 7.2 | P62: 39.5 | Q62: 133 | R62: 105.5 | Y62: 0.04 | Z62: 39 | AA62: 7.5 | AB62: 20 | AI62: 3600 | AJ62: 72 | AK62: 516 | AL62: 0.13953
A63: SL 135 | C63: 1973-05-02 | G63: 44.000006 | H63: 9.9 | I63: 140 | J63: 130 | K63: 6.8 | L63: 55.74183 | N63: 80 | O63: 7.4 | P63: 40 | Q63: 156 | R63: 135 | Y63: 0.05 | Z63: 26 | AA63: 7 | AB63: 15 | AI63: 16900 | AJ63: 70 | AK63: 4500 | AL63: 0.01556
A64: SL 135 | C64: 1973-05-09 | G64: 51.000008 | H64: 6.6 | I64: 150 | J64: 120 | K64: 9.2 | L64: 82.88737 | M64: 3.6 | N64: 78 | O64: 7.3 | P64: 41 | Q64: 180 | R64: 154 | Y64: 0.04 | Z64: 29 | AA64: 5.5 | AB64: 18.5 | AI64: 4600 | AJ64: 120 | AK64: 245 | AL64: 0.4898
A65: SL 135 | C65: 1973-05-16 | G65: 51.999998 | H65: 8.1 | I65: 180 | K65: 7.4 | L65: 66.66995 | M65: 4.2 | N65: 82 | O65: 7.4 | P65: 34 | Q65: 143 | R65: 124 | Y65: 0.02 | Z65: 27 | AA65: 5 | AB65: 10.5 | AI65: 6900 | AJ65: 350 | AK65: 68 | AL65: 5.14706
A66: SL 135 | C66: 1973-05-23 | G66: 57.000002 | H66: 5.7 | I66: 180 | K66: 5.2 | L66: 50.00323 | M66: 4.8 | N66: 68 | O66: 7.25 | P66: 39 | Q66: 96 | R66: 80 | U66: 0.1 | Y66: 0.035 | Z66: 26 | AA66: 6.8 | AB66: 11.5 | AI66: 1100 | AJ66: 40 | AK66: 250 | AL66: 0.16
A67: SL 135 | C67: 1973-05-30 | G67: 60.999962 | H67: 6.1 | I67: 180 | K67: 6.3 | L67: 63.00312 | M67: 2.4 | N67: 68 | O67: 7.7 | P67: 35 | Q67: 134 | R67: 122 | Y67: 0.035 | Z67: 30 | AA67: 5 | AB67: 7 | AI67: 6300 | AJ67: 130 | AK67: 60 | AL67: 2.16667
A68: SL 135 | C68: 1973-06-06 | G68: 65.999984 | H68: 4.9 | I68: 180 | K68: 5 | L68: 53.19454 | M68: 2.6 | N68: 64 | O68: 7.5 | P68: 38 | Q68: 153 | R68: 134 | X68: 0.9 | Y68: 0.04 | Z68: 55 | AA68: 6 | AB68: 11 | AI68: 2600 | AJ68: 100 | AK68: 100 | AL68: 1
A69: SL 135 | C69: 1973-06-13 | G69: 68.499986 | H69: 4.3 | I69: 180 | J69: 120 | K69: 3.8 | L69: 41.30734 | M69: 1.2 | N69: 68 | O69: 7.4 | P69: 47 | Q69: 125 | R69: 112 | X69: 1 | Y69: 0.035 | Z69: 50 | AA69: 7.5 | AB69: 9 | AI69: 3500 | AJ69: 100 | AK69: 10 | AL69: 10
A70: SL 135 | C70: 1973-06-20 | G70: 65.999984 | H70: 4.2 | I70: 180 | K70: 2.7 | L70: 28.72611 | M70: 3 | N70: 76 | O70: 7.4 | P70: 48.5 | Q70: 151 | R70: 141.5 | X70: 1 | Y70: 0.045 | Z70: 54 | AA70: 10 | AB70: 12.5 | AI70: 11300 | AJ70: 560 | AK70: 50 | AL70: 11.2
A71: SL 135 | C71: 1973-06-26 | G71: 68.999972 | H71: 4.2 | I71: 160 | J71: 145 | K71: 3.4 | L71: 37.78152 | M71: 2.2 | N71: 92 | O71: 7.8 | P71: 53 | Q71: 150 | R71: 142.5 | X71: 1.1 | Y71: 0.075 | Z71: 58 | AA71: 10 | AB71: 14.5 | AI71: 6000 | AJ71: 270 | AK71: 140 | AL71: 1.92857
A72: SL 135 | C72: 1973-07-02 | G72: 69.499976 | H72: 4.7 | I72: 160 | J72: 140 | K72: 5 | L72: 55.56027 | M72: 2.6 | N72: 64 | O72: 7.5 | P72: 52 | Q72: 149 | R72: 121 | X72: 0.55 | Y72: 0.08 | Z72: 59 | AA72: 8.5 | AB72: 12 | AI72: 12800 | AJ72: 310 | AK72: 230 | AL72: 1.34783
A73: SL 135 | C73: 1973-07-12 | G73: 75.49997 | H73: 2.7 | I73: 180 | J73: 160 | K73: 1.5 | L73: 17.64871 | M73: 1.6 | N73: 72 | O73: 8.1 | P73: 53 | Q73: 163 | R73: 150 | X73: 0.35 | Y73: 0.115 | Z73: 55 | AA73: 10 | AB73: 10.5 | AI73: 3000 | AJ73: 600 | AK73: 170 | AL73: 3.52941
A74: SL 135 | C74: 1973-07-23 | G74: 71.999978 | H74: 2.2 | I74: 170 | J74: 190 | K74: 1.7 | L74: 19.32044 | M74: 4.2 | N74: 60 | O74: 7.35 | P74: 60 | Q74: 168 | R74: 163.5 | X74: 1.4 | Y74: 0.095 | Z74: 58 | AA74: 13 | AB74: 19.5 | AI74: 13000 | AJ74: 100 | AK74: 60 | AL74: 1.66667
A75: SL 135 | C75: 1973-07-30 | G75: 70.499984 | H75: 3.3 | I75: 120 | K75: 1.9 | L75: 21.11395 | M75: 4 | N75: 52 | O75: 7.25 | P75: 57 | Q75: 170 | R75: 159.5 | X75: 1 | Y75: 0.065 | Z75: 75 | AA75: 13.5 | AB75: 19.5 | AI75: 22500 | AJ75: 60 | AK75: 30 | AL75: 2
A76: SL 135 | C76: 1973-08-06 | G76: 72.999986 | H76: 4.5 | I76: 140 | J76: 180 | K76: 2.1 | L76: 24.1408 | M76: 2.2 | O76: 7.45 | P76: 64 | Q76: 175 | R76: 166 | X76: 0.95 | Y76: 0.065 | Z76: 79 | AA76: 13 | AB76: 17.5 | AJ76: 300 | AK76: 150 | AL76: 2
A77: SL 135 | C77: 1973-08-13 | G77: 71.999978 | H77: 3.8 | I77: 170 | J77: 150 | K77: 2.1 | L77: 23.86601 | M77: 4 | N77: 60 | O77: 7.25 | P77: 52 | Q77: 217 | R77: 151.5 | T77: 0 | X77: 1.1 | Y77: 0.08 | Z77: 73 | AA77: 11 | AB77: 11 | AI77: 8000 | AJ77: 100 | AK77: 480 | AL77: 0.20833
A78: SL 135 | C78: 1973-08-20 | G78: 71.499992 | H78: 8 | I78: 210 | J78: 140 | K78: 4 | L78: 45.45794 | M78: 1.8 | N78: 72 | O78: 7.2 | P78: 50 | Q78: 165 | R78: 149 | X78: 1.2 | Y78: 0.06 | Z78: 72 | AA78: 8.25 | AB78: 13.5 | AI78: 9000 | AJ78: 10 | AK78: 90 | AL78: 0.11111
A79: SL 135 | C79: 1973-08-27 | G79: 67.499978 | I79: 240 | J79: 160 | K79: 1.9 | L79: 20.65428 | M79: 2.2 | N79: 80 | O79: 7.05 | P79: 52 | Q79: 175 | R79: 166 | T79: 0.1 | V79: 0.00043 | W79: 0.00053 | X79: 0.65 | Y79: 0.05 | Z79: 74 | AA79: 10.5 | AB79: 14.5 | AI79: 4600 | AJ79: 10 | AK79: 30 | AL79: 0.33333
A80: SL 135 | C80: 1973-09-04 | G80: 70.499984 | H80: 9.5 | I80: 195 | K80: 5.6 | L80: 62.22218 | O80: 7.35 | Q80: 176 | R80: 137 | X80: 1 | Y80: 0.075 | AI80: 100000 | AK80: 1420
A81: SL 135 | C81: 1973-09-10 | G81: 66.999992 | H81: 4.6 | I81: 240 | K81: 2.4 | L81: 25.5319 | O81: 7.2 | Q81: 17178 | R81: 170.8 | X81: 1.25 | Y81: 0.07
A82: SL 135 | C82: 1973-09-17 | G82: 60.999962 | H82: 3.8 | I82: 220 | K82: 4 | L82: 40.0036 | M82: 4.6 | N82: 84 | O82: 7.25 | P82: 53 | Q82: 161 | R82: 154.6 | X82: 1.2 | Y82: 0.055 | Z82: 96 | AA82: 9 | AB82: 19 | AI82: 10000 | AJ82: 1130 | AK82: 60 | AL82: 18.83332
A83: SL 135 | C83: 1973-10-01 | G83: 59 | H83: 3.1 | K83: 6.6 | L83: 64.70585 | M83: 2 | O83: 7.4 | Q83: 160 | R83: 155.4 | T83: 0.38 | V83: 0.00259 | W83: 0.00315 | X83: 0.88 | Y83: 0.038 | AI83: 7300 | AJ83: 230 | AK83: 20 | AL83: 11.5
A84: SL 135 | C84: 1973-10-08 | G84: 56.499998 | H84: 4.5 | I84: 150 | K84: 6.4 | L84: 61.54405 | M84: 2.8 | N84: 76 | O84: 7.3 | P84: 53 | Q84: 199 | R84: 191 | X84: 1.1 | Y84: 0.03 | Z84: 74 | AA84: 9.5 | AB84: 7 | AI84: 12500 | AJ84: 10 | AK84: 140 | AL84: 0.07143
A85: SL 135 | C85: 1973-10-15 | G85: 51.499994 | H85: 15 | I85: 250 | K85: 9.2 | L85: 82.88285 | M85: 4.4 | O85: 7.1 | Q85: 212 | R85: 175 | X85: 0.55 | Y85: 0.055 | AI85: 8500 | AJ85: 20 | AK85: 1500 | AL85: 0.01333
A86: SL 135 | C86: 1973-10-22 | G86: 52.500002 | H86: 5.6 | K86: 9.9 | L86: 89.18916 | M86: 2.2 | O86: 7.35 | Q86: 153 | R86: 135.5 | X86: 1.1 | Y86: 0.015 | AI86: 15200 | AJ86: 80 | AK86: 190 | AL86: 0.42105
A87: SL 135 | C87: 1973-10-29 | G87: 46.500008 | H87: 3.8 | I87: 170 | K87: 8.6 | L87: 72.2752 | M87: 6 | N87: 80 | O87: 7.45 | P87: 48 | Q87: 182 | R87: 173.5 | X87: 1.1 | Y87: 0.02 | Z87: 62 | AA87: 8 | AB87: 13 | AI87: 19800 | AJ87: 210 | AK87: 200 | AL87: 1.05
A88: SL 135 | C88: 1973-11-05 | G88: 36.5 | H88: 5.8 | I88: 180 | K88: 9.4 | L88: 69.6296 | M88: 8.8 | O88: 7.2 | Q88: 153 | R88: 145 | X88: 0.65 | Y88: 0.02 | AI88: 8700 | AJ88: 160 | AK88: 150 | AL88: 1.06667
A89: SL 135 | C89: 1973-11-12 | G89: 32.500004 | H89: 7.5 | I89: 150 | K89: 1.7 | L89: 80.13696 | M89: 9.6 | O89: 7.15 | Q89: 196 | R89: 192 | T89: 0.02 | U89: . | V89: 2e-05 | W89: 3e-05 | X89: 1.2 | Y89: 0.035
A90: SL 135 | C90: 1974-06-04 | H90: 5.5 | I90: 180 | K90: 6 | M90: 4 | N90: 72 | O90: 7.7 | P90: 40 | Q90: 139 | R90: 125 | S90: 14 | T90: 0.05 | U90: 0.01 | X90: 1.1 | Y90: 0.04 | Z90: 39 | AA90: 8 | AB90: 15 | AI90: 9200 | AJ90: 10
A91: SL 135 | C91: 1974-06-05 | H91: 5.9 | I91: 165 | K91: 6 | M91: 4 | N91: 64 | O91: 7.8 | P91: 39 | Q91: 131 | R91: 120 | S91: 11 | T91: 0.08 | U91: 0.01 | X91: 1 | Y91: 0.057 | Z91: 46 | AA91: 8 | AB91: 11 | AI91: 5400 | AJ91: 30
A92: SL 135 | C92: 1974-06-11 | H92: 14 | I92: 210 | K92: 7.9 | M92: 3 | N92: 68 | O92: 7.6 | P92: 36 | Q92: 146 | R92: 111 | S92: 35 | T92: 0.05 | U92: 0.01 | X92: 1 | Y92: 0.053 | Z92: 40 | AA92: 6 | AB92: 12 | AI92: 23800 | AJ92: 240
A93: SL 135 | C93: 1974-06-12 | H93: 9.1 | I93: 195 | M93: 4 | N93: 68 | O93: 7.4 | P93: 37 | Q93: 137 | R93: 117 | S93: 20 | T93: 0.01 | U93: 0.01 | X93: 1.2 | Y93: 0.07 | Z93: 37 | AA93: 5 | AB93: 12 | AH93: ` | AI93: 13600 | AJ93: 170
A94: SL 135 | C94: 1974-07-09 | H94: 4.2 | I94: 165 | K94: 2.2 | M94: 1 | N94: 60 | O94: 7.7 | P94: 59 | Q94: 153 | R94: 143 | S94: 10 | T94: 0.12 | U94: 0.01 | X94: 1 | Y94: 0.077 | Z94: 69 | AA94: 10 | AB94: 17 | AI94: 3800 | AJ94: 50
A95: SL 135 | C95: 1974-07-10 | K95: 3.4 | T95: 0.21 | U95: 0.01 | X95: 1.1 | AI95: 3100
A96: SL 135 | C96: 1975-02-04 | H96: 5.1 | I96: 90 | K96: 8.7 | M96: 5 | N96: 40 | O96: 7.4 | P96: 64 | Q96: 145 | R96: 141 | S96: 4 | T96: 0.01 | U96: 0.07 | X96: 0.99 | Y96: 0.043 | Z96: 96 | AA96: 12.5 | AB96: 12 | AI96: 4100 | AJ96: 230
A97: SL 135 | C97: 1975-02-05 | N97: 40 | U97: 0.22 | X97: 0.55 | AI97: 4100 | AJ97: 120
A98: SL 135 | C98: 1975-03-04 | H98: 4.8 | I98: 90 | K98: 9.7 | M98: 7.4 | N98: 36 | O98: 7.3 | P98: 68 | Q98: 169 | R98: 165 | S98: 4 | T98: 0.14 | U98: 0.09 | X98: 0.88 | Y98: 0.043 | Z98: 85 | AA98: 11.5 | AB98: 10 | AI98: 5400 | AJ98: 1500 | AK98: 1300 | AL98: 1.15385
A99: SL 135 | C99: 1975-03-05 | T99: 0.01 | U99: 0.17 | X99: 0.55 | AI99: 6300 | AJ99: 550 | AK99: 650 | AL99: 0.84615
A100: SL 135 | C100: 1975-04-02 | K100: 10.5 | T100: 0.04 | U100: 0.28 | X100: 0.66 | AI100: 4400 | AJ100: 30
A101: SL 135 | C101: 1975-05-05 | G101: 47.3 | H101: 13 | I101: 160 | K101: 9.2 | L101: 77.31596 | M101: 3 | N101: 68 | O101: 7.6 | P101: 27 | Q101: 142 | R101: 120 | S101: 22 | T101: 0.06 | U101: 0.11 | V101: 0.00039 | W101: 0.00048 | X101: 1.21 | Y101: 0.16 | Z101: 39 | AA101: 6 | AB101: 13 | AI101: 2100 | AJ101: 10 | AK101: 60 | AL101: 0.16667
A102: SL 135 | C102: 1975-05-06 | G102: 51.8 | K102: 9.4 | L102: 84.68466 | T102: 0.06 | U102: 0.08 | X102: 0.88 | AI102: 5400 | AJ102: 10 | AK102: 100 | AL102: 0.1
A103: SL 135 | C103: 1975-06-03 | G103: 71.6 | H103: 4.6 | I103: 240 | K103: 3.4 | L103: 38.63984 | M103: 5 | N103: 88 | O103: 7.3 | P103: 55 | Q103: 148 | R103: 140 | S103: 7.6 | T103: 0.01 | U103: 0.01 | V103: 9e-05 | W103: 0.00011 | X103: 0.99 | Y103: 0.07 | Z103: 72 | AA103: 10 | AB103: 18 | AI103: 3100 | AJ103: 10 | AK103: 10 | AL103: 1
A104: SL 135 | C104: 1975-06-04 | G104: 61.7 | K104: 2.8 | L104: 27.99996 | T104: 0.04 | U104: 0.01 | X104: 0.99 | AI104: 2200 | AJ104: 135
A105: SL 135 | C105: 1975-07-01 | G105: 71.6 | H105: 6 | I105: 240 | K105: 4.3 | L105: 48.86738 | M105: 5 | N105: 84 | O105: 7.3 | P105: 47 | Q105: 163 | R105: 151 | S105: 11.6 | T105: 0.04 | U105: 0.09 | V105: 0.00036 | W105: 0.00044 | X105: 1.1 | Y105: 0.057 | Z105: 68 | AA105: 8.5 | AB105: 17 | AI105: 30000 | AJ105: 100 | AK105: 10 | AL105: 10
A106: SL 135 | C106: 1975-07-29 | G106: 66.2 | K106: 4.5 | L106: 47.87232 | T106: 0.08 | U106: 0.12 | X106: 1.43 | AI106: 2700 | AJ106: 50 | AK106: 240 | AL106: 0.20833
A107: SL 135 | C107: 1975-08-04 | G107: 77 | H107: 2.5 | I107: 200 | K107: 1 | L107: 11.90703 | M107: 4 | N107: 84 | O107: 7.1 | P107: 57 | Q107: 172 | R107: 168 | S107: 4.2 | T107: 0.07 | U107: 0.02 | V107: 0.0005 | W107: 0.0006 | X107: 1.11 | Y107: 0.073 | Z107: 76 | AA107: 20 | AB107: 22 | AI107: 31000 | AJ107: 80 | AK107: 30 | AL107: 2.66667
A108: SL 135 | C108: 1975-08-05 | G108: 75.2 | K108: 2.1 | L108: 24.70578 | T108: 0.11 | U108: 0.02 | X108: 0.99 | AI108: 57000 | AJ108: 340 | AK108: 10 | AL108: 34
A109: SL 135 | C109: 1975-09-03 | G109: 69.8 | H109: 3.6 | I109: 120 | K109: 3.1 | L109: 34.44975 | M109: 4.2 | N109: 68 | O109: 7.2 | P109: 61 | Q109: 195 | R109: 181 | S109: 13.6 | T109: 0.01 | U109: 0.02 | V109: 7e-05 | W109: 8e-05 | X109: 0.55 | Y109: 0.073 | Z109: 96 | AA109: 15.5 | AB109: 26 | AI109: 15000 | AJ109: 220 | AK109: 90 | AL109: 2.44444
A110: SL 135 | C110: 1975-09-04 | G110: 69.8 | K110: 2.8 | L110: 31.11108 | T110: 0.02 | U110: 0.02 | X110: 0.66 | AI110: 23000 | AJ110: 1090 | AK110: 50 | AL110: 21.79998
A111: SL 135 | C111: 1975-09-29 | H111: 6 | I111: 120 | K111: 3.8 | M111: 5.6 | N111: 64 | O111: 6.9 | P111: 72 | Q111: 190 | R111: 185 | S111: 4.8 | T111: 0.01 | U111: 0.02 | X111: 0.66 | Y111: 0.047 | Z111: 96 | AA111: 11.5 | AB111: 31 | AI111: 6000 | AJ111: 10 | AK111: 110 | AL111: 0.09091
A112: SL 135 | C112: 1975-09-30 | K112: 4.1 | T112: 0.01 | U112: 0.02 | X112: 0.88 | AI112: 25000 | AJ112: 10 | AK112: 30 | AL112: 0.33333
A113: SL 135 | C113: 1976-01-20 | H113: 9.6 | I113: 140 | K113: 6.7 | M113: 15 | N113: 104 | O113: 7.3 | P113: 64 | Q113: 225 | R113: 219 | S113: 6 | T113: 0.01 | U113: 0.14 | X113: 0.77 | Y113: 0.046 | Z113: 111 | AA113: 21 | AB113: 29 | AI113: 5800 | AJ113: 10 | AK113: 20 | AL113: 0.5
A114: SL 135 | C114: 1976-03-09 | H114: 7.9 | I114: 120 | K114: 3 | M114: 10.2 | N114: 72 | O114: 7.4 | P114: 66 | Q114: 178 | R114: 174 | S114: 4.4 | T114: 0.01 | U114: 0.13 | X114: 0.55 | Y114: 0.009 | Z114: 84 | AA114: 13 | AB114: 21 | AI114: 8200 | AJ114: 100 | AK114: 140 | AL114: 0.71429
A115: SL 135 | C115: 1976-04-06 | G115: 39.2 | H115: 15 | I115: 120 | K115: 11.6 | L115: 88.55575 | M115: 2 | N115: 60 | O115: 7.4 | P115: 26 | Q115: 125 | S115: 34 | T115: 0.02 | U115: 0.53 | V115: 6e-05 | W115: 7e-05 | X115: 0.53 | Y115: 1.1 | Z115: 0.033 | AA115: 57 | AB115: 6.5 | AI115: 2600 | AJ115: 100 | AK115: 110 | AL115: 0.90909
A116: SL 135 | C116: 1976-05-04 | G116: 53.6 | H116: 6.5 | I116: 150 | K116: 5.5 | L116: 50.9311 | M116: 2.6 | N116: 83 | O116: 7.5 | P116: 40 | Q116: 184 | R116: 173 | S116: 11.2 | T116: 0.02 | U116: 0.01 | V116: 0.00014 | W116: 0.00017 | X116: 1.65 | Y116: 0.045 | Z116: 69 | AA116: 10 | AB116: 20 | AI116: 33400 | AJ116: 10 | AK116: 10 | AL116: 1
A117: SL 135 | C117: 1976-06-02 | G117: 66.2 | H117: 6.7 | I117: 120 | K117: 7.5 | L117: 79.80136 | M117: 3.8 | N117: 56 | O117: 7.8 | P117: 66 | Q117: 165 | R117: 153 | S117: 11.6 | T117: 0.02 | U117: 0.02 | V117: 0.00045 | W117: 0.00055 | X117: 1.1 | Y117: 0.038 | Z117: 90 | AA117: 18.5 | AB117: 21 | AI117: 59000 | AJ117: 2030 | AK117: 150 | AL117: 13.53333
A118: SL 135 | C118: 1976-07-07 | G118: 78.979982 | I118: 180 | K118: 4.4 | L118: 53.66583 | M118: 3 | N118: 72 | O118: 7.7 | P118: 61 | Q118: 174 | R118: 170 | S118: 4.4 | T118: 0.17 | U118: 0.04 | V118: 0.00507 | W118: 0.00616 | Y118: 0.113 | Z118: 85 | AA118: 14 | AB118: 21 | AI118: 5000 | AJ118: 200 | AK118: 30 | AL118: 6.66667
A119: SL 135 | C119: 1976-08-11 | G119: 73.4 | H119: 3.5 | I119: 110 | K119: 4.1 | L119: 47.13681 | M119: 1.6 | N119: 44 | O119: 7.5 | P119: 79 | Q119: 211 | R119: 206 | S119: 5.2 | T119: 0.06 | U119: 0.05 | V119: 0.00092 | W119: 0.00112 | X119: 0.88 | Y119: 0.06 | Z119: 103 | AA119: 24 | AB119: 26 | AI119: 100 | AJ119: 10 | AK119: 20 | AL119: 0.5
A120: SL 135 | C120: 1976-09-01 | H120: 4.3 | I120: 80 | K120: 5.1 | M120: 3 | N120: 48 | O120: 7.9 | P120: 95 | Q120: 227 | R120: 222 | S120: 4.8 | T120: 0.06 | U120: 0.03 | X120: 0.88 | Y120: 0.074 | Z120: 113 | AA120: 32 | AB120: 29 | AI120: 18000 | AJ120: 350 | AK120: 410 | AL120: 0.85366
A121: SL 135 | C121: 1976-10-05 | G121: 55.4 | H121: 5.3 | I121: 80 | K121: 8.2 | L121: 77.37452 | M121: 1.8 | N121: 24 | O121: 7.2 | P121: 78 | Q121: 196 | R121: 190 | S121: 5.6 | T121: 0.03 | U121: 0.07 | V121: 0.00011 | W121: 0.00014 | X121: 0.88 | Y121: 0.062 | Z121: 91 | AA121: 20 | AB121: 24 | AI121: 6300 | AJ121: 10 | AK121: 50 | AL121: 0.2
A122: SL 135 | C122: 1976-11-10 | G122: 35.6 | H122: 14 | I122: 80 | K122: 10.3 | L122: 74.65023 | M122: 3.6 | N122: 48 | O122: 7.1 | P122: 56 | Q122: 155 | R122: 132 | S122: 23.19999 | T122: 0.02 | U122: 0.02 | V122: 2e-05 | W122: 3e-05 | X122: 0.88 | Y122: 0.033 | Z122: 71 | AA122: 15.5 | AB122: 22 | AI122: 8700 | AJ122: 1350
A123: SL 135 | C123: 1977-01-04 | H123: 18 | I123: 65 | K123: 7 | M123: 5.8 | N123: 45 | O123: 7.1 | P123: 86 | Q123: 191 | R123: 187 | S123: 4 | T123: 0.04 | U123: 0.1 | X123: 1.1 | Y123: 0.072 | Z123: 93 | AA123: 16.5 | AB123: 15 | AI123: 1200 | AJ123: 10 | AK123: 10 | AL123: 1
A124: SL 135 | C124: 1977-02-02 | G124: 33.98 | H124: 6.3 | I124: 80 | K124: 6 | L124: 42.26565 | M124: 7.8 | N124: 56 | O124: 7.1 | P124: 80 | Q124: 185 | R124: 181 | S124: 4.4 | T124: 0.03 | U124: 0.14 | V124: 3e-05 | W124: 4e-05 | X124: 0.88 | Y124: 0.054 | Z124: 90 | AA124: 25.5 | AB124: 20 | AI124: 11900 | AJ124: 110 | AK124: 660 | AL124: 0.16667
A125: SL 135 | C125: 1977-03-09 | H125: 7.4 | I125: 80 | K125: 6 | M125: 4 | N125: 52 | O125: 6.9 | P125: 78 | Q125: 181 | R125: 178 | S125: 3.2 | T125: 0.03 | U125: 0.18 | X125: 0.77 | Y125: 0.041 | Z125: 83 | AA125: 27.5 | AB125: 19 | AI125: 2600 | AJ125: 170 | AK125: 10 | AL125: 17
A126: SL 135 | C126: 1977-04-05 | G126: 33.8 | H126: 9.5 | I126: 80 | K126: 9.8 | L126: 69.03079 | M126: 5 | N126: 52 | O126: 7.1 | P126: 57 | Q126: 142 | R126: 128 | S126: 13.6 | T126: 0.07 | U126: 0.4 | V126: 8e-05 | W126: 0.0001 | X126: 1.21 | Y126: 0.057 | Z126: 70 | AA126: 21.5 | AB126: 22 | AI126: 3100 | AJ126: 20 | AK126: 10 | AL126: 2
A127: SL 135 | C127: 1977-05-11 | H127: 7 | I127: 100 | K127: 8.3 | M127: 1.6 | N127: 44 | O127: 7.6 | P127: 76 | Q127: 216 | R127: 206 | S127: 10.4 | T127: 0.01 | U127: 0.02 | X127: 1.1 | Y127: 0.096 | Z127: 111 | AA127: 21.5 | AB127: 24 | AI127: 500 | AJ127: 10 | AK127: 10 | AL127: 1
A128: SL 135 | C128: 1977-05-31 | G128: 62.6 | H128: 6.5 | I128: 100 | K128: 6.5 | L128: 67.02655 | M128: 3 | N128: 47 | O128: 7 | P128: 87 | Q128: 209 | R128: 195 | S128: 14 | T128: 0.13 | U128: 0.02 | V128: 0.00041 | W128: 0.0005 | X128: 1.32 | Y128: 0.098 | Z128: 100 | AA128: 23.5 | AB128: 25 | AI128: 1300 | AJ128: 10 | AK128: 10 | AL128: 1
A129: SL 135 | C129: 1977-07-06 | H129: 13 | I129: 180 | K129: 3.6 | M129: 1 | N129: 76 | O129: 7.5 | P129: 72 | Q129: 215 | R129: 198 | S129: 17 | T129: 0.19 | U129: 0.12 | X129: 1.2 | Y129: 0.114 | Z129: 94 | AA129: 12 | AB129: 17 | AI129: 900 | AJ129: 40 | AK129: 270 | AL129: 0.14815
A130: SL 135 | C130: 1977-08-02 | G130: 71.6 | H130: 7.3 | I130: 200 | K130: 3 | L130: 34.09587 | M130: 2 | N130: 68 | O130: 7.1 | P130: 76 | Q130: 209 | R130: 201 | S130: 8 | T130: 0.08 | U130: 0.05 | V130: 0.00046 | W130: 0.00056 | X130: 1.1 | Y130: 0.109 | Z130: 98 | AA130: 16 | AB130: 26 | AI130: 1600 | AJ130: 40 | AK130: 100 | AL130: 0.4
A131: SL 135 | C131: 1977-09-06 | G131: 60.8 | H131: 10 | I131: 200 | K131: 8.3 | L131: 83.0066 | M131: 3.4 | N131: 84 | O131: 6.8 | P131: 56 | Q131: 178 | R131: 160 | S131: 18 | T131: 0.06 | U131: 0.09 | V131: 0.00011 | W131: 0.00014 | X131: 1.43 | Y131: 0.083 | Z131: 91 | AA131: 8 | AB131: 24 | AI131: 2900 | AJ131: 330 | AK131: 340 | AL131: 0.97059
A132: SL 135 | C132: 1977-10-04 | G132: 53.6 | H132: 4.7 | I132: 240 | K132: 7.9 | L132: 73.15185 | M132: 2 | O132: 7.3 | P132: 37 | Q132: 138 | R132: 127 | S132: 11 | T132: 0.04 | U132: 0.04 | V132: 0.00017 | W132: 0.00021 | X132: 1.54 | Y132: 0.049 | Z132: 58 | AA132: 5 | AB132: 13 | AI132: 11800 | AJ132: 5000 | AK132: 30 | AL132: 166.6667
A133: SL 135 | C133: 1977-11-01 | G133: 50 | H133: 4.9 | I133: 240 | K133: 8.8 | L133: 77.88311 | M133: 2 | N133: 88 | O133: 7.2 | P133: 43 | Q133: 151 | R133: 147 | S133: 4 | T133: 0.01 | U133: 0.05 | V133: 3e-05 | W133: 4e-05 | X133: 0.99 | Y133: 0.027 | Z133: 66 | AA133: 8.5 | AB133: 16 | AI133: 20000 | AJ133: 780 | AK133: 100 | AL133: 7.8
A134: SL 135 | C134: 1978-01-04 | G134: 32 | H134: 4.4 | I134: 180 | K134: 11.6 | L134: 79.46083 | M134: 6 | N134: 60 | O134: 7.1 | P134: 50 | Q134: 164 | R134: 164 | S134: 1 | T134: 0.05 | U134: 0.2 | V134: 5e-05 | W134: 6e-05 | X134: 0.77 | Y134: 0.032 | Z134: 80 | AA134: 9.5 | AB134: 16 | AI134: 200 | AJ134: 100 | AK134: 110 | AL134: 0.90909
A135: SL 135 | C135: 1978-02-07 | G135: 32 | H135: 5 | I135: 160 | K135: 11.2 | L135: 76.72303 | M135: 9 | N135: 72 | O135: 7.2 | P135: 50 | Q135: 164 | R135: 162 | S135: 2 | T135: 0.05 | U135: 0.2 | V135: 7e-05 | W135: 8e-05 | X135: 0.99 | Y135: 0.032 | Z135: 74 | AA135: 12 | AB135: 15 | AI135: 4600 | AJ135: 120 | AK135: 160 | AL135: 0.75
A136: SL 135 | C136: 1978-02-28 | G136: 33.8 | H136: 7.6 | I136: 180 | K136: 11.5 | L136: 80.99504 | M136: 8 | N136: 72 | O136: 7.1 | P136: 50 | Q136: 156 | R136: 153 | S136: 3 | T136: 0.02 | U136: 0.23 | V136: 2e-05 | W136: 3e-05 | X136: 0.77 | Y136: 0.042 | Z136: 67 | AA136: 10 | AB136: 17 | AI136: 7900 | AJ136: 50 | AK136: 60 | AL136: 0.83333
A137: SL 135 | C137: 1978-04-04 | G137: 36.5 | H137: 7.8 | I137: 70 | K137: 12.4 | L137: 89.86286 | M137: 8 | N137: 40 | O137: 7.3 | P137: 43 | Q137: 137 | R137: 127 | S137: 9.6 | T137: 0.14 | U137: 0.28 | V137: 0.00028 | W137: 0.00034 | X137: 0.99 | Y137: 0.58 | Z137: 54 | AA137: 8 | AB137: 11 | AI137: 32000 | AJ137: 180 | AK137: 5500 | AL137: 0.03273
A138: SL 135 | C138: 1978-05-03 | G138: 55.4 | H138: 5.2 | I138: 140 | K138: 8 | L138: 75.47756 | M138: 1 | N138: 52 | O138: 7.3 | P138: 38 | Q138: 133 | R138: 128 | S138: 3 | T138: 0.02 | U138: 0.06 | V138: 9e-05 | W138: 0.00011 | X138: 0.99 | Y138: 0.048 | Z138: 55 | AA138: 7.5 | AB138: 13 | AI138: 5700 | AJ138: 10 | AK138: 10 | AL138: 1
A139: SL 135 | C139: 1978-07-05 | G139: 69.8 | H139: 6.8 | I139: 200 | K139: 6.2 | L139: 68.89299 | M139: 2 | N139: 68 | O139: 7.2 | P139: 54 | Q139: 149 | R139: 142 | S139: 7 | T139: 0.07 | U139: 0.14 | V139: 0.00047 | W139: 0.00057 | X139: 1.32 | Y139: 0.054 | Z139: 67 | AA139: 6 | AB139: 13 | AI139: 4000 | AJ139: 50 | AK139: 30 | AL139: 1.66667
A140: SL 135 | C140: 1978-08-11 | D140: 0.53125 | G140: 71.6 | I140: 240 | K140: 5.5 | L140: 62.50341 | M140: 2 | N140: 88 | O140: 7.5 | P140: 46 | Q140: 151 | R140: 142 | S140: 9 | T140: 0.05 | U140: 0.06 | V140: 0.00071 | W140: 0.00087 | X140: 1.21 | Y140: 0.062 | Z140: 63 | AA140: 6 | AB140: 11 | AI140: 3800 | AJ140: 70 | AK140: 100 | AL140: 0.7
A141: SL 135 | C141: 1978-09-06 | D141: 0.5416666667 | G141: 57.2 | H141: 3.8 | I141: 320 | K141: 4.3 | L141: 49.42797 | M141: 3 | N141: 96 | O141: 7.4 | P141: 49 | Q141: 154 | R141: 150 | S141: 4 | T141: 0.05 | U141: 0.03 | V141: 0.00063 | W141: 0.00077 | X141: 1.32 | Y141: 0.058 | Z141: 65 | AA141: 6 | AB141: 11 | AI141: 16000 | AJ141: 540 | AK141: 70 | AL141: 7.71428
A142: SL 135 | C142: 1978-10-04 | D142: 0.59375 | G142: 57.2 | H142: 5.7 | I142: 240 | K142: 5.6 | L142: 53.85182 | M142: 4 | N142: 80 | O142: 7.2 | P142: 57 | Q142: 170 | R142: 165 | S142: 4.8 | T142: 0.19 | U142: 0.04 | V142: 0.00076 | W142: 0.00092 | X142: 0.99 | Y142: 0.024 | Z142: 83 | AA142: 11 | AB142: 15 | AI142: 2200 | AJ142: 10 | AK142: 800 | AL142: 0.0125
A143: SL 135 | C143: 1978-11-08 | D143: 0.5569444444 | G143: 44.6 | H143: 7.4 | I143: 160 | K143: 9.1 | L143: 74.59849 | M143: 5 | N143: 64 | O143: 7.4 | P143: 56 | Q143: 153 | R143: 145 | S143: 8 | T143: 0.05 | U143: 0.04 | V143: 0.00018 | W143: 0.00022 | X143: 0.88 | Y143: 0.047 | Z143: 66 | AA143: 10.5 | AB143: 12 | AI143: 14000 | AJ143: 50 | AK143: 20 | AL143: 2.5
A144: SL 135 | C144: 1979-02-14 | D144: 0.5625 | G144: 33.8 | H144: 4 | I144: 130 | K144: 11.4 | L144: 80.28619 | M144: 3 | N144: 48 | O144: 7.5 | P144: 65 | Q144: 135 | R144: 130 | S144: 5 | T144: 0.9 | U144: 0.2 | V144: 0.00254 | W144: 0.00309 | X144: 0.99 | Y144: 0.05 | Z144: 79 | AA144: 5 | AB144: 9 | AI144: 17000 | AJ144: 70 | AK144: 150 | AL144: 0.46667
A145: SL 135 | C145: 1979-03-07 | D145: 0.5972222222 | G145: 33.8 | H145: 5 | I145: 180 | K145: 1.2 | L145: 78.88432 | M145: 3 | N145: 56 | O145: 7.6 | P145: 83 | Q145: 186 | R145: 183 | S145: 3 | T145: 0.09 | U145: 0.62 | V145: 0.00032 | W145: 0.00039 | X145: 1.1 | Y145: 0.077 | Z145: 118 | AA145: 12.5 | AB145: 15 | AI145: 1800 | AJ145: 20 | AK145: 60 | AL145: 0.33333
A146: SL 135 | C146: 1979-06-14 | D146: 0.5590277778 | G146: 66.2 | H146: 5.5 | I146: 180 | J146: 92 | K146: 7.7 | L146: 81.91839 | M146: 1 | N146: 40 | O146: 7.6 | P146: 39 | Q146: 109 | R146: 100 | S146: 8.8 | T146: 0.09 | U146: 0.09 | V146: 0.0013 | W146: 0.00158 | X146: 0.88 | Y146: 0.037 | Z146: 50 | AA146: 4.5 | AB146: 7 | AI146: 600 | AJ146: 10 | AK146: 100 | AL146: 0.1
A147: SL 135 | C147: 1979-07-24 | D147: 0.5625 | G147: 73.4 | H147: 7 | I147: 270 | J147: 130 | K147: 4.9 | L147: 56.32414 | M147: 2 | N147: 44 | O147: 7.5 | P147: 59 | Q147: 161 | R147: 157 | S147: 4.4 | T147: 0.04 | U147: 0.13 | V147: 0.00061 | W147: 0.00075 | X147: 1.3 | Y147: 0.102 | Z147: 73 | AA147: 4.5 | AB147: 8 | AI147: 200 | AJ147: 20 | AK147: 50 | AL147: 0.4
A148: SL 135 | C148: 1979-08-15 | D148: 0.5381944444 | G148: 69.8 | H148: 4.2 | I148: 150 | J148: 140 | K148: 7.7 | L148: 85.55937 | M148: 1 | N148: 40 | O148: 7.9 | P148: 53 | Q148: 145 | R148: 141 | S148: 3.6 | T148: 0.01 | U148: 0.05 | V148: 0.00033 | W148: 0.0004 | X148: 1.1 | Y148: 0.112 | Z148: 74 | AA148: 4.5 | AB148: 12 | AI148: 100 | AJ148: 10 | AK148: 10 | AL148: 1
A149: SL 135 | C149: 1979-09-09 | D149: 0.5729166667 | G149: 66.2 | H149: 6.3 | I149: 120 | J149: 165 | K149: 7.9 | L149: 84.04736 | M149: 1 | N149: 44 | O149: 7.7 | P149: 70 | Q149: 124 | R149: 117 | S149: 6.8 | T149: 0.07 | U149: 0.02 | V149: 0.00127 | W149: 0.00154 | X149: 0.77 | Y149: 0.031 | Z149: 85 | AA149: 6 | AB149: 17 | AI149: 300 | AJ149: 10 | AK149: 20 | AL149: 0.5
A150: SL 135 | C150: 1979-10-11 | D150: 0.3958333333 | G150: 50 | H150: 6 | I150: 140 | J150: 160 | K150: 8.6 | L150: 76.11222 | M150: 2 | N150: 48 | O150: 7.7 | P150: 72 | Q150: 151 | R150: 149 | S150: 2.4 | T150: 0.02 | U150: 0.08 | V150: 0.00018 | W150: 0.00022 | X150: 0.88 | Y150: 0.051 | Z150: 102 | AA150: 7.5 | AB150: 20 | AI150: 500 | AJ150: 40 | AK150: 10 | AL150: 4
A151: SL 135 | C151: 1979-11-15 | D151: 0.5798611111 | G151: 32 | H151: 4 | I151: 180 | J151: 110 | K151: 12.8 | L151: 87.67631 | M151: 2 | N151: 48 | O151: 7.5 | P151: 47 | Q151: 128 | R151: 126 | S151: 2 | T151: 0.03 | U151: 0.16 | V151: 8e-05 | W151: 9e-05 | X151: 0.66 | Y151: 0.034 | Z151: 88 | AA151: 5 | AB151: 14 | AI151: 8600 | AJ151: 40 | AK151: 20 | AL151: 2
A152: SL 135 | C152: 1980-01-23 | D152: 0.5722222222 | G152: 32 | H152: 5 | I152: 100 | K152: 12.2 | L152: 83.566 | M152: 3 | N152: 56 | O152: 7.4 | P152: 60 | Q152: 131 | R152: 129 | S152: 2 | T152: 0.06 | U152: 0.25 | V152: 0.00012 | W152: 0.00015 | X152: 0.88 | Y152: 0.032 | Z152: 57 | AA152: 4.5 | AB152: 11 | AI152: 8800 | AJ152: 140 | AK152: 40 | AL152: 3.5
A153: SL 135 | C153: 1980-02-27 | D153: 0.4826388889 | G153: 33.8 | H153: 3.5 | I153: 100 | J153: 120 | K153: 12 | L153: 84.51132 | M153: 2 | N153: 32 | O153: 7.2 | P153: 54 | Q153: 138 | R153: 136 | S153: 2 | T153: 0.03 | U153: 0.14 | V153: 4e-05 | W153: 5e-05 | X153: 0.77 | Y153: 0.03 | Z153: 61 | AA153: 4.5 | AB153: 9 | AI153: 13000 | AJ153: 60 | AK153: 40 | AL153: 1.5
A154: SL 135 | C154: 1980-04-22 | D154: 0.5652777778 | G154: 51.8 | H154: 9 | I154: 140 | J154: 95 | K154: 9.3 | L154: 83.78791 | M154: 3 | N154: 48 | O154: 7.5 | P154: 42 | Q154: 112 | R154: 100 | S154: 1.6 | T154: 0.09 | U154: 0.27 | V154: 0.00057 | W154: 0.00069 | X154: 0.77 | Y154: 0.062 | Z154: 48 | AA154: 5 | AB154: 11 | AI154: 100 | AJ154: 10 | AK154: 30 | AL154: 0.333333
A155: SL 135 | C155: 1980-05-20 | D155: 0.5451388889 | G155: 62.6 | H155: 5.5 | I155: 140 | J155: 120 | K155: 8.9 | L155: 91.75727 | M155: 2 | N155: 52 | O155: 7.6 | P155: 61 | Q155: 145 | R155: 137 | S155: 8 | T155: 0.01 | U155: 0.08 | V155: 0.00012 | W155: 0.00015 | X155: 0.77 | Y155: 0.049 | Z155: 67 | AA155: 5 | AB155: 13 | AI155: 300 | AJ155: 10 | AK155: 10 | AL155: 1
A156: SL 135 | C156: 1980-06-11 | D156: 0.5381944444 | G156: 69.8 | H156: 4 | I156: 150 | J156: 150 | K156: 8.1 | L156: 90.00581 | M156: 2 | N156: 64 | O156: 7.5 | P156: 74 | Q156: 180 | R156: 173 | S156: 6.8 | T156: 0.02 | U156: 0.11 | V156: 0.00027 | W156: 0.00032 | X156: 0.88 | Y156: 0.072 | Z156: 90 | AA156: 6.5 | AB156: 12 | AI156: 200 | AJ156: 40 | AK156: 70 | AL156: 0.57143
A157: SL 135 | C157: 1980-07-15 | D157: 0.56875 | G157: 78.8 | H157: 5 | I157: 90 | J157: 200 | K157: 6.6 | L157: 80.49366 | M157: 2 | N157: 44 | O157: 8 | P157: 80 | Q157: 184 | R157: 174 | S157: 10 | T157: 0.02 | U157: 0.06 | V157: 0.00115 | W157: 0.0014 | X157: 0.99 | Y157: 0.061 | Z157: 101 | AA157: 7.5 | AI157: 100 | AJ157: 10 | AK157: 60 | AL157: 0.16667
A158: SL 135 | C158: 1980-08-05 | D158: 0.4847222222 | G158: 75.2 | H158: 6 | I158: 80 | J158: 200 | K158: 6.4 | L158: 75.29975 | M158: 3 | N158: 48 | O158: 8 | P158: 93 | Q158: 168 | R158: 160 | S158: 8 | T158: 0.01 | U158: 0.02 | V158: 0.0005 | W158: 0.00061 | X158: 0.99 | Y158: 0.057 | Z158: 115 | AA158: 8 | AB158: 16 | AC158: 5 | AD158: 10 | AE158: 12 | AG158: 10 | AH158: 32 | AI158: 200 | AJ158: 10 | AK158: 10 | AL158: 1
A159: SL 135 | C159: 1980-09-09 | D159: 0.5416666667 | G159: 66.2 | H159: 8 | I159: 210 | K159: 6.7 | L159: 71.28067 | M159: 2 | N159: 72 | O159: 7.8 | P159: 56 | Q159: 168 | R159: 158 | S159: 10.4 | T159: 0.12 | U159: 0.09 | V159: 0.00272 | W159: 0.00331 | X159: 1.32 | Y159: 0.062 | Z159: 74 | AA159: 6 | AB159: 10 | AC159: 5 | AD159: 10 | AE159: 21 | AG159: 10 | AH159: 32 | AI159: 300 | AJ159: 10 | AK159: 60 | AL159: 0.16667
A160: SL 135 | C160: 1980-10-28 | D160: 0.5451388889 | G160: 37.4 | H160: 3 | I160: 140 | J160: 200 | K160: 11.3 | L160: 83.71205 | M160: 2 | N160: 68 | O160: 8 | P160: 69 | Q160: 180 | R160: 176 | S160: 3.6 | T160: 0.08 | U160: 0.15 | V160: 0.00084 | W160: 0.00102 | X160: 0.77 | Y160: 0.037 | Z160: 95 | AA160: 9 | AB160: 16 | AC160: 5 | AD160: 10 | AE160: 11 | AG160: 10 | AH160: 25 | AI160: 300 | AJ160: 10 | AK160: 30 | AL160: 0.33333
A161: SL 135 | C161: 1980-11-19 | D161: 0.5625 | G161: 33.8 | H161: 3 | I161: 120 | J161: 150 | K161: 11.9 | L161: 83.80892 | M161: 3 | N161: 52 | O161: 7.6 | P161: 63 | Q161: 173 | R161: 171 | S161: 2 | T161: 0.03 | U161: 0.16 | V161: 0.00011 | W161: 0.00013 | X161: 0.55 | Y161: 0.031 | Z161: 84 | AA161: 6.5 | AB161: 14 | AC161: 5 | AD161: 10 | AE161: 10 | AG161: 10 | AH161: 15 | AI161: 100 | AJ161: 10 | AK161: 10 | AL161: 1
A162: SL 135 | C162: 1981-03-18 | D162: 0.5381944444 | G162: 32 | H162: 3 | I162: 100 | J162: 180 | M162: 2.6 | N162: 32 | O162: 7.8 | P162: 53 | Q162: 141 | R162: 139 | S162: 2.4 | T162: 0.04 | U162: 0.24 | V162: 0.00021 | W162: 0.00025 | X162: 0.66 | Y162: 0.036 | Z162: 75 | AA162: 7 | AB162: 11 | AC162: 5 | AD162: 10 | AE162: 19 | AG162: 10 | AH162: 15 | AI162: 300 | AJ162: 50 | AK162: 10 | AL162: 5
A163: SL 135 | C163: 1981-04-14 | D163: 0.5451388889 | G163: 44.6 | H163: 9 | I163: 140 | J163: 132 | K163: 11.3 | L163: 92.62933 | M163: 2 | N163: 44 | O163: 7.9 | P163: 38 | Q163: 134 | R163: 120 | S163: 14 | T163: 0.06 | U163: 0.43 | V163: 0.00069 | W163: 0.00084 | X163: 0.88 | Y163: 0.062 | Z163: 62 | AA163: 6.5 | AB163: 11 | AC163: 5 | AD163: 10 | AE163: 16 | AG163: 10 | AH163: 18 | AI163: 100 | AJ163: 10 | AK163: 20 | AL163: 0.5
A164: SL 135 | C164: 1981-05-13 | D164: 0.53125 | G164: 55.4 | H164: 6 | I164: 200 | J164: 99 | K164: 9.5 | L164: 89.62728 | M164: 2 | N164: 52 | O164: 7.8 | P164: 35 | Q164: 125 | R164: 118 | S164: 6.8 | T164: 0.03 | U164: 0.06 | V164: 0.00044 | W164: 0.00053 | X164: 0.99 | Y164: 0.036 | Z164: 54 | AA164: 5 | AB164: 12 | AC164: 5 | AD164: 10 | AE164: 28 | AG164: 35 | AH164: 68 | AI164: 100 | AJ164: 10 | AK164: 10 | AL164: 1
A165: SL 135 | C165: 1981-06-09 | D165: 0.5541666667 | G165: 68 | H165: 4 | I165: 180 | J165: 120 | K165: 7.2 | L165: 78.26466 | M165: 2 | N165: 64 | O165: 7.9 | P165: 50 | Q165: 147 | R165: 140 | S165: 6.8 | T165: 0.03 | U165: 0.08 | V165: 0.00092 | W165: 0.00111 | X165: 0.99 | Y165: 0.043 | Z165: 67 | AA165: 5 | AB165: 42 | AC165: 5 | AD165: 10 | AE165: 17 | AG165: 10 | AH165: 10 | AI165: 100 | AJ165: 20 | AK165: 10 | AL165: 2
A166: SL 135 | C166: 1981-07-04 | D166: 0.5395833333 | G166: 68 | H166: 15 | I166: 280 | J166: 98 | K166: 7.6 | L166: 82.61189 | M166: 2 | N166: 64 | O166: 7.6 | P166: 43 | Q166: 148 | R166: 123 | S166: 25.19999 | T166: 0.04 | U166: 0.12 | V166: 0.00062 | W166: 0.00076 | X166: 1.1 | Y166: 0.074 | Z166: 56 | AA166: 4 | AB166: 10 | AC166: 5 | AD166: 10 | AE166: 14 | AG166: 10 | AH166: 20 | AI166: 1400 | AJ166: 150 | AK166: 440 | AL166: 0.34091
A167: SL 135 | C167: 1981-07-08 | D167: 0.5416666667 | G167: 80.6 | H167: 4 | I167: 210 | J167: 109 | K167: 6 | L167: 74.07736 | M167: 1 | N167: 68 | O167: 7.1 | P167: 42 | S167: 3.6 | T167: 0.01 | U167: 0.09 | V167: 8e-05 | W167: 0.0001 | X167: 1.1 | Y167: 0.045 | Z167: 52 | AA167: 4.5 | AB167: 10 | AC167: 5 | AD167: 10 | AE167: 10 | AG167: 10 | AH167: 16 | AI167: 100 | AJ167: 10 | AK167: 20 | AL167: 0.5
A168: SL 135 | C168: 1981-08-05 | D168: 0.5159722222 | G168: 73.4 | H168: 5 | I168: 210 | J168: 142 | K168: 6 | L168: 68.96931 | M168: 1 | N168: 56 | O168: 7.7 | P168: 62 | Q168: 180 | R168: 175 | S168: 5.2 | T168: 0.02 | U168: 0.1 | V168: 0.00048 | W168: 0.00059 | X168: 1.1 | Y168: 0.054 | Z168: 76 | AA168: 6 | AB168: 12 | AC168: 5 | AD168: 10 | AE168: 16 | AG168: 10 | AH168: 14 | AI168: 100 | AJ168: 10 | AK168: 30 | AL168: 0.33333
A169: SL 135 | C169: 1981-09-09 | D169: 0.5569444444 | G169: 69.8 | H169: 8 | I169: 180 | J169: 170 | K169: 6.3 | L169: 70.00486 | M169: 1 | N169: 68 | O169: 7.9 | P169: 74 | Q169: 184 | R169: 180 | S169: 4 | T169: 0.03 | U169: 0.08 | V169: 0.00098 | W169: 0.00119 | X169: 1.21 | Y169: 0.058 | Z169: 85 | AA169: 7 | AB169: 12 | AC169: 5 | AD169: 10 | AE169: 10 | AG169: 15 | AH169: 18 | AI169: 100 | AJ169: 10 | AK169: 10 | AL169: 0.25
A170: SL 135 | C170: 1981-10-20 | D170: 0.5354166667 | G170: 46.4 | H170: 10 | I170: 280 | J170: 115 | K170: 10.4 | L170: 87.40066 | M170: 3 | N170: 76 | O170: 7.7 | P170: 43 | Q170: 153 | R170: 140 | S170: 13.2 | T170: 0.03 | U170: 0.09 | V170: 0.00024 | W170: 0.00029 | X170: 1.32 | Y170: 0.058 | Z170: 63 | AA170: 6 | AB170: 13 | AC170: 5 | AD170: 10 | AE170: 10 | AG170: 10 | AH170: 22 | AI170: 2400 | AJ170: 280 | AK170: 1200 | AL170: 0.23333
A171: SL 135 | C171: 1981-11-04 | D171: 0.5472222222 | G171: 42.8 | H171: 5 | I171: 195 | J171: 107 | K171: 10.8 | L171: 86.4053 | M171: 2 | N171: 68 | O171: 7.6 | P171: 42 | Q171: 149 | R171: 147 | S171: 2.4 | T171: 0.02 | U171: 0.12 | V171: 0.00011 | W171: 0.00013 | X171: 1.1 | Y171: 0.034 | Z171: 64 | AA171: 5.5 | AB171: 15 | AC171: 5 | AD171: 10 | AE171: 42 | AG171: 10 | AH171: 29 | AI171: 600 | AJ171: 100 | AK171: 230 | AL171: 0.43478
A172: SL 135 | C172: 1981-12-09 | D172: 0.5201388889 | G172: 32 | H172: 2 | I172: 130 | J172: 135 | K172: 13 | L172: 89.04627 | M172: 2.2 | N172: 48 | O172: 7.6 | P172: 53 | Q172: 127 | R172: 127 | S172: 0.4 | T172: 0.03 | U172: 0.2 | V172: 0.0001 | W172: 0.00012 | X172: 0.77 | Y172: 0.019 | Z172: 66 | AA172: 5 | AB172: 12 | AC172: 5 | AD172: 10 | AE172: 13 | AG172: 10 | AH172: 16 | AI172: 100 | AJ172: 10 | AK172: 30 | AL172: 0.33333
A173: SL 135 | C173: 1982-01-21 | D173: 0.5243055556 | G173: 89.6 | H173: 7 | I173: 110 | J173: 159 | K173: 12.3 | L173: 84.25341 | M173: 6 | N173: 36 | O173: 7.2 | P173: 62 | Q173: 170 | R173: 168 | S173: 2 | T173: 0.08 | U173: 0.27 | V173: 0.0001 | W173: 0.00013 | Y173: 0.032 | Z173: 81 | AA173: 7 | AB173: 14 | AC173: 5 | AD173: 10 | AE173: 10 | AG173: 10 | AH173: 16 | AI173: 100 | AJ173: 10 | AK173: 10 | AL173: 1
A174: SL 135 | C174: 1982-02-10 | D174: 0.5111111111 | G174: 51.8 | H174: 120 | I174: 215 | J174: 11.1 | L174: 76.03622 | M174: 3 | N174: 80 | O174: 6.9 | P174: 89 | Q174: 206 | R174: 203 | S174: 2.8 | T174: 0.05 | U174: 0.4 | V174: 3e-05 | W174: 4e-05 | X174: 1.43 | Y174: 0.032 | Z174: 115 | AA174: 10 | AB174: 16 | AC174: 5 | AD174: 10 | AE174: 11 | AG174: 10 | AH174: 26 | AI174: 200 | AJ174: 20 | AK174: 90 | AL174: 0.22222
A175: SL 135 | C175: 1982-03-03 | D175: 0.5 | G175: 32 | H175: 12 | I175: 120 | J175: 142 | K175: 12.6 | L175: 86.30738 | M175: 3 | N175: 44 | O175: 7.5 | P175: 59 | Q175: 146 | R175: 145 | S175: 1.2 | T175: 0.03 | U175: 0.22 | V175: 8e-05 | W175: 9e-06 | X175: 0.88 | Y175: 0.029 | Z175: 72 | AA175: 6 | AB175: 9 | AC175: 5 | AD175: 10 | AE175: 10 | AG175: 10 | AH175: 21 | AI175: 200 | AJ175: 100 | AK175: 40 | AL175: 2.5
A176: SL 135 | C176: 1982-04-27 | D176: 0.5833333333 | G176: 51.8 | H176: 14 | I176: 180 | J176: 80 | K176: 10.5 | L176: 94.59786 | M176: 2 | N176: 48 | O176: 7.6 | P176: 31 | Q176: 122 | R176: 104 | S176: 18.39999 | T176: 0.11 | U176: 0.1 | V176: 0.00087 | W176: 0.00106 | X176: 1.21 | Y176: 0.051 | Z176: 48 | AA176: 3.5 | AB176: 11 | AI176: 100 | AJ176: 30 | AK176: 50 | AL176: 0.6
A177: SL 135 | C177: 1982-05-11 | D177: 0.5506944444 | G177: 53.6 | H177: 10 | I177: 210 | J177: 83 | K177: 10.1 | L177: 93.52278 | M177: 2 | N177: 60 | O177: 7.5 | P177: 33 | Q177: 147 | R177: 131 | S177: 15.6 | T177: 0.03 | U177: 0.06 | V177: 0.0002 | W177: 0.00025 | X177: 0.06 | Y177: 1.21 | Z177: 0.042 | AA177: 49 | AB177: 4.5 | AC177: 11 | AD177: 5 | AE177: 10 | AG177: 10 | AH177: 23 | AI177: 700 | AJ177: 50 | AK177: 440 | AL177: 0.11364
A178: SL 135 | C178: 1982-06-08 | D178: 0.4993055556 | G178: 66.2 | H178: 6 | I178: 210 | J178: 122 | K178: 7.8 | L178: 82.98266 | M178: 1.6 | N178: 48 | O178: 7.6 | P178: 52 | Q178: 144 | R178: 138 | S178: 6.4 | T178: 0.02 | U178: 0.03 | V178: 0.00029 | W178: 0.00035 | X178: 1.21 | Y178: 0.039 | Z178: 63 | AA178: 5 | AB178: 9 | AC178: 5 | AD178: 10 | AE178: 16 | AG178: 10 | AH178: 24 | AI178: 100 | AJ178: 10 | AK178: 400 | AL178: 0.025
A179: SL 135 | C179: 1982-07-22 | D179: 0.4423611111 | G179: 73.4 | H179: 6 | I179: 160 | J179: 105 | K179: 7.1 | L179: 81.61329 | M179: 1 | N179: 60 | O179: 7.3 | P179: 43 | Q179: 149 | R179: 142 | S179: 6.8 | T179: 0.04 | U179: 0.07 | V179: 0.00039 | W179: 0.00047 | X179: 1.21 | Y179: 0.048 | Z179: 54 | AA179: 5.5 | AB179: 9 | AC179: 5 | AD179: 10 | AE179: 15 | AG179: 10 | AH179: 18 | AI179: 300 | AJ179: 10 | AK179: 240 | AL179: 0.04167
A180: SL 135 | C180: 1982-08-17 | D180: 0.4895833333 | G180: 73.4 | H180: 11 | I180: 210 | J180: 140 | K180: 7 | L180: 80.4641 | M180: 1 | N180: 56 | O180: 7.5 | P180: 59 | Q180: 172 | R180: 167 | S180: 4.8 | T180: 0.04 | U180: 0.11 | V180: 0.00061 | W180: 0.00075 | X180: 0.88 | Y180: 0.05 | Z180: 73 | AA180: 6 | AB180: 11 | AD180: 10 | AE180: 17 | AG180: 10 | AH180: 24 | AI180: 100 | AJ180: 10 | AK180: 110 | AL180: 0.09091
A181: SL 135 | C181: 1982-09-15 | D181: 0.5222222222 | G181: 60.8 | H181: 7 | I181: 150 | J181: 135 | K181: 8 | L181: 80.0052 | M181: 1 | N181: 60 | O181: 7.8 | P181: 61 | Q181: 164 | R181: 157 | S181: 6.8 | T181: 0.07 | U181: 0.08 | V181: 0.00128 | W181: 0.00155 | X181: 0.55 | Y181: 0.037 | Z181: 74 | AA181: 6.5 | AB181: 12 | AC181: 5 | AD181: 10 | AE181: 10 | AG181: 10 | AH181: 11 | AI181: 500 | AJ181: 140 | AK181: 2040 | AL181: 0.06863
A182: SL 135 | C182: 1982-10-13 | D182: 0.5555555556 | G182: 50 | H182: 10 | I182: 240 | J182: 75 | K182: 9.9 | L182: 87.61524 | M182: 2 | N182: 68 | O182: 7.3 | P182: 35 | Q182: 150 | R182: 128 | S182: 22 | T182: 0.1 | U182: 0.07 | V182: 0.00037 | W182: 0.00045 | X182: 1.1 | Y182: 0.057 | Z182: 45 | AA182: 5 | AB182: 10 | AC182: 5 | AD182: 10 | AE182: 11 | AG182: 10 | AH182: 25 | AI182: 800 | AJ182: 130 | AK182: 3700 | AL182: 0.03514
A183: SL 135 | C183: 1982-12-14 | D183: 13:18:00 | H183: 4 | I183: 180 | J183: 115 | K183: 12.3 | M183: 3 | N183: 56 | O183: 7.4 | P183: 49 | Q183: 143 | R183: 142 | S183: 1 | T183: 0.04 | U183: 0.21 | X183: 0.88 | Y183: 0.031 | Z183: 64 | AA183: 5 | AB183: 10 | AC183: 10 | AD183: 10 | AE183: 10 | AG183: 10 | AH183: 13 | AI183: 100 | AJ183: 10 | AK183: 60 | AL183: 0.16667
A184: SL 135 | C184: 1983-01-12 | D184: 13:25:00 | H184: 4 | I184: 140 | J184: 113 | K184: 12.3 | M184: 3 | N184: 44 | O184: 7.6 | P184: 53 | Q184: 138 | R184: 136 | S184: 2 | T184: 0.06 | U184: 0.27 | X184: 0.77 | Y184: 0.032 | Z184: 68 | AA184: 6 | AB184: 10 | AD184: 10 | AE184: 10 | AG184: 10 | AH184: 52 | AI184: 1200 | AJ184: 190 | AK184: 100 | AL184: 1.9
A185: SL 135 | C185: 1983-02-09 | D185: 13:20:00 | H185: 4 | I185: 140 | J185: 101 | K185: 12.7 | M185: 2 | N185: 44 | O185: 7.4 | P185: 49 | Q185: 104 | R185: 138 | S185: 2 | T185: 0.06 | U185: 0.26 | X185: 0.99 | Y185: 0.029 | Z185: 59 | AA185: 5 | AB185: 6 | AD185: 10 | AE185: 10 | AG185: 13 | AH185: 31 | AI185: 100 | AJ185: 20 | AK185: 80 | AL185: 0.25
A186: SL 135 | C186: 1983-03-02 | D186: 12:42:00 | H186: 4 | I186: 140 | J186: 114 | K186: 13 | M186: 2 | N186: 44 | O186: 7.4 | P186: 55 | Q186: 144 | R186: 144 | S186: 1 | T186: 0.08 | U186: 0.28 | X186: 0.66 | Y186: 0.026 | Z186: 65 | AA186: 6 | AB186: 10 | AD186: 10 | AE186: 10 | AG186: 10 | AH186: 52 | AI186: 250 | AJ186: 170 | AK186: 130 | AL186: 1.30769
A187: SL 135 | C187: 1983-04-19 | D187: 0.5625 | G187: 39.2 | H187: 5 | I187: 140 | J187: 106 | K187: 12.3 | L187: 93.89912 | M187: 3 | N187: 56 | O187: 7.3 | P187: 44 | Q187: 137 | R187: 131 | S187: 6 | T187: 0.02 | U187: 0.12 | V187: 5e-05 | W187: 6e-05 | X187: 0.88 | Y187: 0.068 | Z187: 55 | AA187: 6 | AB187: 10 | AI187: 50 | AJ187: 10 | AK187: 110 | AL187: 0.09091
A188: SL 135 | C188: 1983-05-11 | D188: 0.5736111111 | G188: 53.6 | H188: 5 | I188: 160 | J188: 119 | K188: 9.5 | L188: 87.96923 | M188: 2 | N188: 56 | O188: 7.4 | P188: 47 | Q188: 142 | R188: 138 | S188: 4 | T188: 0.02 | U188: 1.1 | V188: 0.00011 | W188: 0.00013 | X188: 0.033 | Y188: 63 | Z188: 7 | AA188: 14 | AI188: 40 | AJ188: 10 | AK188: 50 | AL188: 0.2
A189: SL 135 | C189: 1983-06-01 | D189: 0.1159722222 | G189: 57.2 | H189: 3 | I189: 160 | J189: 137 | K189: 9.2 | L189: 88.46661 | M189: 1 | N189: 52 | O189: 7.9 | P189: 52 | Q189: 138 | R189: 132 | S189: 6 | T189: 0.08 | U189: 0.05 | V189: 0.00158 | W189: 0.00192 | X189: 0.99 | Y189: 0.028 | Z189: 62 | AA189: 6 | AB189: 10 | AE189: 15 | AG189: 28 | AH189: 19 | AI189: 100 | AJ189: 10 | AK189: 50 | AL189: 0.2
A190: SL 135 | C190: 1983-07-19 | D190: 0.54375 | G190: 82.4 | H190: 4 | I190: 240 | J190: 130 | K190: 5.4 | L190: 68.35925 | M190: 1 | N190: 64 | O190: 7.7 | P190: 54 | Q190: 166 | R190: 159 | S190: 7 | T190: 0.05 | U190: 0.06 | V190: 0.00169 | W190: 0.00206 | X190: 1.1 | Y190: 0.072 | Z190: 68 | AA190: 7 | AB190: 11 | AE190: 10 | AG190: 10 | AH190: 19 | AI190: 300 | AJ190: 80 | AK190: 310 | AL190: 0.25806
A191: SL 135 | C191: 1983-08-09 | D191: 0.5444444444 | G191: 75.2 | H191: 15 | I191: 210 | J191: 160 | K191: 5.8 | L191: 68.23976 | M191: 2 | N191: 52 | O191: 7.7 | P191: 62 | Q191: 165 | R191: 148 | S191: 17 | T191: 0.05 | U191: 0.08 | V191: 0.00129 | W191: 0.00157 | X191: 0.99 | Y191: 0.062 | Z191: 82 | AA191: 7 | AB191: 12 | AE191: 10 | AG191: 10 | AH191: 16 | AI191: 500 | AJ191: 50 | AK191: 800 | AL191: 0.0625
A192: SL 135 | C192: 1983-09-20 | D192: 0.54375 | G192: 57.2 | H192: 7 | I192: 210 | J192: 136 | K192: 8.4 | L192: 80.77464 | M192: 2 | N192: 56 | O192: 7.8 | P192: 59 | Q192: 162 | R192: 157 | S192: 5 | T192: 0.03 | U192: 0.1 | V192: 0.00047 | W192: 0.00057 | X192: 1.1 | Y192: 0.046 | Z192: 77 | AA192: 7 | AB192: 14 | AE192: 11 | AG192: 10 | AH192: 21 | AI192: 400 | AJ192: 10 | AK192: 310 | AL192: 0.03226
A193: SL 135 | C193: 1983-10-12 | D193: 0.5458333333 | G193: 50 | H193: 6 | I193: 180 | J193: 105 | K193: 10.1 | L193: 89.38619 | M193: 2 | N193: 68 | O193: 7.6 | P193: 44 | Q193: 160 | R193: 150 | S193: 10 | T193: 0.04 | U193: 0.09 | V193: 0.00029 | W193: 0.00036 | X193: 0.99 | Y193: 0.006 | Z193: 61 | AA193: 6 | AB193: 14 | AE193: 13 | AG193: 10 | AH193: 20 | AI193: 200 | AJ193: 40 | AK193: 210 | AL193: 0.19048
A194: SL 135 | C194: 1983-11-08 | D194: 0.5451388889 | G194: 42.8 | H194: 4 | I194: 140 | J194: 124 | K194: 10.6 | L194: 84.80567 | M194: 2 | N194: 44 | O194: 7.6 | P194: 50 | Q194: 145 | R194: 142 | S194: 3 | T194: 0.03 | U194: 0.1 | V194: 0.00016 | W194: 0.0002 | X194: 0.77 | Y194: 0.032 | Z194: 70 | AA194: 6 | AB194: 17 | AE194: 10 | AG194: 10 | AH194: 10 | AI194: 400 | AJ194: 10 | AK194: 90 | AL194: 0.11111
A195: SL 135 | C195: 1984-01-11 | D195: 0.5451388889 | G195: 39.2 | H195: 140 | I195: 108 | J195: 14 | M195: 3 | O195: 7.5 | P195: 50 | Q195: 134 | R195: 132 | S195: 2 | T195: 0.11 | U195: 0.16 | X195: 0.99 | Y195: 0.026 | Z195: 65 | AA195: 5 | AB195: 11 | AC195: 5 | AD195: 10 | AE195: 10 | AG195: 10 | AH195: 24 | AI195: 40 | AJ195: 10 | AK195: 10 | AL195: 1
A196: SL 135 | C196: 1984-04-26 | D196: 0.5604166667 | G196: 50 | H196: 5 | I196: 140 | J196: 132 | K196: 10.7 | L196: 94.69427 | M196: 2 | N196: 40 | O196: 7.5 | P196: 42 | Q196: 144 | R196: 137 | S196: 7 | T196: 0.03 | U196: 0.07 | V196: 0.00018 | W196: 0.00021 | X196: 0.088 | Y196: 0.032 | Z196: 54 | AA196: 4 | AB196: 12 | AE196: 12 | AG196: 10 | AH196: 15 | AI196: 100 | AJ196: 10 | AK196: 230 | AL196: 0.04348
A197: SL 135 | C197: 1984-05-08 | D197: 48.19998 | G197: 48.2 | H197: 5 | I197: 180 | J197: 121 | K197: 10.5 | L197: 90.52192 | M197: 1.6 | N197: 44 | O197: 7.6 | P197: 41 | Q197: 121 | R197: 116 | S197: 5 | T197: 0.06 | U197: 0.06 | V197: 0.00041 | W197: 0.0005 | X197: 0.77 | Y197: 0.026 | Z197: 55 | AA197: 5 | AB197: 13 | AE197: 12 | AG197: 10 | AH197: 32 | AI197: 110 | AJ197: 10 | AK197: 120 | AL197: 0.08333
A198: SL 135 | C198: 1984-06-12 | D198: 0.5201388889 | G198: 60.8 | H198: 15 | I198: 210 | J198: 102 | K198: 9 | L198: 90.0036 | M198: 2 | N198: 68 | O198: 7.6 | P198: 41 | Q198: 175 | R198: 126 | S198: 49 | T198: 0.06 | U198: 0.11 | V198: 0.0007 | W198: 0.00085 | X198: 1.21 | Y198: 0.095 | Z198: 50 | AA198: 4 | AB198: 10 | AE198: 11 | AG198: 10 | AH198: 14 | AI198: 300 | AJ198: 120 | AK198: 580 | AL198: 0.2069
A199: SL 135 | C199: 1984-07-03 | D199: 0.5222222222 | G199: 75.2 | H199: 5 | I199: 280 | J199: 125 | K199: 6.5 | L199: 76.47418 | M199: 4 | N199: 80 | O199: 7.6 | P199: 47 | Q199: 139 | R199: 134 | S199: 5 | T199: 0.02 | U199: 0.08 | V199: 0.00041 | W199: 0.0005 | X199: 1.21 | Y199: 0.054 | Z199: 58 | AA199: 5 | AB199: 12 | AE199: 13 | AG199: 10 | AH199: 15 | AI199: 300 | AJ199: 120 | AK199: 13 | AL199: 0.92308
A200: SL 135 | C200: 1984-08-02 | D200: 0.5055555556 | G200: 71.6 | H200: 5 | I200: 140 | J200: 160 | K200: 6.8 | L200: 77.27691 | M200: 1 | N200: 44 | O200: 7.6 | P200: 58 | Q200: 148 | R200: 142 | S200: 6 | T200: 0.06 | U200: 0.06 | V200: 0.00107 | W200: 0.00131 | X200: 0.55 | Y200: 0.017 | Z200: 67 | AA200: 6 | AB200: 17 | AI200: 100 | AJ200: 10 | AK200: 190 | AL200: 0.05263
... 2050 more rows

Sheet Ispat-SD003DataDump
A1: station | B1: Record_No | C1: preferred_id | D1: permit_action | E1: stn_type_code | F1: local_name | G1: stn_subtype_desc | H1: start_year_sorter | I1: start_month_sorter | J1: report_start_date | K1: report_end_date | L1: pcs_parameter_code | M1: pcs_parameter_name | N1: limit | O1: qual | P1: rptd_value | Q1: units | R1: variability_of_treatment_type | S1: no_discharge_flag | T1: no_flow_flag | U1: no_material_generated_flag | V1: limit_type | W1: county_name | X1: basin_name | Y1: major_watershed_name | Z1: major_watershed_code | AA1: minor_watershed_code | AB1: publicly_owned_flag | AC1: industrial_waste_flag | AD1: npdes_flag | AE1: construction_flag | AF1: facility_design_flow
A2: SD003 | B2: 66 | C2: MN0059633 | D2: PER 001 | E2: SD | F2: Pipe Outfall 012 | G2: Effluent To Surface Water | H2: 1999 | I2: 12 | J2: 12/99 | K2: 12/99 | L2: 50050 | M2: Flow | N2: ****** | P2: 2.12 | Q2: MG | R2: n/a | S2: N | T2: N | U2: N | V2: CalMoTot | W2: St. Louis | X2: Lake Superior | Y2: St. Louis River | Z2: 3 | AA2: 3136 | AB2: Private | AC2: Y | AD2: Y | AE2: N | AF2: 6
A3: SD003 | B3: 66 | C3: MN0059633 | D3: PER 001 | E3: SD | F3: Pipe Outfall 012 | G3: Effluent To Surface Water | H3: 1999 | I3: 12 | J3: 12/99 | K3: 12/99 | L3: 50050 | M3: Flow | N3: ****** | P3: 2.12 | Q3: mgd | R3: n/a | S3: N | T3: N | U3: N | V3: CalMoAvg | W3: St. Louis | X3: Lake Superior | Y3: St. Louis River | Z3: 3 | AA3: 3136 | AB3: Private | AC3: Y | AD3: Y | AE3: N | AF3: 6
A4: SD003 | B4: 66 | C4: MN0059633 | D4: PER 001 | E4: SD | F4: Pipe Outfall 012 | G4: Effluent To Surface Water | H4: 1999 | I4: 12 | J4: 12/99 | K4: 12/99 | L4: 50050 | M4: Flow | N4: ****** | P4: 2.12 | Q4: mgd | R4: n/a | S4: N | T4: N | U4: N | V4: CalMoMax | W4: St. Louis | X4: Lake Superior | Y4: St. Louis River | Z4: 3 | AA4: 3136 | AB4: Private | AC4: Y | AD4: Y | AE4: N | AF4: 6
A5: SD003 | B5: 66 | C5: MN0059633 | D5: PER 001 | E5: SD | F5: Pipe Outfall 012 | G5: Effluent To Surface Water | H5: 1999 | I5: 12 | J5: 12/99 | K5: 12/99 | L5: 01046 | M5: Iron, Dissolved (as Fe) | N5: 1.0 | O5: < | P5: 0.03 | Q5: mg/L | R5: n/a | S5: N | T5: N | U5: N | V5: CalMoAvg | W5: St. Louis | X5: Lake Superior | Y5: St. Louis River | Z5: 3 | AA5: 3136 | AB5: Private | AC5: Y | AD5: Y | AE5: N | AF5: 6
A6: SD003 | B6: 66 | C6: MN0059633 | D6: PER 001 | E6: SD | F6: Pipe Outfall 012 | G6: Effluent To Surface Water | H6: 1999 | I6: 12 | J6: 12/99 | K6: 12/99 | L6: 01046 | M6: Iron, Dissolved (as Fe) | N6: 2.0 | P6: 0.03 | Q6: mg/L | R6: n/a | S6: N | T6: N | U6: N | V6: CalMoMax | W6: St. Louis | X6: Lake Superior | Y6: St. Louis River | Z6: 3 | AA6: 3136 | AB6: Private | AC6: Y | AD6: Y | AE6: N | AF6: 6
A7: SD003 | B7: 66 | C7: MN0059633 | D7: PER 001 | E7: SD | F7: Pipe Outfall 012 | G7: Effluent To Surface Water | H7: 1999 | I7: 12 | J7: 12/99 | K7: 12/99 | L7: 00400 | M7: pH | N7: 8.5 | P7: 8.36 | Q7: SU | R7: n/a | S7: N | T7: N | U7: N | V7: InstantMax | W7: St. Louis | X7: Lake Superior | Y7: St. Louis River | Z7: 3 | AA7: 3136 | AB7: Private | AC7: Y | AD7: Y | AE7: N | AF7: 6
A8: SD003 | B8: 66 | C8: MN0059633 | D8: PER 001 | E8: SD | F8: Pipe Outfall 012 | G8: Effluent To Surface Water | H8: 1999 | I8: 12 | J8: 12/99 | K8: 12/99 | L8: 00400 | M8: pH | N8: 6.5 | P8: 8.23 | Q8: SU | R8: n/a | S8: N | T8: N | U8: N | V8: InstantMin | W8: St. Louis | X8: Lake Superior | Y8: St. Louis River | Z8: 3 | AA8: 3136 | AB8: Private | AC8: Y | AD8: Y | AE8: N | AF8: 6
A9: SD003 | B9: 66 | C9: MN0059633 | D9: PER 001 | E9: SD | F9: Pipe Outfall 012 | G9: Effluent To Surface Water | H9: 2000 | I9: 01 | J9: 01/00 | K9: 01/00 | L9: 50050 | M9: Flow | N9: ****** | P9: 60.583 | Q9: MG | R9: n/a | S9: N | T9: N | U9: N | V9: CalMoTot | W9: St. Louis | X9: Lake Superior | Y9: St. Louis River | Z9: 3 | AA9: 3136 | AB9: Private | AC9: Y | AD9: Y | AE9: N | AF9: 6
A10: SD003 | B10: 66 | C10: MN0059633 | D10: PER 001 | E10: SD | F10: Pipe Outfall 012 | G10: Effluent To Surface Water | H10: 2000 | I10: 01 | J10: 01/00 | K10: 01/00 | L10: 50050 | M10: Flow | N10: ****** | P10: 1.954 | Q10: mgd | R10: n/a | S10: N | T10: N | U10: N | V10: CalMoAvg | W10: St. Louis | X10: Lake Superior | Y10: St. Louis River | Z10: 3 | AA10: 3136 | AB10: Private | AC10: Y | AD10: Y | AE10: N | AF10: 6
A11: SD003 | B11: 66 | C11: MN0059633 | D11: PER 001 | E11: SD | F11: Pipe Outfall 012 | G11: Effluent To Surface Water | H11: 2000 | I11: 01 | J11: 01/00 | K11: 01/00 | L11: 50050 | M11: Flow | N11: ****** | P11: 1.954 | Q11: mgd | R11: n/a | S11: N | T11: N | U11: N | V11: CalMoMax | W11: St. Louis | X11: Lake Superior | Y11: St. Louis River | Z11: 3 | AA11: 3136 | AB11: Private | AC11: Y | AD11: Y | AE11: N | AF11: 6
A12: SD003 | B12: 66 | C12: MN0059633 | D12: PER 001 | E12: SD | F12: Pipe Outfall 012 | G12: Effluent To Surface Water | H12: 2000 | I12: 01 | J12: 01/00 | K12: 01/00 | L12: 01046 | M12: Iron, Dissolved (as Fe) | N12: 1.0 | O12: < | P12: 0.04 | Q12: mg/L | R12: n/a | S12: N | T12: N | U12: N | V12: CalMoAvg | W12: St. Louis | X12: Lake Superior | Y12: St. Louis River | Z12: 3 | AA12: 3136 | AB12: Private | AC12: Y | AD12: Y | AE12: N | AF12: 6
A13: SD003 | B13: 66 | C13: MN0059633 | D13: PER 001 | E13: SD | F13: Pipe Outfall 012 | G13: Effluent To Surface Water | H13: 2000 | I13: 01 | J13: 01/00 | K13: 01/00 | L13: 01046 | M13: Iron, Dissolved (as Fe) | N13: 2.0 | P13: 0.05 | Q13: mg/L | R13: n/a | S13: N | T13: N | U13: N | V13: CalMoMax | W13: St. Louis | X13: Lake Superior | Y13: St. Louis River | Z13: 3 | AA13: 3136 | AB13: Private | AC13: Y | AD13: Y | AE13: N | AF13: 6
A14: SD003 | B14: 66 | C14: MN0059633 | D14: PER 001 | E14: SD | F14: Pipe Outfall 012 | G14: Effluent To Surface Water | H14: 2000 | I14: 01 | J14: 01/00 | K14: 01/00 | L14: 00400 | M14: pH | N14: 8.5 | P14: 7.98 | Q14: SU | R14: n/a | S14: N | T14: N | U14: N | V14: InstantMax | W14: St. Louis | X14: Lake Superior | Y14: St. Louis River | Z14: 3 | AA14: 3136 | AB14: Private | AC14: Y | AD14: Y | AE14: N | AF14: 6
A15: SD003 | B15: 66 | C15: MN0059633 | D15: PER 001 | E15: SD | F15: Pipe Outfall 012 | G15: Effluent To Surface Water | H15: 2000 | I15: 01 | J15: 01/00 | K15: 01/00 | L15: 00400 | M15: pH | N15: 6.5 | P15: 7.86 | Q15: SU | R15: n/a | S15: N | T15: N | U15: N | V15: InstantMin | W15: St. Louis | X15: Lake Superior | Y15: St. Louis River | Z15: 3 | AA15: 3136 | AB15: Private | AC15: Y | AD15: Y | AE15: N | AF15: 6
A16: SD003 | B16: 66 | C16: MN0059633 | D16: PER 001 | E16: SD | F16: Pipe Outfall 012 | G16: Effluent To Surface Water | H16: 2000 | I16: 02 | J16: 02/00 | K16: 02/00 | L16: 50050 | M16: Flow | N16: ****** | P16: 63.909 | Q16: MG | R16: n/a | S16: N | T16: N | U16: N | V16: CalMoTot | W16: St. Louis | X16: Lake Superior | Y16: St. Louis River | Z16: 3 | AA16: 3136 | AB16: Private | AC16: Y | AD16: Y | AE16: N | AF16: 6
A17: SD003 | B17: 66 | C17: MN0059633 | D17: PER 001 | E17: SD | F17: Pipe Outfall 012 | G17: Effluent To Surface Water | H17: 2000 | I17: 02 | J17: 02/00 | K17: 02/00 | L17: 50050 | M17: Flow | N17: ****** | P17: 2.2 | Q17: mgd | R17: n/a | S17: N | T17: N | U17: N | V17: CalMoAvg | W17: St. Louis | X17: Lake Superior | Y17: St. Louis River | Z17: 3 | AA17: 3136 | AB17: Private | AC17: Y | AD17: Y | AE17: N | AF17: 6
A18: SD003 | B18: 66 | C18: MN0059633 | D18: PER 001 | E18: SD | F18: Pipe Outfall 012 | G18: Effluent To Surface Water | H18: 2000 | I18: 02 | J18: 02/00 | K18: 02/00 | L18: 50050 | M18: Flow | N18: ****** | P18: 2.2 | Q18: mgd | R18: n/a | S18: N | T18: N | U18: N | V18: CalMoMax | W18: St. Louis | X18: Lake Superior | Y18: St. Louis River | Z18: 3 | AA18: 3136 | AB18: Private | AC18: Y | AD18: Y | AE18: N | AF18: 6
A19: SD003 | B19: 66 | C19: MN0059633 | D19: PER 001 | E19: SD | F19: Pipe Outfall 012 | G19: Effluent To Surface Water | H19: 2000 | I19: 02 | J19: 02/00 | K19: 02/00 | L19: 01046 | M19: Iron, Dissolved (as Fe) | N19: 1.0 | O19: < | P19: 0.03 | Q19: mg/L | R19: n/a | S19: N | T19: N | U19: N | V19: CalMoAvg | W19: St. Louis | X19: Lake Superior | Y19: St. Louis River | Z19: 3 | AA19: 3136 | AB19: Private | AC19: Y | AD19: Y | AE19: N | AF19: 6
A20: SD003 | B20: 66 | C20: MN0059633 | D20: PER 001 | E20: SD | F20: Pipe Outfall 012 | G20: Effluent To Surface Water | H20: 2000 | I20: 02 | J20: 02/00 | K20: 02/00 | L20: 01046 | M20: Iron, Dissolved (as Fe) | N20: 2.0 | O20: < | P20: 0.03 | Q20: mg/L | R20: n/a | S20: N | T20: N | U20: N | V20: CalMoMax | W20: St. Louis | X20: Lake Superior | Y20: St. Louis River | Z20: 3 | AA20: 3136 | AB20: Private | AC20: Y | AD20: Y | AE20: N | AF20: 6
A21: SD003 | B21: 66 | C21: MN0059633 | D21: PER 001 | E21: SD | F21: Pipe Outfall 012 | G21: Effluent To Surface Water | H21: 2000 | I21: 02 | J21: 02/00 | K21: 02/00 | L21: 00400 | M21: pH | N21: 8.5 | P21: 7.75 | Q21: SU | R21: n/a | S21: N | T21: N | U21: N | V21: InstantMax | W21: St. Louis | X21: Lake Superior | Y21: St. Louis River | Z21: 3 | AA21: 3136 | AB21: Private | AC21: Y | AD21: Y | AE21: N | AF21: 6
A22: SD003 | B22: 66 | C22: MN0059633 | D22: PER 001 | E22: SD | F22: Pipe Outfall 012 | G22: Effluent To Surface Water | H22: 2000 | I22: 02 | J22: 02/00 | K22: 02/00 | L22: 00400 | M22: pH | N22: 6.5 | P22: 7.73 | Q22: SU | R22: n/a | S22: N | T22: N | U22: N | V22: InstantMin | W22: St. Louis | X22: Lake Superior | Y22: St. Louis River | Z22: 3 | AA22: 3136 | AB22: Private | AC22: Y | AD22: Y | AE22: N | AF22: 6
A23: SD003 | B23: 66 | C23: MN0059633 | D23: PER 001 | E23: SD | F23: Pipe Outfall 012 | G23: Effluent To Surface Water | H23: 2000 | I23: 03 | J23: 03/00 | K23: 03/00 | L23: 50050 | M23: Flow | N23: ****** | P23: 73.019 | Q23: MG | R23: n/a | S23: N | T23: N | U23: N | V23: CalMoTot | W23: St. Louis | X23: Lake Superior | Y23: St. Louis River | Z23: 3 | AA23: 3136 | AB23: Private | AC23: Y | AD23: Y | AE23: N | AF23: 6
A24: SD003 | B24: 66 | C24: MN0059633 | D24: PER 001 | E24: SD | F24: Pipe Outfall 012 | G24: Effluent To Surface Water | H24: 2000 | I24: 03 | J24: 03/00 | K24: 03/00 | L24: 50050 | M24: Flow | N24: ****** | P24: 2.355 | Q24: mgd | R24: n/a | S24: N | T24: N | U24: N | V24: CalMoAvg | W24: St. Louis | X24: Lake Superior | Y24: St. Louis River | Z24: 3 | AA24: 3136 | AB24: Private | AC24: Y | AD24: Y | AE24: N | AF24: 6
A25: SD003 | B25: 66 | C25: MN0059633 | D25: PER 001 | E25: SD | F25: Pipe Outfall 012 | G25: Effluent To Surface Water | H25: 2000 | I25: 03 | J25: 03/00 | K25: 03/00 | L25: 50050 | M25: Flow | N25: ****** | P25: 2.355 | Q25: mgd | R25: n/a | S25: N | T25: N | U25: N | V25: CalMoMax | W25: St. Louis | X25: Lake Superior | Y25: St. Louis River | Z25: 3 | AA25: 3136 | AB25: Private | AC25: Y | AD25: Y | AE25: N | AF25: 6
A26: SD003 | B26: 66 | C26: MN0059633 | D26: PER 001 | E26: SD | F26: Pipe Outfall 012 | G26: Effluent To Surface Water | H26: 2000 | I26: 03 | J26: 03/00 | K26: 03/00 | L26: 01046 | M26: Iron, Dissolved (as Fe) | N26: 1.0 | O26: < | P26: 0.04 | Q26: mg/L | R26: n/a | S26: N | T26: N | U26: N | V26: CalMoAvg | W26: St. Louis | X26: Lake Superior | Y26: St. Louis River | Z26: 3 | AA26: 3136 | AB26: Private | AC26: Y | AD26: Y | AE26: N | AF26: 6
A27: SD003 | B27: 66 | C27: MN0059633 | D27: PER 001 | E27: SD | F27: Pipe Outfall 012 | G27: Effluent To Surface Water | H27: 2000 | I27: 03 | J27: 03/00 | K27: 03/00 | L27: 01046 | M27: Iron, Dissolved (as Fe) | N27: 2.0 | P27: 0.05 | Q27: mg/L | R27: n/a | S27: N | T27: N | U27: N | V27: CalMoMax | W27: St. Louis | X27: Lake Superior | Y27: St. Louis River | Z27: 3 | AA27: 3136 | AB27: Private | AC27: Y | AD27: Y | AE27: N | AF27: 6
A28: SD003 | B28: 66 | C28: MN0059633 | D28: PER 001 | E28: SD | F28: Pipe Outfall 012 | G28: Effluent To Surface Water | H28: 2000 | I28: 03 | J28: 03/00 | K28: 03/00 | L28: 00400 | M28: pH | N28: 8.5 | P28: 7.98 | Q28: SU | R28: n/a | S28: N | T28: N | U28: N | V28: InstantMax | W28: St. Louis | X28: Lake Superior | Y28: St. Louis River | Z28: 3 | AA28: 3136 | AB28: Private | AC28: Y | AD28: Y | AE28: N | AF28: 6
A29: SD003 | B29: 66 | C29: MN0059633 | D29: PER 001 | E29: SD | F29: Pipe Outfall 012 | G29: Effluent To Surface Water | H29: 2000 | I29: 03 | J29: 03/00 | K29: 03/00 | L29: 00400 | M29: pH | N29: 6.5 | P29: 7.82 | Q29: SU | R29: n/a | S29: N | T29: N | U29: N | V29: InstantMin | W29: St. Louis | X29: Lake Superior | Y29: St. Louis River | Z29: 3 | AA29: 3136 | AB29: Private | AC29: Y | AD29: Y | AE29: N | AF29: 6
A30: SD003 | B30: 66 | C30: MN0059633 | D30: PER 001 | E30: SD | F30: Pipe Outfall 012 | G30: Effluent To Surface Water | H30: 2000 | I30: 04 | J30: 04/00 | K30: 04/00 | L30: 50050 | M30: Flow | N30: ****** | P30: 70.634 | Q30: MG | R30: n/a | S30: N | T30: N | U30: N | V30: CalMoTot | W30: St. Louis | X30: Lake Superior | Y30: St. Louis River | Z30: 3 | AA30: 3136 | AB30: Private | AC30: Y | AD30: Y | AE30: N | AF30: 6
A31: SD003 | B31: 66 | C31: MN0059633 | D31: PER 001 | E31: SD | F31: Pipe Outfall 012 | G31: Effluent To Surface Water | H31: 2000 | I31: 04 | J31: 04/00 | K31: 04/00 | L31: 50050 | M31: Flow | N31: ****** | P31: 2.354 | Q31: mgd | R31: n/a | S31: N | T31: N | U31: N | V31: CalMoAvg | W31: St. Louis | X31: Lake Superior | Y31: St. Louis River | Z31: 3 | AA31: 3136 | AB31: Private | AC31: Y | AD31: Y | AE31: N | AF31: 6
A32: SD003 | B32: 66 | C32: MN0059633 | D32: PER 001 | E32: SD | F32: Pipe Outfall 012 | G32: Effluent To Surface Water | H32: 2000 | I32: 04 | J32: 04/00 | K32: 04/00 | L32: 50050 | M32: Flow | N32: ****** | P32: 2.354 | Q32: mgd | R32: n/a | S32: N | T32: N | U32: N | V32: CalMoMax | W32: St. Louis | X32: Lake Superior | Y32: St. Louis River | Z32: 3 | AA32: 3136 | AB32: Private | AC32: Y | AD32: Y | AE32: N | AF32: 6
A33: SD003 | B33: 66 | C33: MN0059633 | D33: PER 001 | E33: SD | F33: Pipe Outfall 012 | G33: Effluent To Surface Water | H33: 2000 | I33: 04 | J33: 04/00 | K33: 04/00 | L33: 01046 | M33: Iron, Dissolved (as Fe) | N33: 1.0 | O33: < | P33: 0.03 | Q33: mg/L | R33: n/a | S33: N | T33: N | U33: N | V33: CalMoAvg | W33: St. Louis | X33: Lake Superior | Y33: St. Louis River | Z33: 3 | AA33: 3136 | AB33: Private | AC33: Y | AD33: Y | AE33: N | AF33: 6
A34: SD003 | B34: 66 | C34: MN0059633 | D34: PER 001 | E34: SD | F34: Pipe Outfall 012 | G34: Effluent To Surface Water | H34: 2000 | I34: 04 | J34: 04/00 | K34: 04/00 | L34: 01046 | M34: Iron, Dissolved (as Fe) | N34: 2.0 | O34: < | P34: 0.03 | Q34: mg/L | R34: n/a | S34: N | T34: N | U34: N | V34: CalMoMax | W34: St. Louis | X34: Lake Superior | Y34: St. Louis River | Z34: 3 | AA34: 3136 | AB34: Private | AC34: Y | AD34: Y | AE34: N | AF34: 6
A35: SD003 | B35: 66 | C35: MN0059633 | D35: PER 001 | E35: SD | F35: Pipe Outfall 012 | G35: Effluent To Surface Water | H35: 2000 | I35: 04 | J35: 04/00 | K35: 04/00 | L35: 00400 | M35: pH | N35: 8.5 | P35: 8.09 | Q35: SU | R35: n/a | S35: N | T35: N | U35: N | V35: InstantMax | W35: St. Louis | X35: Lake Superior | Y35: St. Louis River | Z35: 3 | AA35: 3136 | AB35: Private | AC35: Y | AD35: Y | AE35: N | AF35: 6
A36: SD003 | B36: 66 | C36: MN0059633 | D36: PER 001 | E36: SD | F36: Pipe Outfall 012 | G36: Effluent To Surface Water | H36: 2000 | I36: 04 | J36: 04/00 | K36: 04/00 | L36: 00400 | M36: pH | N36: 6.5 | P36: 8.04 | Q36: SU | R36: n/a | S36: N | T36: N | U36: N | V36: InstantMin | W36: St. Louis | X36: Lake Superior | Y36: St. Louis River | Z36: 3 | AA36: 3136 | AB36: Private | AC36: Y | AD36: Y | AE36: N | AF36: 6
A37: SD003 | B37: 66 | C37: MN0059633 | D37: PER 001 | E37: SD | F37: Pipe Outfall 012 | G37: Effluent To Surface Water | H37: 2000 | I37: 05 | J37: 05/00 | K37: 05/00 | L37: 50050 | M37: Flow | N37: ****** | P37: 77.88 | Q37: MG | R37: n/a | S37: N | T37: N | U37: N | V37: CalMoTot | W37: St. Louis | X37: Lake Superior | Y37: St. Louis River | Z37: 3 | AA37: 3136 | AB37: Private | AC37: Y | AD37: Y | AE37: N | AF37: 6
A38: SD003 | B38: 66 | C38: MN0059633 | D38: PER 001 | E38: SD | F38: Pipe Outfall 012 | G38: Effluent To Surface Water | H38: 2000 | I38: 05 | J38: 05/00 | K38: 05/00 | L38: 50050 | M38: Flow | N38: ****** | P38: 2.512 | Q38: mgd | R38: n/a | S38: N | T38: N | U38: N | V38: CalMoAvg | W38: St. Louis | X38: Lake Superior | Y38: St. Louis River | Z38: 3 | AA38: 3136 | AB38: Private | AC38: Y | AD38: Y | AE38: N | AF38: 6
A39: SD003 | B39: 66 | C39: MN0059633 | D39: PER 001 | E39: SD | F39: Pipe Outfall 012 | G39: Effluent To Surface Water | H39: 2000 | I39: 05 | J39: 05/00 | K39: 05/00 | L39: 50050 | M39: Flow | N39: ****** | P39: 2.512 | Q39: mgd | R39: n/a | S39: N | T39: N | U39: N | V39: CalMoMax | W39: St. Louis | X39: Lake Superior | Y39: St. Louis River | Z39: 3 | AA39: 3136 | AB39: Private | AC39: Y | AD39: Y | AE39: N | AF39: 6
A40: SD003 | B40: 66 | C40: MN0059633 | D40: PER 001 | E40: SD | F40: Pipe Outfall 012 | G40: Effluent To Surface Water | H40: 2000 | I40: 05 | J40: 05/00 | K40: 05/00 | L40: 01046 | M40: Iron, Dissolved (as Fe) | N40: 1.0 | P40: 0.2 | Q40: mg/L | R40: n/a | S40: N | T40: N | U40: N | V40: CalMoAvg | W40: St. Louis | X40: Lake Superior | Y40: St. Louis River | Z40: 3 | AA40: 3136 | AB40: Private | AC40: Y | AD40: Y | AE40: N | AF40: 6
A41: SD003 | B41: 66 | C41: MN0059633 | D41: PER 001 | E41: SD | F41: Pipe Outfall 012 | G41: Effluent To Surface Water | H41: 2000 | I41: 05 | J41: 05/00 | K41: 05/00 | L41: 01046 | M41: Iron, Dissolved (as Fe) | N41: 2.0 | P41: 0.2 | Q41: mg/L | R41: n/a | S41: N | T41: N | U41: N | V41: CalMoMax | W41: St. Louis | X41: Lake Superior | Y41: St. Louis River | Z41: 3 | AA41: 3136 | AB41: Private | AC41: Y | AD41: Y | AE41: N | AF41: 6
A42: SD003 | B42: 66 | C42: MN0059633 | D42: PER 001 | E42: SD | F42: Pipe Outfall 012 | G42: Effluent To Surface Water | H42: 2000 | I42: 05 | J42: 05/00 | K42: 05/00 | L42: 00400 | M42: pH | N42: 8.5 | P42: 7.5 | Q42: SU | R42: n/a | S42: N | T42: N | U42: N | V42: InstantMax | W42: St. Louis | X42: Lake Superior | Y42: St. Louis River | Z42: 3 | AA42: 3136 | AB42: Private | AC42: Y | AD42: Y | AE42: N | AF42: 6
A43: SD003 | B43: 66 | C43: MN0059633 | D43: PER 001 | E43: SD | F43: Pipe Outfall 012 | G43: Effluent To Surface Water | H43: 2000 | I43: 05 | J43: 05/00 | K43: 05/00 | L43: 00400 | M43: pH | N43: 6.5 | P43: 7.5 | Q43: SU | R43: n/a | S43: N | T43: N | U43: N | V43: InstantMin | W43: St. Louis | X43: Lake Superior | Y43: St. Louis River | Z43: 3 | AA43: 3136 | AB43: Private | AC43: Y | AD43: Y | AE43: N | AF43: 6
A44: SD003 | B44: 66 | C44: MN0059633 | D44: PER 001 | E44: SD | F44: Pipe Outfall 012 | G44: Effluent To Surface Water | H44: 2000 | I44: 06 | J44: 06/00 | K44: 06/00 | L44: 50050 | M44: Flow | N44: ****** | P44: 84.164 | Q44: MG | R44: n/a | S44: N | T44: N | U44: N | V44: CalMoTot | W44: St. Louis | X44: Lake Superior | Y44: St. Louis River | Z44: 3 | AA44: 3136 | AB44: Private | AC44: Y | AD44: Y | AE44: N | AF44: 6
A45: SD003 | B45: 66 | C45: MN0059633 | D45: PER 001 | E45: SD | F45: Pipe Outfall 012 | G45: Effluent To Surface Water | H45: 2000 | I45: 06 | J45: 06/00 | K45: 06/00 | L45: 50050 | M45: Flow | N45: ****** | P45: 2.805 | Q45: mgd | R45: n/a | S45: N | T45: N | U45: N | V45: CalMoAvg | W45: St. Louis | X45: Lake Superior | Y45: St. Louis River | Z45: 3 | AA45: 3136 | AB45: Private | AC45: Y | AD45: Y | AE45: N | AF45: 6
A46: SD003 | B46: 66 | C46: MN0059633 | D46: PER 001 | E46: SD | F46: Pipe Outfall 012 | G46: Effluent To Surface Water | H46: 2000 | I46: 06 | J46: 06/00 | K46: 06/00 | L46: 50050 | M46: Flow | N46: ****** | P46: 2.805 | Q46: mgd | R46: n/a | S46: N | T46: N | U46: N | V46: CalMoMax | W46: St. Louis | X46: Lake Superior | Y46: St. Louis River | Z46: 3 | AA46: 3136 | AB46: Private | AC46: Y | AD46: Y | AE46: N | AF46: 6
A47: SD003 | B47: 66 | C47: MN0059633 | D47: PER 001 | E47: SD | F47: Pipe Outfall 012 | G47: Effluent To Surface Water | H47: 2000 | I47: 06 | J47: 06/00 | K47: 06/00 | L47: 01046 | M47: Iron, Dissolved (as Fe) | N47: 1.0 | O47: < | P47: 0.03 | Q47: mg/L | R47: n/a | S47: N | T47: N | U47: N | V47: CalMoAvg | W47: St. Louis | X47: Lake Superior | Y47: St. Louis River | Z47: 3 | AA47: 3136 | AB47: Private | AC47: Y | AD47: Y | AE47: N | AF47: 6
A48: SD003 | B48: 66 | C48: MN0059633 | D48: PER 001 | E48: SD | F48: Pipe Outfall 012 | G48: Effluent To Surface Water | H48: 2000 | I48: 06 | J48: 06/00 | K48: 06/00 | L48: 01046 | M48: Iron, Dissolved (as Fe) | N48: 2.0 | O48: < | P48: 0.03 | Q48: mg/L | R48: n/a | S48: N | T48: N | U48: N | V48: CalMoMax | W48: St. Louis | X48: Lake Superior | Y48: St. Louis River | Z48: 3 | AA48: 3136 | AB48: Private | AC48: Y | AD48: Y | AE48: N | AF48: 6
A49: SD003 | B49: 66 | C49: MN0059633 | D49: PER 001 | E49: SD | F49: Pipe Outfall 012 | G49: Effluent To Surface Water | H49: 2000 | I49: 06 | J49: 06/00 | K49: 06/00 | L49: 00400 | M49: pH | N49: 8.5 | P49: 8.24 | Q49: SU | R49: n/a | S49: N | T49: N | U49: N | V49: InstantMax | W49: St. Louis | X49: Lake Superior | Y49: St. Louis River | Z49: 3 | AA49: 3136 | AB49: Private | AC49: Y | AD49: Y | AE49: N | AF49: 6
A50: SD003 | B50: 66 | C50: MN0059633 | D50: PER 001 | E50: SD | F50: Pipe Outfall 012 | G50: Effluent To Surface Water | H50: 2000 | I50: 06 | J50: 06/00 | K50: 06/00 | L50: 00400 | M50: pH | N50: 6.5 | P50: 8.17 | Q50: SU | R50: n/a | S50: N | T50: N | U50: N | V50: InstantMin | W50: St. Louis | X50: Lake Superior | Y50: St. Louis River | Z50: 3 | AA50: 3136 | AB50: Private | AC50: Y | AD50: Y | AE50: N | AF50: 6
A51: SD003 | B51: 66 | C51: MN0059633 | D51: PER 001 | E51: SD | F51: Pipe Outfall 012 | G51: Effluent To Surface Water | H51: 2000 | I51: 07 | J51: 07/00 | K51: 07/00 | L51: 50050 | M51: Flow | N51: ****** | P51: 91.435 | Q51: MG | R51: n/a | S51: N | T51: N | U51: N | V51: CalMoTot | W51: St. Louis | X51: Lake Superior | Y51: St. Louis River | Z51: 3 | AA51: 3136 | AB51: Private | AC51: Y | AD51: Y | AE51: N | AF51: 6
A52: SD003 | B52: 66 | C52: MN0059633 | D52: PER 001 | E52: SD | F52: Pipe Outfall 012 | G52: Effluent To Surface Water | H52: 2000 | I52: 07 | J52: 07/00 | K52: 07/00 | L52: 50050 | M52: Flow | N52: ****** | P52: 2.95 | Q52: mgd | R52: n/a | S52: N | T52: N | U52: N | V52: CalMoAvg | W52: St. Louis | X52: Lake Superior | Y52: St. Louis River | Z52: 3 | AA52: 3136 | AB52: Private | AC52: Y | AD52: Y | AE52: N | AF52: 6
A53: SD003 | B53: 66 | C53: MN0059633 | D53: PER 001 | E53: SD | F53: Pipe Outfall 012 | G53: Effluent To Surface Water | H53: 2000 | I53: 07 | J53: 07/00 | K53: 07/00 | L53: 50050 | M53: Flow | N53: ****** | P53: 2.95 | Q53: mgd | R53: n/a | S53: N | T53: N | U53: N | V53: CalMoMax | W53: St. Louis | X53: Lake Superior | Y53: St. Louis River | Z53: 3 | AA53: 3136 | AB53: Private | AC53: Y | AD53: Y | AE53: N | AF53: 6
A54: SD003 | B54: 66 | C54: MN0059633 | D54: PER 001 | E54: SD | F54: Pipe Outfall 012 | G54: Effluent To Surface Water | H54: 2000 | I54: 07 | J54: 07/00 | K54: 07/00 | L54: 01046 | M54: Iron, Dissolved (as Fe) | N54: 1.0 | P54: 0.03 | Q54: mg/L | R54: n/a | S54: N | T54: N | U54: N | V54: CalMoAvg | W54: St. Louis | X54: Lake Superior | Y54: St. Louis River | Z54: 3 | AA54: 3136 | AB54: Private | AC54: Y | AD54: Y | AE54: N | AF54: 6
A55: SD003 | B55: 66 | C55: MN0059633 | D55: PER 001 | E55: SD | F55: Pipe Outfall 012 | G55: Effluent To Surface Water | H55: 2000 | I55: 07 | J55: 07/00 | K55: 07/00 | L55: 01046 | M55: Iron, Dissolved (as Fe) | N55: 2.0 | P55: 0.03 | Q55: mg/L | R55: n/a | S55: N | T55: N | U55: N | V55: CalMoMax | W55: St. Louis | X55: Lake Superior | Y55: St. Louis River | Z55: 3 | AA55: 3136 | AB55: Private | AC55: Y | AD55: Y | AE55: N | AF55: 6
A56: SD003 | B56: 66 | C56: MN0059633 | D56: PER 001 | E56: SD | F56: Pipe Outfall 012 | G56: Effluent To Surface Water | H56: 2000 | I56: 07 | J56: 07/00 | K56: 07/00 | L56: 00400 | M56: pH | N56: 8.5 | P56: 8.22 | Q56: SU | R56: n/a | S56: N | T56: N | U56: N | V56: InstantMax | W56: St. Louis | X56: Lake Superior | Y56: St. Louis River | Z56: 3 | AA56: 3136 | AB56: Private | AC56: Y | AD56: Y | AE56: N | AF56: 6
A57: SD003 | B57: 66 | C57: MN0059633 | D57: PER 001 | E57: SD | F57: Pipe Outfall 012 | G57: Effluent To Surface Water | H57: 2000 | I57: 07 | J57: 07/00 | K57: 07/00 | L57: 00400 | M57: pH | N57: 6.5 | P57: 8.15 | Q57: SU | R57: n/a | S57: N | T57: N | U57: N | V57: InstantMin | W57: St. Louis | X57: Lake Superior | Y57: St. Louis River | Z57: 3 | AA57: 3136 | AB57: Private | AC57: Y | AD57: Y | AE57: N | AF57: 6
A58: SD003 | B58: 66 | C58: MN0059633 | D58: PER 001 | E58: SD | F58: Pipe Outfall 012 | G58: Effluent To Surface Water | H58: 2000 | I58: 08 | J58: 08/00 | K58: 08/00 | L58: 50050 | M58: Flow | N58: ****** | P58: 89.203 | Q58: MG | R58: n/a | S58: N | T58: N | U58: N | V58: CalMoTot | W58: St. Louis | X58: Lake Superior | Y58: St. Louis River | Z58: 3 | AA58: 3136 | AB58: Private | AC58: Y | AD58: Y | AE58: N | AF58: 6
A59: SD003 | B59: 66 | C59: MN0059633 | D59: PER 001 | E59: SD | F59: Pipe Outfall 012 | G59: Effluent To Surface Water | H59: 2000 | I59: 08 | J59: 08/00 | K59: 08/00 | L59: 50050 | M59: Flow | N59: ****** | P59: 2.878 | Q59: mgd | R59: n/a | S59: N | T59: N | U59: N | V59: CalMoAvg | W59: St. Louis | X59: Lake Superior | Y59: St. Louis River | Z59: 3 | AA59: 3136 | AB59: Private | AC59: Y | AD59: Y | AE59: N | AF59: 6
A60: SD003 | B60: 66 | C60: MN0059633 | D60: PER 001 | E60: SD | F60: Pipe Outfall 012 | G60: Effluent To Surface Water | H60: 2000 | I60: 08 | J60: 08/00 | K60: 08/00 | L60: 50050 | M60: Flow | N60: ****** | P60: 2.878 | Q60: mgd | R60: n/a | S60: N | T60: N | U60: N | V60: CalMoMax | W60: St. Louis | X60: Lake Superior | Y60: St. Louis River | Z60: 3 | AA60: 3136 | AB60: Private | AC60: Y | AD60: Y | AE60: N | AF60: 6
A61: SD003 | B61: 66 | C61: MN0059633 | D61: PER 001 | E61: SD | F61: Pipe Outfall 012 | G61: Effluent To Surface Water | H61: 2000 | I61: 08 | J61: 08/00 | K61: 08/00 | L61: 01046 | M61: Iron, Dissolved (as Fe) | N61: 1.0 | O61: < | P61: 0.03 | Q61: mg/L | R61: n/a | S61: N | T61: N | U61: N | V61: CalMoAvg | W61: St. Louis | X61: Lake Superior | Y61: St. Louis River | Z61: 3 | AA61: 3136 | AB61: Private | AC61: Y | AD61: Y | AE61: N | AF61: 6
A62: SD003 | B62: 66 | C62: MN0059633 | D62: PER 001 | E62: SD | F62: Pipe Outfall 012 | G62: Effluent To Surface Water | H62: 2000 | I62: 08 | J62: 08/00 | K62: 08/00 | L62: 01046 | M62: Iron, Dissolved (as Fe) | N62: 2.0 | O62: < | P62: 0.03 | Q62: mg/L | R62: n/a | S62: N | T62: N | U62: N | V62: CalMoMax | W62: St. Louis | X62: Lake Superior | Y62: St. Louis River | Z62: 3 | AA62: 3136 | AB62: Private | AC62: Y | AD62: Y | AE62: N | AF62: 6
A63: SD003 | B63: 66 | C63: MN0059633 | D63: PER 001 | E63: SD | F63: Pipe Outfall 012 | G63: Effluent To Surface Water | H63: 2000 | I63: 08 | J63: 08/00 | K63: 08/00 | L63: 00400 | M63: pH | N63: 8.5 | P63: 7.91 | Q63: SU | R63: n/a | S63: N | T63: N | U63: N | V63: InstantMax | W63: St. Louis | X63: Lake Superior | Y63: St. Louis River | Z63: 3 | AA63: 3136 | AB63: Private | AC63: Y | AD63: Y | AE63: N | AF63: 6
A64: SD003 | B64: 66 | C64: MN0059633 | D64: PER 001 | E64: SD | F64: Pipe Outfall 012 | G64: Effluent To Surface Water | H64: 2000 | I64: 08 | J64: 08/00 | K64: 08/00 | L64: 00400 | M64: pH | N64: 6.5 | P64: 7.91 | Q64: SU | R64: n/a | S64: N | T64: N | U64: N | V64: InstantMin | W64: St. Louis | X64: Lake Superior | Y64: St. Louis River | Z64: 3 | AA64: 3136 | AB64: Private | AC64: Y | AD64: Y | AE64: N | AF64: 6
A65: SD003 | B65: 66 | C65: MN0059633 | D65: PER 001 | E65: SD | F65: Pipe Outfall 012 | G65: Effluent To Surface Water | H65: 2000 | I65: 09 | J65: 09/00 | K65: 09/00 | L65: 50050 | M65: Flow | N65: ****** | P65: 94.322 | Q65: MG | R65: n/a | S65: N | T65: N | U65: N | V65: CalMoTot | W65: St. Louis | X65: Lake Superior | Y65: St. Louis River | Z65: 3 | AA65: 3136 | AB65: Private | AC65: Y | AD65: Y | AE65: N | AF65: 6
A66: SD003 | B66: 66 | C66: MN0059633 | D66: PER 001 | E66: SD | F66: Pipe Outfall 012 | G66: Effluent To Surface Water | H66: 2000 | I66: 09 | J66: 09/00 | K66: 09/00 | L66: 50050 | M66: Flow | N66: ****** | P66: 3.144 | Q66: mgd | R66: n/a | S66: N | T66: N | U66: N | V66: CalMoAvg | W66: St. Louis | X66: Lake Superior | Y66: St. Louis River | Z66: 3 | AA66: 3136 | AB66: Private | AC66: Y | AD66: Y | AE66: N | AF66: 6
A67: SD003 | B67: 66 | C67: MN0059633 | D67: PER 001 | E67: SD | F67: Pipe Outfall 012 | G67: Effluent To Surface Water | H67: 2000 | I67: 09 | J67: 09/00 | K67: 09/00 | L67: 50050 | M67: Flow | N67: ****** | P67: 3.144 | Q67: mgd | R67: n/a | S67: N | T67: N | U67: N | V67: CalMoMax | W67: St. Louis | X67: Lake Superior | Y67: St. Louis River | Z67: 3 | AA67: 3136 | AB67: Private | AC67: Y | AD67: Y | AE67: N | AF67: 6
A68: SD003 | B68: 66 | C68: MN0059633 | D68: PER 001 | E68: SD | F68: Pipe Outfall 012 | G68: Effluent To Surface Water | H68: 2000 | I68: 09 | J68: 09/00 | K68: 09/00 | L68: 01046 | M68: Iron, Dissolved (as Fe) | N68: 1.0 | O68: < | P68: 0.03 | Q68: mg/L | R68: n/a | S68: N | T68: N | U68: N | V68: CalMoAvg | W68: St. Louis | X68: Lake Superior | Y68: St. Louis River | Z68: 3 | AA68: 3136 | AB68: Private | AC68: Y | AD68: Y | AE68: N | AF68: 6
A69: SD003 | B69: 66 | C69: MN0059633 | D69: PER 001 | E69: SD | F69: Pipe Outfall 012 | G69: Effluent To Surface Water | H69: 2000 | I69: 09 | J69: 09/00 | K69: 09/00 | L69: 01046 | M69: Iron, Dissolved (as Fe) | N69: 2.0 | O69: < | P69: 0.03 | Q69: mg/L | R69: n/a | S69: N | T69: N | U69: N | V69: CalMoMax | W69: St. Louis | X69: Lake Superior | Y69: St. Louis River | Z69: 3 | AA69: 3136 | AB69: Private | AC69: Y | AD69: Y | AE69: N | AF69: 6
A70: SD003 | B70: 66 | C70: MN0059633 | D70: PER 001 | E70: SD | F70: Pipe Outfall 012 | G70: Effluent To Surface Water | H70: 2000 | I70: 09 | J70: 09/00 | K70: 09/00 | L70: 00400 | M70: pH | N70: 8.5 | P70: 8.23 | Q70: SU | R70: n/a | S70: N | T70: N | U70: N | V70: InstantMax | W70: St. Louis | X70: Lake Superior | Y70: St. Louis River | Z70: 3 | AA70: 3136 | AB70: Private | AC70: Y | AD70: Y | AE70: N | AF70: 6
A71: SD003 | B71: 66 | C71: MN0059633 | D71: PER 001 | E71: SD | F71: Pipe Outfall 012 | G71: Effluent To Surface Water | H71: 2000 | I71: 09 | J71: 09/00 | K71: 09/00 | L71: 00400 | M71: pH | N71: 6.5 | P71: 7.96 | Q71: SU | R71: n/a | S71: N | T71: N | U71: N | V71: InstantMin | W71: St. Louis | X71: Lake Superior | Y71: St. Louis River | Z71: 3 | AA71: 3136 | AB71: Private | AC71: Y | AD71: Y | AE71: N | AF71: 6
A72: SD003 | B72: 66 | C72: MN0059633 | D72: PER 001 | E72: SD | F72: Pipe Outfall 012 | G72: Effluent To Surface Water | H72: 2000 | I72: 10 | J72: 10/00 | K72: 10/00 | L72: 50050 | M72: Flow | N72: ****** | P72: 88.643 | Q72: MG | R72: n/a | S72: N | T72: N | U72: N | V72: CalMoTot | W72: St. Louis | X72: Lake Superior | Y72: St. Louis River | Z72: 3 | AA72: 3136 | AB72: Private | AC72: Y | AD72: Y | AE72: N | AF72: 6
A73: SD003 | B73: 66 | C73: MN0059633 | D73: PER 001 | E73: SD | F73: Pipe Outfall 012 | G73: Effluent To Surface Water | H73: 2000 | I73: 10 | J73: 10/00 | K73: 10/00 | L73: 50050 | M73: Flow | N73: ****** | P73: 2.859 | Q73: mgd | R73: n/a | S73: N | T73: N | U73: N | V73: CalMoAvg | W73: St. Louis | X73: Lake Superior | Y73: St. Louis River | Z73: 3 | AA73: 3136 | AB73: Private | AC73: Y | AD73: Y | AE73: N | AF73: 6
A74: SD003 | B74: 66 | C74: MN0059633 | D74: PER 001 | E74: SD | F74: Pipe Outfall 012 | G74: Effluent To Surface Water | H74: 2000 | I74: 10 | J74: 10/00 | K74: 10/00 | L74: 50050 | M74: Flow | N74: ****** | P74: 2.859 | Q74: mgd | R74: n/a | S74: N | T74: N | U74: N | V74: CalMoMax | W74: St. Louis | X74: Lake Superior | Y74: St. Louis River | Z74: 3 | AA74: 3136 | AB74: Private | AC74: Y | AD74: Y | AE74: N | AF74: 6
A75: SD003 | B75: 66 | C75: MN0059633 | D75: PER 001 | E75: SD | F75: Pipe Outfall 012 | G75: Effluent To Surface Water | H75: 2000 | I75: 10 | J75: 10/00 | K75: 10/00 | L75: 01046 | M75: Iron, Dissolved (as Fe) | N75: 1.0 | O75: < | P75: 0.035 | Q75: mg/L | R75: n/a | S75: N | T75: N | U75: N | V75: CalMoAvg | W75: St. Louis | X75: Lake Superior | Y75: St. Louis River | Z75: 3 | AA75: 3136 | AB75: Private | AC75: Y | AD75: Y | AE75: N | AF75: 6
A76: SD003 | B76: 66 | C76: MN0059633 | D76: PER 001 | E76: SD | F76: Pipe Outfall 012 | G76: Effluent To Surface Water | H76: 2000 | I76: 10 | J76: 10/00 | K76: 10/00 | L76: 01046 | M76: Iron, Dissolved (as Fe) | N76: 2.0 | P76: 0.04 | Q76: mg/L | R76: n/a | S76: N | T76: N | U76: N | V76: CalMoMax | W76: St. Louis | X76: Lake Superior | Y76: St. Louis River | Z76: 3 | AA76: 3136 | AB76: Private | AC76: Y | AD76: Y | AE76: N | AF76: 6
A77: SD003 | B77: 66 | C77: MN0059633 | D77: PER 001 | E77: SD | F77: Pipe Outfall 012 | G77: Effluent To Surface Water | H77: 2000 | I77: 10 | J77: 10/00 | K77: 10/00 | L77: 00400 | M77: pH | N77: 8.5 | P77: 8.06 | Q77: SU | R77: n/a | S77: N | T77: N | U77: N | V77: InstantMax | W77: St. Louis | X77: Lake Superior | Y77: St. Louis River | Z77: 3 | AA77: 3136 | AB77: Private | AC77: Y | AD77: Y | AE77: N | AF77: 6
A78: SD003 | B78: 66 | C78: MN0059633 | D78: PER 001 | E78: SD | F78: Pipe Outfall 012 | G78: Effluent To Surface Water | H78: 2000 | I78: 10 | J78: 10/00 | K78: 10/00 | L78: 00400 | M78: pH | N78: 6.5 | P78: 7.76 | Q78: SU | R78: n/a | S78: N | T78: N | U78: N | V78: InstantMin | W78: St. Louis | X78: Lake Superior | Y78: St. Louis River | Z78: 3 | AA78: 3136 | AB78: Private | AC78: Y | AD78: Y | AE78: N | AF78: 6
A79: SD003 | B79: 66 | C79: MN0059633 | D79: PER 001 | E79: SD | F79: Pipe Outfall 012 | G79: Effluent To Surface Water | H79: 2000 | I79: 11 | J79: 11/00 | K79: 11/00 | L79: 50050 | M79: Flow | N79: ****** | P79: 88.642 | Q79: MG | R79: n/a | S79: N | T79: N | U79: N | V79: CalMoTot | W79: St. Louis | X79: Lake Superior | Y79: St. Louis River | Z79: 3 | AA79: 3136 | AB79: Private | AC79: Y | AD79: Y | AE79: N | AF79: 6
A80: SD003 | B80: 66 | C80: MN0059633 | D80: PER 001 | E80: SD | F80: Pipe Outfall 012 | G80: Effluent To Surface Water | H80: 2000 | I80: 11 | J80: 11/00 | K80: 11/00 | L80: 50050 | M80: Flow | N80: ****** | P80: 2.955 | Q80: mgd | R80: n/a | S80: N | T80: N | U80: N | V80: CalMoAvg | W80: St. Louis | X80: Lake Superior | Y80: St. Louis River | Z80: 3 | AA80: 3136 | AB80: Private | AC80: Y | AD80: Y | AE80: N | AF80: 6
A81: SD003 | B81: 66 | C81: MN0059633 | D81: PER 001 | E81: SD | F81: Pipe Outfall 012 | G81: Effluent To Surface Water | H81: 2000 | I81: 11 | J81: 11/00 | K81: 11/00 | L81: 50050 | M81: Flow | N81: ****** | P81: 2.955 | Q81: mgd | R81: n/a | S81: N | T81: N | U81: N | V81: CalMoMax | W81: St. Louis | X81: Lake Superior | Y81: St. Louis River | Z81: 3 | AA81: 3136 | AB81: Private | AC81: Y | AD81: Y | AE81: N | AF81: 6
A82: SD003 | B82: 66 | C82: MN0059633 | D82: PER 001 | E82: SD | F82: Pipe Outfall 012 | G82: Effluent To Surface Water | H82: 2000 | I82: 11 | J82: 11/00 | K82: 11/00 | L82: 01046 | M82: Iron, Dissolved (as Fe) | N82: 1.0 | O82: < | P82: 0.03 | Q82: mg/L | R82: n/a | S82: N | T82: N | U82: N | V82: CalMoAvg | W82: St. Louis | X82: Lake Superior | Y82: St. Louis River | Z82: 3 | AA82: 3136 | AB82: Private | AC82: Y | AD82: Y | AE82: N | AF82: 6
A83: SD003 | B83: 66 | C83: MN0059633 | D83: PER 001 | E83: SD | F83: Pipe Outfall 012 | G83: Effluent To Surface Water | H83: 2000 | I83: 11 | J83: 11/00 | K83: 11/00 | L83: 01046 | M83: Iron, Dissolved (as Fe) | N83: 2.0 | O83: < | P83: 0.03 | Q83: mg/L | R83: n/a | S83: N | T83: N | U83: N | V83: CalMoMax | W83: St. Louis | X83: Lake Superior | Y83: St. Louis River | Z83: 3 | AA83: 3136 | AB83: Private | AC83: Y | AD83: Y | AE83: N | AF83: 6
A84: SD003 | B84: 66 | C84: MN0059633 | D84: PER 001 | E84: SD | F84: Pipe Outfall 012 | G84: Effluent To Surface Water | H84: 2000 | I84: 11 | J84: 11/00 | K84: 11/00 | L84: 00400 | M84: pH | N84: 8.5 | P84: 8.15 | Q84: SU | R84: n/a | S84: N | T84: N | U84: N | V84: InstantMax | W84: St. Louis | X84: Lake Superior | Y84: St. Louis River | Z84: 3 | AA84: 3136 | AB84: Private | AC84: Y | AD84: Y | AE84: N | AF84: 6
A85: SD003 | B85: 66 | C85: MN0059633 | D85: PER 001 | E85: SD | F85: Pipe Outfall 012 | G85: Effluent To Surface Water | H85: 2000 | I85: 11 | J85: 11/00 | K85: 11/00 | L85: 00400 | M85: pH | N85: 6.5 | P85: 8.15 | Q85: SU | R85: n/a | S85: N | T85: N | U85: N | V85: InstantMin | W85: St. Louis | X85: Lake Superior | Y85: St. Louis River | Z85: 3 | AA85: 3136 | AB85: Private | AC85: Y | AD85: Y | AE85: N | AF85: 6
A86: SD003 | B86: 66 | C86: MN0059633 | D86: PER 001 | E86: SD | F86: Pipe Outfall 012 | G86: Effluent To Surface Water | H86: 2000 | I86: 12 | J86: 12/00 | K86: 12/00 | L86: 50050 | M86: Flow | N86: ****** | P86: 80.567 | Q86: MG | R86: n/a | S86: N | T86: N | U86: N | V86: CalMoTot | W86: St. Louis | X86: Lake Superior | Y86: St. Louis River | Z86: 3 | AA86: 3136 | AB86: Private | AC86: Y | AD86: Y | AE86: N | AF86: 6
A87: SD003 | B87: 66 | C87: MN0059633 | D87: PER 001 | E87: SD | F87: Pipe Outfall 012 | G87: Effluent To Surface Water | H87: 2000 | I87: 12 | J87: 12/00 | K87: 12/00 | L87: 50050 | M87: Flow | N87: ****** | P87: 2.599 | Q87: mgd | R87: n/a | S87: N | T87: N | U87: N | V87: CalMoAvg | W87: St. Louis | X87: Lake Superior | Y87: St. Louis River | Z87: 3 | AA87: 3136 | AB87: Private | AC87: Y | AD87: Y | AE87: N | AF87: 6
A88: SD003 | B88: 66 | C88: MN0059633 | D88: PER 001 | E88: SD | F88: Pipe Outfall 012 | G88: Effluent To Surface Water | H88: 2000 | I88: 12 | J88: 12/00 | K88: 12/00 | L88: 50050 | M88: Flow | N88: ****** | P88: 2.599 | Q88: mgd | R88: n/a | S88: N | T88: N | U88: N | V88: CalMoMax | W88: St. Louis | X88: Lake Superior | Y88: St. Louis River | Z88: 3 | AA88: 3136 | AB88: Private | AC88: Y | AD88: Y | AE88: N | AF88: 6
A89: SD003 | B89: 66 | C89: MN0059633 | D89: PER 001 | E89: SD | F89: Pipe Outfall 012 | G89: Effluent To Surface Water | H89: 2000 | I89: 12 | J89: 12/00 | K89: 12/00 | L89: 01046 | M89: Iron, Dissolved (as Fe) | N89: 1.0 | O89: < | P89: 0.045 | Q89: mg/L | R89: n/a | S89: N | T89: N | U89: N | V89: CalMoAvg | W89: St. Louis | X89: Lake Superior | Y89: St. Louis River | Z89: 3 | AA89: 3136 | AB89: Private | AC89: Y | AD89: Y | AE89: N | AF89: 6
A90: SD003 | B90: 66 | C90: MN0059633 | D90: PER 001 | E90: SD | F90: Pipe Outfall 012 | G90: Effluent To Surface Water | H90: 2000 | I90: 12 | J90: 12/00 | K90: 12/00 | L90: 01046 | M90: Iron, Dissolved (as Fe) | N90: 2.0 | P90: 0.06 | Q90: mg/L | R90: n/a | S90: N | T90: N | U90: N | V90: CalMoMax | W90: St. Louis | X90: Lake Superior | Y90: St. Louis River | Z90: 3 | AA90: 3136 | AB90: Private | AC90: Y | AD90: Y | AE90: N | AF90: 6
A91: SD003 | B91: 66 | C91: MN0059633 | D91: PER 001 | E91: SD | F91: Pipe Outfall 012 | G91: Effluent To Surface Water | H91: 2000 | I91: 12 | J91: 12/00 | K91: 12/00 | L91: 00400 | M91: pH | N91: 8.5 | P91: 8.26 | Q91: SU | R91: n/a | S91: N | T91: N | U91: N | V91: InstantMax | W91: St. Louis | X91: Lake Superior | Y91: St. Louis River | Z91: 3 | AA91: 3136 | AB91: Private | AC91: Y | AD91: Y | AE91: N | AF91: 6
A92: SD003 | B92: 66 | C92: MN0059633 | D92: PER 001 | E92: SD | F92: Pipe Outfall 012 | G92: Effluent To Surface Water | H92: 2000 | I92: 12 | J92: 12/00 | K92: 12/00 | L92: 00400 | M92: pH | N92: 6.5 | P92: 8.04 | Q92: SU | R92: n/a | S92: N | T92: N | U92: N | V92: InstantMin | W92: St. Louis | X92: Lake Superior | Y92: St. Louis River | Z92: 3 | AA92: 3136 | AB92: Private | AC92: Y | AD92: Y | AE92: N | AF92: 6
A93: SD003 | B93: 66 | C93: MN0059633 | D93: PER 001 | E93: SD | F93: Pipe Outfall 012 | G93: Effluent To Surface Water | H93: 2001 | I93: 01 | J93: 01/01 | K93: 01/01 | L93: 50050 | M93: Flow | N93: ****** | P93: 76.731 | Q93: MG | R93: n/a | S93: N | T93: N | U93: N | V93: CalMoTot | W93: St. Louis | X93: Lake Superior | Y93: St. Louis River | Z93: 3 | AA93: 3136 | AB93: Private | AC93: Y | AD93: Y | AE93: N | AF93: 6
A94: SD003 | B94: 66 | C94: MN0059633 | D94: PER 001 | E94: SD | F94: Pipe Outfall 012 | G94: Effluent To Surface Water | H94: 2001 | I94: 01 | J94: 01/01 | K94: 01/01 | L94: 50050 | M94: Flow | N94: ****** | P94: 2.745 | Q94: mgd | R94: n/a | S94: N | T94: N | U94: N | V94: CalMoAvg | W94: St. Louis | X94: Lake Superior | Y94: St. Louis River | Z94: 3 | AA94: 3136 | AB94: Private | AC94: Y | AD94: Y | AE94: N | AF94: 6
A95: SD003 | B95: 66 | C95: MN0059633 | D95: PER 001 | E95: SD | F95: Pipe Outfall 012 | G95: Effluent To Surface Water | H95: 2001 | I95: 01 | J95: 01/01 | K95: 01/01 | L95: 50050 | M95: Flow | N95: ****** | P95: 2.745 | Q95: mgd | R95: n/a | S95: N | T95: N | U95: N | V95: CalMoMax | W95: St. Louis | X95: Lake Superior | Y95: St. Louis River | Z95: 3 | AA95: 3136 | AB95: Private | AC95: Y | AD95: Y | AE95: N | AF95: 6
A96: SD003 | B96: 66 | C96: MN0059633 | D96: PER 001 | E96: SD | F96: Pipe Outfall 012 | G96: Effluent To Surface Water | H96: 2001 | I96: 01 | J96: 01/01 | K96: 01/01 | L96: 01046 | M96: Iron, Dissolved (as Fe) | N96: 1.0 | O96: < | P96: 0.04 | Q96: mg/L | R96: n/a | S96: N | T96: N | U96: N | V96: CalMoAvg | W96: St. Louis | X96: Lake Superior | Y96: St. Louis River | Z96: 3 | AA96: 3136 | AB96: Private | AC96: Y | AD96: Y | AE96: N | AF96: 6
A97: SD003 | B97: 66 | C97: MN0059633 | D97: PER 001 | E97: SD | F97: Pipe Outfall 012 | G97: Effluent To Surface Water | H97: 2001 | I97: 01 | J97: 01/01 | K97: 01/01 | L97: 01046 | M97: Iron, Dissolved (as Fe) | N97: 2.0 | P97: 0.05 | Q97: mg/L | R97: n/a | S97: N | T97: N | U97: N | V97: CalMoMax | W97: St. Louis | X97: Lake Superior | Y97: St. Louis River | Z97: 3 | AA97: 3136 | AB97: Private | AC97: Y | AD97: Y | AE97: N | AF97: 6
A98: SD003 | B98: 66 | C98: MN0059633 | D98: PER 001 | E98: SD | F98: Pipe Outfall 012 | G98: Effluent To Surface Water | H98: 2001 | I98: 01 | J98: 01/01 | K98: 01/01 | L98: 00400 | M98: pH | N98: 8.5 | P98: 7.83 | Q98: SU | R98: n/a | S98: N | T98: N | U98: N | V98: InstantMax | W98: St. Louis | X98: Lake Superior | Y98: St. Louis River | Z98: 3 | AA98: 3136 | AB98: Private | AC98: Y | AD98: Y | AE98: N | AF98: 6
A99: SD003 | B99: 66 | C99: MN0059633 | D99: PER 001 | E99: SD | F99: Pipe Outfall 012 | G99: Effluent To Surface Water | H99: 2001 | I99: 01 | J99: 01/01 | K99: 01/01 | L99: 00400 | M99: pH | N99: 6.5 | P99: 7.72 | Q99: SU | R99: n/a | S99: N | T99: N | U99: N | V99: InstantMin | W99: St. Louis | X99: Lake Superior | Y99: St. Louis River | Z99: 3 | AA99: 3136 | AB99: Private | AC99: Y | AD99: Y | AE99: N | AF99: 6
A100: SD003 | B100: 66 | C100: MN0059633 | D100: PER 001 | E100: SD | F100: Pipe Outfall 012 | G100: Effluent To Surface Water | H100: 2001 | I100: 02 | J100: 02/01 | K100: 02/01 | L100: 50050 | M100: Flow | N100: ****** | P100: 66.192 | Q100: MG | R100: n/a | S100: N | T100: N | U100: N | V100: CalMoTot | W100: St. Louis | X100: Lake Superior | Y100: St. Louis River | Z100: 3 | AA100: 3136 | AB100: Private | AC100: Y | AD100: Y | AE100: N | AF100: 6
A101: SD003 | B101: 66 | C101: MN0059633 | D101: PER 001 | E101: SD | F101: Pipe Outfall 012 | G101: Effluent To Surface Water | H101: 2001 | I101: 02 | J101: 02/01 | K101: 02/01 | L101: 50050 | M101: Flow | N101: ****** | P101: 2.364 | Q101: mgd | R101: n/a | S101: N | T101: N | U101: N | V101: CalMoAvg | W101: St. Louis | X101: Lake Superior | Y101: St. Louis River | Z101: 3 | AA101: 3136 | AB101: Private | AC101: Y | AD101: Y | AE101: N | AF101: 6
A102: SD003 | B102: 66 | C102: MN0059633 | D102: PER 001 | E102: SD | F102: Pipe Outfall 012 | G102: Effluent To Surface Water | H102: 2001 | I102: 02 | J102: 02/01 | K102: 02/01 | L102: 50050 | M102: Flow | N102: ****** | P102: 2.364 | Q102: mgd | R102: n/a | S102: N | T102: N | U102: N | V102: CalMoMax | W102: St. Louis | X102: Lake Superior | Y102: St. Louis River | Z102: 3 | AA102: 3136 | AB102: Private | AC102: Y | AD102: Y | AE102: N | AF102: 6
A103: SD003 | B103: 66 | C103: MN0059633 | D103: PER 001 | E103: SD | F103: Pipe Outfall 012 | G103: Effluent To Surface Water | H103: 2001 | I103: 02 | J103: 02/01 | K103: 02/01 | L103: 01046 | M103: Iron, Dissolved (as Fe) | N103: 1.0 | O103: < | P103: 0.04 | Q103: mg/L | R103: n/a | S103: N | T103: N | U103: N | V103: CalMoAvg | W103: St. Louis | X103: Lake Superior | Y103: St. Louis River | Z103: 3 | AA103: 3136 | AB103: Private | AC103: Y | AD103: Y | AE103: N | AF103: 6
A104: SD003 | B104: 66 | C104: MN0059633 | D104: PER 001 | E104: SD | F104: Pipe Outfall 012 | G104: Effluent To Surface Water | H104: 2001 | I104: 02 | J104: 02/01 | K104: 02/01 | L104: 01046 | M104: Iron, Dissolved (as Fe) | N104: 2.0 | P104: 0.05 | Q104: mg/L | R104: n/a | S104: N | T104: N | U104: N | V104: CalMoMax | W104: St. Louis | X104: Lake Superior | Y104: St. Louis River | Z104: 3 | AA104: 3136 | AB104: Private | AC104: Y | AD104: Y | AE104: N | AF104: 6
A105: SD003 | B105: 66 | C105: MN0059633 | D105: PER 001 | E105: SD | F105: Pipe Outfall 012 | G105: Effluent To Surface Water | H105: 2001 | I105: 02 | J105: 02/01 | K105: 02/01 | L105: 00400 | M105: pH | N105: 8.5 | P105: 7.39 | Q105: SU | R105: n/a | S105: N | T105: N | U105: N | V105: InstantMax | W105: St. Louis | X105: Lake Superior | Y105: St. Louis River | Z105: 3 | AA105: 3136 | AB105: Private | AC105: Y | AD105: Y | AE105: N | AF105: 6
A106: SD003 | B106: 66 | C106: MN0059633 | D106: PER 001 | E106: SD | F106: Pipe Outfall 012 | G106: Effluent To Surface Water | H106: 2001 | I106: 02 | J106: 02/01 | K106: 02/01 | L106: 00400 | M106: pH | N106: 6.5 | P106: 7.29 | Q106: SU | R106: n/a | S106: N | T106: N | U106: N | V106: InstantMin | W106: St. Louis | X106: Lake Superior | Y106: St. Louis River | Z106: 3 | AA106: 3136 | AB106: Private | AC106: Y | AD106: Y | AE106: N | AF106: 6
A107: SD003 | B107: 66 | C107: MN0059633 | D107: PER 001 | E107: SD | F107: Pipe Outfall 012 | G107: Effluent To Surface Water | H107: 2001 | I107: 03 | J107: 03/01 | K107: 03/01 | L107: 50050 | M107: Flow | N107: ****** | P107: 82.336 | Q107: MG | R107: n/a | S107: N | T107: N | U107: N | V107: CalMoTot | W107: St. Louis | X107: Lake Superior | Y107: St. Louis River | Z107: 3 | AA107: 3136 | AB107: Private | AC107: Y | AD107: Y | AE107: N | AF107: 6
A108: SD003 | B108: 66 | C108: MN0059633 | D108: PER 001 | E108: SD | F108: Pipe Outfall 012 | G108: Effluent To Surface Water | H108: 2001 | I108: 03 | J108: 03/01 | K108: 03/01 | L108: 50050 | M108: Flow | N108: ****** | P108: 2.656 | Q108: mgd | R108: n/a | S108: N | T108: N | U108: N | V108: CalMoAvg | W108: St. Louis | X108: Lake Superior | Y108: St. Louis River | Z108: 3 | AA108: 3136 | AB108: Private | AC108: Y | AD108: Y | AE108: N | AF108: 6
A109: SD003 | B109: 66 | C109: MN0059633 | D109: PER 001 | E109: SD | F109: Pipe Outfall 012 | G109: Effluent To Surface Water | H109: 2001 | I109: 03 | J109: 03/01 | K109: 03/01 | L109: 50050 | M109: Flow | N109: ****** | P109: 2.656 | Q109: mgd | R109: n/a | S109: N | T109: N | U109: N | V109: CalMoMax | W109: St. Louis | X109: Lake Superior | Y109: St. Louis River | Z109: 3 | AA109: 3136 | AB109: Private | AC109: Y | AD109: Y | AE109: N | AF109: 6
A110: SD003 | B110: 66 | C110: MN0059633 | D110: PER 001 | E110: SD | F110: Pipe Outfall 012 | G110: Effluent To Surface Water | H110: 2001 | I110: 03 | J110: 03/01 | K110: 03/01 | L110: 01046 | M110: Iron, Dissolved (as Fe) | N110: 1.0 | P110: 0.055 | Q110: mg/L | R110: n/a | S110: N | T110: N | U110: N | V110: CalMoAvg | W110: St. Louis | X110: Lake Superior | Y110: St. Louis River | Z110: 3 | AA110: 3136 | AB110: Private | AC110: Y | AD110: Y | AE110: N | AF110: 6
A111: SD003 | B111: 66 | C111: MN0059633 | D111: PER 001 | E111: SD | F111: Pipe Outfall 012 | G111: Effluent To Surface Water | H111: 2001 | I111: 03 | J111: 03/01 | K111: 03/01 | L111: 01046 | M111: Iron, Dissolved (as Fe) | N111: 2.0 | P111: 0.08 | Q111: mg/L | R111: n/a | S111: N | T111: N | U111: N | V111: CalMoMax | W111: St. Louis | X111: Lake Superior | Y111: St. Louis River | Z111: 3 | AA111: 3136 | AB111: Private | AC111: Y | AD111: Y | AE111: N | AF111: 6
A112: SD003 | B112: 66 | C112: MN0059633 | D112: PER 001 | E112: SD | F112: Pipe Outfall 012 | G112: Effluent To Surface Water | H112: 2001 | I112: 03 | J112: 03/01 | K112: 03/01 | L112: 00400 | M112: pH | N112: 8.5 | P112: 7.47 | Q112: SU | R112: n/a | S112: N | T112: N | U112: N | V112: InstantMax | W112: St. Louis | X112: Lake Superior | Y112: St. Louis River | Z112: 3 | AA112: 3136 | AB112: Private | AC112: Y | AD112: Y | AE112: N | AF112: 6
A113: SD003 | B113: 66 | C113: MN0059633 | D113: PER 001 | E113: SD | F113: Pipe Outfall 012 | G113: Effluent To Surface Water | H113: 2001 | I113: 03 | J113: 03/01 | K113: 03/01 | L113: 00400 | M113: pH | N113: 6.5 | P113: 7.47 | Q113: SU | R113: n/a | S113: N | T113: N | U113: N | V113: InstantMin | W113: St. Louis | X113: Lake Superior | Y113: St. Louis River | Z113: 3 | AA113: 3136 | AB113: Private | AC113: Y | AD113: Y | AE113: N | AF113: 6
A114: SD003 | B114: 66 | C114: MN0059633 | D114: PER 001 | E114: SD | F114: Pipe Outfall 012 | G114: Effluent To Surface Water | H114: 2001 | I114: 04 | J114: 04/01 | K114: 04/01 | L114: 50050 | M114: Flow | P114: 101.4 | Q114: MG | R114: n/a | S114: N | T114: N | U114: N | V114: CalMoTot | W114: St. Louis | X114: Lake Superior | Y114: St. Louis River | Z114: 3 | AA114: 3136 | AB114: Private | AC114: Y | AD114: Y | AE114: N | AF114: 6
A115: SD003 | B115: 66 | C115: MN0059633 | D115: PER 001 | E115: SD | F115: Pipe Outfall 012 | G115: Effluent To Surface Water | H115: 2001 | I115: 04 | J115: 04/01 | K115: 04/01 | L115: 50050 | M115: Flow | P115: 3.38 | Q115: mgd | R115: n/a | S115: N | T115: N | U115: N | V115: CalMoAvg | W115: St. Louis | X115: Lake Superior | Y115: St. Louis River | Z115: 3 | AA115: 3136 | AB115: Private | AC115: Y | AD115: Y | AE115: N | AF115: 6
A116: SD003 | B116: 66 | C116: MN0059633 | D116: PER 001 | E116: SD | F116: Pipe Outfall 012 | G116: Effluent To Surface Water | H116: 2001 | I116: 04 | J116: 04/01 | K116: 04/01 | L116: 50050 | M116: Flow | P116: 3.38 | Q116: mgd | R116: n/a | S116: N | T116: N | U116: N | V116: CalMoMax | W116: St. Louis | X116: Lake Superior | Y116: St. Louis River | Z116: 3 | AA116: 3136 | AB116: Private | AC116: Y | AD116: Y | AE116: N | AF116: 6
A117: SD003 | B117: 66 | C117: MN0059633 | D117: PER 001 | E117: SD | F117: Pipe Outfall 012 | G117: Effluent To Surface Water | H117: 2001 | I117: 04 | J117: 04/01 | K117: 04/01 | L117: 01046 | M117: Iron, Dissolved (as Fe) | N117: 1.0 | P117: 0.1 | Q117: mg/L | R117: n/a | S117: N | T117: N | U117: N | V117: CalMoAvg | W117: St. Louis | X117: Lake Superior | Y117: St. Louis River | Z117: 3 | AA117: 3136 | AB117: Private | AC117: Y | AD117: Y | AE117: N | AF117: 6
A118: SD003 | B118: 66 | C118: MN0059633 | D118: PER 001 | E118: SD | F118: Pipe Outfall 012 | G118: Effluent To Surface Water | H118: 2001 | I118: 04 | J118: 04/01 | K118: 04/01 | L118: 01046 | M118: Iron, Dissolved (as Fe) | N118: 2.0 | P118: 0.22 | Q118: mg/L | R118: n/a | S118: N | T118: N | U118: N | V118: CalMoMax | W118: St. Louis | X118: Lake Superior | Y118: St. Louis River | Z118: 3 | AA118: 3136 | AB118: Private | AC118: Y | AD118: Y | AE118: N | AF118: 6
A119: SD003 | B119: 66 | C119: MN0059633 | D119: PER 001 | E119: SD | F119: Pipe Outfall 012 | G119: Effluent To Surface Water | H119: 2001 | I119: 04 | J119: 04/01 | K119: 04/01 | L119: 00400 | M119: pH | N119: 8.5 | P119: 8.24 | Q119: SU | R119: n/a | S119: N | T119: N | U119: N | V119: InstantMax | W119: St. Louis | X119: Lake Superior | Y119: St. Louis River | Z119: 3 | AA119: 3136 | AB119: Private | AC119: Y | AD119: Y | AE119: N | AF119: 6
A120: SD003 | B120: 66 | C120: MN0059633 | D120: PER 001 | E120: SD | F120: Pipe Outfall 012 | G120: Effluent To Surface Water | H120: 2001 | I120: 04 | J120: 04/01 | K120: 04/01 | L120: 00400 | M120: pH | N120: 6.5 | P120: 7.47 | Q120: SU | R120: n/a | S120: N | T120: N | U120: N | V120: InstantMin | W120: St. Louis | X120: Lake Superior | Y120: St. Louis River | Z120: 3 | AA120: 3136 | AB120: Private | AC120: Y | AD120: Y | AE120: N | AF120: 6
A121: SD003 | B121: 66 | C121: MN0059633 | D121: PER 001 | E121: SD | F121: Pipe Outfall 012 | G121: Effluent To Surface Water | H121: 2001 | I121: 05 | J121: 05/01 | K121: 05/01 | L121: 50050 | M121: Flow | P121: 102.982 | Q121: MG | R121: n/a | S121: N | T121: N | U121: N | V121: CalMoTot | W121: St. Louis | X121: Lake Superior | Y121: St. Louis River | Z121: 3 | AA121: 3136 | AB121: Private | AC121: Y | AD121: Y | AE121: N | AF121: 6
A122: SD003 | B122: 66 | C122: MN0059633 | D122: PER 001 | E122: SD | F122: Pipe Outfall 012 | G122: Effluent To Surface Water | H122: 2001 | I122: 05 | J122: 05/01 | K122: 05/01 | L122: 50050 | M122: Flow | P122: 3.322 | Q122: mgd | R122: n/a | S122: N | T122: N | U122: N | V122: CalMoAvg | W122: St. Louis | X122: Lake Superior | Y122: St. Louis River | Z122: 3 | AA122: 3136 | AB122: Private | AC122: Y | AD122: Y | AE122: N | AF122: 6
A123: SD003 | B123: 66 | C123: MN0059633 | D123: PER 001 | E123: SD | F123: Pipe Outfall 012 | G123: Effluent To Surface Water | H123: 2001 | I123: 05 | J123: 05/01 | K123: 05/01 | L123: 50050 | M123: Flow | P123: 3.322 | Q123: mgd | R123: n/a | S123: N | T123: N | U123: N | V123: CalMoMax | W123: St. Louis | X123: Lake Superior | Y123: St. Louis River | Z123: 3 | AA123: 3136 | AB123: Private | AC123: Y | AD123: Y | AE123: N | AF123: 6
A124: SD003 | B124: 66 | C124: MN0059633 | D124: PER 001 | E124: SD | F124: Pipe Outfall 012 | G124: Effluent To Surface Water | H124: 2001 | I124: 05 | J124: 05/01 | K124: 05/01 | L124: 01046 | M124: Iron, Dissolved (as Fe) | N124: 1.0 | O124: < | P124: 0.03 | Q124: mg/L | R124: n/a | S124: N | T124: N | U124: N | V124: CalMoAvg | W124: St. Louis | X124: Lake Superior | Y124: St. Louis River | Z124: 3 | AA124: 3136 | AB124: Private | AC124: Y | AD124: Y | AE124: N | AF124: 6
A125: SD003 | B125: 66 | C125: MN0059633 | D125: PER 001 | E125: SD | F125: Pipe Outfall 012 | G125: Effluent To Surface Water | H125: 2001 | I125: 05 | J125: 05/01 | K125: 05/01 | L125: 01046 | M125: Iron, Dissolved (as Fe) | N125: 2.0 | O125: < | P125: 0.03 | Q125: mg/L | R125: n/a | S125: N | T125: N | U125: N | V125: CalMoMax | W125: St. Louis | X125: Lake Superior | Y125: St. Louis River | Z125: 3 | AA125: 3136 | AB125: Private | AC125: Y | AD125: Y | AE125: N | AF125: 6
A126: SD003 | B126: 66 | C126: MN0059633 | D126: PER 001 | E126: SD | F126: Pipe Outfall 012 | G126: Effluent To Surface Water | H126: 2001 | I126: 05 | J126: 05/01 | K126: 05/01 | L126: 00400 | M126: pH | N126: 8.5 | P126: 8.24 | Q126: SU | R126: n/a | S126: N | T126: N | U126: N | V126: InstantMax | W126: St. Louis | X126: Lake Superior | Y126: St. Louis River | Z126: 3 | AA126: 3136 | AB126: Private | AC126: Y | AD126: Y | AE126: N | AF126: 6
A127: SD003 | B127: 66 | C127: MN0059633 | D127: PER 001 | E127: SD | F127: Pipe Outfall 012 | G127: Effluent To Surface Water | H127: 2001 | I127: 05 | J127: 05/01 | K127: 05/01 | L127: 00400 | M127: pH | N127: 6.5 | P127: 7.9 | Q127: SU | R127: n/a | S127: N | T127: N | U127: N | V127: InstantMin | W127: St. Louis | X127: Lake Superior | Y127: St. Louis River | Z127: 3 | AA127: 3136 | AB127: Private | AC127: Y | AD127: Y | AE127: N | AF127: 6
A128: SD003 | B128: 66 | C128: MN0059633 | D128: PER 001 | E128: SD | F128: Pipe Outfall 012 | G128: Effluent To Surface Water | H128: 2001 | I128: 06 | J128: 06/01 | K128: 06/01 | L128: 50050 | M128: Flow | P128: 100.124 | Q128: MG | R128: n/a | S128: N | T128: N | U128: N | V128: CalMoTot | W128: St. Louis | X128: Lake Superior | Y128: St. Louis River | Z128: 3 | AA128: 3136 | AB128: Private | AC128: Y | AD128: Y | AE128: N | AF128: 6
A129: SD003 | B129: 66 | C129: MN0059633 | D129: PER 001 | E129: SD | F129: Pipe Outfall 012 | G129: Effluent To Surface Water | H129: 2001 | I129: 06 | J129: 06/01 | K129: 06/01 | L129: 50050 | M129: Flow | P129: 3.337 | Q129: mgd | R129: n/a | S129: N | T129: N | U129: N | V129: CalMoAvg | W129: St. Louis | X129: Lake Superior | Y129: St. Louis River | Z129: 3 | AA129: 3136 | AB129: Private | AC129: Y | AD129: Y | AE129: N | AF129: 6
A130: SD003 | B130: 66 | C130: MN0059633 | D130: PER 001 | E130: SD | F130: Pipe Outfall 012 | G130: Effluent To Surface Water | H130: 2001 | I130: 06 | J130: 06/01 | K130: 06/01 | L130: 50050 | M130: Flow | P130: 3.337 | Q130: mgd | R130: n/a | S130: N | T130: N | U130: N | V130: CalMoMax | W130: St. Louis | X130: Lake Superior | Y130: St. Louis River | Z130: 3 | AA130: 3136 | AB130: Private | AC130: Y | AD130: Y | AE130: N | AF130: 6
A131: SD003 | B131: 66 | C131: MN0059633 | D131: PER 001 | E131: SD | F131: Pipe Outfall 012 | G131: Effluent To Surface Water | H131: 2001 | I131: 06 | J131: 06/01 | K131: 06/01 | L131: 01046 | M131: Iron, Dissolved (as Fe) | N131: 1.0 | O131: < | P131: 0.035 | Q131: mg/L | R131: n/a | S131: N | T131: N | U131: N | V131: CalMoAvg | W131: St. Louis | X131: Lake Superior | Y131: St. Louis River | Z131: 3 | AA131: 3136 | AB131: Private | AC131: Y | AD131: Y | AE131: N | AF131: 6
A132: SD003 | B132: 66 | C132: MN0059633 | D132: PER 001 | E132: SD | F132: Pipe Outfall 012 | G132: Effluent To Surface Water | H132: 2001 | I132: 06 | J132: 06/01 | K132: 06/01 | L132: 01046 | M132: Iron, Dissolved (as Fe) | N132: 2.0 | P132: 0.04 | Q132: mg/L | R132: n/a | S132: N | T132: N | U132: N | V132: CalMoMax | W132: St. Louis | X132: Lake Superior | Y132: St. Louis River | Z132: 3 | AA132: 3136 | AB132: Private | AC132: Y | AD132: Y | AE132: N | AF132: 6
A133: SD003 | B133: 66 | C133: MN0059633 | D133: PER 001 | E133: SD | F133: Pipe Outfall 012 | G133: Effluent To Surface Water | H133: 2001 | I133: 06 | J133: 06/01 | K133: 06/01 | L133: 00400 | M133: pH | N133: 8.5 | P133: 8.03 | Q133: SU | R133: n/a | S133: N | T133: N | U133: N | V133: InstantMax | W133: St. Louis | X133: Lake Superior | Y133: St. Louis River | Z133: 3 | AA133: 3136 | AB133: Private | AC133: Y | AD133: Y | AE133: N | AF133: 6
A134: SD003 | B134: 66 | C134: MN0059633 | D134: PER 001 | E134: SD | F134: Pipe Outfall 012 | G134: Effluent To Surface Water | H134: 2001 | I134: 06 | J134: 06/01 | K134: 06/01 | L134: 00400 | M134: pH | N134: 6.5 | P134: 7.87 | Q134: SU | R134: n/a | S134: N | T134: N | U134: N | V134: InstantMin | W134: St. Louis | X134: Lake Superior | Y134: St. Louis River | Z134: 3 | AA134: 3136 | AB134: Private | AC134: Y | AD134: Y | AE134: N | AF134: 6
A135: SD003 | B135: 66 | C135: MN0059633 | D135: PER 001 | E135: SD | F135: Pipe Outfall 012 | G135: Effluent To Surface Water | H135: 2001 | I135: 07 | J135: 07/01 | K135: 07/01 | L135: 50050 | M135: Flow | P135: 110.205 | Q135: MG | R135: n/a | S135: N | T135: N | U135: N | V135: CalMoTot | W135: St. Louis | X135: Lake Superior | Y135: St. Louis River | Z135: 3 | AA135: 3136 | AB135: Private | AC135: Y | AD135: Y | AE135: N | AF135: 6
A136: SD003 | B136: 66 | C136: MN0059633 | D136: PER 001 | E136: SD | F136: Pipe Outfall 012 | G136: Effluent To Surface Water | H136: 2001 | I136: 07 | J136: 07/01 | K136: 07/01 | L136: 50050 | M136: Flow | P136: 3.555 | Q136: mgd | R136: n/a | S136: N | T136: N | U136: N | V136: CalMoAvg | W136: St. Louis | X136: Lake Superior | Y136: St. Louis River | Z136: 3 | AA136: 3136 | AB136: Private | AC136: Y | AD136: Y | AE136: N | AF136: 6
A137: SD003 | B137: 66 | C137: MN0059633 | D137: PER 001 | E137: SD | F137: Pipe Outfall 012 | G137: Effluent To Surface Water | H137: 2001 | I137: 07 | J137: 07/01 | K137: 07/01 | L137: 50050 | M137: Flow | P137: 3.555 | Q137: mgd | R137: n/a | S137: N | T137: N | U137: N | V137: CalMoMax | W137: St. Louis | X137: Lake Superior | Y137: St. Louis River | Z137: 3 | AA137: 3136 | AB137: Private | AC137: Y | AD137: Y | AE137: N | AF137: 6
A138: SD003 | B138: 66 | C138: MN0059633 | D138: PER 001 | E138: SD | F138: Pipe Outfall 012 | G138: Effluent To Surface Water | H138: 2001 | I138: 07 | J138: 07/01 | K138: 07/01 | L138: 01046 | M138: Iron, Dissolved (as Fe) | N138: 1.0 | O138: < | P138: 0.03 | Q138: mg/L | R138: n/a | S138: N | T138: N | U138: N | V138: CalMoAvg | W138: St. Louis | X138: Lake Superior | Y138: St. Louis River | Z138: 3 | AA138: 3136 | AB138: Private | AC138: Y | AD138: Y | AE138: N | AF138: 6
A139: SD003 | B139: 66 | C139: MN0059633 | D139: PER 001 | E139: SD | F139: Pipe Outfall 012 | G139: Effluent To Surface Water | H139: 2001 | I139: 07 | J139: 07/01 | K139: 07/01 | L139: 01046 | M139: Iron, Dissolved (as Fe) | N139: 2.0 | O139: < | P139: 0.03 | Q139: mg/L | R139: n/a | S139: N | T139: N | U139: N | V139: CalMoMax | W139: St. Louis | X139: Lake Superior | Y139: St. Louis River | Z139: 3 | AA139: 3136 | AB139: Private | AC139: Y | AD139: Y | AE139: N | AF139: 6
A140: SD003 | B140: 66 | C140: MN0059633 | D140: PER 001 | E140: SD | F140: Pipe Outfall 012 | G140: Effluent To Surface Water | H140: 2001 | I140: 07 | J140: 07/01 | K140: 07/01 | L140: 00400 | M140: pH | N140: 8.5 | P140: 8.13 | Q140: SU | R140: n/a | S140: N | T140: N | U140: N | V140: InstantMax | W140: St. Louis | X140: Lake Superior | Y140: St. Louis River | Z140: 3 | AA140: 3136 | AB140: Private | AC140: Y | AD140: Y | AE140: N | AF140: 6
A141: SD003 | B141: 66 | C141: MN0059633 | D141: PER 001 | E141: SD | F141: Pipe Outfall 012 | G141: Effluent To Surface Water | H141: 2001 | I141: 07 | J141: 07/01 | K141: 07/01 | L141: 00400 | M141: pH | N141: 6.5 | P141: 7.9 | Q141: SU | R141: n/a | S141: N | T141: N | U141: N | V141: InstantMin | W141: St. Louis | X141: Lake Superior | Y141: St. Louis River | Z141: 3 | AA141: 3136 | AB141: Private | AC141: Y | AD141: Y | AE141: N | AF141: 6
A142: SD003 | B142: 66 | C142: MN0059633 | D142: PER 001 | E142: SD | F142: Pipe Outfall 012 | G142: Effluent To Surface Water | H142: 2001 | I142: 08 | J142: 08/01 | K142: 08/01 | L142: 50050 | M142: Flow | P142: 115.506 | Q142: MG | R142: n/a | S142: N | T142: N | U142: N | V142: CalMoTot | W142: St. Louis | X142: Lake Superior | Y142: St. Louis River | Z142: 3 | AA142: 3136 | AB142: Private | AC142: Y | AD142: Y | AE142: N | AF142: 6
A143: SD003 | B143: 66 | C143: MN0059633 | D143: PER 001 | E143: SD | F143: Pipe Outfall 012 | G143: Effluent To Surface Water | H143: 2001 | I143: 08 | J143: 08/01 | K143: 08/01 | L143: 50050 | M143: Flow | P143: 3.726 | Q143: mgd | R143: n/a | S143: N | T143: N | U143: N | V143: CalMoAvg | W143: St. Louis | X143: Lake Superior | Y143: St. Louis River | Z143: 3 | AA143: 3136 | AB143: Private | AC143: Y | AD143: Y | AE143: N | AF143: 6
A144: SD003 | B144: 66 | C144: MN0059633 | D144: PER 001 | E144: SD | F144: Pipe Outfall 012 | G144: Effluent To Surface Water | H144: 2001 | I144: 08 | J144: 08/01 | K144: 08/01 | L144: 50050 | M144: Flow | P144: 3.726 | Q144: mgd | R144: n/a | S144: N | T144: N | U144: N | V144: CalMoMax | W144: St. Louis | X144: Lake Superior | Y144: St. Louis River | Z144: 3 | AA144: 3136 | AB144: Private | AC144: Y | AD144: Y | AE144: N | AF144: 6
A145: SD003 | B145: 66 | C145: MN0059633 | D145: PER 001 | E145: SD | F145: Pipe Outfall 012 | G145: Effluent To Surface Water | H145: 2001 | I145: 08 | J145: 08/01 | K145: 08/01 | L145: 01046 | M145: Iron, Dissolved (as Fe) | N145: 1.0 | O145: < | P145: 0.03 | Q145: mg/L | R145: n/a | S145: N | T145: N | U145: N | V145: CalMoAvg | W145: St. Louis | X145: Lake Superior | Y145: St. Louis River | Z145: 3 | AA145: 3136 | AB145: Private | AC145: Y | AD145: Y | AE145: N | AF145: 6
A146: SD003 | B146: 66 | C146: MN0059633 | D146: PER 001 | E146: SD | F146: Pipe Outfall 012 | G146: Effluent To Surface Water | H146: 2001 | I146: 08 | J146: 08/01 | K146: 08/01 | L146: 01046 | M146: Iron, Dissolved (as Fe) | N146: 2.0 | O146: < | P146: 0.03 | Q146: mg/L | R146: n/a | S146: N | T146: N | U146: N | V146: CalMoMax | W146: St. Louis | X146: Lake Superior | Y146: St. Louis River | Z146: 3 | AA146: 3136 | AB146: Private | AC146: Y | AD146: Y | AE146: N | AF146: 6
A147: SD003 | B147: 66 | C147: MN0059633 | D147: PER 001 | E147: SD | F147: Pipe Outfall 012 | G147: Effluent To Surface Water | H147: 2001 | I147: 08 | J147: 08/01 | K147: 08/01 | L147: 00400 | M147: pH | N147: 8.5 | P147: 8.3 | Q147: SU | R147: n/a | S147: N | T147: N | U147: N | V147: InstantMax | W147: St. Louis | X147: Lake Superior | Y147: St. Louis River | Z147: 3 | AA147: 3136 | AB147: Private | AC147: Y | AD147: Y | AE147: N | AF147: 6
A148: SD003 | B148: 66 | C148: MN0059633 | D148: PER 001 | E148: SD | F148: Pipe Outfall 012 | G148: Effluent To Surface Water | H148: 2001 | I148: 08 | J148: 08/01 | K148: 08/01 | L148: 00400 | M148: pH | N148: 6.5 | P148: 7.93 | Q148: SU | R148: n/a | S148: N | T148: N | U148: N | V148: InstantMin | W148: St. Louis | X148: Lake Superior | Y148: St. Louis River | Z148: 3 | AA148: 3136 | AB148: Private | AC148: Y | AD148: Y | AE148: N | AF148: 6
A149: SD003 | B149: 66 | C149: MN0059633 | D149: PER 001 | E149: SD | F149: Pipe Outfall 012 | G149: Effluent To Surface Water | H149: 2001 | I149: 09 | J149: 09/01 | K149: 09/01 | L149: 50050 | M149: Flow | P149: 101.52 | Q149: MG | R149: n/a | S149: N | T149: N | U149: N | V149: CalMoTot | W149: St. Louis | X149: Lake Superior | Y149: St. Louis River | Z149: 3 | AA149: 3136 | AB149: Private | AC149: Y | AD149: Y | AE149: N | AF149: 6
A150: SD003 | B150: 66 | C150: MN0059633 | D150: PER 001 | E150: SD | F150: Pipe Outfall 012 | G150: Effluent To Surface Water | H150: 2001 | I150: 09 | J150: 09/01 | K150: 09/01 | L150: 50050 | M150: Flow | P150: 3.384 | Q150: mgd | R150: n/a | S150: N | T150: N | U150: N | V150: CalMoAvg | W150: St. Louis | X150: Lake Superior | Y150: St. Louis River | Z150: 3 | AA150: 3136 | AB150: Private | AC150: Y | AD150: Y | AE150: N | AF150: 6
A151: SD003 | B151: 66 | C151: MN0059633 | D151: PER 001 | E151: SD | F151: Pipe Outfall 012 | G151: Effluent To Surface Water | H151: 2001 | I151: 09 | J151: 09/01 | K151: 09/01 | L151: 50050 | M151: Flow | P151: 3.384 | Q151: mgd | R151: n/a | S151: N | T151: N | U151: N | V151: CalMoMax | W151: St. Louis | X151: Lake Superior | Y151: St. Louis River | Z151: 3 | AA151: 3136 | AB151: Private | AC151: Y | AD151: Y | AE151: N | AF151: 6
A152: SD003 | B152: 66 | C152: MN0059633 | D152: PER 001 | E152: SD | F152: Pipe Outfall 012 | G152: Effluent To Surface Water | H152: 2001 | I152: 09 | J152: 09/01 | K152: 09/01 | L152: 01046 | M152: Iron, Dissolved (as Fe) | N152: 1.0 | O152: < | P152: 0.035 | Q152: mg/L | R152: n/a | S152: N | T152: N | U152: N | V152: CalMoAvg | W152: St. Louis | X152: Lake Superior | Y152: St. Louis River | Z152: 3 | AA152: 3136 | AB152: Private | AC152: Y | AD152: Y | AE152: N | AF152: 6
A153: SD003 | B153: 66 | C153: MN0059633 | D153: PER 001 | E153: SD | F153: Pipe Outfall 012 | G153: Effluent To Surface Water | H153: 2001 | I153: 09 | J153: 09/01 | K153: 09/01 | L153: 01046 | M153: Iron, Dissolved (as Fe) | N153: 2.0 | P153: 0.04 | Q153: mg/L | R153: n/a | S153: N | T153: N | U153: N | V153: CalMoMax | W153: St. Louis | X153: Lake Superior | Y153: St. Louis River | Z153: 3 | AA153: 3136 | AB153: Private | AC153: Y | AD153: Y | AE153: N | AF153: 6
A154: SD003 | B154: 66 | C154: MN0059633 | D154: PER 001 | E154: SD | F154: Pipe Outfall 012 | G154: Effluent To Surface Water | H154: 2001 | I154: 09 | J154: 09/01 | K154: 09/01 | L154: 00400 | M154: pH | N154: 8.5 | P154: 7.82 | Q154: SU | R154: n/a | S154: N | T154: N | U154: N | V154: InstantMax | W154: St. Louis | X154: Lake Superior | Y154: St. Louis River | Z154: 3 | AA154: 3136 | AB154: Private | AC154: Y | AD154: Y | AE154: N | AF154: 6
A155: SD003 | B155: 66 | C155: MN0059633 | D155: PER 001 | E155: SD | F155: Pipe Outfall 012 | G155: Effluent To Surface Water | H155: 2001 | I155: 09 | J155: 09/01 | K155: 09/01 | L155: 00400 | M155: pH | N155: 6.5 | P155: 7.56 | Q155: SU | R155: n/a | S155: N | T155: N | U155: N | V155: InstantMin | W155: St. Louis | X155: Lake Superior | Y155: St. Louis River | Z155: 3 | AA155: 3136 | AB155: Private | AC155: Y | AD155: Y | AE155: N | AF155: 6
A156: SD003 | B156: 66 | C156: MN0059633 | D156: PER 001 | E156: SD | F156: Pipe Outfall 012 | G156: Effluent To Surface Water | H156: 2001 | I156: 10 | J156: 10/01 | K156: 10/01 | L156: 50050 | M156: Flow | P156: 110.236 | Q156: MG | R156: n/a | S156: N | T156: N | U156: N | V156: CalMoTot | W156: St. Louis | X156: Lake Superior | Y156: St. Louis River | Z156: 3 | AA156: 3136 | AB156: Private | AC156: Y | AD156: Y | AE156: N | AF156: 6
A157: SD003 | B157: 66 | C157: MN0059633 | D157: PER 001 | E157: SD | F157: Pipe Outfall 012 | G157: Effluent To Surface Water | H157: 2001 | I157: 10 | J157: 10/01 | K157: 10/01 | L157: 50050 | M157: Flow | P157: 3.556 | Q157: mgd | R157: n/a | S157: N | T157: N | U157: N | V157: CalMoAvg | W157: St. Louis | X157: Lake Superior | Y157: St. Louis River | Z157: 3 | AA157: 3136 | AB157: Private | AC157: Y | AD157: Y | AE157: N | AF157: 6
A158: SD003 | B158: 66 | C158: MN0059633 | D158: PER 001 | E158: SD | F158: Pipe Outfall 012 | G158: Effluent To Surface Water | H158: 2001 | I158: 10 | J158: 10/01 | K158: 10/01 | L158: 50050 | M158: Flow | P158: 3.556 | Q158: mgd | R158: n/a | S158: N | T158: N | U158: N | V158: CalMoMax | W158: St. Louis | X158: Lake Superior | Y158: St. Louis River | Z158: 3 | AA158: 3136 | AB158: Private | AC158: Y | AD158: Y | AE158: N | AF158: 6
A159: SD003 | B159: 66 | C159: MN0059633 | D159: PER 001 | E159: SD | F159: Pipe Outfall 012 | G159: Effluent To Surface Water | H159: 2001 | I159: 10 | J159: 10/01 | K159: 10/01 | L159: 01046 | M159: Iron, Dissolved (as Fe) | N159: 1.0 | O159: < | P159: 0.03 | Q159: mg/L | R159: n/a | S159: N | T159: N | U159: N | V159: CalMoAvg | W159: St. Louis | X159: Lake Superior | Y159: St. Louis River | Z159: 3 | AA159: 3136 | AB159: Private | AC159: Y | AD159: Y | AE159: N | AF159: 6
A160: SD003 | B160: 66 | C160: MN0059633 | D160: PER 001 | E160: SD | F160: Pipe Outfall 012 | G160: Effluent To Surface Water | H160: 2001 | I160: 10 | J160: 10/01 | K160: 10/01 | L160: 01046 | M160: Iron, Dissolved (as Fe) | N160: 2.0 | P160: 0.03 | Q160: mg/L | R160: n/a | S160: N | T160: N | U160: N | V160: CalMoMax | W160: St. Louis | X160: Lake Superior | Y160: St. Louis River | Z160: 3 | AA160: 3136 | AB160: Private | AC160: Y | AD160: Y | AE160: N | AF160: 6
A161: SD003 | B161: 66 | C161: MN0059633 | D161: PER 001 | E161: SD | F161: Pipe Outfall 012 | G161: Effluent To Surface Water | H161: 2001 | I161: 10 | J161: 10/01 | K161: 10/01 | L161: 00400 | M161: pH | N161: 8.5 | P161: 8.01 | Q161: SU | R161: n/a | S161: N | T161: N | U161: N | V161: InstantMax | W161: St. Louis | X161: Lake Superior | Y161: St. Louis River | Z161: 3 | AA161: 3136 | AB161: Private | AC161: Y | AD161: Y | AE161: N | AF161: 6
A162: SD003 | B162: 66 | C162: MN0059633 | D162: PER 001 | E162: SD | F162: Pipe Outfall 012 | G162: Effluent To Surface Water | H162: 2001 | I162: 10 | J162: 10/01 | K162: 10/01 | L162: 00400 | M162: pH | N162: 6.5 | P162: 7.96 | Q162: SU | R162: n/a | S162: N | T162: N | U162: N | V162: InstantMin | W162: St. Louis | X162: Lake Superior | Y162: St. Louis River | Z162: 3 | AA162: 3136 | AB162: Private | AC162: Y | AD162: Y | AE162: N | AF162: 6
A163: SD003 | B163: 66 | C163: MN0059633 | D163: PER 001 | E163: SD | F163: Pipe Outfall 012 | G163: Effluent To Surface Water | H163: 2001 | I163: 11 | J163: 11/01 | K163: 11/01 | L163: 50050 | M163: Flow | P163: 110.73 | Q163: MG | R163: n/a | S163: N | T163: N | U163: N | V163: CalMoTot | W163: St. Louis | X163: Lake Superior | Y163: St. Louis River | Z163: 3 | AA163: 3136 | AB163: Private | AC163: Y | AD163: Y | AE163: N | AF163: 6
A164: SD003 | B164: 66 | C164: MN0059633 | D164: PER 001 | E164: SD | F164: Pipe Outfall 012 | G164: Effluent To Surface Water | H164: 2001 | I164: 11 | J164: 11/01 | K164: 11/01 | L164: 50050 | M164: Flow | P164: 3.691 | Q164: mgd | R164: n/a | S164: N | T164: N | U164: N | V164: CalMoAvg | W164: St. Louis | X164: Lake Superior | Y164: St. Louis River | Z164: 3 | AA164: 3136 | AB164: Private | AC164: Y | AD164: Y | AE164: N | AF164: 6
A165: SD003 | B165: 66 | C165: MN0059633 | D165: PER 001 | E165: SD | F165: Pipe Outfall 012 | G165: Effluent To Surface Water | H165: 2001 | I165: 11 | J165: 11/01 | K165: 11/01 | L165: 50050 | M165: Flow | P165: 3.691 | Q165: mgd | R165: n/a | S165: N | T165: N | U165: N | V165: CalMoMax | W165: St. Louis | X165: Lake Superior | Y165: St. Louis River | Z165: 3 | AA165: 3136 | AB165: Private | AC165: Y | AD165: Y | AE165: N | AF165: 6
A166: SD003 | B166: 66 | C166: MN0059633 | D166: PER 001 | E166: SD | F166: Pipe Outfall 012 | G166: Effluent To Surface Water | H166: 2001 | I166: 11 | J166: 11/01 | K166: 11/01 | L166: 01046 | M166: Iron, Dissolved (as Fe) | N166: 1.0 | O166: < | P166: 0.03 | Q166: mg/L | R166: n/a | S166: N | T166: N | U166: N | V166: CalMoAvg | W166: St. Louis | X166: Lake Superior | Y166: St. Louis River | Z166: 3 | AA166: 3136 | AB166: Private | AC166: Y | AD166: Y | AE166: N | AF166: 6
A167: SD003 | B167: 66 | C167: MN0059633 | D167: PER 001 | E167: SD | F167: Pipe Outfall 012 | G167: Effluent To Surface Water | H167: 2001 | I167: 11 | J167: 11/01 | K167: 11/01 | L167: 01046 | M167: Iron, Dissolved (as Fe) | N167: 2.0 | O167: < | P167: 0.03 | Q167: mg/L | R167: n/a | S167: N | T167: N | U167: N | V167: CalMoMax | W167: St. Louis | X167: Lake Superior | Y167: St. Louis River | Z167: 3 | AA167: 3136 | AB167: Private | AC167: Y | AD167: Y | AE167: N | AF167: 6
A168: SD003 | B168: 66 | C168: MN0059633 | D168: PER 001 | E168: SD | F168: Pipe Outfall 012 | G168: Effluent To Surface Water | H168: 2001 | I168: 11 | J168: 11/01 | K168: 11/01 | L168: 00400 | M168: pH | N168: 8.5 | P168: 7.82 | Q168: SU | R168: n/a | S168: N | T168: N | U168: N | V168: InstantMax | W168: St. Louis | X168: Lake Superior | Y168: St. Louis River | Z168: 3 | AA168: 3136 | AB168: Private | AC168: Y | AD168: Y | AE168: N | AF168: 6
A169: SD003 | B169: 66 | C169: MN0059633 | D169: PER 001 | E169: SD | F169: Pipe Outfall 012 | G169: Effluent To Surface Water | H169: 2001 | I169: 11 | J169: 11/01 | K169: 11/01 | L169: 00400 | M169: pH | N169: 6.5 | P169: 7.82 | Q169: SU | R169: n/a | S169: N | T169: N | U169: N | V169: InstantMin | W169: St. Louis | X169: Lake Superior | Y169: St. Louis River | Z169: 3 | AA169: 3136 | AB169: Private | AC169: Y | AD169: Y | AE169: N | AF169: 6
A170: SD003 | B170: 66 | C170: MN0059633 | D170: PER 001 | E170: SD | F170: Pipe Outfall 012 | G170: Effluent To Surface Water | H170: 2001 | I170: 12 | J170: 12/01 | K170: 12/01 | L170: 50050 | M170: Flow | P170: 99.2 | Q170: MG | R170: n/a | S170: N | T170: N | U170: N | V170: CalMoTot | W170: St. Louis | X170: Lake Superior | Y170: St. Louis River | Z170: 3 | AA170: 3136 | AB170: Private | AC170: Y | AD170: Y | AE170: N | AF170: 6
A171: SD003 | B171: 66 | C171: MN0059633 | D171: PER 001 | E171: SD | F171: Pipe Outfall 012 | G171: Effluent To Surface Water | H171: 2001 | I171: 12 | J171: 12/01 | K171: 12/01 | L171: 50050 | M171: Flow | P171: 3.2 | Q171: mgd | R171: n/a | S171: N | T171: N | U171: N | V171: CalMoAvg | W171: St. Louis | X171: Lake Superior | Y171: St. Louis River | Z171: 3 | AA171: 3136 | AB171: Private | AC171: Y | AD171: Y | AE171: N | AF171: 6
A172: SD003 | B172: 66 | C172: MN0059633 | D172: PER 001 | E172: SD | F172: Pipe Outfall 012 | G172: Effluent To Surface Water | H172: 2001 | I172: 12 | J172: 12/01 | K172: 12/01 | L172: 50050 | M172: Flow | P172: 3.2 | Q172: mgd | R172: n/a | S172: N | T172: N | U172: N | V172: CalMoMax | W172: St. Louis | X172: Lake Superior | Y172: St. Louis River | Z172: 3 | AA172: 3136 | AB172: Private | AC172: Y | AD172: Y | AE172: N | AF172: 6
A173: SD003 | B173: 66 | C173: MN0059633 | D173: PER 001 | E173: SD | F173: Pipe Outfall 012 | G173: Effluent To Surface Water | H173: 2001 | I173: 12 | J173: 12/01 | K173: 12/01 | L173: 01046 | M173: Iron, Dissolved (as Fe) | N173: 1.0 | O173: < | P173: 0.03 | Q173: mg/L | R173: n/a | S173: N | T173: N | U173: N | V173: CalMoAvg | W173: St. Louis | X173: Lake Superior | Y173: St. Louis River | Z173: 3 | AA173: 3136 | AB173: Private | AC173: Y | AD173: Y | AE173: N | AF173: 6
A174: SD003 | B174: 66 | C174: MN0059633 | D174: PER 001 | E174: SD | F174: Pipe Outfall 012 | G174: Effluent To Surface Water | H174: 2001 | I174: 12 | J174: 12/01 | K174: 12/01 | L174: 01046 | M174: Iron, Dissolved (as Fe) | N174: 2.0 | O174: < | P174: 0.03 | Q174: mg/L | R174: n/a | S174: N | T174: N | U174: N | V174: CalMoMax | W174: St. Louis | X174: Lake Superior | Y174: St. Louis River | Z174: 3 | AA174: 3136 | AB174: Private | AC174: Y | AD174: Y | AE174: N | AF174: 6
A175: SD003 | B175: 66 | C175: MN0059633 | D175: PER 001 | E175: SD | F175: Pipe Outfall 012 | G175: Effluent To Surface Water | H175: 2001 | I175: 12 | J175: 12/01 | K175: 12/01 | L175: 00400 | M175: pH | N175: 8.5 | P175: 7.58 | Q175: SU | R175: n/a | S175: N | T175: N | U175: N | V175: InstantMax | W175: St. Louis | X175: Lake Superior | Y175: St. Louis River | Z175: 3 | AA175: 3136 | AB175: Private | AC175: Y | AD175: Y | AE175: N | AF175: 6
A176: SD003 | B176: 66 | C176: MN0059633 | D176: PER 001 | E176: SD | F176: Pipe Outfall 012 | G176: Effluent To Surface Water | H176: 2001 | I176: 12 | J176: 12/01 | K176: 12/01 | L176: 00400 | M176: pH | N176: 6.5 | P176: 7.44 | Q176: SU | R176: n/a | S176: N | T176: N | U176: N | V176: InstantMin | W176: St. Louis | X176: Lake Superior | Y176: St. Louis River | Z176: 3 | AA176: 3136 | AB176: Private | AC176: Y | AD176: Y | AE176: N | AF176: 6
A177: SD003 | B177: 66 | C177: MN0059633 | D177: PER 001 | E177: SD | F177: Pipe Outfall 012 | G177: Effluent To Surface Water | H177: 2002 | I177: 01 | J177: 01/02 | K177: 01/02 | L177: 50050 | M177: Flow | P177: 88.474 | Q177: MG | R177: n/a | S177: N | T177: N | U177: N | V177: CalMoTot | W177: St. Louis | X177: Lake Superior | Y177: St. Louis River | Z177: 3 | AA177: 3136 | AB177: Private | AC177: Y | AD177: Y | AE177: N | AF177: 6
A178: SD003 | B178: 66 | C178: MN0059633 | D178: PER 001 | E178: SD | F178: Pipe Outfall 012 | G178: Effluent To Surface Water | H178: 2002 | I178: 01 | J178: 01/02 | K178: 01/02 | L178: 50050 | M178: Flow | P178: 2.854 | Q178: mgd | R178: n/a | S178: N | T178: N | U178: N | V178: CalMoAvg | W178: St. Louis | X178: Lake Superior | Y178: St. Louis River | Z178: 3 | AA178: 3136 | AB178: Private | AC178: Y | AD178: Y | AE178: N | AF178: 6
A179: SD003 | B179: 66 | C179: MN0059633 | D179: PER 001 | E179: SD | F179: Pipe Outfall 012 | G179: Effluent To Surface Water | H179: 2002 | I179: 01 | J179: 01/02 | K179: 01/02 | L179: 50050 | M179: Flow | P179: 2.854 | Q179: mgd | R179: n/a | S179: N | T179: N | U179: N | V179: CalMoMax | W179: St. Louis | X179: Lake Superior | Y179: St. Louis River | Z179: 3 | AA179: 3136 | AB179: Private | AC179: Y | AD179: Y | AE179: N | AF179: 6
A180: SD003 | B180: 66 | C180: MN0059633 | D180: PER 001 | E180: SD | F180: Pipe Outfall 012 | G180: Effluent To Surface Water | H180: 2002 | I180: 01 | J180: 01/02 | K180: 01/02 | L180: 01046 | M180: Iron, Dissolved (as Fe) | N180: 1.0 | O180: < | P180: 0.03 | Q180: mg/L | R180: n/a | S180: N | T180: N | U180: N | V180: CalMoAvg | W180: St. Louis | X180: Lake Superior | Y180: St. Louis River | Z180: 3 | AA180: 3136 | AB180: Private | AC180: Y | AD180: Y | AE180: N | AF180: 6
A181: SD003 | B181: 66 | C181: MN0059633 | D181: PER 001 | E181: SD | F181: Pipe Outfall 012 | G181: Effluent To Surface Water | H181: 2002 | I181: 01 | J181: 01/02 | K181: 01/02 | L181: 01046 | M181: Iron, Dissolved (as Fe) | N181: 2.0 | O181: < | P181: 0.03 | Q181: mg/L | R181: n/a | S181: N | T181: N | U181: N | V181: CalMoMax | W181: St. Louis | X181: Lake Superior | Y181: St. Louis River | Z181: 3 | AA181: 3136 | AB181: Private | AC181: Y | AD181: Y | AE181: N | AF181: 6
A182: SD003 | B182: 66 | C182: MN0059633 | D182: PER 001 | E182: SD | F182: Pipe Outfall 012 | G182: Effluent To Surface Water | H182: 2002 | I182: 01 | J182: 01/02 | K182: 01/02 | L182: 00400 | M182: pH | N182: 8.5 | P182: 7.61 | Q182: SU | R182: n/a | S182: N | T182: N | U182: N | V182: InstantMax | W182: St. Louis | X182: Lake Superior | Y182: St. Louis River | Z182: 3 | AA182: 3136 | AB182: Private | AC182: Y | AD182: Y | AE182: N | AF182: 6
A183: SD003 | B183: 66 | C183: MN0059633 | D183: PER 001 | E183: SD | F183: Pipe Outfall 012 | G183: Effluent To Surface Water | H183: 2002 | I183: 01 | J183: 01/02 | K183: 01/02 | L183: 00400 | M183: pH | N183: 6.5 | P183: 7.59 | Q183: SU | R183: n/a | S183: N | T183: N | U183: N | V183: InstantMin | W183: St. Louis | X183: Lake Superior | Y183: St. Louis River | Z183: 3 | AA183: 3136 | AB183: Private | AC183: Y | AD183: Y | AE183: N | AF183: 6
A184: SD003 | B184: 66 | C184: MN0059633 | D184: PER 001 | E184: SD | F184: Pipe Outfall 012 | G184: Effluent To Surface Water | H184: 2002 | I184: 02 | J184: 02/02 | K184: 02/02 | L184: 50050 | M184: Flow | P184: 76.216 | Q184: MG | R184: n/a | S184: N | T184: N | U184: N | V184: CalMoTot | W184: St. Louis | X184: Lake Superior | Y184: St. Louis River | Z184: 3 | AA184: 3136 | AB184: Private | AC184: Y | AD184: Y | AE184: N | AF184: 6
A185: SD003 | B185: 66 | C185: MN0059633 | D185: PER 001 | E185: SD | F185: Pipe Outfall 012 | G185: Effluent To Surface Water | H185: 2002 | I185: 02 | J185: 02/02 | K185: 02/02 | L185: 50050 | M185: Flow | P185: 2.722 | Q185: mgd | R185: n/a | S185: N | T185: N | U185: N | V185: CalMoAvg | W185: St. Louis | X185: Lake Superior | Y185: St. Louis River | Z185: 3 | AA185: 3136 | AB185: Private | AC185: Y | AD185: Y | AE185: N | AF185: 6
A186: SD003 | B186: 66 | C186: MN0059633 | D186: PER 001 | E186: SD | F186: Pipe Outfall 012 | G186: Effluent To Surface Water | H186: 2002 | I186: 02 | J186: 02/02 | K186: 02/02 | L186: 50050 | M186: Flow | P186: 2.722 | Q186: mgd | R186: n/a | S186: N | T186: N | U186: N | V186: CalMoMax | W186: St. Louis | X186: Lake Superior | Y186: St. Louis River | Z186: 3 | AA186: 3136 | AB186: Private | AC186: Y | AD186: Y | AE186: N | AF186: 6
A187: SD003 | B187: 66 | C187: MN0059633 | D187: PER 001 | E187: SD | F187: Pipe Outfall 012 | G187: Effluent To Surface Water | H187: 2002 | I187: 02 | J187: 02/02 | K187: 02/02 | L187: 01046 | M187: Iron, Dissolved (as Fe) | N187: 1.0 | O187: < | P187: 0.03 | Q187: mg/L | R187: n/a | S187: N | T187: N | U187: N | V187: CalMoAvg | W187: St. Louis | X187: Lake Superior | Y187: St. Louis River | Z187: 3 | AA187: 3136 | AB187: Private | AC187: Y | AD187: Y | AE187: N | AF187: 6
A188: SD003 | B188: 66 | C188: MN0059633 | D188: PER 001 | E188: SD | F188: Pipe Outfall 012 | G188: Effluent To Surface Water | H188: 2002 | I188: 02 | J188: 02/02 | K188: 02/02 | L188: 01046 | M188: Iron, Dissolved (as Fe) | N188: 2.0 | O188: < | P188: 0.03 | Q188: mg/L | R188: n/a | S188: N | T188: N | U188: N | V188: CalMoMax | W188: St. Louis | X188: Lake Superior | Y188: St. Louis River | Z188: 3 | AA188: 3136 | AB188: Private | AC188: Y | AD188: Y | AE188: N | AF188: 6
A189: SD003 | B189: 66 | C189: MN0059633 | D189: PER 001 | E189: SD | F189: Pipe Outfall 012 | G189: Effluent To Surface Water | H189: 2002 | I189: 02 | J189: 02/02 | K189: 02/02 | L189: 00400 | M189: pH | N189: 8.5 | P189: 7.68 | Q189: SU | R189: n/a | S189: N | T189: N | U189: N | V189: InstantMax | W189: St. Louis | X189: Lake Superior | Y189: St. Louis River | Z189: 3 | AA189: 3136 | AB189: Private | AC189: Y | AD189: Y | AE189: N | AF189: 6
A190: SD003 | B190: 66 | C190: MN0059633 | D190: PER 001 | E190: SD | F190: Pipe Outfall 012 | G190: Effluent To Surface Water | H190: 2002 | I190: 02 | J190: 02/02 | K190: 02/02 | L190: 00400 | M190: pH | N190: 6.5 | P190: 7.41 | Q190: SU | R190: n/a | S190: N | T190: N | U190: N | V190: InstantMin | W190: St. Louis | X190: Lake Superior | Y190: St. Louis River | Z190: 3 | AA190: 3136 | AB190: Private | AC190: Y | AD190: Y | AE190: N | AF190: 6
A191: SD003 | B191: 66 | C191: MN0059633 | D191: PER 001 | E191: SD | F191: Pipe Outfall 012 | G191: Effluent To Surface Water | H191: 2002 | I191: 03 | J191: 03/02 | K191: 03/02 | L191: 50050 | M191: Flow | P191: 86.49 | Q191: MG | R191: n/a | S191: N | T191: N | U191: N | V191: CalMoTot | W191: St. Louis | X191: Lake Superior | Y191: St. Louis River | Z191: 3 | AA191: 3136 | AB191: Private | AC191: Y | AD191: Y | AE191: N | AF191: 6
A192: SD003 | B192: 66 | C192: MN0059633 | D192: PER 001 | E192: SD | F192: Pipe Outfall 012 | G192: Effluent To Surface Water | H192: 2002 | I192: 03 | J192: 03/02 | K192: 03/02 | L192: 50050 | M192: Flow | P192: 2.79 | Q192: mgd | R192: n/a | S192: N | T192: N | U192: N | V192: CalMoAvg | W192: St. Louis | X192: Lake Superior | Y192: St. Louis River | Z192: 3 | AA192: 3136 | AB192: Private | AC192: Y | AD192: Y | AE192: N | AF192: 6
A193: SD003 | B193: 66 | C193: MN0059633 | D193: PER 001 | E193: SD | F193: Pipe Outfall 012 | G193: Effluent To Surface Water | H193: 2002 | I193: 03 | J193: 03/02 | K193: 03/02 | L193: 50050 | M193: Flow | P193: 2.79 | Q193: mgd | R193: n/a | S193: N | T193: N | U193: N | V193: CalMoMax | W193: St. Louis | X193: Lake Superior | Y193: St. Louis River | Z193: 3 | AA193: 3136 | AB193: Private | AC193: Y | AD193: Y | AE193: N | AF193: 6
A194: SD003 | B194: 66 | C194: MN0059633 | D194: PER 001 | E194: SD | F194: Pipe Outfall 012 | G194: Effluent To Surface Water | H194: 2002 | I194: 03 | J194: 03/02 | K194: 03/02 | L194: 01046 | M194: Iron, Dissolved (as Fe) | N194: 1.0 | O194: < | P194: 0.03 | Q194: mg/L | R194: n/a | S194: N | T194: N | U194: N | V194: CalMoAvg | W194: St. Louis | X194: Lake Superior | Y194: St. Louis River | Z194: 3 | AA194: 3136 | AB194: Private | AC194: Y | AD194: Y | AE194: N | AF194: 6
A195: SD003 | B195: 66 | C195: MN0059633 | D195: PER 001 | E195: SD | F195: Pipe Outfall 012 | G195: Effluent To Surface Water | H195: 2002 | I195: 03 | J195: 03/02 | K195: 03/02 | L195: 01046 | M195: Iron, Dissolved (as Fe) | N195: 2.0 | O195: < | P195: 0.03 | Q195: mg/L | R195: n/a | S195: N | T195: N | U195: N | V195: CalMoMax | W195: St. Louis | X195: Lake Superior | Y195: St. Louis River | Z195: 3 | AA195: 3136 | AB195: Private | AC195: Y | AD195: Y | AE195: N | AF195: 6
A196: SD003 | B196: 66 | C196: MN0059633 | D196: PER 001 | E196: SD | F196: Pipe Outfall 012 | G196: Effluent To Surface Water | H196: 2002 | I196: 03 | J196: 03/02 | K196: 03/02 | L196: 00400 | M196: pH | N196: 8.5 | P196: 7.54 | Q196: SU | R196: n/a | S196: N | T196: N | U196: N | V196: InstantMax | W196: St. Louis | X196: Lake Superior | Y196: St. Louis River | Z196: 3 | AA196: 3136 | AB196: Private | AC196: Y | AD196: Y | AE196: N | AF196: 6
A197: SD003 | B197: 66 | C197: MN0059633 | D197: PER 001 | E197: SD | F197: Pipe Outfall 012 | G197: Effluent To Surface Water | H197: 2002 | I197: 03 | J197: 03/02 | K197: 03/02 | L197: 00400 | M197: pH | N197: 6.5 | P197: 7.38 | Q197: SU | R197: n/a | S197: N | T197: N | U197: N | V197: InstantMin | W197: St. Louis | X197: Lake Superior | Y197: St. Louis River | Z197: 3 | AA197: 3136 | AB197: Private | AC197: Y | AD197: Y | AE197: N | AF197: 6
A198: SD003 | B198: 66 | C198: MN0059633 | D198: PER 001 | E198: SD | F198: Pipe Outfall 012 | G198: Effluent To Surface Water | H198: 2002 | I198: 04 | J198: 04/02 | K198: 04/02 | L198: 50050 | M198: Flow | P198: 82.8 | Q198: MG | R198: n/a | S198: N | T198: N | U198: N | V198: CalMoTot | W198: St. Louis | X198: Lake Superior | Y198: St. Louis River | Z198: 3 | AA198: 3136 | AB198: Private | AC198: Y | AD198: Y | AE198: N | AF198: 6
A199: SD003 | B199: 66 | C199: MN0059633 | D199: PER 001 | E199: SD | F199: Pipe Outfall 012 | G199: Effluent To Surface Water | H199: 2002 | I199: 04 | J199: 04/02 | K199: 04/02 | L199: 50050 | M199: Flow | P199: 2.76 | Q199: mgd | R199: n/a | S199: N | T199: N | U199: N | V199: CalMoAvg | W199: St. Louis | X199: Lake Superior | Y199: St. Louis River | Z199: 3 | AA199: 3136 | AB199: Private | AC199: Y | AD199: Y | AE199: N | AF199: 6
A200: SD003 | B200: 66 | C200: MN0059633 | D200: PER 001 | E200: SD | F200: Pipe Outfall 012 | G200: Effluent To Surface Water | H200: 2002 | I200: 04 | J200: 04/02 | K200: 04/02 | L200: 50050 | M200: Flow | P200: 2.76 | Q200: mgd | R200: n/a | S200: N | T200: N | U200: N | V200: CalMoMax | W200: St. Louis | X200: Lake Superior | Y200: St. Louis River | Z200: 3 | AA200: 3136 | AB200: Private | AC200: Y | AD200: Y | AE200: N | AF200: 6
... 305 more rows

Sheet St. Louis 1631 Hg
A1: Station ID | B1: Record_No | C1: Date | D1: LATITUDE | E1: LONGITUDE | F1: Time | G1: Temp | H1: Temp | I1: pH | J1: Color | K1: TSS | L1: TVSS | M1: Chloride | N1: Sulfate | O1: Nitrates | P1: DOC | Q1: Ca | R1: Tot Methyl Hg | S1: Filtered Hg | T1: Total Hg
G2: C | H2: F | I2: units | J2: Pt Co | K2: mg/l | L2: mg/l | M2: mg/l | N2: mg/l | O2: mg/l | Q2: mg/l | R2: ng/l | S2: ng/l | T2: ng/l
A3: SL 1150 | C3: 2003-10-14 | F3: 09:00:00 | G3: 10 | H3: =(9/5)*G3+32 -> 50 | I3: 7.6 | J3: 120 | K3: 4.4 | L3: 1 | M3: 5 | N3: 22 | O3: 0.01 | P3: 16.4 | Q3: 13.3 | R3: 0.19 | S3: 2 | T3: 2.5
A4: WF 282 | C4: 2003-10-14 | F4: 09:35:00 | G4: 9 | H4: =(9/5)*G4+32 -> 48.2 | I4: 7.7 | J4: 110 | K4: 1.6 | L4: 1 | M4: 1.5 | N4: 3 | O4: 0.01 | P4: 17.1 | Q4: 8.35 | R4: 0.22 | S4: 1.95 | T4: 2.2
A5: CQ 41 | C5: 2003-10-14 | F5: 10:35:00 | G5: 9.5 | H5: 49.1 | I5: 7.7 | J5: 60 | K5: 2.8 | L5: 1.4 | M5: 3 | N5: 4 | O5: 0.01 | P5: 11.9 | Q5: 11.9 | R5: 0.15 | S5: 1.1 | T5: 1.7
A6: SL 500 | C6: 2003-10-14 | F6: 11:00:00 | G6: 12 | H6: 53.6 | I6: 7.5 | J6: 120 | K6: 3.8 | L6: 1.2 | M6: 6 | N6: 16 | O6: 0.01 | P6: 18.3 | Q6: 120 | R6: 0.26 | S6: 1.8 | T6: 2.6
A7: SL 480 | C7: 2003-10-14 | F7: 11:20:00 | G7: 12 | H7: 53.6 | I7: 7.7 | J7: 110 | K7: 3.4 | L7: 1.2 | M7: 5 | N7: 12 | O7: 0.01 | P7: 15.2 | Q7: 14.3 | R7: 0.2 | S7: 1.5 | T7: 2.2
A8: SL 336N | C8: 2003-10-14 | F8: 11:50:00 | G8: 12 | H8: 53.6 | I8: 7.7 | J8: 110 | K8: 2.8 | L8: 1.2 | M8: 5 | N8: 16 | O8: 0.02 | P8: 15.2 | Q8: 15.1 | S8: 1.6 | T8: 2.4
A9: SL 336S | C9: 2003-10-14 | F9: 12:00:00 | G9: 12 | H9: 53.6 | I9: 7.7 | J9: 110 | K9: 3 | L9: 1 | M9: 5.5 | N9: 15 | O9: 0.02 | P9: 16 | Q9: 15 | S9: 1.7 | T9: 2.2
A10: SL 303 | C10: 2003-10-14 | F10: 12:15:00 | G10: 12 | H10: 53.6 | I10: 7.7 | J10: 110 | K10: 2.4 | L10: 1 | M10: 5 | N10: 16 | O10: 0.02 | P10: 15.7 | Q10: 14.4 | R10: 0.18 | S10: 1.5 | T10: 2.3
A11: SL 259 | C11: 2003-10-14 | F11: 13:00:00 | G11: 13 | H11: 55.4 | I11: 7.7 | J11: 110 | K11: 3.4 | L11: 1.2 | M11: 5.5 | N11: 16 | O11: 0.02 | P11: 16.1 | Q11: 14.8 | S11: 1.6 | T11: 2.4
A12: MW 42 | C12: 2003-10-14 | F12: 12:30:00 | G12: 11 | H12: 51.8 | I12: 7.8 | J12: 50 | K12: 1 | L12: 1 | M12: 9 | N12: 7 | O12: 0.01 | P12: 9.1 | Q12: 26 | R12: 0.19 | S12: 1 | T12: 1.8
A13: SL 248S | C13: 2003-10-14 | F13: 13:20:00 | G13: 13 | H13: 55.4 | I13: 8.1 | J13: 110 | K13: 2 | L13: 1 | M13: 7 | N13: 16 | O13: 0.01 | P13: 15.8 | Q13: 14.9 | S13: 1.6 | T13: 2.55
A14: SL 191 | C14: 2003-10-14 | F14: 13:50:00 | G14: 13.5 | H14: 56.3 | I14: 8 | J14: 110 | K14: 3 | L14: 1.2 | M14: 6 | N14: 16 | O14: 0.02 | P14: 16 | Q14: 14.9 | R14: 0.19 | S14: 1.7 | T14: 2.4
A15: SL 135 | C15: 2003-10-14 | F15: 14:15:00 | G15: 13.5 | H15: 56.3 | I15: 7.9 | J15: 110 | K15: 3.4 | L15: 1.6 | M15: 6 | N15: 16 | O15: 0.01 | P15: 16.9 | Q15: 15.3 | R15: 0.22 | S15: 1.5 | T15: 2.4
A16: SL 23 | C16: 2003-10-14 | F16: 15:00:00 | G16: 13 | H16: 55.4 | I16: 7.8 | J16: 100 | K16: 2 | L16: 1 | M16: 11 | N16: 23 | O16: 0.12 | P16: 16.3 | Q16: 16.7 | R16: 0.13 | S16: 1.6 | T16: 2.7
A17: KB 06 | C17: 2003-10-14 | F17: 14:35:00 | G17: 10 | H17: 50 | I17: 7.9 | J17: 60 | K17: 1 | L17: 1 | M17: 74.5 | N17: 13 | O17: 0.01 | P17: 12.8 | Q17: 36.8 | R17: 0.17 | S17: 1.4 | T17: 2
A18: CH 22 | C18: 2003-10-14 | F18: 15:35:00 | G18: 9 | H18: 48.2 | I18: 7.8 | J18: 40 | K18: 1 | L18: 1 | M18: 69 | N18: 16 | O18: 0.01 | P18: 8.3 | Q18: 32.2 | R18: 0.11 | S18: 0.7 | T18: 1.3
A19: TS 12 | C19: 2003-10-14 | F19: 15:50:00 | G19: 9 | H19: 48.2 | I19: 7.8 | J19: 40 | K19: 1 | L19: 1 | M19: 59 | N19: 13 | O19: 0.02 | P19: 6.7 | Q19: 41.7 | R19: 0.11 | S19: 0.6 | T19: 1.4
A20: AM 07 | C20: 2003-10-14 | F20: 16:10:00 | G20: 9 | H20: 48.2 | I20: 8 | J20: 30 | K20: 1 | L20: 1 | M20: 31 | N20: 13 | O20: 0.01 | P20: 6.2 | Q20: 30.6 | R20: 0.09 | S20: 0.8 | T20: 1.4
A21: 0049786 | C21: 2003-10-14 | K21: 10.6 | S21: 2.3 | T21: 3
A22: LK 00 | S22: <0.5 | T22: <0.5
A23: SL 1150 | C23: 2004-04-16 | F23: 08:45:00 | G23: 6.5 | H23: =(9/5)*G23+32 -> 43.7 | I23: 6.3 | J23: 120 | K23: 13 | L23: 2 | M23: 4.5 | N23: 20 | O23: 0.14 | P23: 15.4 | Q23: 11.3 | R23: 0.17 | S23: 2.9 | T23: 4.7
A24: WF 282 | C24: 2004-04-16 | F24: 08:15:00 | G24: 6.5 | H24: 43.7 | I24: 6.6 | J24: 120 | K24: 3.2 | L24: 1.4 | M24: 1.5 | N24: 6 | O24: 0.045 | P24: 16.45 | Q24: 7 | R24: 0.29 | S24: 3.2 | T24: 4.35
A25: CQ 41 | C25: 2004-04-16 | F25: 09:40:00 | G25: 6.5 | H25: 43.7 | I25: 6.5 | J25: 80 | K25: 2.6 | L25: 1.2 | M25: 4.5 | N25: 5 | O25: 0.03 | P25: 13.1 | Q25: 10.5 | R25: 0.11 | S25: 1.9 | T25: 2.6
A26: SL 500 | C26: 2004-04-16 | F26: 10:05:00 | G26: 6.5 | H26: 43.7 | I26: 6.5 | J26: 130 | K26: 12 | L26: 2 | M26: 4.5 | N26: 14 | O26: 0.1 | P26: 18.6 | Q26: 10.7 | S26: 3 | T26: 5
A27: SL 480 | C27: 2004-04-16 | F27: 10:15:00 | G27: 6.5 | H27: 43.7 | I27: 6.6 | J27: 120 | K27: 9.4 | L27: 1.8 | M27: 4 | N27: 10 | O27: 0.08 | P27: 16.1 | Q27: 9.5 | R27: 0.12 | S27: 2.7 | T27: 4
A28: SL 336N | C28: 2004-04-16 | F28: 10:45:00 | G28: 6.5 | H28: 43.7 | I28: 6.7 | J28: 120 | K28: 9.4 | L28: 1.8 | M28: 4.5 | N28: 13 | O28: 0.1 | P28: 17.5 | Q28: 10.3 | S28: 3 | T28: 4.7
A29: SL 336S | C29: 2004-04-16 | F29: 10:55:00 | G29: 6.5 | H29: 43.7 | I29: 6.7 | J29: 120 | K29: 11 | L29: 2.2 | M29: 4.5 | N29: 13 | O29: 0.1 | P29: 17 | Q29: 10.7 | S29: 2.9 | T29: 4.8
A30: SL 303 | C30: 2004-04-16 | F30: 11:10:00 | G30: 7 | H30: 44.6 | I30: 6.8 | J30: 120 | K30: 10 | L30: 2.2 | M30: 6 | N30: 15 | O30: 0.12 | P30: 16.8 | Q30: 11.5 | R30: 0.21 | S30: 2.9 | T30: 4.8
A31: SL 259 | C31: 2004-04-16 | F31: 12:00:00 | G31: 7 | H31: 44.6 | I31: 6.9 | J31: 120 | K31: 12.2 | L31: 2.2 | M31: 5.5 | N31: 13 | O31: 0.1 | P31: 16.6 | Q31: 10.4 | S31: 2.8 | T31: 4.8
A32: MW 42 | C32: 2004-04-16 | F32: 11:25:00 | G32: 7 | H32: 44.6 | I32: 7.1 | J32: 70 | K32: 2.1 | L32: 1 | M32: 14.5 | N32: 10 | O32: 0.04 | P32: 9.6 | Q32: 13.1 | R32: 0.08 | S32: 2 | T32: 2.7
A33: SL 248S | C33: 2004-04-16 | F33: 12:15:00 | G33: 7 | H33: 44.6 | I33: 6.9 | J33: 120 | K33: 9.8 | L33: 2 | M33: 4.5 | N33: 13 | O33: 0.11 | P33: 16.9 | Q33: 10.75 | S33: 3.1 | T33: 4.8
